Workbook

Sheet Info
D1: -1 | E1: 0 | F1: 1 | G1: 2 | H1: 3 | I1: 4 | J1: 5 | K1: 6 | L1: 7 | M1: 8 | N1: 9 | O1: 10 | P1: 11 | Q1: 12 | R1: 13 | S1: 14 | T1: 15 | Y1: =IF(OR(Z3="",Z4=""),"※ 市町村（左側）から順に選択してください","") -> ※ 市町村（左側）から順に選択してください | AD1: ｖ | AK1: v
V2: 表示行 | W2: 旧市町村数 | X2: 市町村行 | Y2: 参照シート、セル | Z2: check | AA2: 表示名 | AD2: 表示行 | AE2: 集落数 | AF2: 旧市町村行 | AG2: 参照シート | AH2: check | AK2: 表示行 | AL2: 集落数 | AM2: 旧市町村行 | AN2: 参照シート | AO2: check
D3: 県名 | G3: 市町村名 | J3: 旧市町村名 | V3: =IF(M4="",-1,IFERROR(MATCH(M4,OFFSET(集落2010,1,0,ROWS(集落2010),1),0)-1,3000))+AF3 -> 5 | W3: =COUNTIF('2010年'!B:B,Info!G4)-1 -> -1 | X3: =IF(G4="",6,MATCH(G4,'2010年'!B:B,0)) -> 6 | Y3: '2010年'!$A$1 | Z3: =OFFSET(INDIRECT(Y3),V3,1)&OFFSET(INDIRECT(Y3),V3,2)&OFFSET(INDIRECT(Y3),V3,3) ->  | AA3: =IF(OR(ISERROR(G4),ISERROR(J4),ISERROR(M4)),"表示できません",IF(G4&J4&M4="",D4,IF(M4<>"",M4,IF(J4<>"",IF($G$4=$J$4,"（旧）","")&$J$4,IF(J4<>"",J4,G4))))) -> 静岡県 | AD3: =IF(M4="",-1,IFERROR(MATCH(M4,OFFSET(集落2010,1,0,ROWS(集落2010),1),0)-1,999))+AF3 -> 5 | AE3: =COUNTIF('2010年'!C:C,Info!J4)-1 -> 1044533 | AF3: =IF(J4="",X3,MATCH(J4,'2010年'!C:C,0)) -> 6 | AG3: '2010年'!$A$1 | AH3: =OFFSET(INDIRECT(AG3),AD3,1)&OFFSET(INDIRECT(AG3),AD3,2)&OFFSET(INDIRECT(AG3),AD3,3) ->  | AI3: =IF(OR(ISERROR(AJ3),ISERROR(AL3)),"表示できません",IF(V4<>"",V4,IF(R4<>"",IF($G$4=$J$4,"（旧）","")&$J$4,IF(O4<>"",O4,L4)))) -> 5 | AK3: =IF(M4="",-1,IFERROR(MATCH(M4,OFFSET(集落2010,1,0,ROWS(集落2010),1),0)-1,999))+AM3 -> 5 | AL3: =COUNTIF('2010年'!C:C,Info!J4)-1 -> 1044533 | AM3: =IF(J4="",X3,MATCH(J4,'2010年'!C:C,0)) -> 6 | AN3: '2010年'!$A$1 | AO3: =OFFSET(INDIRECT(AN3),AK3,1)&OFFSET(INDIRECT(AN3),AK3,2)&OFFSET(INDIRECT(AN3),AK3,3) ->  | AP3: =IF(OR(ISERROR(AQ3),ISERROR(AS3)),"表示できません",IF(AC4<>"",AC4,IF(Y4<>"",IF($G$4=$J$4,"（旧）","")&$J$4,IF(V4<>"",V4,S4)))) -> （旧）
D4: 静岡県 | V4: =IF(M4="",-1,IFERROR(MATCH(M4,OFFSET(集落2015,1,0,ROWS(集落2015),1),0)-1,3000))+AF4 -> 5 | W4: =COUNTIF('2015年'!B:B,Info!G4)-1 -> -1 | X4: =IF(G4="",6,MATCH(G4,'2015年'!B:B,0)) -> 6 | Y4: '2015年'!$A$1 | Z4: =OFFSET(INDIRECT(Y4),V4,1)&OFFSET(INDIRECT(Y4),V4,2)&OFFSET(INDIRECT(Y4),V4,3) ->  | AD4: =IF(M4="",-1,IFERROR(MATCH(M4,OFFSET(集落2015,1,0,ROWS(集落2015),1),0)-1,999))+AF4 -> 5 | AE4: =COUNTIF('2015年'!C:C,Info!J4)-1 -> 1044533 | AF4: =IF(J4="",X3,MATCH(J4,'2015年'!C:C,0)) -> 6 | AG4: '2015年'!$A$1 | AH4: =OFFSET(INDIRECT(AG4),AD4,1)&OFFSET(INDIRECT(AG4),AD4,2)&OFFSET(INDIRECT(AG4),AD4,3) ->  | AK4: =IF(M4="",-1,IFERROR(MATCH(M4,OFFSET(集落2015,1,0,ROWS(集落2015),1),0)-1,999))+AM4 -> 5 | AL4: =COUNTIF('2015年'!C:C,Info!J4)-1 -> 1044533 | AM4: =IF(J4="",X4,MATCH(J4,'2010年'!C:C,0)) -> 6 | AN4: '2015年'!$A$1 | AO4: =OFFSET(INDIRECT(AN4),AK4,1)&OFFSET(INDIRECT(AN4),AK4,2)&OFFSET(INDIRECT(AN4),AK4,3) -> 
C6: ="総農家数" -> 総農家数 | G6: =IFERROR("◎ "&W11&IF(LEFT(R8,1)="県","の総農家に占める割合は "&TEXT(G13,"0.0")&"% で、"&D4&"（"&TEXT(G14,"0.0")&"%） "&X13,"は "&TEXT(G12,"#,###戸 で ")&W13&"、"&"総農家の "&TEXT(G13,"0.0")&"% を占める"),"") -> ◎ 販売農家は 31,864戸 で 7,105戸（18.2%） 減少、総農家の 52.2% を占める
K7: 単位：戸 | L7: 《主副業別割合》
F8: 総農家 | L8: =" "&IF(AND(LEFT(R8,1)<>"県",G4=""),D4,IF(LEFT(R8,1)="県",D12,$AA$3)) -> 静岡県 | R8: 前回との比較
G9: 販売 農家 | K9: 自給的農家 | R9: ="外円："&IF(AND(LEFT(R8,1)="県",G4=""),D4,IF(LEFT(R8,1)="県",$AA$3,"2015年"))&CHAR(10)&"内円："&IF(LEFT(R8,1)="県",$D$4,"2010年") -> 外円：2015年 内円：2010年
H10: 主業 農家 | I10: 準主業 農家 | J10: 副業的 農家 | V10: 列番号 | W10: 概要 | Y10: 凡例 | AC10: 内円
D11: 2010年 | F11: =IFERROR(OFFSET(INDIRECT($Y$3),$V$3,$V11+E$1),"nc") -> 70,283 | G11: =IFERROR(OFFSET(INDIRECT($Y$3),$V$3,$V11+F$1),"nc") -> 38,969 | H11: =IFERROR(OFFSET(INDIRECT($Y$3),$V$3,$V11+G$1),"nc") -> 10,516 | I11: =IFERROR(OFFSET(INDIRECT($Y$3),$V$3,$V11+I$1),"nc") -> 9,292 | J11: =IFERROR(OFFSET(INDIRECT($Y$3),$V$3,$V11+K$1),"nc") -> 19,161 | K11: =IFERROR(OFFSET(INDIRECT($Y$3),$V$3,$V11+L$1),"nc") -> 31,314 | V11: =CELL("col",'2010年'!E6)-1 -> 4 | W11: 販売農家 | X11: 対県 | Y11: 主業農家 | Z11: 準主業農家 | AA11: 副業的農家 | AB11: 自給的農家 | AC11: =IF(LEFT(R8,1)="県",2,-1) -> -1
D12: 2015年 | F12: =IFERROR(OFFSET(INDIRECT($Y$4),$V$4,$V12+E$1),"nc") -> 61,093 | G12: =IFERROR(OFFSET(INDIRECT($Y$4),$V$4,$V12+F$1),"nc") -> 31,864 | H12: =IFERROR(OFFSET(INDIRECT($Y$4),$V$4,$V12+G$1),"nc") -> 8,334 | I12: =IFERROR(OFFSET(INDIRECT($Y$4),$V$4,$V12+I$1),"nc") -> 6,274 | J12: =IFERROR(OFFSET(INDIRECT($Y$4),$V$4,$V12+K$1),"nc") -> 17,256 | K12: =IFERROR(OFFSET(INDIRECT($Y$4),$V$4,$V12+L$1),"nc") -> 29,229 | V12: =CELL("col",'2015年'!E6)-1 -> 4 | W12: =G12/G11-1 -> -0.1823244117 | X12: =G13-G14 -> 0.0
E13: 構成比(%) | F13: =IF(OR(AND(ISTEXT($F12),$F12<>"X",$F12<>"-"),AND(ISTEXT(F12),F12<>"X",F12<>"-")),"nc",IF(OR($F12="X",F12="X"),"X",IF(ROUND(SUM($F12),0)=0,"nc",SUM(F12)/$F12%))) -> 100.0 | G13: =IF(OR(AND(ISTEXT($F12),$F12<>"X",$F12<>"-"),AND(ISTEXT(G12),G12<>"X",G12<>"-")),"nc",IF(OR($F12="X",G12="X"),"X",IF(ROUND(SUM($F12),0)=0,"nc",SUM(G12)/$F12%))) -> 52.2 | H13: =IF(OR(AND(ISTEXT($F12),$F12<>"X",$F12<>"-"),AND(ISTEXT(H12),H12<>"X",H12<>"-")),"nc",IF(OR($F12="X",H12="X"),"X",IF(ROUND(SUM($F12),0)=0,"nc",SUM(H12)/$F12%))) -> 13.6 | I13: 10.3 | J13: =IF(OR(AND(ISTEXT($F12),$F12<>"X",$F12<>"-"),AND(ISTEXT(J12),J12<>"X",J12<>"-")),"nc",IF(OR($F12="X",J12="X"),"X",IF(ROUND(SUM($F12),0)=0,"nc",SUM(J12)/$F12%))) -> 28.2 | K13: 47.8 | W13: =IF(W12=0,"変化なし",TEXT(ABS(G12-G11),"#,##0")&"戸（"&TEXT(ABS(W12),"0.0%")&"） "&IF(W12>0,"増加","減少")) -> 7,105戸（18.2%） 減少 | X13: =IF(X12=0,"と同率である","を"&TEXT(ABS(X12),"#,##0.0")&"ポイント "&IF(X12>0,"上回る","下回る")) -> と同率である
E14: 県計 構成比(%) | F14: 100.0 | G14: =IFERROR(OFFSET(INDIRECT($Y$4),5,$V$12+F1)/OFFSET(INDIRECT($Y$4),5,V12)*100,"nc") -> 52.2 | H14: =IFERROR(OFFSET(INDIRECT($Y$4),5,$V$12+G1)/OFFSET(INDIRECT($Y$4),5,V12)*100,"nc") -> 13.6 | I14: =IFERROR(OFFSET(INDIRECT($Y$4),5,$V$12+I1)/OFFSET(INDIRECT($Y$4),5,V12)*100,"nc") -> 10.3 | J14: =IFERROR(OFFSET(INDIRECT($Y$4),5,$V$12+K1)/OFFSET(INDIRECT($Y$4),5,V12)*100,"nc") -> 28.2 | K14: =IFERROR(OFFSET(INDIRECT($Y$4),5,$V$12+L1)/OFFSET(INDIRECT($Y$4),5,V12)*100,"nc") -> 47.8
D15: =IFERROR("《参考》"&G4&"の総農家数の全国順位："&TEXT(OFFSET(#REF!,MATCH(Info!G4,#REF!,0),0),"#,##0")&"位","") -> 
C18: 基幹的農業従事者数
D19: =IFERROR(IF(RIGHT(C18,4)="ください","","◎ "&C18&"は "&TEXT(F23,"#,##0人 で ")&W24&IFERROR("、平均年齢 "&TEXT(S23,"0.0歳は")&IF(LEFT(R28,1)="県","県平均","2010年")&X24,"")),"") -> ◎ 基幹的農業従事者数は 51,235人 で 12,723人（19.9%） 減少、平均年齢 68.0歳は2010年を 0.7歳上回る
S20: 単位：人
F21: 計 | G21: 15～39歳 | H21: 40～44 | I21: 45～49 | J21: 50～54 | K21: 55～59 | L21: 60～64 | M21: 65～69 | N21: 70～74 | O21: 75～79 | P21: 80～84 | Q21: 85歳以上 | R21: 65歳以上 | S21: 平均 年齢 （歳） | V21: 列番号 | W21: 概要 | Y21: 縦棒 左 | Z21: 縦棒 右 | AA21: 凡例
D22: 2010年 | F22: =IFERROR(OFFSET(INDIRECT($Y$3),$V$3,V23-1),"nc") -> 63,958 | G22: =IFERROR(IF(COUNTIF(OFFSET(INDIRECT($Y$3),$V$3,$V23,1,5),"@")>0,"@",IF(COUNTIF(OFFSET(INDIRECT($Y$3),$V$3,$V23,1,5),"X")>0,"X",SUM(OFFSET(INDIRECT($Y$3),$V$3,$V23,1,5)))),"nc") -> 2,406 | H22: =IFERROR(OFFSET(INDIRECT($Y$3),$V$3,$V23+J$1),"nc") -> 1,222 | I22: =IFERROR(OFFSET(INDIRECT($Y$3),$V$3,$V23+K$1),"nc") -> 2,236 | J22: 3,830 | K22: 5,889 | L22: 7,845 | M22: 8,900 | N22: 10,599 | O22: 10,522 | P22: 7,577 | Q22: 2,932 | R22: =IF(COUNTIF(M22:Q22,"@"),"@",(IF(COUNTIF(M22:Q22,"X"),"X",SUM(M22:Q22)))) -> 40,530 | S22: =IFERROR(OFFSET(INDIRECT($Y$3),$V$3,V23+15),"nc") -> 67.3 | V22: =IF(C18="農業従事者数",1,IF(C18="農業就業人口",2,IF(C18="基幹的農業従事者数",3,ERROR.TYPE(5)))) -> 3 | W22: 人数 | X22: 平均年齢 | Y22: =IF(LEFT(R28,1)="県",3,-1) -> -1 | Z22: =IF(LEFT(R28,1)="県",1,0) -> 0 | AA22: =IF(LEFT(R28,1)="県",$D$4,$D22) -> 2010年
D23: 2015年 | F23: =IFERROR(OFFSET(INDIRECT($Y$4),$V$4,$V24-1),"nc") -> 51,235 | G23: =IFERROR(IF(COUNTIF(OFFSET(INDIRECT($Y$4),$V$4,$V24,1,5),"X")>0,"X",SUM(OFFSET(INDIRECT($Y$4),$V$4,$V24,1,5))),"nc") -> 2,012 | H23: =IFERROR(OFFSET(INDIRECT($Y$4),$V$4,$V24+5),"nc") -> 1,145 | I23: =IFERROR(OFFSET(INDIRECT($Y$4),$V$4,$V24+6),"nc") -> 1,275 | J23: =IFERROR(OFFSET(INDIRECT($Y$4),$V$4,$V24+7),"nc") -> 2,321 | K23: =IFERROR(OFFSET(INDIRECT($Y$4),$V$4,$V24+8),"nc") -> 3,944 | L23: =IFERROR(OFFSET(INDIRECT($Y$4),$V$4,$V24+9),"nc") -> 6,769 | M23: =IFERROR(OFFSET(INDIRECT($Y$4),$V$4,$V24+10),"nc") -> 8,441 | N23: =IFERROR(OFFSET(INDIRECT($Y$4),$V$4,$V24+11),"nc") -> 7,954 | O23: =IFERROR(OFFSET(INDIRECT($Y$4),$V$4,$V24+12),"nc") -> 7,827 | P23: =IFERROR(OFFSET(INDIRECT($Y$4),$V$4,$V24+13),"nc") -> 5,967 | Q23: =IFERROR(OFFSET(INDIRECT($Y$4),$V$4,$V24+14),"nc") -> 3,580 | R23: =IF(COUNTIF(M23:Q23,"X"),"X",SUM(M23:Q23)) -> 33,769 | S23: =IFERROR(OFFSET(INDIRECT($Y$4),$V$4,$V24+15),"nc") -> 68.0 | V23: =IFERROR(CHOOSE(V22,CELL("col",'2010年'!N6),CELL("col",'2010年'!AG6),CELL("col",'2010年'!AZ6))-1,555) -> 51 | W23: =F23/F22-1 -> -0.1989274211 | X23: =S23-IF(LEFT(R28,1)="県",S26,S22) -> 0.7 | AA23: =IF(AND(LEFT(R28,1)="県",G4=""),D4,IF(LEFT(R28,1)="県",AA3,D23)) -> 2015年
E24: 構成比(%) | F24: =IF(OR(AND(ISTEXT($F23),$F23<>"X",$F23<>"-"),AND(ISTEXT(F23),F23<>"X",F23<>"-")),"nc",IF(OR($F23="X",F23="X"),"X",IF(ROUND(SUM($F23),0)=0,"nc",SUM(F23)/$F23%))) -> 100.0 | G24: 3.9 | H24: 2.2 | I24: 2.5 | J24: 4.5 | K24: 7.7 | L24: 13.2 | M24: 16.5 | N24: 15.5 | O24: 15.3 | P24: 11.6 | Q24: 7.0 | R24: 65.9 | V24: =IFERROR(CHOOSE(V22,CELL("col",'2015年'!N6),CELL("col",'2015年'!AG6),CELL("col",'2015年'!AZ6))-1,555) -> 51 | W24: =IF(W23=0,"変化なし",TEXT(ABS(F23-F22),"#,##0人")&"（"&TEXT(ABS(W23),"0.0%")&"） "&IF(W23>0,"増加","減少")) -> 12,723人（19.9%） 減少 | X24: =IF(X23=0,"と同じである","を "&TEXT(ABS(X23),"0.0歳")&IF(X23>0,"上回る","下回る")) -> を 0.7歳上回る
E25: 2015年 | F25: =IFERROR(OFFSET(INDIRECT($Y$4),5,V24-1),"nc") -> 51,235 | G25: =IFERROR(SUM(OFFSET(INDIRECT($Y$4),5,V24,1,5)),"nc") -> 2,012 | H25: =IFERROR(OFFSET(INDIRECT($Y$4),5,V24+5),"nc") -> 1,145 | I25: =IFERROR(OFFSET(INDIRECT($Y$4),5,V24+6),"nc") -> 1,275 | J25: =IFERROR(OFFSET(INDIRECT($Y$4),5,V24+7),"nc") -> 2,321 | K25: =IFERROR(OFFSET(INDIRECT($Y$4),5,V24+8),"nc") -> 3,944 | L25: =IFERROR(OFFSET(INDIRECT($Y$4),5,V24+9),"nc") -> 6,769 | M25: =IFERROR(OFFSET(INDIRECT($Y$4),5,V24+10),"nc") -> 8,441 | N25: =IFERROR(OFFSET(INDIRECT($Y$4),5,V24+11),"nc") -> 7,954 | O25: =IFERROR(OFFSET(INDIRECT($Y$4),5,V24+12),"nc") -> 7,827 | P25: =IFERROR(OFFSET(INDIRECT($Y$4),5,V24+13),"nc") -> 5,967 | Q25: =IFERROR(OFFSET(INDIRECT($Y$4),5,V24+14),"nc") -> 3,580 | R25: =SUM(M25:Q25) -> 33,769
E26: 県計 構成比(%) | F26: 100.0 | G26: =IFERROR(ROUND(G25/$F25*100,1),"nc") -> 3.9 | H26: =IFERROR(ROUND(H25/$F25*100,1),"nc") -> 2.2 | I26: 2.5 | J26: 4.5 | K26: 7.7 | L26: 13.2 | M26: 16.5 | N26: 15.5 | O26: 15.3 | P26: 11.6 | Q26: 7.0 | R26: 65.9 | S26: =IFERROR(OFFSET(INDIRECT($Y$4),5,V24+15),"nc") -> 68.0
D27: =IF(LEFT(R28,1)="県","（％）","（人）") -> （人） | G27: ="《年齢階層別"&C18&IF(LEFT(R28,1)="県","割合","")&"》 "&IF(AND(LEFT(R28,1)<>"県",G4=""),D4,IF(LEFT(R28,1)="県",D23,AA3)) -> 《年齢階層別基幹的農業従事者数》 静岡県
R28: 前回との比較
C41: 後継者がいる農家数（販売農家）
D42: =IFERROR(" ◎ 後継者がいる農家数の割合は "&TEXT(H51,"0.0")&"％（"&TEXT(H50,"#,##0")&"戸）で、"&IF(LEFT(Z48,1)="県","県平均の "&TEXT(H52,"0.0"),"2010年の "&TEXT(H48,"0.0"))&"％"&AB49,"") -> ◎ 後継者がいる農家数の割合は 43.0％（13,692戸）で、県平均の 43.0％と同率である
D43: =IFERROR(IF(LEFT(Z49,1)="県","県平均の "&TEXT(H52,"0.0")," 2010年の "&TEXT(H48,"0.0"))&"％"&AB47,"") -> 2010年の 53.4％ を 10.4ポイント 下回る
H44: 単位：戸 | J44: ="《後継者のいる農家数"&IF(LEFT(Z49,1)="県","割合","")&"》 "&IF(AND(LEFT(Z49,1)<>"県",G4=""),D4,IF(LEFT(Z49,1)="県","2015年",AA3)) -> 《後継者のいる農家数》 静岡県 | P44: ="《後継者のいる農家数"&IF(LEFT(Z48,1)="県","割合","")&"》 "&IF(AND(LEFT(Z48,1)<>"県",M4=""),J4,IF(LEFT(Z48,1)="県","2015年",AA3)) -> 《後継者のいる農家数割合》 2015年
H45: 計 | V45: 列番号 | W45: 2015年 | X45: 2010年 | Y45: 縦棒左 | Z45: 縦棒右 | AA45: 凡例 | AB45: 差
D46: 2010年 | E46: 農家数 | H46: =IFERROR(OFFSET(INDIRECT($Y$3),$V$3,X46-1),"nc") -> 38,969 | V46: 農家数 | W46: =CELL("col",'2015年'!BS6)-1 -> 70 | X46: =CELL("col",'2010年'!BS6)-1 -> 70 | Y46: 1 | Z46: 0 | AA46: =IF(LEFT(Z49,1)="県",$D$4,$D46) -> 2010年 | AB46: =H51-IF(LEFT(Z49,1)="県",H52,H48) -> -10.42103405072420
G47: 後継者がいる農家数 | H47: =IFERROR(OFFSET(INDIRECT(Y3),V3,X47-1),"nc") -> 20,806 | V47: 後継者有 | W47: =CELL("col",'2015年'!CI5)-1 -> 86 | X47: =CELL("col",'2010年'!CI5)-1 -> 86 | Y47: -4 | Z47: -1 | AA47: =IF(AND(LEFT(Z49,1)="県",G4=""),D4,IF(LEFT(Z49,1)="県",AA3,D49)) -> 2015年 | AB47: =IF(AB46=0,"と同率である"," を "&TEXT(ABS(AB46),"0.0")&"ポイント "&IF(AB46>0,"上回る","下回る")) -> を 10.4ポイント 下回る
G48: 割合(%) | H48: =IF(OR(AND(ISTEXT(H46),H46<>"X",H46<>"-"),AND(ISTEXT(H47),H47<>"X",H47<>"-")),"nc",IF(OR(H46="X",H47="X"),"X",IF(ROUND(SUM(H46),0)=0,"nc",SUM(H47)/H46%))) -> 53.4 | Z48: 県との比較 | AA48: =IF(LEFT(Z48,1)="県",$D$4,$D46) -> 静岡県 | AB48: =H51-IF(LEFT(Z48,1)="県",H52,H48) -> 0.00000000000000
D49: 2015年 | E49: 農家数 | H49: =IFERROR(OFFSET(INDIRECT($Y$4),$V$4,W46-1),"nc") -> 31,864 | Z49: 前回との比較 | AA49: =AA3 -> 静岡県 | AB49: =IF(AB48=0,"と同率である"," を "&TEXT(ABS(AB48),"0.0")&"ポイント "&IF(AB48>0,"上回る","下回る")) -> と同率である
G50: 後継者がいる農家数 | H50: =IFERROR(OFFSET(INDIRECT($Y$4),$V$4,$W47-1),"nc") -> 13,692
G51: 割合(%) | H51: =IF(OR(AND(ISTEXT(H49),H49<>"X",H49<>"-"),AND(ISTEXT(H50),H50<>"X",H50<>"-")),"nc",IF(OR(H49="X",H50="X"),"X",IF(ROUND(SUM(H49),0)=0,"nc",SUM(H50)/H49%))) -> 43.0
D52: 県計 | G52: 後継者がいる割合(%) | H52: =IFERROR(OFFSET(INDIRECT($Y$4),5,$W$47-1)/OFFSET(INDIRECT($Y$4),5,$W$46-1)*100,"nc") -> 43.0
D73: =IFERROR(" ◎ 一世代家族経営の割合は "&TEXT(G79/100,"0.0%")&"（"&TEXT(G78,"#,##0")&"戸）で、"&IF(LEFT(R75,1)="県","県平均の "&TEXT(G80/100,"0.0%"),"2010年の "&TEXT(G77/F77,"0.0%"))&W78,"") -> 
L74: 単位：戸
F75: 計 | G75: 一世代家族 経営 | J75: 二世代家族 経営 | L75: 三世代家族 経営 | R75: 前回との比較
H76: 一人家族経営 | I76: 夫婦家族経営 | K76: 親子家族経営 | V76: 列番号 | W76: 県、前回との差 | X76: グラフ用 | Y76: 一世代 | Z76: 二世代 | AA76: 三世代
D77: 2010年 | F77: =IFERROR(OFFSET(INDIRECT($Y$3),$V$3,$V77),"nc") -> nc | G77: =IFERROR(OFFSET(INDIRECT($Y$3),$V$3,$V$77+F1),"nc") -> nc | H77: nc | I77: nc | J77: nc | K77: nc | L77: nc | V77: =CELL("col",#REF!)-1 ->  | W77: =IF(LEFT(R75,1)="県",G79-G80,G79-G77/F77*100) ->  | X77: =IF(LEFT($R$75,1)="県",AA3,D77) -> 2010年 | Y77: =IF(LEFT($R$75,1)="県",G79,G77/F77*100) ->  | Z77: =IF(LEFT($R$75,1)="県",J79,J77/F77*100) ->  | AA77: =IF(LEFT($R$75,1)="県",L79,L77/F77*100) -> 
D78: 2015年 | F78: =IFERROR(OFFSET(INDIRECT($Y$4),$V$4,$V78),"nc") -> 0 | G78: =IFERROR(SUM(OFFSET(INDIRECT($Y$4),$V$4,$V$78+F1)),"nc") -> 0 | H78: 0 | I78: 0 | J78: 0 | K78: 0 | L78: 0 | V78: =CELL("col",'2015年'!CV6)-1 -> 99 | W78: =IF(W77=0," と同率である"," を "&TEXT(ABS(W77),"0.0")&"ポイント "&IF(W77>0,"上回る","下回る")) ->  | X78: =IF(LEFT($R$75,1)="県",D4,D78) -> 2015年 | Y78: =IF(LEFT($R$75,1)="県",G80,G79) -> nc | Z78: =IF(LEFT($R$75,1)="県",J80,J79) -> nc | AA78: =IF(LEFT($R$75,1)="県",L80,L79) -> nc
E79: 構成比(%) | F79: =IF(OR(AND(ISTEXT($F78),$F78<>"X",$F78<>"-"),AND(ISTEXT(F78),F78<>"X",F78<>"-")),"nc",IF(OR($F78="X",F78="X"),"X",IF(ROUND(SUM($F78),0)=0,"nc",SUM(F78)/$F78%))) -> nc | G79: nc | H79: nc | I79: nc | J79: nc | K79: nc | L79: nc
E80: 県計 構成比(%) | F80: 100.0 | G80: =IFERROR(OFFSET(INDIRECT($Y$4),5,$V$78+F1)/OFFSET(INDIRECT($Y$4),5,$V$78)%,"nc") -> nc | H80: nc | I80: nc | J80: nc | K80: nc | L80: nc
C84: 過去１年間の生活の主な状態別世帯員数（計）
D85: =IFERROR(" ◎ 「自営農業が主」の割合は "&TEXT(H91/100,"0.0%")&"（"&TEXT(H90,"#,###")&"戸）で、"&IF(LEFT(R87,1)="県"," 県平均"&"の "&TEXT(H93/100,"0.0%")&W90,"2010年の "&TEXT(H89/F89,"0.0%")&X90),"") -> ◎ 「自営農業が主」の割合は 44.3%（51,235戸）で、2010年の 41.8% を 2.5ポイント 上回る
M86: 単位：人 | N86: =" 《主な状態別世帯員数割合》 " -> 《主な状態別世帯員数割合》
F87: 計 | G87: 主に仕事 | K87: 主に 家事・育児 | L87: 学生 | M87: その他 | N87: =" "&IF(AND(LEFT(R87,1)<>"県",G4=""),D4,IF(LEFT(R87,1)="県",D90,AA3)) -> 静岡県 | R87: 前回との比較 | W87: 自営農業の増減 | Y87: 凡例用 | AE87: 内円
G88: 小計 | H88: 自営農業が主 | I88: 勤務が主 | J88: 農業以外の自営が主 | R88: ="外円："&IF(AND(LEFT(R87,1)="県",G4=""),D4,IF(LEFT(R87,1)="県",$AA$3,"2015年"))&CHAR(10)&"内円："&IF(LEFT(R87,1)="県",$D$4,"2010年") -> 外円：2015年 内円：2010年 | V88: 列番号 | W88: 県 | X88: 前回 | Y88: 自営農業 | Z88: 勤務 | AA88: 農業以外の自営 | AB88: 家事・育児 | AC88: 学生 | AD88: その他 | AE88: offset 行数
A89: 15 | D89: 2010年 | F89: =IFERROR(OFFSET(INDIRECT($Y$3),$V$3,$V95-1),"nc") -> 153,052 | G89: =IFERROR(OFFSET(INDIRECT($Y$3),$V$3,$V95),"nc") -> 117,934 | H89: =IFERROR(OFFSET(INDIRECT($Y$3),$V$3,$V95+1),"nc") -> 63,991 | I89: =IFERROR(OFFSET(INDIRECT($Y$3),$V$3,$V95+2),"nc") -> 49,703 | J89: =IFERROR(OFFSET(INDIRECT($Y$3),$V$3,$V95+3),"nc") -> 4,240 | K89: =IFERROR(OFFSET(INDIRECT($Y$3),$V$3,$V95+4),"nc") -> 11,354 | L89: =IFERROR(OFFSET(INDIRECT($Y$3),$V$3,$V95+5),"nc") -> 11,009 | M89: =IFERROR(OFFSET(INDIRECT($Y$3),$V$3,$V95+6),"nc") -> 12,755 | V89: =CELL("col",'2010年'!DC6)-1 -> 106 | W89: =H91-H93 -> 0.00 | X89: =H91-H89/F89*100 -> 2.45276104 | AE89: =IF(LEFT(R87,1)="県",2,-1) -> -1
D90: 2015年 | F90: =IFERROR(OFFSET(INDIRECT($Y$4),$V$4,$V96-1),"nc") -> 115,752 | G90: =IFERROR(OFFSET(INDIRECT($Y$4),$V$4,$V96),"nc") -> 91,108 | H90: =IFERROR(OFFSET(INDIRECT($Y$4),$V$4,$V96+1),"nc") -> 51,235 | I90: =IFERROR(OFFSET(INDIRECT($Y$4),$V$4,$V96+2),"nc") -> 35,807 | J90: =IFERROR(OFFSET(INDIRECT($Y$4),$V$4,$V96+3),"nc") -> 4,066 | K90: =IFERROR(OFFSET(INDIRECT($Y$4),$V$4,$V96+4),"nc") -> 8,329 | L90: =IFERROR(OFFSET(INDIRECT($Y$4),$V$4,$V96+5),"nc") -> 6,593 | M90: =IFERROR(OFFSET(INDIRECT($Y$4),$V$4,$V96+6),"nc") -> 9,722 | V90: =CELL("col",'2015年'!DC6)-1 -> 106 | W90: =" "&IF(W89=0,"と同率である"," を "&TEXT(ABS(W89),"0.0")&"ポイント "&IF(W89>0,"上回る","下回る")) -> と同率である | X90: =IF(X89=0,"と同率である"," を "&TEXT(ABS(X89),"0.0")&"ポイント "&IF(X89>0,"上回る","下回る")) -> を 2.5ポイント 上回る
E91: 構成比(%) | F91: =IF(OR(AND(ISTEXT($F90),$F90<>"X",$F90<>"-"),AND(ISTEXT(F90),F90<>"X",F90<>"-")),"nc",IF(OR($F90="X",F90="X"),"X",IF(ROUND(SUM($F90),0)=0,"nc",SUM(F90)/$F90%))) -> 100.0 | G91: 78.7 | H91: 44.3 | I91: 30.9 | J91: 3.5 | K91: 7.2 | L91: 5.7 | M91: 8.4
E92: 県計 実数 | F92: =IFERROR(OFFSET(INDIRECT($Y$4),5,V96-1),"nc") -> 115,752 | G92: =IFERROR(OFFSET(INDIRECT($Y$4),5,$V$96),"nc") -> 91,108 | H92: =IFERROR(OFFSET(INDIRECT($Y$4),5,V96+1),"nc") -> 51,235 | I92: =IFERROR(OFFSET(INDIRECT($Y$4),5,V96+2),"nc") -> 35,807 | J92: =IFERROR(OFFSET(INDIRECT($Y$4),5,V96+3),"nc") -> 4,066 | K92: =IFERROR(OFFSET(INDIRECT($Y$4),5,V96+4),"nc") -> 8,329 | L92: =IFERROR(OFFSET(INDIRECT($Y$4),5,V96+5),"nc") -> 6,593 | M92: =IFERROR(OFFSET(INDIRECT($Y$4),5,V96+6),"nc") -> 9,722
E93: 県計 構成比(%) | F93: 100.0 | G93: =IFERROR(OFFSET(INDIRECT($Y$4),5,$V$96)/OFFSET(INDIRECT($Y$4),5,$V$96-1)*100,"nc") -> 78.7 | H93: =IFERROR(OFFSET(INDIRECT($Y$4),5,$V$96+F1)/OFFSET(INDIRECT($Y$4),5,$V$96-1)*100,"nc") -> 44.3 | I93: 30.9 | J93: 3.5 | K93: 7.2 | L93: 5.7 | M93: 8.4 | V93: 列番号 | W93: 概要 | Y93: 縦棒 左 | Z93: 縦棒 右 | AA93: 凡例
V94: =IF(C84="過去１年間の生活の主な状態別世帯員数（計）",1,IF(C84="過去１年間の生活の主な状態別世帯員数（男）",2,IF(C84="過去１年間の生活の主な状態別世帯員数（女）",3,ERROR.TYPE(5)))) -> 1 | W94: 人数 | X94: 平均年齢 | Y94: =IF(LEFT(R100,1)="県",3,-1) -> -1 | Z94: =IF(LEFT(R100,1)="県",1,0) -> 0 | AA94: =IF(LEFT(R100,1)="県",$D$4,$D94) -> 0
V95: =IFERROR(CHOOSE(V94,CELL("col",'2010年'!DD6),CELL("col",'2010年'!EG6),CELL("col",'2010年'!EO6))-1,555) -> 107 | W95: =F95/F94-1 ->  | X95: =S95-IF(LEFT(R100,1)="県",S98,S94) -> 0.0 | AA95: =IF(LEFT(R100,1)="県",AA75,D95) -> 0
V96: =IFERROR(CHOOSE(V94,CELL("col",'2015年'!DD6),CELL("col",'2015年'!EG6),CELL("col",'2015年'!EO6))-1,555) -> 107 | W96: =IF(W95=0,"変化なし",TEXT(ABS(F95-F94),"#,##0人")&"（"&TEXT(ABS(W95),"0.0%")&"） "&IF(W95>0,"増加","減少")) ->  | X96: =IF(X95=0,"と同じである","を "&TEXT(ABS(X95),"0.0歳")&IF(X95>0,"上回る","下回る")) -> と同じである
C98: 農産物販売金額１位の部門別農家数（販売のあった農家）
D99: =IF(AA105="",""," ◎ "&AA105&"（"&TEXT(Z105,"0.0")&"%） が最も多く、次いで"&SUBSTITUTE(AA106&AA107,"」「","」、「")&"の順で、この"&DBCS(COUNTIF(AB103:AN103,"<4"))&"部門で全体の "&TEXT(Z104,"0.0")&"% を占める") -> ◎ 「工芸農作物」（25.7%） が最も多く、次いで「稲作」、「果樹類」の順で、この３部門で全体の 66.5% を占める
S100: 単位：戸
F101: 計 | G101: 稲作 | H101: 麦類作 | I101: 雑穀・ いも類・ 豆類 | J101: 工芸農作物 | K101: 野菜類 | M101: 果樹類 | N101: 花き・ 花木 | O101: その他の作物 | P101: 酪農 | Q101: 肉用牛 | R101: 養豚 | S101: 養鶏
K102: 露地 | L102: 施設 | O102: その他の作物 | P102: 畜産 | V102: 列番号 | W102: offset行数 | Y102: 凡例 | Z102: 上位 | AB102: 稲作 | AC102: 麦類作 | AD102: 雑穀・ いも類・ 豆類 | AE102: 工芸 農作物 | AF102: 露地 野菜 | AG102: 施設 野菜 | AH102: 果樹類 | AI102: 花き・ 花木 | AJ102: その他 の作物 | AK102: 酪農 | AL102: 肉用牛 | AM102: 養豚 | AN102: 養鶏
D103: 2010年 | F103: =IFERROR(OFFSET(INDIRECT($Y$3),$V$3,$V103),"nc") -> 35,775 | G103: =IFERROR(OFFSET(INDIRECT($Y$3),$V$3,$V103+F$1),"nc") -> 7,780 | H103: 11 | I103: 461 | J103: 10,881 | K103: 3,895 | L103: 3,739 | M103: 5,805 | N103: 2,240 | O103: 361 | P103: =IFERROR(OFFSET(INDIRECT($Y$3),$V$3,$V103+O$1),"nc") -> 282 | Q103: =IFERROR(OFFSET(INDIRECT($Y$3),$V$3,$V103+P$1),"nc") -> 123 | R103: =IFERROR(OFFSET(INDIRECT($Y$3),$V$3,$V103+Q$1),"nc") -> 100 | S103: =IFERROR(OFFSET(INDIRECT($Y$3),$V$3,$V103+R$1),"nc") -> 82 | V103: =CELL("col",'2010年'!DK6)-1 -> 114 | W103: 縦棒左 | X103: 縦棒右 | Y103: =IF(LEFT(R108,1)="県",D4,D103) -> 2010年 | Z103: ３品目計 | AA103: 順位 | AB103: =IFERROR(RANK(G104,$G$104:$S$104,0),99) -> 2 | AC103: =IFERROR(RANK(H104,$G$104:$S$104,0),99) -> 13 | AD103: 7 | AE103: 1 | AF103: 4 | AG103: 5 | AH103: 3 | AI103: 6 | AJ103: 8 | AK103: 9 | AL103: 10 | AM103: 12 | AN103: 11
D104: 2015年 | F104: =IFERROR(OFFSET(INDIRECT($Y$4),$V$4,V104),"nc") -> 28,911 | G104: =IFERROR(OFFSET(INDIRECT($Y$4),$V$4,$V104+F1),"nc") -> 6,614 | H104: 6 | I104: 378 | J104: 7,428 | K104: 3,587 | L104: 3,079 | M104: 5,173 | N104: 1,836 | O104: 346 | P104: =IFERROR(OFFSET(INDIRECT($Y$4),$V$4,$V104+O1),"nc") -> 228 | Q104: =IFERROR(OFFSET(INDIRECT($Y$4),$V$4,$V104+P1),"nc") -> 95 | R104: =IFERROR(OFFSET(INDIRECT($Y$4),$V$4,$V104+Q1),"nc") -> 59 | S104: =IFERROR(OFFSET(INDIRECT($Y$4),$V$4,$V104+R1),"nc") -> 65 | V104: =CELL("col",'2015年'!DK6)-1 -> 114 | W104: =IF(LEFT(R108,1)="県",2,-1) -> -1 | X104: =IF(LEFT(R108,1)="県",1,0) -> 0 | Y104: =IF(AND(LEFT(R108,1)="県",G4=""),D4,IF(LEFT(R108,1)="県",AA3,D104)) -> 2015年 | Z104: =SUM(AB104:AN104) -> 66.46259209 | AA104: ％ | AB104: =IF(AB103<4,G104/$F$104%,0) -> 22.8771056 | AC104: 0 | AD104: 0 | AE104: 25.69264294 | AF104: 0 | AG104: 0 | AH104: 17.89284355 | AI104: 0 | AJ104: 0 | AK104: 0 | AL104: 0 | AM104: 0 | AN104: 0
E105: 構成比(%) | F105: =IF(OR(AND(ISTEXT($F104),$F104<>"X",$F104<>"-"),AND(ISTEXT(F104),F104<>"X",F104<>"-")),"nc",IF(OR($F104="X",F104="X"),"X",IF(ROUND(SUM($F104),0)=0,"nc",SUM(F104)/$F104%))) -> 100.0 | G105: 22.9 | H105: 0.0 | I105: 1.3 | J105: 25.7 | K105: 12.4 | L105: 10.6 | M105: 17.9 | N105: 6.4 | O105: 1.2 | P105: 0.8 | Q105: 0.3 | R105: 0.2 | S105: 0.2 | Y105: １位 | Z105: =SUMIF($AB$103:$AN$103,1,AB104:AN104) -> 25.69264294 | AA105: =SUBSTITUTE(AB105&AC105&AD105&AE105&AF105&AG105&AH105&AI105&AJ105&AK105&AL105&AM105&AN105,"」「","」と「") -> 「工芸農作物」 | AB105: =IF(AB103=1,"「"&CLEAN(AB102)&"」","") ->  | AC105: =IF(AC103=1,"「"&CLEAN(AC102)&"」","") ->  | AE105: 「工芸農作物」
E106: 県計 構成比(%) | F106: 100.0 | G106: =IFERROR(IF(OFFSET(INDIRECT($Y$4),5,$V$104+F1)="-","-",ROUND(OFFSET(INDIRECT($Y$4),5,$V$104+F1)/OFFSET(INDIRECT($Y$4),5,$V$104)*100,1)),"nc") -> 22.9 | H106: =IFERROR(IF(OFFSET(INDIRECT($Y$4),5,$V$104+G1)="-","-",ROUND(OFFSET(INDIRECT($Y$4),5,$V$104+G1)/OFFSET(INDIRECT($Y$4),5,$V$104)*100,1)),"nc") -> 0 | I106: =IFERROR(IF(OFFSET(INDIRECT($Y$4),5,$V$104+H1)="-","-",ROUND(OFFSET(INDIRECT($Y$4),5,$V$104+H1)/OFFSET(INDIRECT($Y$4),5,$V$104)*100,1)),"nc") -> 1.3 | J106: =IFERROR(IF(OFFSET(INDIRECT($Y$4),5,$V$104+I1)="-","-",ROUND(OFFSET(INDIRECT($Y$4),5,$V$104+I1)/OFFSET(INDIRECT($Y$4),5,$V$104)*100,1)),"nc") -> 25.7 | K106: =IFERROR(IF(OFFSET(INDIRECT($Y$4),5,$V$104+J1)="-","-",ROUND(OFFSET(INDIRECT($Y$4),5,$V$104+J1)/OFFSET(INDIRECT($Y$4),5,$V$104)*100,1)),"nc") -> 12.4 | L106: 10.6 | M106: 17.9 | N106: 6.4 | O106: 1.2 | P106: =IFERROR(IF(OFFSET(INDIRECT($Y$4),5,$V$104+O1)="-","-",ROUND(OFFSET(INDIRECT($Y$4),5,$V$104+O1)/OFFSET(INDIRECT($Y$4),5,$V$104)*100,1)),"nc") -> 0.8 | Q106: =IFERROR(IF(OFFSET(INDIRECT($Y$4),5,$V$104+P1)="-","-",ROUND(OFFSET(INDIRECT($Y$4),5,$V$104+P1)/OFFSET(INDIRECT($Y$4),5,$V$104)*100,1)),"nc") -> 0.3 | R106: =IFERROR(IF(OFFSET(INDIRECT($Y$4),5,$V$104+Q1)="-","-",ROUND(OFFSET(INDIRECT($Y$4),5,$V$104+Q1)/OFFSET(INDIRECT($Y$4),5,$V$104)*100,1)),"nc") -> 0.2 | S106: =IFERROR(IF(OFFSET(INDIRECT($Y$4),5,$V$104+R1)="-","-",ROUND(OFFSET(INDIRECT($Y$4),5,$V$104+R1)/OFFSET(INDIRECT($Y$4),5,$V$104)*100,1)),"nc") -> 0.2 | Y106: ２位 | Z106: =SUMIF($AB$103:$AN$103,2,$AB$104:$AN$104) -> 22.8771056 | AA106: =SUBSTITUTE(AB106&AC106&AD106&AE106&AF106&AG106&AH106&AI106&AJ106&AK106&AL106&AM106&AN106,"」「","」と「") -> 「稲作」 | AB106: =IF(AB103=2,"「"&CLEAN(AB102)&"」","") -> 「稲作」
D107: =IF(LEFT(R108,1)="県","（％）","（戸）") -> （戸） | H107: ="《農産物販売金額１位の部門別農家数"&IF(LEFT(R108,1)="県","割合","")&"》 "&IF(AND(LEFT(R108,1)<>"県",G4=""),D4,IF(LEFT(R108,1)="県","2015年",AA3)) -> 《農産物販売金額１位の部門別農家数》 静岡県 | Y107: ３位 | Z107: =SUMIF($AB$103:$AN$103,3,$AB$104:$AN$104) -> 17.89284355 | AA107: =SUBSTITUTE(AB107&AC107&AD107&AE107&AF107&AG107&AH107&AI107&AJ107&AK107&AL107&AM107&AN107,"」「","」と「") -> 「果樹類」 | AB107: =IF(AB103=3,"「"&CLEAN(AB102)&"」","") ->  | AH107: 「果樹類」
R108: 前回との比較
C121: 経営耕地面積（販売農家） | I121: =IFERROR(" ◎ 経営耕地面積は "&IF(G126=G125,"変化なし",TEXT(ABS(G126-G125),"#,##0")&"ha（"&TEXT(ABS(G126/G125-1),"0.0%"&"） "))&IF(F126=F125,"",IF(G126<G125,"減少","増加"))&"、１戸当たりでは "&IF(X125=0,"変動無し",TEXT(ABS(X125),"0.00")&"ha "&IF(X125>0,"増加","減少")),"") -> ◎ 経営耕地面積は 4,682ha（10.7%) 減少、１戸当たりでは 0.10ha 増加
D122: =AA3 -> 静岡県 | K122: 単位：ha
F123: 経 営 耕 地 のある農家数 | G123: 経 営 耕 地 面 積 | K123: １戸当たり経営耕地面積
H124: 田 | I124: 畑 （樹園地を除く） | J124: 樹園地 | V124: 列番号 | W124: 凡例用 | X124: １戸当たり増減
D125: 2010年 | F125: =IFERROR(OFFSET(INDIRECT($Y$3),$V$3,V125),"nc") -> 38,759 | G125: =IFERROR(ROUND(OFFSET(INDIRECT($Y$3),$V$3,$V$125+F1)/100,0),OFFSET(INDIRECT($Y$3),$V$3,$V$125+F1)) -> 43,583 | H125: =IFERROR(ROUND(OFFSET(INDIRECT($Y$3),$V$3,$V$125+G1)/100,0),OFFSET(INDIRECT($Y$3),$V$3,$V$125+G1)) -> 16,077 | I125: =IFERROR(ROUND(OFFSET(INDIRECT($Y$3),$V$3,$V$125+H1)/100,0),OFFSET(INDIRECT($Y$3),$V$3,$V$125+H1)) -> 7,312 | J125: =IFERROR(ROUND(OFFSET(INDIRECT($Y$3),$V$3,$V$125+I1)/100,0),OFFSET(INDIRECT($Y$3),$V$3,$V$125+I1)) -> 20,193 | K125: =IF(OR(AND(ISTEXT($F125),$F125<>"X",$F125<>"-"),AND(ISTEXT(G125),G125<>"X",G125<>"-")),"nc",IF(OR($F125="X",G125="X"),"X",IF(ROUND(SUM($F125),0)=0,"nc",ROUND(SUM(G125)/$F125,2)))) -> 1.12 | V125: =CELL("col",'2010年'!EA6)-1 -> 130 | W125: 田 | X125: =K126-K125 -> 0.1
D126: 2015年 | F126: =IFERROR(OFFSET(INDIRECT($Y$4),$V$4,$V126),"nc") -> 31,761 | G126: =IFERROR(ROUND(OFFSET(INDIRECT($Y$4),$V$4,$V126+F1)/100,0),OFFSET(INDIRECT($Y$4),$V$4,$V126+F1)) -> 38,901 | H126: =IFERROR(ROUND(OFFSET(INDIRECT($Y$4),$V$4,$V126+G1)/100,0),OFFSET(INDIRECT($Y$4),$V$4,$V126+G1)) -> 14,617 | I126: =IFERROR(ROUND(OFFSET(INDIRECT($Y$4),$V$4,$V126+H1)/100,0),OFFSET(INDIRECT($Y$4),$V$4,$V126+H1)) -> 6,981 | J126: =IFERROR(ROUND(OFFSET(INDIRECT($Y$4),$V$4,$V126+I1)/100,0),OFFSET(INDIRECT($Y$4),$V$4,$V126+I1)) -> 17,304 | K126: =IF(OR(AND(ISTEXT($F126),$F126<>"X",$F126<>"-"),AND(ISTEXT(G126),G126<>"X",G126<>"-")),"nc",IF(OR($F126="X",G126="X"),"X",IF(ROUND(SUM($F126),0)=0,"nc",ROUND(SUM(G126)/$F126,2)))) -> 1.22 | V126: =CELL("col",'2015年'!EA6)-1 -> 130 | W126: 畑
E127: 構成比(%) | G127: =IF(OR(AND(ISTEXT($G126),$G126<>"X",$G126<>"-"),AND(ISTEXT(G126),G126<>"X",G126<>"-")),"nc",IF(OR($G126="X",G126="X"),"X",IF(ROUND(SUM($G126),0)=0,"nc",SUM(G126)/$G126%))) -> 100.0 | H127: =IF(OR(AND(ISTEXT($G126),$G126<>"X",$G126<>"-"),AND(ISTEXT(H126),H126<>"X",H126<>"-")),"nc",IF(OR($G126="X",H126="X"),"X",IF(ROUND(SUM($G126),0)=0,"nc",SUM(H126)/$G126%))) -> 37.6 | I127: 17.9 | J127: 44.5 | W127: 樹園地
E128: 県計 構成比(%) | G128: 100.0 | H128: =IFERROR(ROUND(OFFSET(INDIRECT($Y$4),5,$V$126+G1)/OFFSET(INDIRECT($Y$4),5,$V$126+1)*100,1),"nc") -> 37.6 | I128: =IFERROR(ROUND(OFFSET(INDIRECT($Y$4),5,$V$126+H1)/OFFSET(INDIRECT($Y$4),5,$V$126+1)*100,1),"nc") -> 17.9 | J128: =IFERROR(ROUND(OFFSET(INDIRECT($Y$4),5,$V$126+I1)/OFFSET(INDIRECT($Y$4),5,$V$126+1)*100,1),"nc") -> 44.5 | K128: =IFERROR(OFFSET(INDIRECT($Y$4),5,V126+1)/OFFSET(INDIRECT($Y$4),5,V126)/100,"nc") -> 1.22
D129: =IFERROR("《参考》"&G4&"の経営耕地面積の全国順位："&TEXT(OFFSET(#REF!,MATCH(Info!G4,#REF!,0),0),"#,##0")&"位","") -> 

Sheet 元データ (hidden)
A1: 注意事項 | C1: ･･･ | D1: 空欄追記:『調査外(湖､無人島等)』 | Z1: 別紙 2 | AB1: 市区町村名 | AC1: 旧市区町村 | AD1: 農業集落
C2: ･･･ | D2: 全角変換:『2-1』⇒『2-1』 | K2: =IF(AB2=0,"",AB2) ->  | S2: =IF(AC2=0,"",AC2) ->  | AA2: 静岡県 | AB2: =Info!G4 -> 0 | AC2: =Info!J4 ->  | AD2: =Info!M4 -> 0
K3: 市町村 | Q3: 旧市区町村 | V3: 農業集落
A4: 農業集落 | B4: 県 | C4: 市区町村 | D4: 旧市区町村 | E4: 農業集落 | F4: 県名 | G4: 市町村名 | H4: 旧市町村名 | I4: 農業集落名 | K4: 判定１ | O4: 抽出１ | Q4: 判定2 | S4: 抽出2 | V4: 抽出3 | Z4: 通し | AA4: 都県名 | AB4: 市区町村名 | AC4: 旧区市町村名 | AD4: 農業集落名
A5: ｺｰﾄﾞ | B5: 番号 | C5: 番号 | D5: 番号 | E5: 番号 | K5: 判定 | L5: 市区町村名 | M5: 連番 | N5: 補記 | O5: 抽出 | P5: 名 | Q5: 判定 | R5: 名 | S5: 抽出 | T5: 旧区市町村名 | U5: 連番 | V5: 抽出 | W5: 農業集落名 | X5: 連番 | Z5: №
Z6: 0
A7: 2200000000 | B7: 22 | C7: 000 | D7: 00 | E7: 000 | F7: 静岡県 | K7: =IF(AND($C7>0,$H7=""),"ﾘｽﾄ１","") ->  | L7: =IF(K7="ﾘｽﾄ１",G7,"") ->  | M7: =IF(K7="","",COUNTIF($K7:K$7,"ﾘｽﾄ１")) ->  | N7: =IF(AND(D7=0,E7>0),"同一区","") ->  | O7: =IF(AND(EXACT($K$2,G7),H7>0),"該当１","") ->  | P7: =IF(O7="該当１",G7,"") ->  | Q7: =IF(O7="該当１","ﾘｽﾄ2","") ->  | R7: =IF(Q7="ﾘｽﾄ2",H7,"") ->  | S7: =IF(AND(Q7="ﾘｽﾄ2",OR(I7=0,AND(N7="同一区",E7=1))),"該当２","") ->  | T7: =IF(S7="該当２",H7,"") ->  | U7: =IF(S7="","",COUNTIF($S$7:S7,"該当２")) ->  | V7: =IF(AND($S$2=H7,E7>0,E7<998),"該当３","") ->  | W7: =IF(V7="該当３",I7,"") ->  | X7: =IF(V7="","",COUNTIF($V7:V$7,"該当３")) ->  | Z7: 1 | AA7: =AA2 -> 静岡県 | AB7: 静岡市 | AC7: =IF($Z7>MAX($U$7:$U$4161),"",INDEX($T$7:$T$4161,MATCH($Z7,$U$7:$U$4161,0),MATCH($AC$4,$T$5:$U$5,0))) ->  | AD7: =IF($Z7>MAX($X$7:$X$4161),"",INDEX($W$7:$W$4161,MATCH($Z7,$X$7:$X$4161,0),MATCH($AD$4,$W$5:$X$5,0))) -> 
A8: 2210000000 | B8: 22 | C8: 100 | D8: 00 | E8: 000 | F8: 静岡県 | G8: 静岡市 | K8: ﾘｽﾄ１ | L8: 静岡市 | M8: =IF(K8="","",COUNTIF($K$7:K8,"ﾘｽﾄ１")) -> 1 | O8: =IF(AND(EXACT($K$2,G8),H8>0),"該当１","") ->  | U8: =IF(S8="","",COUNTIF($S$7:S8,"該当２")) ->  | X8: =IF(V8="","",COUNTIF($V$7:V8,"該当３")) ->  | Z8: 2 | AB8: 葵区(静岡市) | AC8: =IF($Z8>MAX($U$7:$U$4161),"",INDEX($T$7:$T$4161,MATCH($Z8,$U$7:$U$4161,0),MATCH($AC$4,$T$5:$U$5,0))) ->  | AD8: =IF($Z8>MAX($X$7:$X$4161),"",INDEX($W$7:$W$4161,MATCH($Z8,$X$7:$X$4161,0),MATCH($AD$4,$W$5:$X$5,0))) -> 
A9: 2210100000 | B9: 22 | C9: 101 | D9: 00 | E9: 000 | F9: 静岡県 | G9: 葵区(静岡市) | K9: ﾘｽﾄ１ | L9: 葵区(静岡市) | M9: =IF(K9="","",COUNTIF($K$7:K9,"ﾘｽﾄ１")) -> 2 | O9: =IF(AND(EXACT($K$2,G9),H9>0),"該当１","") ->  | U9: =IF(S9="","",COUNTIF($S$7:S9,"該当２")) ->  | X9: =IF(V9="","",COUNTIF($V$7:V9,"該当３")) ->  | Z9: 3 | AB9: 駿河区(静岡市)
A10: 2210101000 | B10: 22 | C10: 101 | D10: 01 | E10: 000 | F10: 静岡県 | G10: 葵区(静岡市) | H10: 静岡市２－１ | M10: =IF(K10="","",COUNTIF($K$7:K10,"ﾘｽﾄ１")) ->  | U10: =IF(S10="","",COUNTIF($S$7:S10,"該当２")) ->  | X10: =IF(V10="","",COUNTIF($V$7:V10,"該当３")) ->  | Z10: 4 | AB10: 清水区(静岡市)
A11: 2210101001 | B11: 22 | C11: 101 | D11: 01 | E11: 001 | F11: 静岡県 | G11: 葵区(静岡市) | H11: 静岡市２－１ | I11: 田中 | M11: =IF(K11="","",COUNTIF($K$7:K11,"ﾘｽﾄ１")) ->  | U11: =IF(S11="","",COUNTIF($S$7:S11,"該当２")) ->  | X11: =IF(V11="","",COUNTIF($V$7:V11,"該当３")) ->  | Z11: 5 | AB11: 浜松市
A12: 2210101002 | B12: 22 | C12: 101 | D12: 01 | E12: 002 | F12: 静岡県 | G12: 葵区(静岡市) | H12: 静岡市２－１ | I12: 柳新田 | M12: =IF(K12="","",COUNTIF($K$7:K12,"ﾘｽﾄ１")) ->  | U12: =IF(S12="","",COUNTIF($S$7:S12,"該当２")) ->  | X12: =IF(V12="","",COUNTIF($V$7:V12,"該当３")) ->  | Z12: 6 | AB12: 中区(浜松市)
A13: 2210101003 | B13: 22 | C13: 101 | D13: 01 | E13: 003 | F13: 静岡県 | G13: 葵区(静岡市) | H13: 静岡市２－１ | I13: 大岩下 | M13: =IF(K13="","",COUNTIF($K$7:K13,"ﾘｽﾄ１")) ->  | U13: =IF(S13="","",COUNTIF($S$7:S13,"該当２")) ->  | X13: =IF(V13="","",COUNTIF($V$7:V13,"該当３")) ->  | Z13: 7 | AB13: 東区(浜松市)
A14: 2210101004 | B14: 22 | C14: 101 | D14: 01 | E14: 004 | F14: 静岡県 | G14: 葵区(静岡市) | H14: 静岡市２－１ | I14: 本通・田町・安西・柳町 | M14: =IF(K14="","",COUNTIF($K$7:K14,"ﾘｽﾄ１")) ->  | U14: =IF(S14="","",COUNTIF($S$7:S14,"該当２")) ->  | X14: =IF(V14="","",COUNTIF($V$7:V14,"該当３")) ->  | Z14: 8 | AB14: 西区(浜松市)
A15: 2210101005 | B15: 22 | C15: 101 | D15: 01 | E15: 005 | F15: 静岡県 | G15: 葵区(静岡市) | H15: 静岡市２－１ | I15: 水道・井宮 | M15: =IF(K15="","",COUNTIF($K$7:K15,"ﾘｽﾄ１")) ->  | U15: =IF(S15="","",COUNTIF($S$7:S15,"該当２")) ->  | X15: =IF(V15="","",COUNTIF($V$7:V15,"該当３")) ->  | Z15: 9 | AB15: 南区(浜松市)
A16: 2210101006 | B16: 22 | C16: 101 | D16: 01 | E16: 006 | F16: 静岡県 | G16: 葵区(静岡市) | H16: 静岡市２－１ | I16: 安東の東 | M16: =IF(K16="","",COUNTIF($K$7:K16,"ﾘｽﾄ１")) ->  | U16: =IF(S16="","",COUNTIF($S$7:S16,"該当２")) ->  | X16: =IF(V16="","",COUNTIF($V$7:V16,"該当３")) ->  | Z16: 10 | AB16: 北区(浜松市)
A17: 2210101007 | B17: 22 | C17: 101 | D17: 01 | E17: 007 | F17: 静岡県 | G17: 葵区(静岡市) | H17: 静岡市２－１ | I17: 安東の西 | M17: =IF(K17="","",COUNTIF($K$7:K17,"ﾘｽﾄ１")) ->  | U17: =IF(S17="","",COUNTIF($S$7:S17,"該当２")) ->  | X17: =IF(V17="","",COUNTIF($V$7:V17,"該当３")) ->  | Z17: 11 | AB17: 浜北区(浜松市)
A18: 2210101008 | B18: 22 | C18: 101 | D18: 01 | E18: 008 | F18: 静岡県 | G18: 葵区(静岡市) | H18: 静岡市２－１ | I18: 大岩上 | M18: =IF(K18="","",COUNTIF($K$7:K18,"ﾘｽﾄ１")) ->  | U18: =IF(S18="","",COUNTIF($S$7:S18,"該当２")) ->  | X18: =IF(V18="","",COUNTIF($V$7:V18,"該当３")) ->  | Z18: 12 | AB18: 天竜区(浜松市)
A19: 2210101009 | B19: 22 | C19: 101 | D19: 01 | E19: 009 | F19: 静岡県 | G19: 葵区(静岡市) | H19: 静岡市２－１ | I19: 長沼南 | M19: =IF(K19="","",COUNTIF($K$7:K19,"ﾘｽﾄ１")) ->  | U19: =IF(S19="","",COUNTIF($S$7:S19,"該当２")) ->  | X19: =IF(V19="","",COUNTIF($V$7:V19,"該当３")) ->  | Z19: 13 | AB19: 沼津市
A20: 2210101010 | B20: 22 | C20: 101 | D20: 01 | E20: 010 | F20: 静岡県 | G20: 葵区(静岡市) | H20: 静岡市２－１ | I20: 長沼北 | M20: =IF(K20="","",COUNTIF($K$7:K20,"ﾘｽﾄ１")) ->  | U20: =IF(S20="","",COUNTIF($S$7:S20,"該当２")) ->  | X20: =IF(V20="","",COUNTIF($V$7:V20,"該当３")) ->  | Z20: 14 | AB20: 熱海市
A21: 2210101011 | B21: 22 | C21: 101 | D21: 01 | E21: 011 | F21: 静岡県 | G21: 葵区(静岡市) | H21: 静岡市２－１ | I21: 古庄 | M21: =IF(K21="","",COUNTIF($K$7:K21,"ﾘｽﾄ１")) ->  | U21: =IF(S21="","",COUNTIF($S$7:S21,"該当２")) ->  | X21: =IF(V21="","",COUNTIF($V$7:V21,"該当３")) ->  | Z21: 15 | AB21: 三島市
A22: 2210101012 | B22: 22 | C22: 101 | D22: 01 | E22: 012 | F22: 静岡県 | G22: 葵区(静岡市) | H22: 静岡市２－１ | I22: 柚木 | M22: =IF(K22="","",COUNTIF($K$7:K22,"ﾘｽﾄ１")) ->  | U22: =IF(S22="","",COUNTIF($S$7:S22,"該当２")) ->  | X22: =IF(V22="","",COUNTIF($V$7:V22,"該当３")) ->  | Z22: 16 | AB22: 富士宮市
A23: 2210101013 | B23: 22 | C23: 101 | D23: 01 | E23: 013 | F23: 静岡県 | G23: 葵区(静岡市) | H23: 静岡市２－１ | I23: 瓦場 | M23: =IF(K23="","",COUNTIF($K$7:K23,"ﾘｽﾄ１")) ->  | U23: =IF(S23="","",COUNTIF($S$7:S23,"該当２")) ->  | X23: =IF(V23="","",COUNTIF($V$7:V23,"該当３")) ->  | Z23: 17 | AB23: 伊東市
A24: 2210101014 | B24: 22 | C24: 101 | D24: 01 | E24: 014 | F24: 静岡県 | G24: 葵区(静岡市) | H24: 静岡市２－１ | I24: 川辺２－１ | M24: =IF(K24="","",COUNTIF($K$7:K24,"ﾘｽﾄ１")) ->  | U24: =IF(S24="","",COUNTIF($S$7:S24,"該当２")) ->  | X24: =IF(V24="","",COUNTIF($V$7:V24,"該当３")) ->  | Z24: 18 | AB24: 島田市
A25: 2210101015 | B25: 22 | C25: 101 | D25: 01 | E25: 015 | F25: 静岡県 | G25: 葵区(静岡市) | H25: 静岡市２－１ | I25: 南安倍２－１ | M25: =IF(K25="","",COUNTIF($K$7:K25,"ﾘｽﾄ１")) ->  | U25: =IF(S25="","",COUNTIF($S$7:S25,"該当２")) ->  | X25: =IF(V25="","",COUNTIF($V$7:V25,"該当３")) ->  | Z25: 19 | AB25: 富士市
A26: 2210101016 | B26: 22 | C26: 101 | D26: 01 | E26: 016 | F26: 静岡県 | G26: 葵区(静岡市) | H26: 静岡市２－１ | I26: 籠上 | M26: =IF(K26="","",COUNTIF($K$7:K26,"ﾘｽﾄ１")) ->  | U26: =IF(S26="","",COUNTIF($S$7:S26,"該当２")) ->  | X26: =IF(V26="","",COUNTIF($V$7:V26,"該当３")) ->  | Z26: 20 | AB26: 磐田市
A27: 2210101017 | B27: 22 | C27: 101 | D27: 01 | E27: 017 | F27: 静岡県 | G27: 葵区(静岡市) | H27: 静岡市２－１ | I27: 松富下 | M27: =IF(K27="","",COUNTIF($K$7:K27,"ﾘｽﾄ１")) ->  | U27: =IF(S27="","",COUNTIF($S$7:S27,"該当２")) ->  | X27: =IF(V27="","",COUNTIF($V$7:V27,"該当３")) ->  | Z27: 21 | AB27: 焼津市
A28: 2210101018 | B28: 22 | C28: 101 | D28: 01 | E28: 018 | F28: 静岡県 | G28: 葵区(静岡市) | H28: 静岡市２－１ | I28: 松富上１区 | M28: =IF(K28="","",COUNTIF($K$7:K28,"ﾘｽﾄ１")) ->  | U28: =IF(S28="","",COUNTIF($S$7:S28,"該当２")) ->  | X28: =IF(V28="","",COUNTIF($V$7:V28,"該当３")) ->  | Z28: 22 | AB28: 掛川市
A29: 2210101019 | B29: 22 | C29: 101 | D29: 01 | E29: 019 | F29: 静岡県 | G29: 葵区(静岡市) | H29: 静岡市２－１ | I29: 松富上 | M29: =IF(K29="","",COUNTIF($K$7:K29,"ﾘｽﾄ１")) ->  | U29: =IF(S29="","",COUNTIF($S$7:S29,"該当２")) ->  | X29: =IF(V29="","",COUNTIF($V$7:V29,"該当３")) ->  | Z29: 23 | AB29: 藤枝市
A30: 2210101020 | B30: 22 | C30: 101 | D30: 01 | E30: 020 | F30: 静岡県 | G30: 葵区(静岡市) | H30: 静岡市２－１ | I30: 下伝馬町新田 | M30: =IF(K30="","",COUNTIF($K$7:K30,"ﾘｽﾄ１")) ->  | U30: =IF(S30="","",COUNTIF($S$7:S30,"該当２")) ->  | X30: =IF(V30="","",COUNTIF($V$7:V30,"該当３")) ->  | Z30: 24 | AB30: 御殿場市
A31: 2210101021 | B31: 22 | C31: 101 | D31: 01 | E31: 021 | F31: 静岡県 | G31: 葵区(静岡市) | H31: 静岡市２－１ | I31: 上伝馬町新田 | M31: =IF(K31="","",COUNTIF($K$7:K31,"ﾘｽﾄ１")) ->  | U31: =IF(S31="","",COUNTIF($S$7:S31,"該当２")) ->  | X31: =IF(V31="","",COUNTIF($V$7:V31,"該当３")) ->  | Z31: 25 | AB31: 袋井市
A32: 2210101022 | B32: 22 | C32: 101 | D32: 01 | E32: 022 | F32: 静岡県 | G32: 葵区(静岡市) | H32: 静岡市２－１ | I32: 与一右衛門新田 | M32: =IF(K32="","",COUNTIF($K$7:K32,"ﾘｽﾄ１")) ->  | U32: =IF(S32="","",COUNTIF($S$7:S32,"該当２")) ->  | X32: =IF(V32="","",COUNTIF($V$7:V32,"該当３")) ->  | Z32: 26 | AB32: 下田市
A33: 2210101023 | B33: 22 | C33: 101 | D33: 01 | E33: 023 | F33: 静岡県 | G33: 葵区(静岡市) | H33: 静岡市２－１ | I33: 福田ヶ谷 | M33: =IF(K33="","",COUNTIF($K$7:K33,"ﾘｽﾄ１")) ->  | U33: =IF(S33="","",COUNTIF($S$7:S33,"該当２")) ->  | X33: =IF(V33="","",COUNTIF($V$7:V33,"該当３")) ->  | Z33: 27 | AB33: 裾野市
A34: 2210101024 | B34: 22 | C34: 101 | D34: 01 | E34: 024 | F34: 静岡県 | G34: 葵区(静岡市) | H34: 静岡市２－１ | I34: 下 | M34: =IF(K34="","",COUNTIF($K$7:K34,"ﾘｽﾄ１")) ->  | U34: =IF(S34="","",COUNTIF($S$7:S34,"該当２")) ->  | X34: =IF(V34="","",COUNTIF($V$7:V34,"該当３")) ->  | Z34: 28 | AB34: 湖西市
A35: 2210101025 | B35: 22 | C35: 101 | D35: 01 | E35: 025 | F35: 静岡県 | G35: 葵区(静岡市) | H35: 静岡市２－１ | I35: 門屋 | M35: =IF(K35="","",COUNTIF($K$7:K35,"ﾘｽﾄ１")) ->  | U35: =IF(S35="","",COUNTIF($S$7:S35,"該当２")) ->  | X35: =IF(V35="","",COUNTIF($V$7:V35,"該当３")) ->  | Z35: 29 | AB35: 伊豆市
A36: 2210101026 | B36: 22 | C36: 101 | D36: 01 | E36: 026 | F36: 静岡県 | G36: 葵区(静岡市) | H36: 静岡市２－１ | I36: 牛妻 | M36: =IF(K36="","",COUNTIF($K$7:K36,"ﾘｽﾄ１")) ->  | U36: =IF(S36="","",COUNTIF($S$7:S36,"該当２")) ->  | X36: =IF(V36="","",COUNTIF($V$7:V36,"該当３")) ->  | Z36: 30 | AB36: 御前崎市
A37: 2210101027 | B37: 22 | C37: 101 | D37: 01 | E37: 027 | F37: 静岡県 | G37: 葵区(静岡市) | H37: 静岡市２－１ | I37: 郷島 | M37: =IF(K37="","",COUNTIF($K$7:K37,"ﾘｽﾄ１")) ->  | U37: =IF(S37="","",COUNTIF($S$7:S37,"該当２")) ->  | X37: =IF(V37="","",COUNTIF($V$7:V37,"該当３")) ->  | Z37: 31 | AB37: 菊川市
A38: 2210101028 | B38: 22 | C38: 101 | D38: 01 | E38: 028 | F38: 静岡県 | G38: 葵区(静岡市) | H38: 静岡市２－１ | I38: 野田平 | M38: =IF(K38="","",COUNTIF($K$7:K38,"ﾘｽﾄ１")) ->  | U38: =IF(S38="","",COUNTIF($S$7:S38,"該当２")) ->  | X38: =IF(V38="","",COUNTIF($V$7:V38,"該当３")) ->  | Z38: 32 | AB38: 伊豆の国市
A39: 2210101029 | B39: 22 | C39: 101 | D39: 01 | E39: 029 | F39: 静岡県 | G39: 葵区(静岡市) | H39: 静岡市２－１ | I39: 俵沢 | M39: =IF(K39="","",COUNTIF($K$7:K39,"ﾘｽﾄ１")) ->  | U39: =IF(S39="","",COUNTIF($S$7:S39,"該当２")) ->  | X39: =IF(V39="","",COUNTIF($V$7:V39,"該当３")) ->  | Z39: 33 | AB39: 牧之原市
A40: 2210101030 | B40: 22 | C40: 101 | D40: 01 | E40: 030 | F40: 静岡県 | G40: 葵区(静岡市) | H40: 静岡市２－１ | I40: 俵峰 | M40: =IF(K40="","",COUNTIF($K$7:K40,"ﾘｽﾄ１")) ->  | U40: =IF(S40="","",COUNTIF($S$7:S40,"該当２")) ->  | X40: =IF(V40="","",COUNTIF($V$7:V40,"該当３")) ->  | Z40: 34 | AB40: 東伊豆町
A41: 2210101031 | B41: 22 | C41: 101 | D41: 01 | E41: 031 | F41: 静岡県 | G41: 葵区(静岡市) | H41: 静岡市２－１ | I41: 油島 | M41: =IF(K41="","",COUNTIF($K$7:K41,"ﾘｽﾄ１")) ->  | U41: =IF(S41="","",COUNTIF($S$7:S41,"該当２")) ->  | X41: =IF(V41="","",COUNTIF($V$7:V41,"該当３")) ->  | Z41: 35 | AB41: 河津町
A42: 2210101032 | B42: 22 | C42: 101 | D42: 01 | E42: 032 | F42: 静岡県 | G42: 葵区(静岡市) | H42: 静岡市２－１ | I42: 上足洗 | M42: =IF(K42="","",COUNTIF($K$7:K42,"ﾘｽﾄ１")) ->  | U42: =IF(S42="","",COUNTIF($S$7:S42,"該当２")) ->  | X42: =IF(V42="","",COUNTIF($V$7:V42,"該当３")) ->  | Z42: 36 | AB42: 南伊豆町
A43: 2210101033 | B43: 22 | C43: 101 | D43: 01 | E43: 033 | F43: 静岡県 | G43: 葵区(静岡市) | H43: 静岡市２－１ | I43: 沓谷 | M43: =IF(K43="","",COUNTIF($K$7:K43,"ﾘｽﾄ１")) ->  | U43: =IF(S43="","",COUNTIF($S$7:S43,"該当２")) ->  | X43: =IF(V43="","",COUNTIF($V$7:V43,"該当３")) ->  | Z43: 37 | AB43: 松崎町
A44: 2210101034 | B44: 22 | C44: 101 | D44: 01 | E44: 034 | F44: 静岡県 | G44: 葵区(静岡市) | H44: 静岡市２－１ | I44: 千代田 | M44: =IF(K44="","",COUNTIF($K$7:K44,"ﾘｽﾄ１")) ->  | U44: =IF(S44="","",COUNTIF($S$7:S44,"該当２")) ->  | X44: =IF(V44="","",COUNTIF($V$7:V44,"該当３")) ->  | Z44: 38 | AB44: 西伊豆町
A45: 2210101035 | B45: 22 | C45: 101 | D45: 01 | E45: 035 | F45: 静岡県 | G45: 葵区(静岡市) | H45: 静岡市２－１ | I45: 上土 | M45: =IF(K45="","",COUNTIF($K$7:K45,"ﾘｽﾄ１")) ->  | U45: =IF(S45="","",COUNTIF($S$7:S45,"該当２")) ->  | X45: =IF(V45="","",COUNTIF($V$7:V45,"該当３")) ->  | Z45: 39 | AB45: 函南町
A46: 2210101036 | B46: 22 | C46: 101 | D46: 01 | E46: 036 | F46: 静岡県 | G46: 葵区(静岡市) | H46: 静岡市２－１ | I46: 川合本田 | M46: =IF(K46="","",COUNTIF($K$7:K46,"ﾘｽﾄ１")) ->  | U46: =IF(S46="","",COUNTIF($S$7:S46,"該当２")) ->  | X46: =IF(V46="","",COUNTIF($V$7:V46,"該当３")) ->  | Z46: 40 | AB46: 清水町
A47: 2210101037 | B47: 22 | C47: 101 | D47: 01 | E47: 037 | F47: 静岡県 | G47: 葵区(静岡市) | H47: 静岡市２－１ | I47: 川合本村 | M47: =IF(K47="","",COUNTIF($K$7:K47,"ﾘｽﾄ１")) ->  | U47: =IF(S47="","",COUNTIF($S$7:S47,"該当２")) ->  | X47: =IF(V47="","",COUNTIF($V$7:V47,"該当３")) ->  | Z47: 41 | AB47: 長泉町
A48: 2210101038 | B48: 22 | C48: 101 | D48: 01 | E48: 038 | F48: 静岡県 | G48: 葵区(静岡市) | H48: 静岡市２－１ | I48: 南沼上 | M48: =IF(K48="","",COUNTIF($K$7:K48,"ﾘｽﾄ１")) ->  | U48: =IF(S48="","",COUNTIF($S$7:S48,"該当２")) ->  | X48: =IF(V48="","",COUNTIF($V$7:V48,"該当３")) ->  | Z48: 42 | AB48: 小山町
A49: 2210101039 | B49: 22 | C49: 101 | D49: 01 | E49: 039 | F49: 静岡県 | G49: 葵区(静岡市) | H49: 静岡市２－１ | I49: 北沼上 | M49: =IF(K49="","",COUNTIF($K$7:K49,"ﾘｽﾄ１")) ->  | U49: =IF(S49="","",COUNTIF($S$7:S49,"該当２")) ->  | X49: =IF(V49="","",COUNTIF($V$7:V49,"該当３")) ->  | Z49: 43 | AB49: 吉田町
A50: 2210101040 | B50: 22 | C50: 101 | D50: 01 | E50: 040 | F50: 静岡県 | G50: 葵区(静岡市) | H50: 静岡市２－１ | I50: 則沢 | M50: =IF(K50="","",COUNTIF($K$7:K50,"ﾘｽﾄ１")) ->  | U50: =IF(S50="","",COUNTIF($S$7:S50,"該当２")) ->  | X50: =IF(V50="","",COUNTIF($V$7:V50,"該当３")) ->  | Z50: 44 | AB50: 川根本町
A51: 2210101041 | B51: 22 | C51: 101 | D51: 01 | E51: 041 | F51: 静岡県 | G51: 葵区(静岡市) | H51: 静岡市２－１ | I51: 銭座 | M51: =IF(K51="","",COUNTIF($K$7:K51,"ﾘｽﾄ１")) ->  | U51: =IF(S51="","",COUNTIF($S$7:S51,"該当２")) ->  | X51: =IF(V51="","",COUNTIF($V$7:V51,"該当３")) ->  | Z51: 45 | AB51: 森町
A52: 2210101042 | B52: 22 | C52: 101 | D52: 01 | E52: 042 | F52: 静岡県 | G52: 葵区(静岡市) | H52: 静岡市２－１ | I52: 池ヶ谷 | M52: =IF(K52="","",COUNTIF($K$7:K52,"ﾘｽﾄ１")) ->  | U52: =IF(S52="","",COUNTIF($S$7:S52,"該当２")) ->  | X52: =IF(V52="","",COUNTIF($V$7:V52,"該当３")) ->  | Z52: 46
A53: 2210101043 | B53: 22 | C53: 101 | D53: 01 | E53: 043 | F53: 静岡県 | G53: 葵区(静岡市) | H53: 静岡市２－１ | I53: 南口 | M53: =IF(K53="","",COUNTIF($K$7:K53,"ﾘｽﾄ１")) ->  | U53: =IF(S53="","",COUNTIF($S$7:S53,"該当２")) ->  | X53: =IF(V53="","",COUNTIF($V$7:V53,"該当３")) ->  | Z53: 47
A54: 2210101044 | B54: 22 | C54: 101 | D54: 01 | E54: 044 | F54: 静岡県 | G54: 葵区(静岡市) | H54: 静岡市２－１ | I54: 南中 | M54: =IF(K54="","",COUNTIF($K$7:K54,"ﾘｽﾄ１")) ->  | U54: =IF(S54="","",COUNTIF($S$7:S54,"該当２")) ->  | X54: =IF(V54="","",COUNTIF($V$7:V54,"該当３")) ->  | Z54: 48
A55: 2210101045 | B55: 22 | C55: 101 | D55: 01 | E55: 045 | F55: 静岡県 | G55: 葵区(静岡市) | H55: 静岡市２－１ | I55: 南奥 | M55: =IF(K55="","",COUNTIF($K$7:K55,"ﾘｽﾄ１")) ->  | U55: =IF(S55="","",COUNTIF($S$7:S55,"該当２")) ->  | X55: =IF(V55="","",COUNTIF($V$7:V55,"該当３")) ->  | Z55: 49
A56: 2210101046 | B56: 22 | C56: 101 | D56: 01 | E56: 046 | F56: 静岡県 | G56: 葵区(静岡市) | H56: 静岡市２－１ | I56: 有永 | M56: =IF(K56="","",COUNTIF($K$7:K56,"ﾘｽﾄ１")) ->  | U56: =IF(S56="","",COUNTIF($S$7:S56,"該当２")) ->  | X56: =IF(V56="","",COUNTIF($V$7:V56,"該当３")) ->  | Z56: 50
A57: 2210101047 | B57: 22 | C57: 101 | D57: 01 | E57: 047 | F57: 静岡県 | G57: 葵区(静岡市) | H57: 静岡市２－１ | I57: 羽高 | M57: =IF(K57="","",COUNTIF($K$7:K57,"ﾘｽﾄ１")) ->  | U57: =IF(S57="","",COUNTIF($S$7:S57,"該当２")) ->  | X57: =IF(V57="","",COUNTIF($V$7:V57,"該当３")) ->  | Z57: 51
A58: 2210101048 | B58: 22 | C58: 101 | D58: 01 | E58: 048 | F58: 静岡県 | G58: 葵区(静岡市) | H58: 静岡市２－１ | I58: 北一 | M58: =IF(K58="","",COUNTIF($K$7:K58,"ﾘｽﾄ１")) ->  | U58: =IF(S58="","",COUNTIF($S$7:S58,"該当２")) ->  | X58: =IF(V58="","",COUNTIF($V$7:V58,"該当３")) ->  | Z58: 52
A59: 2210101049 | B59: 22 | C59: 101 | D59: 01 | E59: 049 | F59: 静岡県 | G59: 葵区(静岡市) | H59: 静岡市２－１ | I59: 北二 | M59: =IF(K59="","",COUNTIF($K$7:K59,"ﾘｽﾄ１")) ->  | U59: =IF(S59="","",COUNTIF($S$7:S59,"該当２")) ->  | X59: =IF(V59="","",COUNTIF($V$7:V59,"該当３")) ->  | Z59: 53
A60: 2210101050 | B60: 22 | C60: 101 | D60: 01 | E60: 050 | F60: 静岡県 | G60: 葵区(静岡市) | H60: 静岡市２－１ | I60: 東 | M60: =IF(K60="","",COUNTIF($K$7:K60,"ﾘｽﾄ１")) ->  | U60: =IF(S60="","",COUNTIF($S$7:S60,"該当２")) ->  | X60: =IF(V60="","",COUNTIF($V$7:V60,"該当３")) ->  | Z60: 54
A61: 2210101051 | B61: 22 | C61: 101 | D61: 01 | E61: 051 | F61: 静岡県 | G61: 葵区(静岡市) | H61: 静岡市２－１ | I61: 瀬名川 | M61: =IF(K61="","",COUNTIF($K$7:K61,"ﾘｽﾄ１")) ->  | U61: =IF(S61="","",COUNTIF($S$7:S61,"該当２")) ->  | X61: =IF(V61="","",COUNTIF($V$7:V61,"該当３")) ->  | Z61: 55
A62: 2210101052 | B62: 22 | C62: 101 | D62: 01 | E62: 052 | F62: 静岡県 | G62: 葵区(静岡市) | H62: 静岡市２－１ | I62: 瀬名 | M62: =IF(K62="","",COUNTIF($K$7:K62,"ﾘｽﾄ１")) ->  | U62: =IF(S62="","",COUNTIF($S$7:S62,"該当２")) ->  | X62: =IF(V62="","",COUNTIF($V$7:V62,"該当３")) ->  | Z62: 56
A63: 2210101053 | B63: 22 | C63: 101 | D63: 01 | E63: 053 | F63: 静岡県 | G63: 葵区(静岡市) | H63: 静岡市２－１ | I63: 長尾 | M63: =IF(K63="","",COUNTIF($K$7:K63,"ﾘｽﾄ１")) ->  | U63: =IF(S63="","",COUNTIF($S$7:S63,"該当２")) ->  | X63: =IF(V63="","",COUNTIF($V$7:V63,"該当３")) ->  | Z63: 57
A64: 2210101054 | B64: 22 | C64: 101 | D64: 01 | E64: 054 | F64: 静岡県 | G64: 葵区(静岡市) | H64: 静岡市２－１ | I64: 平山 | M64: =IF(K64="","",COUNTIF($K$7:K64,"ﾘｽﾄ１")) ->  | U64: =IF(S64="","",COUNTIF($S$7:S64,"該当２")) ->  | X64: =IF(V64="","",COUNTIF($V$7:V64,"該当３")) ->  | Z64: 58
A65: 2210101055 | B65: 22 | C65: 101 | D65: 01 | E65: 055 | F65: 静岡県 | G65: 葵区(静岡市) | H65: 静岡市２－１ | I65: 安倍川河川敷２－１ | M65: =IF(K65="","",COUNTIF($K$7:K65,"ﾘｽﾄ１")) ->  | U65: =IF(S65="","",COUNTIF($S$7:S65,"該当２")) ->  | X65: =IF(V65="","",COUNTIF($V$7:V65,"該当３")) ->  | Z65: 59
A66: 2210102000 | B66: 22 | C66: 101 | D66: 02 | E66: 000 | F66: 静岡県 | G66: 葵区(静岡市) | H66: 美和村 | M66: =IF(K66="","",COUNTIF($K$7:K66,"ﾘｽﾄ１")) ->  | U66: =IF(S66="","",COUNTIF($S$7:S66,"該当２")) ->  | X66: =IF(V66="","",COUNTIF($V$7:V66,"該当３")) ->  | Z66: 60
A67: 2210102001 | B67: 22 | C67: 101 | D67: 02 | E67: 001 | F67: 静岡県 | G67: 葵区(静岡市) | H67: 美和村 | I67: 西ヶ谷 | M67: =IF(K67="","",COUNTIF($K$7:K67,"ﾘｽﾄ１")) ->  | U67: =IF(S67="","",COUNTIF($S$7:S67,"該当２")) ->  | X67: =IF(V67="","",COUNTIF($V$7:V67,"該当３")) ->  | Z67: 61
A68: 2210102002 | B68: 22 | C68: 101 | D68: 02 | E68: 002 | F68: 静岡県 | G68: 葵区(静岡市) | H68: 美和村 | I68: 内牧下 | M68: =IF(K68="","",COUNTIF($K$7:K68,"ﾘｽﾄ１")) ->  | U68: =IF(S68="","",COUNTIF($S$7:S68,"該当２")) ->  | X68: =IF(V68="","",COUNTIF($V$7:V68,"該当３")) ->  | Z68: 62
A69: 2210102003 | B69: 22 | C69: 101 | D69: 02 | E69: 003 | F69: 静岡県 | G69: 葵区(静岡市) | H69: 美和村 | I69: 内牧東 | M69: =IF(K69="","",COUNTIF($K$7:K69,"ﾘｽﾄ１")) ->  | U69: =IF(S69="","",COUNTIF($S$7:S69,"該当２")) ->  | X69: =IF(V69="","",COUNTIF($V$7:V69,"該当３")) ->  | Z69: 63
A70: 2210102004 | B70: 22 | C70: 101 | D70: 02 | E70: 004 | F70: 静岡県 | G70: 葵区(静岡市) | H70: 美和村 | I70: 内牧清地 | M70: =IF(K70="","",COUNTIF($K$7:K70,"ﾘｽﾄ１")) ->  | U70: =IF(S70="","",COUNTIF($S$7:S70,"該当２")) ->  | X70: =IF(V70="","",COUNTIF($V$7:V70,"該当３")) ->  | Z70: 64
A71: 2210102005 | B71: 22 | C71: 101 | D71: 02 | E71: 005 | F71: 静岡県 | G71: 葵区(静岡市) | H71: 美和村 | I71: 内牧中 | M71: =IF(K71="","",COUNTIF($K$7:K71,"ﾘｽﾄ１")) ->  | U71: =IF(S71="","",COUNTIF($S$7:S71,"該当２")) ->  | X71: =IF(V71="","",COUNTIF($V$7:V71,"該当３")) ->  | Z71: 65
A72: 2210102006 | B72: 22 | C72: 101 | D72: 02 | E72: 006 | F72: 静岡県 | G72: 葵区(静岡市) | H72: 美和村 | I72: 内牧上 | M72: =IF(K72="","",COUNTIF($K$7:K72,"ﾘｽﾄ１")) ->  | P72: =IF(O72="該当１",G72,"") ->  | Q72: =IF(O72="該当１","ﾘｽﾄ2","") ->  | R72: =IF(Q72="ﾘｽﾄ2",H72,"") ->  | T72: =IF(S72="該当２",H72,"") ->  | U72: =IF(S72="","",COUNTIF($S$7:S72,"該当２")) ->  | V72: =IF(AND($S$2=H72,E72>0,E72<998),"該当３","") ->  | W72: =IF(V72="該当３",I72,"") ->  | X72: =IF(V72="","",COUNTIF($V$7:V72,"該当３")) ->  | Z72: 66 | AD72: =IF($Z72>MAX($X$7:$X$4161),"",INDEX($W$7:$W$4161,MATCH($Z72,$X$7:$X$4161,0),MATCH($AD$4,$W$5:$X$5,0))) -> 
A73: 2210102007 | B73: 22 | C73: 101 | D73: 02 | E73: 007 | F73: 静岡県 | G73: 葵区(静岡市) | H73: 美和村 | I73: 下与左衛門新田 | K73: =IF(AND($C73>0,$H73=""),"ﾘｽﾄ１","") ->  | L73: =IF(K73="ﾘｽﾄ１",G73,"") ->  | M73: =IF(K73="","",COUNTIF($K$7:K73,"ﾘｽﾄ１")) ->  | N73: =IF(AND(D73=0,E73>0),"同一区","") ->  | O73: =IF(AND(EXACT($K$2,G73),H73>0),"該当１","") ->  | S73: =IF(AND(Q73="ﾘｽﾄ2",OR(I73=0,AND(N73="同一区",E73=1))),"該当２","") ->  | U73: =IF(S73="","",COUNTIF($S$7:S73,"該当２")) ->  | X73: =IF(V73="","",COUNTIF($V$7:V73,"該当３")) ->  | Z73: 67
A74: 2210102008 | B74: 22 | C74: 101 | D74: 02 | E74: 008 | F74: 静岡県 | G74: 葵区(静岡市) | H74: 美和村 | I74: 安倍口新田 | M74: =IF(K74="","",COUNTIF($K$7:K74,"ﾘｽﾄ１")) ->  | U74: =IF(S74="","",COUNTIF($S$7:S74,"該当２")) ->  | X74: =IF(V74="","",COUNTIF($V$7:V74,"該当３")) ->  | Z74: 68
A75: 2210102009 | B75: 22 | C75: 101 | D75: 02 | E75: 009 | F75: 静岡県 | G75: 葵区(静岡市) | H75: 美和村 | I75: 中ノ郷 | M75: =IF(K75="","",COUNTIF($K$7:K75,"ﾘｽﾄ１")) ->  | U75: =IF(S75="","",COUNTIF($S$7:S75,"該当２")) ->  | X75: =IF(V75="","",COUNTIF($V$7:V75,"該当３")) ->  | Z75: 69
A76: 2210102010 | B76: 22 | C76: 101 | D76: 02 | E76: 010 | F76: 静岡県 | G76: 葵区(静岡市) | H76: 美和村 | I76: 上与左衛門新田 | M76: =IF(K76="","",COUNTIF($K$7:K76,"ﾘｽﾄ１")) ->  | U76: =IF(S76="","",COUNTIF($S$7:S76,"該当２")) ->  | X76: =IF(V76="","",COUNTIF($V$7:V76,"該当３")) ->  | Z76: 70
A77: 2210102011 | B77: 22 | C77: 101 | D77: 02 | E77: 011 | F77: 静岡県 | G77: 葵区(静岡市) | H77: 美和村 | I77: 小塚ヶ谷 | M77: =IF(K77="","",COUNTIF($K$7:K77,"ﾘｽﾄ１")) ->  | U77: =IF(S77="","",COUNTIF($S$7:S77,"該当２")) ->  | X77: =IF(V77="","",COUNTIF($V$7:V77,"該当３")) ->  | Z77: 71
A78: 2210102012 | B78: 22 | C78: 101 | D78: 02 | E78: 012 | F78: 静岡県 | G78: 葵区(静岡市) | H78: 美和村 | I78: 遠藤新田 | M78: =IF(K78="","",COUNTIF($K$7:K78,"ﾘｽﾄ１")) ->  | U78: =IF(S78="","",COUNTIF($S$7:S78,"該当２")) ->  | X78: =IF(V78="","",COUNTIF($V$7:V78,"該当３")) ->  | Z78: 72
A79: 2210102013 | B79: 22 | C79: 101 | D79: 02 | E79: 013 | F79: 静岡県 | G79: 葵区(静岡市) | H79: 美和村 | I79: 原田・諸川 | M79: =IF(K79="","",COUNTIF($K$7:K79,"ﾘｽﾄ１")) ->  | U79: =IF(S79="","",COUNTIF($S$7:S79,"該当２")) ->  | X79: =IF(V79="","",COUNTIF($V$7:V79,"該当３")) ->  | Z79: 73
A80: 2210102014 | B80: 22 | C80: 101 | D80: 02 | E80: 014 | F80: 静岡県 | G80: 葵区(静岡市) | H80: 美和村 | I80: 八十岡 | M80: =IF(K80="","",COUNTIF($K$7:K80,"ﾘｽﾄ１")) ->  | U80: =IF(S80="","",COUNTIF($S$7:S80,"該当２")) ->  | X80: =IF(V80="","",COUNTIF($V$7:V80,"該当３")) ->  | Z80: 74
A81: 2210102015 | B81: 22 | C81: 101 | D81: 02 | E81: 015 | F81: 静岡県 | G81: 葵区(静岡市) | H81: 美和村 | I81: 神明原 | M81: =IF(K81="","",COUNTIF($K$7:K81,"ﾘｽﾄ１")) ->  | U81: =IF(S81="","",COUNTIF($S$7:S81,"該当２")) ->  | X81: =IF(V81="","",COUNTIF($V$7:V81,"該当３")) ->  | Z81: 75
A82: 2210102016 | B82: 22 | C82: 101 | D82: 02 | E82: 016 | F82: 静岡県 | G82: 葵区(静岡市) | H82: 美和村 | I82: 舟沢 | M82: =IF(K82="","",COUNTIF($K$7:K82,"ﾘｽﾄ１")) ->  | U82: =IF(S82="","",COUNTIF($S$7:S82,"該当２")) ->  | X82: =IF(V82="","",COUNTIF($V$7:V82,"該当３")) -> 
A83: 2210102017 | B83: 22 | C83: 101 | D83: 02 | E83: 017 | F83: 静岡県 | G83: 葵区(静岡市) | H83: 美和村 | I83: 敷地 | M83: =IF(K83="","",COUNTIF($K$7:K83,"ﾘｽﾄ１")) ->  | U83: =IF(S83="","",COUNTIF($S$7:S83,"該当２")) ->  | X83: =IF(V83="","",COUNTIF($V$7:V83,"該当３")) -> 
A84: 2210102018 | B84: 22 | C84: 101 | D84: 02 | E84: 018 | F84: 静岡県 | G84: 葵区(静岡市) | H84: 美和村 | I84: 栗島 | M84: =IF(K84="","",COUNTIF($K$7:K84,"ﾘｽﾄ１")) ->  | U84: =IF(S84="","",COUNTIF($S$7:S84,"該当２")) ->  | X84: =IF(V84="","",COUNTIF($V$7:V84,"該当３")) -> 
A85: 2210102019 | B85: 22 | C85: 101 | D85: 02 | E85: 019 | F85: 静岡県 | G85: 葵区(静岡市) | H85: 美和村 | I85: 相沢 | M85: =IF(K85="","",COUNTIF($K$7:K85,"ﾘｽﾄ１")) ->  | U85: =IF(S85="","",COUNTIF($S$7:S85,"該当２")) ->  | X85: =IF(V85="","",COUNTIF($V$7:V85,"該当３")) -> 
A86: 2210102020 | B86: 22 | C86: 101 | D86: 02 | E86: 020 | F86: 静岡県 | G86: 葵区(静岡市) | H86: 美和村 | I86: 谷沢 | M86: =IF(K86="","",COUNTIF($K$7:K86,"ﾘｽﾄ１")) ->  | U86: =IF(S86="","",COUNTIF($S$7:S86,"該当２")) ->  | X86: =IF(V86="","",COUNTIF($V$7:V86,"該当３")) -> 
A87: 2210102021 | B87: 22 | C87: 101 | D87: 02 | E87: 021 | F87: 静岡県 | G87: 葵区(静岡市) | H87: 美和村 | I87: 口長島 | M87: =IF(K87="","",COUNTIF($K$7:K87,"ﾘｽﾄ１")) ->  | U87: =IF(S87="","",COUNTIF($S$7:S87,"該当２")) ->  | X87: =IF(V87="","",COUNTIF($V$7:V87,"該当３")) -> 
A88: 2210102022 | B88: 22 | C88: 101 | D88: 02 | E88: 022 | F88: 静岡県 | G88: 葵区(静岡市) | H88: 美和村 | I88: 奥長島 | M88: =IF(K88="","",COUNTIF($K$7:K88,"ﾘｽﾄ１")) ->  | U88: =IF(S88="","",COUNTIF($S$7:S88,"該当２")) ->  | X88: =IF(V88="","",COUNTIF($V$7:V88,"該当３")) -> 
A89: 2210102023 | B89: 22 | C89: 101 | D89: 02 | E89: 023 | F89: 静岡県 | G89: 葵区(静岡市) | H89: 美和村 | I89: 油山下 | M89: =IF(K89="","",COUNTIF($K$7:K89,"ﾘｽﾄ１")) ->  | U89: =IF(S89="","",COUNTIF($S$7:S89,"該当２")) ->  | X89: =IF(V89="","",COUNTIF($V$7:V89,"該当３")) -> 
A90: 2210102024 | B90: 22 | C90: 101 | D90: 02 | E90: 024 | F90: 静岡県 | G90: 葵区(静岡市) | H90: 美和村 | I90: 油山橋本 | M90: =IF(K90="","",COUNTIF($K$7:K90,"ﾘｽﾄ１")) ->  | U90: =IF(S90="","",COUNTIF($S$7:S90,"該当２")) ->  | X90: =IF(V90="","",COUNTIF($V$7:V90,"該当３")) -> 
A91: 2210102025 | B91: 22 | C91: 101 | D91: 02 | E91: 025 | F91: 静岡県 | G91: 葵区(静岡市) | H91: 美和村 | I91: 油山上 | M91: =IF(K91="","",COUNTIF($K$7:K91,"ﾘｽﾄ１")) ->  | U91: =IF(S91="","",COUNTIF($S$7:S91,"該当２")) ->  | X91: =IF(V91="","",COUNTIF($V$7:V91,"該当３")) -> 
A92: 2210102026 | B92: 22 | C92: 101 | D92: 02 | E92: 026 | F92: 静岡県 | G92: 葵区(静岡市) | H92: 美和村 | I92: 松野第一 | M92: =IF(K92="","",COUNTIF($K$7:K92,"ﾘｽﾄ１")) ->  | U92: =IF(S92="","",COUNTIF($S$7:S92,"該当２")) ->  | X92: =IF(V92="","",COUNTIF($V$7:V92,"該当３")) -> 
A93: 2210102027 | B93: 22 | C93: 101 | D93: 02 | E93: 027 | F93: 静岡県 | G93: 葵区(静岡市) | H93: 美和村 | I93: 松野第二 | M93: =IF(K93="","",COUNTIF($K$7:K93,"ﾘｽﾄ１")) ->  | U93: =IF(S93="","",COUNTIF($S$7:S93,"該当２")) ->  | X93: =IF(V93="","",COUNTIF($V$7:V93,"該当３")) -> 
A94: 2210102028 | B94: 22 | C94: 101 | D94: 02 | E94: 028 | F94: 静岡県 | G94: 葵区(静岡市) | H94: 美和村 | I94: 松野第三 | M94: =IF(K94="","",COUNTIF($K$7:K94,"ﾘｽﾄ１")) ->  | U94: =IF(S94="","",COUNTIF($S$7:S94,"該当２")) ->  | X94: =IF(V94="","",COUNTIF($V$7:V94,"該当３")) -> 
A95: 2210102029 | B95: 22 | C95: 101 | D95: 02 | E95: 029 | F95: 静岡県 | G95: 葵区(静岡市) | H95: 美和村 | I95: 津渡野 | M95: =IF(K95="","",COUNTIF($K$7:K95,"ﾘｽﾄ１")) ->  | U95: =IF(S95="","",COUNTIF($S$7:S95,"該当２")) ->  | X95: =IF(V95="","",COUNTIF($V$7:V95,"該当３")) -> 
A96: 2210103000 | B96: 22 | C96: 101 | D96: 03 | E96: 000 | F96: 静岡県 | G96: 葵区(静岡市) | H96: 服織村 | M96: =IF(K96="","",COUNTIF($K$7:K96,"ﾘｽﾄ１")) ->  | U96: =IF(S96="","",COUNTIF($S$7:S96,"該当２")) ->  | X96: =IF(V96="","",COUNTIF($V$7:V96,"該当３")) -> 
A97: 2210103001 | B97: 22 | C97: 101 | D97: 03 | E97: 001 | F97: 静岡県 | G97: 葵区(静岡市) | H97: 服織村 | I97: 山崎新田 | M97: =IF(K97="","",COUNTIF($K$7:K97,"ﾘｽﾄ１")) ->  | U97: =IF(S97="","",COUNTIF($S$7:S97,"該当２")) ->  | X97: =IF(V97="","",COUNTIF($V$7:V97,"該当３")) -> 
A98: 2210103002 | B98: 22 | C98: 101 | D98: 03 | E98: 002 | F98: 静岡県 | G98: 葵区(静岡市) | H98: 服織村 | I98: 千代 | M98: =IF(K98="","",COUNTIF($K$7:K98,"ﾘｽﾄ１")) ->  | U98: =IF(S98="","",COUNTIF($S$7:S98,"該当２")) ->  | X98: =IF(V98="","",COUNTIF($V$7:V98,"該当３")) -> 
A99: 2210103003 | B99: 22 | C99: 101 | D99: 03 | E99: 003 | F99: 静岡県 | G99: 葵区(静岡市) | H99: 服織村 | I99: 慈悲尾 | M99: =IF(K99="","",COUNTIF($K$7:K99,"ﾘｽﾄ１")) ->  | U99: =IF(S99="","",COUNTIF($S$7:S99,"該当２")) ->  | X99: =IF(V99="","",COUNTIF($V$7:V99,"該当３")) -> 
A100: 2210103004 | B100: 22 | C100: 101 | D100: 03 | E100: 004 | F100: 静岡県 | G100: 葵区(静岡市) | H100: 服織村 | I100: 建穂 | M100: =IF(K100="","",COUNTIF($K$7:K100,"ﾘｽﾄ１")) ->  | U100: =IF(S100="","",COUNTIF($S$7:S100,"該当２")) ->  | X100: =IF(V100="","",COUNTIF($V$7:V100,"該当３")) -> 
A101: 2210103005 | B101: 22 | C101: 101 | D101: 03 | E101: 005 | F101: 静岡県 | G101: 葵区(静岡市) | H101: 服織村 | I101: 羽鳥第一 | M101: =IF(K101="","",COUNTIF($K$7:K101,"ﾘｽﾄ１")) ->  | U101: =IF(S101="","",COUNTIF($S$7:S101,"該当２")) ->  | X101: =IF(V101="","",COUNTIF($V$7:V101,"該当３")) -> 
A102: 2210103006 | B102: 22 | C102: 101 | D102: 03 | E102: 006 | F102: 静岡県 | G102: 葵区(静岡市) | H102: 服織村 | I102: 羽鳥第二 | M102: =IF(K102="","",COUNTIF($K$7:K102,"ﾘｽﾄ１")) ->  | U102: =IF(S102="","",COUNTIF($S$7:S102,"該当２")) ->  | X102: =IF(V102="","",COUNTIF($V$7:V102,"該当３")) -> 
A103: 2210103007 | B103: 22 | C103: 101 | D103: 03 | E103: 007 | F103: 静岡県 | G103: 葵区(静岡市) | H103: 服織村 | I103: 羽鳥第三 | M103: =IF(K103="","",COUNTIF($K$7:K103,"ﾘｽﾄ１")) ->  | U103: =IF(S103="","",COUNTIF($S$7:S103,"該当２")) ->  | X103: =IF(V103="","",COUNTIF($V$7:V103,"該当３")) -> 
A104: 2210103008 | B104: 22 | C104: 101 | D104: 03 | E104: 008 | F104: 静岡県 | G104: 葵区(静岡市) | H104: 服織村 | I104: 羽鳥第四下 | M104: =IF(K104="","",COUNTIF($K$7:K104,"ﾘｽﾄ１")) ->  | U104: =IF(S104="","",COUNTIF($S$7:S104,"該当２")) ->  | X104: =IF(V104="","",COUNTIF($V$7:V104,"該当３")) -> 
A105: 2210103009 | B105: 22 | C105: 101 | D105: 03 | E105: 009 | F105: 静岡県 | G105: 葵区(静岡市) | H105: 服織村 | I105: 羽鳥第四上 | M105: =IF(K105="","",COUNTIF($K$7:K105,"ﾘｽﾄ１")) ->  | U105: =IF(S105="","",COUNTIF($S$7:S105,"該当２")) ->  | X105: =IF(V105="","",COUNTIF($V$7:V105,"該当３")) -> 
A106: 2210103010 | B106: 22 | C106: 101 | D106: 03 | E106: 010 | F106: 静岡県 | G106: 葵区(静岡市) | H106: 服織村 | I106: 羽鳥第五下 | M106: =IF(K106="","",COUNTIF($K$7:K106,"ﾘｽﾄ１")) ->  | U106: =IF(S106="","",COUNTIF($S$7:S106,"該当２")) ->  | X106: =IF(V106="","",COUNTIF($V$7:V106,"該当３")) -> 
A107: 2210103011 | B107: 22 | C107: 101 | D107: 03 | E107: 011 | F107: 静岡県 | G107: 葵区(静岡市) | H107: 服織村 | I107: 羽鳥第五上 | M107: =IF(K107="","",COUNTIF($K$7:K107,"ﾘｽﾄ１")) ->  | U107: =IF(S107="","",COUNTIF($S$7:S107,"該当２")) ->  | X107: =IF(V107="","",COUNTIF($V$7:V107,"該当３")) -> 
A108: 2210103012 | B108: 22 | C108: 101 | D108: 03 | E108: 012 | F108: 静岡県 | G108: 葵区(静岡市) | H108: 服織村 | I108: 羽鳥第六 | M108: =IF(K108="","",COUNTIF($K$7:K108,"ﾘｽﾄ１")) ->  | U108: =IF(S108="","",COUNTIF($S$7:S108,"該当２")) ->  | X108: =IF(V108="","",COUNTIF($V$7:V108,"該当３")) -> 
A109: 2210103013 | B109: 22 | C109: 101 | D109: 03 | E109: 013 | F109: 静岡県 | G109: 葵区(静岡市) | H109: 服織村 | I109: 羽鳥第七 | M109: =IF(K109="","",COUNTIF($K$7:K109,"ﾘｽﾄ１")) ->  | U109: =IF(S109="","",COUNTIF($S$7:S109,"該当２")) ->  | X109: =IF(V109="","",COUNTIF($V$7:V109,"該当３")) -> 
A110: 2210103014 | B110: 22 | C110: 101 | D110: 03 | E110: 014 | F110: 静岡県 | G110: 葵区(静岡市) | H110: 服織村 | I110: 新間１ | M110: =IF(K110="","",COUNTIF($K$7:K110,"ﾘｽﾄ１")) ->  | U110: =IF(S110="","",COUNTIF($S$7:S110,"該当２")) ->  | X110: =IF(V110="","",COUNTIF($V$7:V110,"該当３")) -> 
A111: 2210103015 | B111: 22 | C111: 101 | D111: 03 | E111: 015 | F111: 静岡県 | G111: 葵区(静岡市) | H111: 服織村 | I111: 新間２ | M111: =IF(K111="","",COUNTIF($K$7:K111,"ﾘｽﾄ１")) ->  | U111: =IF(S111="","",COUNTIF($S$7:S111,"該当２")) ->  | X111: =IF(V111="","",COUNTIF($V$7:V111,"該当３")) -> 
A112: 2210103016 | B112: 22 | C112: 101 | D112: 03 | E112: 016 | F112: 静岡県 | G112: 葵区(静岡市) | H112: 服織村 | I112: 新間３ | M112: =IF(K112="","",COUNTIF($K$7:K112,"ﾘｽﾄ１")) ->  | U112: =IF(S112="","",COUNTIF($S$7:S112,"該当２")) ->  | X112: =IF(V112="","",COUNTIF($V$7:V112,"該当３")) -> 
A113: 2210103017 | B113: 22 | C113: 101 | D113: 03 | E113: 017 | F113: 静岡県 | G113: 葵区(静岡市) | H113: 服織村 | I113: 新間４ | M113: =IF(K113="","",COUNTIF($K$7:K113,"ﾘｽﾄ１")) ->  | U113: =IF(S113="","",COUNTIF($S$7:S113,"該当２")) ->  | X113: =IF(V113="","",COUNTIF($V$7:V113,"該当３")) -> 
A114: 2210103018 | B114: 22 | C114: 101 | D114: 03 | E114: 018 | F114: 静岡県 | G114: 葵区(静岡市) | H114: 服織村 | I114: 谷津 | M114: =IF(K114="","",COUNTIF($K$7:K114,"ﾘｽﾄ１")) ->  | U114: =IF(S114="","",COUNTIF($S$7:S114,"該当２")) ->  | X114: =IF(V114="","",COUNTIF($V$7:V114,"該当３")) -> 
A115: 2210104000 | B115: 22 | C115: 101 | D115: 04 | E115: 000 | F115: 静岡県 | G115: 葵区(静岡市) | H115: 中藁科村 | M115: =IF(K115="","",COUNTIF($K$7:K115,"ﾘｽﾄ１")) ->  | U115: =IF(S115="","",COUNTIF($S$7:S115,"該当２")) ->  | X115: =IF(V115="","",COUNTIF($V$7:V115,"該当３")) -> 
A116: 2210104001 | B116: 22 | C116: 101 | D116: 04 | E116: 001 | F116: 静岡県 | G116: 葵区(静岡市) | H116: 中藁科村 | I116: 大原 | M116: =IF(K116="","",COUNTIF($K$7:K116,"ﾘｽﾄ１")) ->  | U116: =IF(S116="","",COUNTIF($S$7:S116,"該当２")) ->  | X116: =IF(V116="","",COUNTIF($V$7:V116,"該当３")) -> 
A117: 2210104002 | B117: 22 | C117: 101 | D117: 04 | E117: 002 | F117: 静岡県 | G117: 葵区(静岡市) | H117: 中藁科村 | I117: 水見色 | M117: =IF(K117="","",COUNTIF($K$7:K117,"ﾘｽﾄ１")) ->  | U117: =IF(S117="","",COUNTIF($S$7:S117,"該当２")) ->  | X117: =IF(V117="","",COUNTIF($V$7:V117,"該当３")) -> 
A118: 2210104003 | B118: 22 | C118: 101 | D118: 04 | E118: 003 | F118: 静岡県 | G118: 葵区(静岡市) | H118: 中藁科村 | I118: 富厚里 | M118: =IF(K118="","",COUNTIF($K$7:K118,"ﾘｽﾄ１")) ->  | U118: =IF(S118="","",COUNTIF($S$7:S118,"該当２")) ->  | X118: =IF(V118="","",COUNTIF($V$7:V118,"該当３")) -> 
A119: 2210104004 | B119: 22 | C119: 101 | D119: 04 | E119: 004 | F119: 静岡県 | G119: 葵区(静岡市) | H119: 中藁科村 | I119: 奈良間 | M119: =IF(K119="","",COUNTIF($K$7:K119,"ﾘｽﾄ１")) ->  | U119: =IF(S119="","",COUNTIF($S$7:S119,"該当２")) ->  | X119: =IF(V119="","",COUNTIF($V$7:V119,"該当３")) -> 
A120: 2210104005 | B120: 22 | C120: 101 | D120: 04 | E120: 005 | F120: 静岡県 | G120: 葵区(静岡市) | H120: 中藁科村 | I120: 富沢 | M120: =IF(K120="","",COUNTIF($K$7:K120,"ﾘｽﾄ１")) ->  | U120: =IF(S120="","",COUNTIF($S$7:S120,"該当２")) ->  | X120: =IF(V120="","",COUNTIF($V$7:V120,"該当３")) -> 
A121: 2210104006 | B121: 22 | C121: 101 | D121: 04 | E121: 006 | F121: 静岡県 | G121: 葵区(静岡市) | H121: 中藁科村 | I121: 小布杉 | M121: =IF(K121="","",COUNTIF($K$7:K121,"ﾘｽﾄ１")) ->  | U121: =IF(S121="","",COUNTIF($S$7:S121,"該当２")) ->  | X121: =IF(V121="","",COUNTIF($V$7:V121,"該当３")) -> 
A122: 2210105000 | B122: 22 | C122: 101 | D122: 05 | E122: 000 | F122: 静岡県 | G122: 葵区(静岡市) | H122: 南藁科村 | M122: =IF(K122="","",COUNTIF($K$7:K122,"ﾘｽﾄ１")) ->  | U122: =IF(S122="","",COUNTIF($S$7:S122,"該当２")) ->  | X122: =IF(V122="","",COUNTIF($V$7:V122,"該当３")) -> 
A123: 2210105001 | B123: 22 | C123: 101 | D123: 05 | E123: 001 | F123: 静岡県 | G123: 葵区(静岡市) | H123: 南藁科村 | I123: 牧ヶ谷 | M123: =IF(K123="","",COUNTIF($K$7:K123,"ﾘｽﾄ１")) ->  | U123: =IF(S123="","",COUNTIF($S$7:S123,"該当２")) ->  | X123: =IF(V123="","",COUNTIF($V$7:V123,"該当３")) -> 
A124: 2210105002 | B124: 22 | C124: 101 | D124: 05 | E124: 002 | F124: 静岡県 | G124: 葵区(静岡市) | H124: 南藁科村 | I124: 産女 | M124: =IF(K124="","",COUNTIF($K$7:K124,"ﾘｽﾄ１")) ->  | U124: =IF(S124="","",COUNTIF($S$7:S124,"該当２")) ->  | X124: =IF(V124="","",COUNTIF($V$7:V124,"該当３")) -> 
A125: 2210105003 | B125: 22 | C125: 101 | D125: 05 | E125: 003 | F125: 静岡県 | G125: 葵区(静岡市) | H125: 南藁科村 | I125: 吉津 | M125: =IF(K125="","",COUNTIF($K$7:K125,"ﾘｽﾄ１")) ->  | U125: =IF(S125="","",COUNTIF($S$7:S125,"該当２")) ->  | X125: =IF(V125="","",COUNTIF($V$7:V125,"該当３")) -> 
A126: 2210105004 | B126: 22 | C126: 101 | D126: 05 | E126: 004 | F126: 静岡県 | G126: 葵区(静岡市) | H126: 南藁科村 | I126: 飯間 | M126: =IF(K126="","",COUNTIF($K$7:K126,"ﾘｽﾄ１")) ->  | U126: =IF(S126="","",COUNTIF($S$7:S126,"該当２")) ->  | X126: =IF(V126="","",COUNTIF($V$7:V126,"該当３")) -> 
A127: 2210105005 | B127: 22 | C127: 101 | D127: 05 | E127: 005 | F127: 静岡県 | G127: 葵区(静岡市) | H127: 南藁科村 | I127: 小瀬戸 | M127: =IF(K127="","",COUNTIF($K$7:K127,"ﾘｽﾄ１")) ->  | U127: =IF(S127="","",COUNTIF($S$7:S127,"該当２")) ->  | X127: =IF(V127="","",COUNTIF($V$7:V127,"該当３")) -> 
A128: 2210105006 | B128: 22 | C128: 101 | D128: 05 | E128: 006 | F128: 静岡県 | G128: 葵区(静岡市) | H128: 南藁科村 | I128: 西又 | M128: =IF(K128="","",COUNTIF($K$7:K128,"ﾘｽﾄ１")) ->  | U128: =IF(S128="","",COUNTIF($S$7:S128,"該当２")) ->  | X128: =IF(V128="","",COUNTIF($V$7:V128,"該当３")) -> 
A129: 2210106000 | B129: 22 | C129: 101 | D129: 06 | E129: 000 | F129: 静岡県 | G129: 葵区(静岡市) | H129: 大河内村 | M129: =IF(K129="","",COUNTIF($K$7:K129,"ﾘｽﾄ１")) ->  | U129: =IF(S129="","",COUNTIF($S$7:S129,"該当２")) ->  | X129: =IF(V129="","",COUNTIF($V$7:V129,"該当３")) -> 
A130: 2210106001 | B130: 22 | C130: 101 | D130: 06 | E130: 001 | F130: 静岡県 | G130: 葵区(静岡市) | H130: 大河内村 | I130: 有東木 | M130: =IF(K130="","",COUNTIF($K$7:K130,"ﾘｽﾄ１")) ->  | U130: =IF(S130="","",COUNTIF($S$7:S130,"該当２")) ->  | X130: =IF(V130="","",COUNTIF($V$7:V130,"該当３")) -> 
A131: 2210106002 | B131: 22 | C131: 101 | D131: 06 | E131: 002 | F131: 静岡県 | G131: 葵区(静岡市) | H131: 大河内村 | I131: 渡 | M131: =IF(K131="","",COUNTIF($K$7:K131,"ﾘｽﾄ１")) ->  | U131: =IF(S131="","",COUNTIF($S$7:S131,"該当２")) ->  | X131: =IF(V131="","",COUNTIF($V$7:V131,"該当３")) -> 
A132: 2210106003 | B132: 22 | C132: 101 | D132: 06 | E132: 003 | F132: 静岡県 | G132: 葵区(静岡市) | H132: 大河内村 | I132: 中平 | M132: =IF(K132="","",COUNTIF($K$7:K132,"ﾘｽﾄ１")) ->  | U132: =IF(S132="","",COUNTIF($S$7:S132,"該当２")) ->  | X132: =IF(V132="","",COUNTIF($V$7:V132,"該当３")) -> 
A133: 2210106004 | B133: 22 | C133: 101 | D133: 06 | E133: 004 | F133: 静岡県 | G133: 葵区(静岡市) | H133: 大河内村 | I133: 平野 | M133: =IF(K133="","",COUNTIF($K$7:K133,"ﾘｽﾄ１")) ->  | U133: =IF(S133="","",COUNTIF($S$7:S133,"該当２")) ->  | X133: =IF(V133="","",COUNTIF($V$7:V133,"該当３")) -> 
A134: 2210106005 | B134: 22 | C134: 101 | D134: 06 | E134: 005 | F134: 静岡県 | G134: 葵区(静岡市) | H134: 大河内村 | I134: 横山 | M134: =IF(K134="","",COUNTIF($K$7:K134,"ﾘｽﾄ１")) ->  | U134: =IF(S134="","",COUNTIF($S$7:S134,"該当２")) ->  | X134: =IF(V134="","",COUNTIF($V$7:V134,"該当３")) -> 
A135: 2210106006 | B135: 22 | C135: 101 | D135: 06 | E135: 006 | F135: 静岡県 | G135: 葵区(静岡市) | H135: 大河内村 | I135: 蕨野 | M135: =IF(K135="","",COUNTIF($K$7:K135,"ﾘｽﾄ１")) ->  | U135: =IF(S135="","",COUNTIF($S$7:S135,"該当２")) ->  | X135: =IF(V135="","",COUNTIF($V$7:V135,"該当３")) -> 
A136: 2210106007 | B136: 22 | C136: 101 | D136: 06 | E136: 007 | F136: 静岡県 | G136: 葵区(静岡市) | H136: 大河内村 | I136: 相渕 | M136: =IF(K136="","",COUNTIF($K$7:K136,"ﾘｽﾄ１")) ->  | P136: =IF(O136="該当１",G136,"") ->  | Q136: =IF(O136="該当１","ﾘｽﾄ2","") ->  | R136: =IF(Q136="ﾘｽﾄ2",H136,"") ->  | T136: =IF(S136="該当２",H136,"") ->  | U136: =IF(S136="","",COUNTIF($S$7:S136,"該当２")) ->  | V136: =IF(AND($S$2=H136,E136>0,E136<998),"該当３","") ->  | W136: =IF(V136="該当３",I136,"") ->  | X136: =IF(V136="","",COUNTIF($V$7:V136,"該当３")) -> 
A137: 2210107000 | B137: 22 | C137: 101 | D137: 07 | E137: 000 | F137: 静岡県 | G137: 葵区(静岡市) | H137: 梅ヶ島村 | K137: =IF(AND($C137>0,$H137=""),"ﾘｽﾄ１","") ->  | L137: =IF(K137="ﾘｽﾄ１",G137,"") ->  | M137: =IF(K137="","",COUNTIF($K$7:K137,"ﾘｽﾄ１")) ->  | N137: =IF(AND(D137=0,E137>0),"同一区","") ->  | O137: =IF(AND(EXACT($K$2,G137),H137>0),"該当１","") ->  | S137: =IF(AND(Q137="ﾘｽﾄ2",OR(I137=0,AND(N137="同一区",E137=1))),"該当２","") ->  | U137: =IF(S137="","",COUNTIF($S$7:S137,"該当２")) ->  | X137: =IF(V137="","",COUNTIF($V$7:V137,"該当３")) -> 
A138: 2210107001 | B138: 22 | C138: 101 | D138: 07 | E138: 001 | F138: 静岡県 | G138: 葵区(静岡市) | H138: 梅ヶ島村 | I138: 藤代 | M138: =IF(K138="","",COUNTIF($K$7:K138,"ﾘｽﾄ１")) ->  | U138: =IF(S138="","",COUNTIF($S$7:S138,"該当２")) ->  | X138: =IF(V138="","",COUNTIF($V$7:V138,"該当３")) -> 
A139: 2210107002 | B139: 22 | C139: 101 | D139: 07 | E139: 002 | F139: 静岡県 | G139: 葵区(静岡市) | H139: 梅ヶ島村 | I139: 入島 | M139: =IF(K139="","",COUNTIF($K$7:K139,"ﾘｽﾄ１")) ->  | U139: =IF(S139="","",COUNTIF($S$7:S139,"該当２")) ->  | X139: =IF(V139="","",COUNTIF($V$7:V139,"該当３")) -> 
A140: 2210107003 | B140: 22 | C140: 101 | D140: 07 | E140: 003 | F140: 静岡県 | G140: 葵区(静岡市) | H140: 梅ヶ島村 | I140: 関の沢 | M140: =IF(K140="","",COUNTIF($K$7:K140,"ﾘｽﾄ１")) ->  | U140: =IF(S140="","",COUNTIF($S$7:S140,"該当２")) ->  | X140: =IF(V140="","",COUNTIF($V$7:V140,"該当３")) -> 
A141: 2210107004 | B141: 22 | C141: 101 | D141: 07 | E141: 004 | F141: 静岡県 | G141: 葵区(静岡市) | H141: 梅ヶ島村 | I141: 本村 | M141: =IF(K141="","",COUNTIF($K$7:K141,"ﾘｽﾄ１")) ->  | U141: =IF(S141="","",COUNTIF($S$7:S141,"該当２")) ->  | X141: =IF(V141="","",COUNTIF($V$7:V141,"該当３")) -> 
A142: 2210107005 | B142: 22 | C142: 101 | D142: 07 | E142: 005 | F142: 静岡県 | G142: 葵区(静岡市) | H142: 梅ヶ島村 | I142: 戸持 | M142: =IF(K142="","",COUNTIF($K$7:K142,"ﾘｽﾄ１")) ->  | U142: =IF(S142="","",COUNTIF($S$7:S142,"該当２")) ->  | X142: =IF(V142="","",COUNTIF($V$7:V142,"該当３")) -> 
A143: 2210107006 | B143: 22 | C143: 101 | D143: 07 | E143: 006 | F143: 静岡県 | G143: 葵区(静岡市) | H143: 梅ヶ島村 | I143: 大代 | M143: =IF(K143="","",COUNTIF($K$7:K143,"ﾘｽﾄ１")) ->  | U143: =IF(S143="","",COUNTIF($S$7:S143,"該当２")) ->  | X143: =IF(V143="","",COUNTIF($V$7:V143,"該当３")) -> 
A144: 2210107007 | B144: 22 | C144: 101 | D144: 07 | E144: 007 | F144: 静岡県 | G144: 葵区(静岡市) | H144: 梅ヶ島村 | I144: 赤水・温泉・新田 | M144: =IF(K144="","",COUNTIF($K$7:K144,"ﾘｽﾄ１")) ->  | U144: =IF(S144="","",COUNTIF($S$7:S144,"該当２")) ->  | X144: =IF(V144="","",COUNTIF($V$7:V144,"該当３")) -> 
A145: 2210108000 | B145: 22 | C145: 101 | D145: 08 | E145: 000 | F145: 静岡県 | G145: 葵区(静岡市) | H145: 玉川村 | M145: =IF(K145="","",COUNTIF($K$7:K145,"ﾘｽﾄ１")) ->  | U145: =IF(S145="","",COUNTIF($S$7:S145,"該当２")) ->  | X145: =IF(V145="","",COUNTIF($V$7:V145,"該当３")) -> 
A146: 2210108001 | B146: 22 | C146: 101 | D146: 08 | E146: 001 | F146: 静岡県 | G146: 葵区(静岡市) | H146: 玉川村 | I146: 中沢 | M146: =IF(K146="","",COUNTIF($K$7:K146,"ﾘｽﾄ１")) ->  | U146: =IF(S146="","",COUNTIF($S$7:S146,"該当２")) ->  | X146: =IF(V146="","",COUNTIF($V$7:V146,"該当３")) -> 
A147: 2210108002 | B147: 22 | C147: 101 | D147: 08 | E147: 002 | F147: 静岡県 | G147: 葵区(静岡市) | H147: 玉川村 | I147: 桂山 | M147: =IF(K147="","",COUNTIF($K$7:K147,"ﾘｽﾄ１")) ->  | U147: =IF(S147="","",COUNTIF($S$7:S147,"該当２")) ->  | X147: =IF(V147="","",COUNTIF($V$7:V147,"該当３")) -> 
A148: 2210108003 | B148: 22 | C148: 101 | D148: 08 | E148: 003 | F148: 静岡県 | G148: 葵区(静岡市) | H148: 玉川村 | I148: 唯間 | M148: =IF(K148="","",COUNTIF($K$7:K148,"ﾘｽﾄ１")) ->  | U148: =IF(S148="","",COUNTIF($S$7:S148,"該当２")) ->  | X148: =IF(V148="","",COUNTIF($V$7:V148,"該当３")) -> 
A149: 2210108004 | B149: 22 | C149: 101 | D149: 08 | E149: 004 | F149: 静岡県 | G149: 葵区(静岡市) | H149: 玉川村 | I149: 上助 | M149: =IF(K149="","",COUNTIF($K$7:K149,"ﾘｽﾄ１")) ->  | U149: =IF(S149="","",COUNTIF($S$7:S149,"該当２")) ->  | X149: =IF(V149="","",COUNTIF($V$7:V149,"該当３")) -> 
A150: 2210108005 | B150: 22 | C150: 101 | D150: 08 | E150: 005 | F150: 静岡県 | G150: 葵区(静岡市) | H150: 玉川村 | I150: 奥の原 | M150: =IF(K150="","",COUNTIF($K$7:K150,"ﾘｽﾄ１")) ->  | U150: =IF(S150="","",COUNTIF($S$7:S150,"該当２")) ->  | X150: =IF(V150="","",COUNTIF($V$7:V150,"該当３")) -> 
A151: 2210108006 | B151: 22 | C151: 101 | D151: 08 | E151: 006 | F151: 静岡県 | G151: 葵区(静岡市) | H151: 玉川村 | I151: 森腰 | M151: =IF(K151="","",COUNTIF($K$7:K151,"ﾘｽﾄ１")) ->  | U151: =IF(S151="","",COUNTIF($S$7:S151,"該当２")) ->  | X151: =IF(V151="","",COUNTIF($V$7:V151,"該当３")) -> 
A152: 2210108007 | B152: 22 | C152: 101 | D152: 08 | E152: 007 | F152: 静岡県 | G152: 葵区(静岡市) | H152: 玉川村 | I152: 長熊 | M152: =IF(K152="","",COUNTIF($K$7:K152,"ﾘｽﾄ１")) ->  | U152: =IF(S152="","",COUNTIF($S$7:S152,"該当２")) ->  | X152: =IF(V152="","",COUNTIF($V$7:V152,"該当３")) -> 
A153: 2210108008 | B153: 22 | C153: 101 | D153: 08 | E153: 008 | F153: 静岡県 | G153: 葵区(静岡市) | H153: 玉川村 | I153: 柿島 | M153: =IF(K153="","",COUNTIF($K$7:K153,"ﾘｽﾄ１")) ->  | U153: =IF(S153="","",COUNTIF($S$7:S153,"該当２")) ->  | X153: =IF(V153="","",COUNTIF($V$7:V153,"該当３")) -> 
A154: 2210108009 | B154: 22 | C154: 101 | D154: 08 | E154: 009 | F154: 静岡県 | G154: 葵区(静岡市) | H154: 玉川村 | I154: 長妻田 | M154: =IF(K154="","",COUNTIF($K$7:K154,"ﾘｽﾄ１")) ->  | U154: =IF(S154="","",COUNTIF($S$7:S154,"該当２")) ->  | X154: =IF(V154="","",COUNTIF($V$7:V154,"該当３")) -> 
A155: 2210108010 | B155: 22 | C155: 101 | D155: 08 | E155: 010 | F155: 静岡県 | G155: 葵区(静岡市) | H155: 玉川村 | I155: 油野 | M155: =IF(K155="","",COUNTIF($K$7:K155,"ﾘｽﾄ１")) ->  | U155: =IF(S155="","",COUNTIF($S$7:S155,"該当２")) ->  | X155: =IF(V155="","",COUNTIF($V$7:V155,"該当３")) -> 
A156: 2210108011 | B156: 22 | C156: 101 | D156: 08 | E156: 011 | F156: 静岡県 | G156: 葵区(静岡市) | H156: 玉川村 | I156: 上落合 | M156: =IF(K156="","",COUNTIF($K$7:K156,"ﾘｽﾄ１")) ->  | U156: =IF(S156="","",COUNTIF($S$7:S156,"該当２")) ->  | X156: =IF(V156="","",COUNTIF($V$7:V156,"該当３")) -> 
A157: 2210108012 | B157: 22 | C157: 101 | D157: 08 | E157: 012 | F157: 静岡県 | G157: 葵区(静岡市) | H157: 玉川村 | I157: 口仙俣 | M157: =IF(K157="","",COUNTIF($K$7:K157,"ﾘｽﾄ１")) ->  | U157: =IF(S157="","",COUNTIF($S$7:S157,"該当２")) ->  | X157: =IF(V157="","",COUNTIF($V$7:V157,"該当３")) -> 
A158: 2210108013 | B158: 22 | C158: 101 | D158: 08 | E158: 013 | F158: 静岡県 | G158: 葵区(静岡市) | H158: 玉川村 | I158: 奥仙俣 | M158: =IF(K158="","",COUNTIF($K$7:K158,"ﾘｽﾄ１")) ->  | U158: =IF(S158="","",COUNTIF($S$7:S158,"該当２")) ->  | X158: =IF(V158="","",COUNTIF($V$7:V158,"該当３")) -> 
A159: 2210108014 | B159: 22 | C159: 101 | D159: 08 | E159: 014 | F159: 静岡県 | G159: 葵区(静岡市) | H159: 玉川村 | I159: 平瀬 | M159: =IF(K159="","",COUNTIF($K$7:K159,"ﾘｽﾄ１")) ->  | U159: =IF(S159="","",COUNTIF($S$7:S159,"該当２")) ->  | X159: =IF(V159="","",COUNTIF($V$7:V159,"該当３")) -> 
A160: 2210108015 | B160: 22 | C160: 101 | D160: 08 | E160: 015 | F160: 静岡県 | G160: 葵区(静岡市) | H160: 玉川村 | I160: 川島 | M160: =IF(K160="","",COUNTIF($K$7:K160,"ﾘｽﾄ１")) ->  | U160: =IF(S160="","",COUNTIF($S$7:S160,"該当２")) ->  | X160: =IF(V160="","",COUNTIF($V$7:V160,"該当３")) -> 
A161: 2210108016 | B161: 22 | C161: 101 | D161: 08 | E161: 016 | F161: 静岡県 | G161: 葵区(静岡市) | H161: 玉川村 | I161: 大和 | M161: =IF(K161="","",COUNTIF($K$7:K161,"ﾘｽﾄ１")) ->  | U161: =IF(S161="","",COUNTIF($S$7:S161,"該当２")) ->  | X161: =IF(V161="","",COUNTIF($V$7:V161,"該当３")) -> 
A162: 2210108017 | B162: 22 | C162: 101 | D162: 08 | E162: 017 | F162: 静岡県 | G162: 葵区(静岡市) | H162: 玉川村 | I162: 内匠 | M162: =IF(K162="","",COUNTIF($K$7:K162,"ﾘｽﾄ１")) ->  | U162: =IF(S162="","",COUNTIF($S$7:S162,"該当２")) ->  | X162: =IF(V162="","",COUNTIF($V$7:V162,"該当３")) -> 
A163: 2210108018 | B163: 22 | C163: 101 | D163: 08 | E163: 018 | F163: 静岡県 | G163: 葵区(静岡市) | H163: 玉川村 | I163: 腰越 | M163: =IF(K163="","",COUNTIF($K$7:K163,"ﾘｽﾄ１")) ->  | U163: =IF(S163="","",COUNTIF($S$7:S163,"該当２")) ->  | X163: =IF(V163="","",COUNTIF($V$7:V163,"該当３")) -> 
A164: 2210108019 | B164: 22 | C164: 101 | D164: 08 | E164: 019 | F164: 静岡県 | G164: 葵区(静岡市) | H164: 玉川村 | I164: 大沢 | M164: =IF(K164="","",COUNTIF($K$7:K164,"ﾘｽﾄ１")) ->  | U164: =IF(S164="","",COUNTIF($S$7:S164,"該当２")) ->  | X164: =IF(V164="","",COUNTIF($V$7:V164,"該当３")) -> 
A165: 2210108020 | B165: 22 | C165: 101 | D165: 08 | E165: 020 | F165: 静岡県 | G165: 葵区(静岡市) | H165: 玉川村 | I165: 横沢 | M165: =IF(K165="","",COUNTIF($K$7:K165,"ﾘｽﾄ１")) ->  | U165: =IF(S165="","",COUNTIF($S$7:S165,"該当２")) ->  | X165: =IF(V165="","",COUNTIF($V$7:V165,"該当３")) -> 
A166: 2210109000 | B166: 22 | C166: 101 | D166: 09 | E166: 000 | F166: 静岡県 | G166: 葵区(静岡市) | H166: 井川村 | M166: =IF(K166="","",COUNTIF($K$7:K166,"ﾘｽﾄ１")) ->  | U166: =IF(S166="","",COUNTIF($S$7:S166,"該当２")) ->  | X166: =IF(V166="","",COUNTIF($V$7:V166,"該当３")) -> 
A167: 2210109001 | B167: 22 | C167: 101 | D167: 09 | E167: 001 | F167: 静岡県 | G167: 葵区(静岡市) | H167: 井川村 | I167: 西 | M167: =IF(K167="","",COUNTIF($K$7:K167,"ﾘｽﾄ１")) ->  | U167: =IF(S167="","",COUNTIF($S$7:S167,"該当２")) ->  | X167: =IF(V167="","",COUNTIF($V$7:V167,"該当３")) -> 
A168: 2210109002 | B168: 22 | C168: 101 | D168: 09 | E168: 002 | F168: 静岡県 | G168: 葵区(静岡市) | H168: 井川村 | I168: 門間 | M168: =IF(K168="","",COUNTIF($K$7:K168,"ﾘｽﾄ１")) ->  | U168: =IF(S168="","",COUNTIF($S$7:S168,"該当２")) ->  | X168: =IF(V168="","",COUNTIF($V$7:V168,"該当３")) -> 
A169: 2210109003 | B169: 22 | C169: 101 | D169: 09 | E169: 003 | F169: 静岡県 | G169: 葵区(静岡市) | H169: 井川村 | I169: 薬沢上 | M169: =IF(K169="","",COUNTIF($K$7:K169,"ﾘｽﾄ１")) ->  | U169: =IF(S169="","",COUNTIF($S$7:S169,"該当２")) ->  | X169: =IF(V169="","",COUNTIF($V$7:V169,"該当３")) -> 
A170: 2210109004 | B170: 22 | C170: 101 | D170: 09 | E170: 004 | F170: 静岡県 | G170: 葵区(静岡市) | H170: 井川村 | I170: 薬沢下 | M170: =IF(K170="","",COUNTIF($K$7:K170,"ﾘｽﾄ１")) ->  | U170: =IF(S170="","",COUNTIF($S$7:S170,"該当２")) ->  | X170: =IF(V170="","",COUNTIF($V$7:V170,"該当３")) -> 
A171: 2210109005 | B171: 22 | C171: 101 | D171: 09 | E171: 005 | F171: 静岡県 | G171: 葵区(静岡市) | H171: 井川村 | I171: 中野上 | M171: =IF(K171="","",COUNTIF($K$7:K171,"ﾘｽﾄ１")) ->  | U171: =IF(S171="","",COUNTIF($S$7:S171,"該当２")) ->  | X171: =IF(V171="","",COUNTIF($V$7:V171,"該当３")) -> 
A172: 2210109006 | B172: 22 | C172: 101 | D172: 09 | E172: 006 | F172: 静岡県 | G172: 葵区(静岡市) | H172: 井川村 | I172: 中野下 | M172: =IF(K172="","",COUNTIF($K$7:K172,"ﾘｽﾄ１")) ->  | U172: =IF(S172="","",COUNTIF($S$7:S172,"該当２")) ->  | X172: =IF(V172="","",COUNTIF($V$7:V172,"該当３")) -> 
A173: 2210109007 | B173: 22 | C173: 101 | D173: 09 | E173: 007 | F173: 静岡県 | G173: 葵区(静岡市) | H173: 井川村 | I173: 閑蔵 | M173: =IF(K173="","",COUNTIF($K$7:K173,"ﾘｽﾄ１")) ->  | U173: =IF(S173="","",COUNTIF($S$7:S173,"該当２")) ->  | X173: =IF(V173="","",COUNTIF($V$7:V173,"該当３")) -> 
A174: 2210109008 | B174: 22 | C174: 101 | D174: 09 | E174: 008 | F174: 静岡県 | G174: 葵区(静岡市) | H174: 井川村 | I174: 田代 | M174: =IF(K174="","",COUNTIF($K$7:K174,"ﾘｽﾄ１")) ->  | U174: =IF(S174="","",COUNTIF($S$7:S174,"該当２")) ->  | X174: =IF(V174="","",COUNTIF($V$7:V174,"該当３")) -> 
A175: 2210109009 | B175: 22 | C175: 101 | D175: 09 | E175: 009 | F175: 静岡県 | G175: 葵区(静岡市) | H175: 井川村 | I175: 小河内 | M175: =IF(K175="","",COUNTIF($K$7:K175,"ﾘｽﾄ１")) ->  | U175: =IF(S175="","",COUNTIF($S$7:S175,"該当２")) ->  | X175: =IF(V175="","",COUNTIF($V$7:V175,"該当３")) -> 
A176: 2210109010 | B176: 22 | C176: 101 | D176: 09 | E176: 010 | F176: 静岡県 | G176: 葵区(静岡市) | H176: 井川村 | I176: 大島 | M176: =IF(K176="","",COUNTIF($K$7:K176,"ﾘｽﾄ１")) ->  | U176: =IF(S176="","",COUNTIF($S$7:S176,"該当２")) ->  | X176: =IF(V176="","",COUNTIF($V$7:V176,"該当３")) -> 
A177: 2210109011 | B177: 22 | C177: 101 | D177: 09 | E177: 011 | F177: 静岡県 | G177: 葵区(静岡市) | H177: 井川村 | I177: 中山 | M177: =IF(K177="","",COUNTIF($K$7:K177,"ﾘｽﾄ１")) ->  | U177: =IF(S177="","",COUNTIF($S$7:S177,"該当２")) ->  | X177: =IF(V177="","",COUNTIF($V$7:V177,"該当３")) -> 
A178: 2210109012 | B178: 22 | C178: 101 | D178: 09 | E178: 012 | F178: 静岡県 | G178: 葵区(静岡市) | H178: 井川村 | I178: 上岩 | M178: =IF(K178="","",COUNTIF($K$7:K178,"ﾘｽﾄ１")) ->  | U178: =IF(S178="","",COUNTIF($S$7:S178,"該当２")) ->  | X178: =IF(V178="","",COUNTIF($V$7:V178,"該当３")) -> 
A179: 2210109013 | B179: 22 | C179: 101 | D179: 09 | E179: 013 | F179: 静岡県 | G179: 葵区(静岡市) | H179: 井川村 | I179: 口坂本 | M179: =IF(K179="","",COUNTIF($K$7:K179,"ﾘｽﾄ１")) ->  | U179: =IF(S179="","",COUNTIF($S$7:S179,"該当２")) ->  | X179: =IF(V179="","",COUNTIF($V$7:V179,"該当３")) -> 
A180: 2210109014 | B180: 22 | C180: 101 | D180: 09 | E180: 014 | F180: 静岡県 | G180: 葵区(静岡市) | H180: 井川村 | I180: 開拓 | M180: =IF(K180="","",COUNTIF($K$7:K180,"ﾘｽﾄ１")) ->  | U180: =IF(S180="","",COUNTIF($S$7:S180,"該当２")) ->  | X180: =IF(V180="","",COUNTIF($V$7:V180,"該当３")) -> 
A181: 2210109015 | B181: 22 | C181: 101 | D181: 09 | E181: 015 | F181: 静岡県 | G181: 葵区(静岡市) | H181: 井川村 | I181: 曙 | M181: =IF(K181="","",COUNTIF($K$7:K181,"ﾘｽﾄ１")) ->  | U181: =IF(S181="","",COUNTIF($S$7:S181,"該当２")) ->  | X181: =IF(V181="","",COUNTIF($V$7:V181,"該当３")) -> 
A182: 2210109016 | B182: 22 | C182: 101 | D182: 09 | E182: 016 | F182: 静岡県 | G182: 葵区(静岡市) | H182: 井川村 | I182: 西山平 | M182: =IF(K182="","",COUNTIF($K$7:K182,"ﾘｽﾄ１")) ->  | U182: =IF(S182="","",COUNTIF($S$7:S182,"該当２")) ->  | X182: =IF(V182="","",COUNTIF($V$7:V182,"該当３")) -> 
A183: 2210110000 | B183: 22 | C183: 101 | D183: 10 | E183: 000 | F183: 静岡県 | G183: 葵区(静岡市) | H183: 清沢村 | M183: =IF(K183="","",COUNTIF($K$7:K183,"ﾘｽﾄ１")) ->  | U183: =IF(S183="","",COUNTIF($S$7:S183,"該当２")) ->  | X183: =IF(V183="","",COUNTIF($V$7:V183,"該当３")) -> 
A184: 2210110001 | B184: 22 | C184: 101 | D184: 10 | E184: 001 | F184: 静岡県 | G184: 葵区(静岡市) | H184: 清沢村 | I184: 小島 | M184: =IF(K184="","",COUNTIF($K$7:K184,"ﾘｽﾄ１")) ->  | U184: =IF(S184="","",COUNTIF($S$7:S184,"該当２")) ->  | X184: =IF(V184="","",COUNTIF($V$7:V184,"該当３")) -> 
A185: 2210110002 | B185: 22 | C185: 101 | D185: 10 | E185: 002 | F185: 静岡県 | G185: 葵区(静岡市) | H185: 清沢村 | I185: 鍵穴 | M185: =IF(K185="","",COUNTIF($K$7:K185,"ﾘｽﾄ１")) ->  | U185: =IF(S185="","",COUNTIF($S$7:S185,"該当２")) ->  | X185: =IF(V185="","",COUNTIF($V$7:V185,"該当３")) -> 
A186: 2210110003 | B186: 22 | C186: 101 | D186: 10 | E186: 003 | F186: 静岡県 | G186: 葵区(静岡市) | H186: 清沢村 | I186: 寺島 | M186: =IF(K186="","",COUNTIF($K$7:K186,"ﾘｽﾄ１")) ->  | U186: =IF(S186="","",COUNTIF($S$7:S186,"該当２")) ->  | X186: =IF(V186="","",COUNTIF($V$7:V186,"該当３")) -> 
A187: 2210110004 | B187: 22 | C187: 101 | D187: 10 | E187: 004 | F187: 静岡県 | G187: 葵区(静岡市) | H187: 清沢村 | I187: 坂本 | M187: =IF(K187="","",COUNTIF($K$7:K187,"ﾘｽﾄ１")) ->  | U187: =IF(S187="","",COUNTIF($S$7:S187,"該当２")) ->  | X187: =IF(V187="","",COUNTIF($V$7:V187,"該当３")) -> 
A188: 2210110005 | B188: 22 | C188: 101 | D188: 10 | E188: 005 | F188: 静岡県 | G188: 葵区(静岡市) | H188: 清沢村 | I188: 赤沢 | M188: =IF(K188="","",COUNTIF($K$7:K188,"ﾘｽﾄ１")) ->  | U188: =IF(S188="","",COUNTIF($S$7:S188,"該当２")) ->  | X188: =IF(V188="","",COUNTIF($V$7:V188,"該当３")) -> 
A189: 2210110006 | B189: 22 | C189: 101 | D189: 10 | E189: 006 | F189: 静岡県 | G189: 葵区(静岡市) | H189: 清沢村 | I189: 昼居渡 | M189: =IF(K189="","",COUNTIF($K$7:K189,"ﾘｽﾄ１")) ->  | U189: =IF(S189="","",COUNTIF($S$7:S189,"該当２")) ->  | X189: =IF(V189="","",COUNTIF($V$7:V189,"該当３")) -> 
A190: 2210110007 | B190: 22 | C190: 101 | D190: 10 | E190: 007 | F190: 静岡県 | G190: 葵区(静岡市) | H190: 清沢村 | I190: 下相俣 | M190: =IF(K190="","",COUNTIF($K$7:K190,"ﾘｽﾄ１")) ->  | U190: =IF(S190="","",COUNTIF($S$7:S190,"該当２")) ->  | X190: =IF(V190="","",COUNTIF($V$7:V190,"該当３")) -> 
A191: 2210110008 | B191: 22 | C191: 101 | D191: 10 | E191: 008 | F191: 静岡県 | G191: 葵区(静岡市) | H191: 清沢村 | I191: 上相俣 | M191: =IF(K191="","",COUNTIF($K$7:K191,"ﾘｽﾄ１")) ->  | U191: =IF(S191="","",COUNTIF($S$7:S191,"該当２")) ->  | X191: =IF(V191="","",COUNTIF($V$7:V191,"該当３")) -> 
A192: 2210110009 | B192: 22 | C192: 101 | D192: 10 | E192: 009 | F192: 静岡県 | G192: 葵区(静岡市) | H192: 清沢村 | I192: 久能尾 | M192: =IF(K192="","",COUNTIF($K$7:K192,"ﾘｽﾄ１")) ->  | U192: =IF(S192="","",COUNTIF($S$7:S192,"該当２")) ->  | X192: =IF(V192="","",COUNTIF($V$7:V192,"該当３")) -> 
A193: 2210110010 | B193: 22 | C193: 101 | D193: 10 | E193: 010 | F193: 静岡県 | G193: 葵区(静岡市) | H193: 清沢村 | I193: 黒俣（中村） | M193: =IF(K193="","",COUNTIF($K$7:K193,"ﾘｽﾄ１")) ->  | U193: =IF(S193="","",COUNTIF($S$7:S193,"該当２")) ->  | X193: =IF(V193="","",COUNTIF($V$7:V193,"該当３")) -> 
A194: 2210110011 | B194: 22 | C194: 101 | D194: 10 | E194: 011 | F194: 静岡県 | G194: 葵区(静岡市) | H194: 清沢村 | I194: 三ッ野 | M194: =IF(K194="","",COUNTIF($K$7:K194,"ﾘｽﾄ１")) ->  | U194: =IF(S194="","",COUNTIF($S$7:S194,"該当２")) ->  | X194: =IF(V194="","",COUNTIF($V$7:V194,"該当３")) -> 
A195: 2210110012 | B195: 22 | C195: 101 | D195: 10 | E195: 012 | F195: 静岡県 | G195: 葵区(静岡市) | H195: 清沢村 | I195: 峰山 | M195: =IF(K195="","",COUNTIF($K$7:K195,"ﾘｽﾄ１")) ->  | U195: =IF(S195="","",COUNTIF($S$7:S195,"該当２")) ->  | X195: =IF(V195="","",COUNTIF($V$7:V195,"該当３")) -> 
A196: 2210110013 | B196: 22 | C196: 101 | D196: 10 | E196: 013 | F196: 静岡県 | G196: 葵区(静岡市) | H196: 清沢村 | I196: 中塚 | M196: =IF(K196="","",COUNTIF($K$7:K196,"ﾘｽﾄ１")) ->  | U196: =IF(S196="","",COUNTIF($S$7:S196,"該当２")) ->  | X196: =IF(V196="","",COUNTIF($V$7:V196,"該当３")) -> 
A197: 2210110014 | B197: 22 | C197: 101 | D197: 10 | E197: 014 | F197: 静岡県 | G197: 葵区(静岡市) | H197: 清沢村 | I197: 蛇塚 | M197: =IF(K197="","",COUNTIF($K$7:K197,"ﾘｽﾄ１")) ->  | U197: =IF(S197="","",COUNTIF($S$7:S197,"該当２")) ->  | X197: =IF(V197="","",COUNTIF($V$7:V197,"該当３")) -> 
A198: 2210110015 | B198: 22 | C198: 101 | D198: 10 | E198: 015 | F198: 静岡県 | G198: 葵区(静岡市) | H198: 清沢村 | I198: 杉尾 | M198: =IF(K198="","",COUNTIF($K$7:K198,"ﾘｽﾄ１")) ->  | U198: =IF(S198="","",COUNTIF($S$7:S198,"該当２")) ->  | X198: =IF(V198="","",COUNTIF($V$7:V198,"該当３")) -> 
A199: 2210111000 | B199: 22 | C199: 101 | D199: 11 | E199: 000 | F199: 静岡県 | G199: 葵区(静岡市) | H199: 大川村 | M199: =IF(K199="","",COUNTIF($K$7:K199,"ﾘｽﾄ１")) ->  | U199: =IF(S199="","",COUNTIF($S$7:S199,"該当２")) ->  | X199: =IF(V199="","",COUNTIF($V$7:V199,"該当３")) -> 
A200: 2210111001 | B200: 22 | C200: 101 | D200: 11 | E200: 001 | F200: 静岡県 | G200: 葵区(静岡市) | H200: 大川村 | I200: 坂ノ上 | M200: =IF(K200="","",COUNTIF($K$7:K200,"ﾘｽﾄ１")) ->  | P200: =IF(O200="該当１",G200,"") ->  | Q200: =IF(O200="該当１","ﾘｽﾄ2","") ->  | R200: =IF(Q200="ﾘｽﾄ2",H200,"") ->  | T200: =IF(S200="該当２",H200,"") ->  | U200: =IF(S200="","",COUNTIF($S$7:S200,"該当２")) ->  | V200: =IF(AND($S$2=H200,E200>0,E200<998),"該当３","") ->  | W200: =IF(V200="該当３",I200,"") ->  | X200: =IF(V200="","",COUNTIF($V$7:V200,"該当３")) -> 
... 2050 more rows

Sheet 2010年 (hidden)
A1: 都道府県名(支庁名） | B1: 市区町村名 | C1: 旧市区町村名 | D1: 農業集落名 | E1: 総農家数 | M1: (７）年齢別の農業従事者数(自営農業に従事した世帯員数）男女計 | AC1: 農業従事者の平均年齢 | AF1: 年齢別の農業就業人口(自営農業に主として従事した世帯員数）男女計 | AV1: 農業就業人口 | AY1: (11）年齢別の基幹的農業従事者数(自営農業に主として従事した世帯員のうち仕事が主の世帯員数）男女計 | BO1: 基幹的農業従事者 平均年齢 | BR1: (２）年齢別の経営者数男女計 | CH1: ウ後継者がいる経営者 | CV1: 家族経営構成別農家数 | DC1: (６）過去１年間の生活の主な状態別世帯員数 | DH1: 男女計 | DK1: (４）農産物販売金額１位の部門別農家数 | EA1: (１）経営耕地の状況 | EF1: (６）過去１年間の生活の主な状態別世帯員数(男) | EN1: (６）過去１年間の生活の主な状態別世帯員数(女)
F2: 販売農家数 | L2: 自給的農家 | M2: 計 | N2: 15～19歳 | O2: 20～24 | P2: 25～29 | Q2: 30～34 | R2: 35～39 | S2: 40～44 | T2: 45～49 | U2: 50～54 | V2: 55～59 | W2: 60～64 | X2: 65～69 | Y2: 70～74 | Z2: 75～79 | AA2: 80～84 | AB2: 85歳以上 | AC2: 男女計 | AD2: 男 | AE2: 女 | AF2: 計 | AG2: 15～19歳 | AH2: 20～24 | AI2: 25～29 | AJ2: 30～34 | AK2: 35～39 | AL2: 40～44 | AM2: 45～49 | AN2: 50～54 | AO2: 55～59 | AP2: 60～64 | AQ2: 65～69 | AR2: 70～74 | AS2: 75～79 | AT2: 80～84 | AU2: 85歳以上 | AY2: 計 | AZ2: 15～19歳 | BA2: 20～24 | BB2: 25～29 | BC2: 30～34 | BD2: 35～39 | BE2: 40～44 | BF2: 45～49 | BG2: 50～54 | BH2: 55～59 | BI2: 60～64 | BJ2: 65～69 | BK2: 70～74 | BL2: 75～79 | BM2: 80～84 | BN2: 85歳以上 | BR2: 計 | BS2: 15～19歳 | BT2: 20～24 | BU2: 25～29 | BV2: 30～34 | BW2: 35～39 | BX2: 40～44 | BY2: 45～49 | BZ2: 50～54 | CA2: 55～59 | CB2: 60～64 | CC2: 65～69 | CD2: 70～74 | CE2: 75～79 | CF2: 80～84 | CG2: 85歳以上 | CH2: 計 | CI2: 30歳未満 | CJ2: 30～34 | CK2: 35～39 | CL2: 40～44 | CM2: 45～49 | CN2: 50～54 | CO2: 55～59 | CP2: 60～64 | CQ2: 65～69 | CR2: 70～74 | CS2: 75～79 | CT2: 80～84 | CU2: 85歳以上 | DD2: 主に仕事 | DN2: 雑穀・ | EA2: 経営耕地 のある 農家数 | EB2: 経営耕地 総面積 | EC2: 田 | ED2: 畑(樹園地を除く） | EE2: 樹園地 | EF2: 計 | EG2: 主に仕事 | EK2: 主に家事 ・育児 | EL2: 学生 | EM2: その他 | EN2: 計 | EO2: 主に仕事 | ES2: 主に家事 ・育児 | ET2: 学生 | EU2: その他
G3: 主業農家 | I3: 準主業農家 | K3: 副業的農家 | AV3: 男女計の 平均年齢 | AW3: 男の 平均年齢 | AX3: 女の 平均年齢 | BO3: 男女計 | BP3: 男 | BQ3: 女 | DC3: 計 | DD3: 小計 | DE3: 自営農業 が主 | DF3: 勤務が主 | DG3: 農業以外の | DH3: 主に家事 ・育児 | DI3: 学生 | DJ3: その他 | DK3: 計 | DL3: 稲作 | DM3: 麦類作 | DN3: いも類 | DO3: 工芸農作物 | DP3: 露地野菜 | DQ3: 施設野菜 | DR3: 果樹類 | DS3: 花き・花木 | DT3: その他の 作物 | DU3: 酪農 | DV3: 肉用牛 | DW3: 養豚 | DX3: 養鶏 | DY3: 養蚕 | DZ3: その他の 畜産 | EG3: 小計 | EH3: 自営農業 が主 | EI3: 勤務が主 | EJ3: 農業以外の 自営業が主 | EO3: 小計 | EP3: 自営農業 が主 | EQ3: 勤務が主 | ER3: 農業以外の 自営業が主
H4: 65歳未満の農業専従者がいる | J4: 65歳未満の農業専従者がいる | DG4: 自営業が主 | DN4: ・豆類
A6: 静岡県 | E6: 70,283 | F6: 38,969 | G6: 10,516 | H6: 9,452 | I6: 9,292 | J6: 3,989 | K6: 19,161 | L6: 31,314 | M6: 112,638 | N6: 1,409 | O6: 2,524 | P6: 3,308 | Q6: 3,725 | R6: 4,426 | S6: 5,073 | T6: 7,545 | U6: 10,405 | V6: 12,582 | W6: 12,667 | X6: 11,212 | Y6: 12,259 | Z6: 12,060 | AA6: 9,185 | AB6: 4,258 | AC6: 59.9 | AD6: 58.6 | AE6: 61.4 | AF6: 70,867 | AG6: 425 | AH6: 407 | AI6: 622 | AJ6: 913 | AK6: 1,267 | AL6: 1,484 | AM6: 2,542 | AN6: 4,176 | AO6: 6,349 | AP6: 8,369 | AQ6: 9,485 | AR6: 11,235 | AS6: 11,317 | AT6: 8,510 | AU6: 3,766 | AV6: 66.8 | AW6: 66.6 | AX6: 66.9 | AY6: 63,958 | AZ6: 12 | BA6: 183 | BB6: 505 | BC6: 709 | BD6: 997 | BE6: 1,222 | BF6: 2,236 | BG6: 3,830 | BH6: 5,889 | BI6: 7,845 | BJ6: 8,900 | BK6: 10,599 | BL6: 10,522 | BM6: 7,577 | BN6: 2,932 | BO6: 67.3 | BP6: 66.9 | BQ6: 67.7 | BR6: 38,969 | BS6: - | BT6: 3 | BU6: 27 | BV6: 101 | BW6: 306 | BX6: 681 | BY6: 1,718 | BZ6: 3,392 | CA6: 5,354 | CB6: 6,339 | CC6: 5,309 | CD6: 5,773 | CE6: 5,369 | CF6: 3,364 | CG6: 1,233 | CH6: 20,806 | CI6: 2 | CJ6: 6 | CK6: 18 | CL6: 89 | CM6: 500 | CN6: 1,405 | CO6: 2,557 | CP6: 3,292 | CQ6: 2,801 | CR6: 3,300 | CS6: 3,412 | CT6: 2,425 | CU6: 999 | DC6: 153,052 | DD6: 117,934 | DE6: 63,991 | DF6: 49,703 | DG6: 4,240 | DH6: 11,354 | DI6: 11,009 | DJ6: 12,755 | DK6: 35,775 | DL6: 7,780 | DM6: 11 | DN6: 461 | DO6: 10,881 | DP6: 3,895 | DQ6: 3,739 | DR6: 5,805 | DS6: 2,240 | DT6: 361 | DU6: 282 | DV6: 123 | DW6: 100 | DX6: 82 | DY6: - | DZ6: 15 | EA6: 38,759 | EB6: 4,358,268 | EC6: 1,607,725 | ED6: 731,207 | EE6: 2,019,336 | EF6: 75,061 | EG6: 65,035 | EH6: 33,836 | EI6: 28,498 | EJ6: 2,701 | EK6: 146 | EL6: 5,617 | EM6: 4,263 | EN6: 77,991 | EO6: 52,899 | EP6: 30,155 | EQ6: 21,205 | ER6: 1,539 | ES6: 11,208 | ET6: 5,392 | EU6: 8,492
A7: 静岡県 | B7: 静岡市 | E7: 7,969 | F7: 4,476 | G7: 1,423 | H7: 1,260 | I7: 1,171 | J7: 569 | K7: 1,882 | L7: 3,493 | M7: 12,049 | N7: 124 | O7: 214 | P7: 283 | Q7: 296 | R7: 369 | S7: 511 | T7: 848 | U7: 1,146 | V7: 1,421 | W7: 1,364 | X7: 1,344 | Y7: 1,453 | Z7: 1,320 | AA7: 948 | AB7: 408 | AC7: 60.9 | AD7: 60.0 | AE7: 61.9 | AF7: 8,455 | AG7: 51 | AH7: 36 | AI7: 74 | AJ7: 94 | AK7: 116 | AL7: 182 | AM7: 340 | AN7: 556 | AO7: 886 | AP7: 1,039 | AQ7: 1,192 | AR7: 1,354 | AS7: 1,258 | AT7: 897 | AU7: 380 | AV7: 66.1 | AW7: 65.9 | AX7: 66.4 | AY7: 7,593 | AZ7: 1 | BA7: 18 | BB7: 68 | BC7: 75 | BD7: 86 | BE7: 133 | BF7: 275 | BG7: 505 | BH7: 836 | BI7: 980 | BJ7: 1,126 | BK7: 1,270 | BL7: 1,144 | BM7: 787 | BN7: 289 | BO7: 66.6 | BP7: 66.0 | BQ7: 67.2 | BR7: 4,476 | BS7: - | BT7: - | BU7: 2 | BV7: 12 | BW7: 26 | BX7: 73 | BY7: 202 | BZ7: 403 | CA7: 644 | CB7: 662 | CC7: 659 | CD7: 706 | CE7: 589 | CF7: 360 | CG7: 138 | CH7: 1,805 | CI7: - | CJ7: - | CK7: 2 | CL7: 6 | CM7: 53 | CN7: 117 | CO7: 210 | CP7: 239 | CQ7: 240 | CR7: 296 | CS7: 303 | CT7: 232 | CU7: 107 | DC7: 16,658 | DD7: 12,624 | DE7: 7,595 | DF7: 4,583 | DG7: 446 | DH7: 1,306 | DI7: 1,230 | DJ7: 1,498 | DK7: 4,331 | DL7: 193 | DM7: - | DN7: 9 | DO7: 1,587 | DP7: 247 | DQ7: 677 | DR7: 1,332 | DS7: 206 | DT7: 30 | DU7: 15 | DV7: 7 | DW7: 2 | DX7: 23 | DY7: - | DZ7: 3 | EA7: 4,461 | EB7: 372,877 | EC7: 53,550 | ED7: 45,015 | EE7: 274,312 | EF7: 8,034 | EG7: 6,955 | EH7: 4,132 | EI7: 2,548 | EJ7: 275 | EK7: 14 | EL7: 596 | EM7: 469 | EN7: 8,624 | EO7: 5,669 | EP7: 3,463 | EQ7: 2,035 | ER7: 171 | ES7: 1,292 | ET7: 634 | EU7: 1,029
A8: 静岡県 | B8: 葵区(静岡市) | E8: 3,376 | F8: 1,889 | G8: 589 | H8: 518 | I8: 488 | J8: 223 | K8: 812 | L8: 1,487 | M8: 5,139 | N8: 52 | O8: 101 | P8: 129 | Q8: 122 | R8: 168 | S8: 211 | T8: 370 | U8: 498 | V8: 662 | W8: 558 | X8: 514 | Y8: 631 | Z8: 540 | AA8: 402 | AB8: 181 | AC8: 60.5 | AD8: 59.9 | AE8: 61.3 | AF8: 3,459 | AG8: 13 | AH8: 15 | AI8: 18 | AJ8: 34 | AK8: 44 | AL8: 61 | AM8: 130 | AN8: 237 | AO8: 395 | AP8: 416 | AQ8: 446 | AR8: 582 | AS8: 514 | AT8: 381 | AU8: 173 | AV8: 66.7 | AW8: 66.6 | AX8: 66.8 | AY8: 3,109 | AZ8: - | BA8: 7 | BB8: 17 | BC8: 26 | BD8: 34 | BE8: 40 | BF8: 102 | BG8: 216 | BH8: 372 | BI8: 393 | BJ8: 420 | BK8: 548 | BL8: 469 | BM8: 342 | BN8: 123 | BO8: 67.0 | BP8: 66.7 | BQ8: 67.4 | BR8: 1,889 | BS8: - | BT8: - | BU8: - | BV8: 2 | BW8: 6 | BX8: 27 | BY8: 95 | BZ8: 171 | CA8: 306 | CB8: 290 | CC8: 248 | CD8: 309 | CE8: 240 | CF8: 142 | CG8: 53 | CH8: 738 | CI8: - | CJ8: - | CK8: 1 | CL8: 3 | CM8: 24 | CN8: 44 | CO8: 86 | CP8: 95 | CQ8: 102 | CR8: 125 | CS8: 124 | CT8: 92 | CU8: 42 | DC8: 6,919 | DD8: 5,260 | DE8: 3,109 | DF8: 1,971 | DG8: 180 | DH8: 496 | DI8: 484 | DJ8: 679 | DK8: 1,808 | DL8: 102 | DM8: - | DN8: 2 | DO8: 1,133 | DP8: 101 | DQ8: 190 | DR8: 194 | DS8: 48 | DT8: 16 | DU8: 9 | DV8: 6 | DW8: - | DX8: 7 | DY8: - | DZ8: - | EA8: 1,885 | EB8: 162,581 | EC8: 32,820 | ED8: 12,752 | EE8: 117,009 | EF8: 3,345 | EG8: 2,905 | EH8: 1,671 | EI8: 1,115 | EJ8: 119 | EK8: 7 | EL8: 227 | EM8: 206 | EN8: 3,574 | EO8: 2,355 | EP8: 1,438 | EQ8: 856 | ER8: 61 | ES8: 489 | ET8: 257 | EU8: 473
A9: 静岡県 | B9: 葵区(静岡市) | C9: 静岡市２－１ | E9: 1,174 | F9: 638 | G9: 199 | H9: 185 | I9: 167 | J9: 90 | K9: 272 | L9: 536 | M9: 1,751 | N9: 16 | O9: 32 | P9: 50 | Q9: 45 | R9: 52 | S9: 72 | T9: 119 | U9: 186 | V9: 211 | W9: 180 | X9: 176 | Y9: 215 | Z9: 193 | AA9: 152 | AB9: 52 | AC9: 60.7 | AD9: 60.1 | AE9: 61.3 | AF9: 1,240 | AG9: 4 | AH9: 10 | AI9: 6 | AJ9: 16 | AK9: 12 | AL9: 24 | AM9: 50 | AN9: 101 | AO9: 130 | AP9: 144 | AQ9: 161 | AR9: 203 | AS9: 184 | AT9: 145 | AU9: 50 | AV9: 66.3 | AW9: 66.4 | AX9: 66.1 | AY9: 1,134 | AZ9: - | BA9: 3 | BB9: 6 | BC9: 12 | BD9: 10 | BE9: 18 | BF9: 37 | BG9: 95 | BH9: 120 | BI9: 138 | BJ9: 153 | BK9: 198 | BL9: 170 | BM9: 135 | BN9: 39 | BO9: 66.9 | BP9: 66.5 | BQ9: 67.3 | BR9: 638 | BS9: - | BT9: - | BU9: - | BV9: 1 | BW9: 2 | BX9: 11 | BY9: 27 | BZ9: 64 | CA9: 91 | CB9: 99 | CC9: 77 | CD9: 106 | CE9: 84 | CF9: 55 | CG9: 21 | CH9: 264 | CI9: - | CJ9: - | CK9: 1 | CL9: 1 | CM9: 6 | CN9: 16 | CO9: 21 | CP9: 34 | CQ9: 31 | CR9: 44 | CS9: 50 | CT9: 40 | CU9: 20 | DC9: 2,490 | DD9: 1,890 | DE9: 1,134 | DF9: 711 | DG9: 45 | DH9: 178 | DI9: 201 | DJ9: 221 | DK9: 608 | DL9: 73 | DM9: - | DN9: 1 | DO9: 166 | DP9: 48 | DQ9: 106 | DR9: 169 | DS9: 35 | DT9: 5 | DU9: 2 | DV9: 1 | DW9: - | DX9: 2 | DY9: - | DZ9: - | EA9: 638 | EB9: 51,230 | EC9: 14,800 | ED9: 5,597 | EE9: 30,833 | EF9: 1,202 | EG9: 1,041 | EH9: 601 | EI9: 411 | EJ9: 29 | EK9: 1 | EL9: 94 | EM9: 66 | EN9: 1,288 | EO9: 849 | EP9: 533 | EQ9: 300 | ER9: 16 | ES9: 177 | ET9: 107 | EU9: 155
A10: 静岡県 | B10: 葵区(静岡市) | C10: 静岡市２－１ | D10: 田中 | E10: 8 | F10: 3 | G10: - | H10: - | I10: - | J10: - | K10: 3 | L10: 5 | M10: 7 | N10: - | O10: - | P10: - | Q10: - | R10: - | S10: - | T10: - | U10: 1 | V10: - | W10: - | X10: - | Y10: 1 | Z10: 5 | AA10: - | AB10: - | AC10: 73.0 | AD10: 77.3 | AE10: 69.8 | AF10: 6 | AG10: - | AH10: - | AI10: - | AJ10: - | AK10: - | AL10: - | AM10: - | AN10: - | AO10: - | AP10: - | AQ10: - | AR10: 1 | AS10: 5 | AT10: - | AU10: - | AV10: 76.2 | AW10: 77.3 | AX10: 75.0 | AY10: 6 | AZ10: - | BA10: - | BB10: - | BC10: - | BD10: - | BE10: - | BF10: - | BG10: - | BH10: - | BI10: - | BJ10: - | BK10: 1 | BL10: 5 | BM10: - | BN10: - | BO10: 76.2 | BP10: 77.3 | BQ10: 75.0 | BR10: 3 | BS10: - | BT10: - | BU10: - | BV10: - | BW10: - | BX10: - | BY10: - | BZ10: - | CA10: - | CB10: - | CC10: - | CD10: - | CE10: 3 | CF10: - | CG10: - | CH10: 2 | CI10: - | CJ10: - | CK10: - | CL10: - | CM10: - | CN10: - | CO10: - | CP10: - | CQ10: - | CR10: - | CS10: 2 | CT10: - | CU10: - | DC10: 13 | DD10: 11 | DE10: 6 | DF10: 5 | DG10: - | DH10: 1 | DI10: 1 | DJ10: - | DK10: 3 | DL10: 2 | DM10: - | DN10: - | DO10: - | DP10: - | DQ10: 1 | DR10: - | DS10: - | DT10: - | DU10: - | DV10: - | DW10: - | DX10: - | DY10: - | DZ10: - | EA10: 3 | EB10: 353 | EC10: 239 | ED10: 111 | EE10: 3 | EF10: 4 | EG10: 3 | EH10: 3 | EI10: - | EJ10: - | EK10: 1 | EL10: - | EM10: - | EN10: 9 | EO10: 8 | EP10: 3 | EQ10: 5 | ER10: - | ES10: - | ET10: 1 | EU10: -
A11: 静岡県 | B11: 葵区(静岡市) | C11: 静岡市２－１ | D11: 柳新田 | E11: 34 | F11: 17 | G11: 3 | H11: 3 | I11: 3 | J11: 3 | K11: 11 | L11: 17 | M11: 40 | N11: - | O11: - | P11: - | Q11: 2 | R11: 1 | S11: 2 | T11: 1 | U11: 3 | V11: 2 | W11: 7 | X11: 6 | Y11: 4 | Z11: 6 | AA11: 3 | AB11: 3 | AC11: 64.7 | AD11: 61.4 | AE11: 68.7 | AF11: 27 | AG11: - | AH11: - | AI11: - | AJ11: 1 | AK11: - | AL11: 1 | AM11: - | AN11: 1 | AO11: 2 | AP11: 4 | AQ11: 5 | AR11: 4 | AS11: 5 | AT11: 1 | AU11: 3 | AV11: 68.2 | AW11: 66.9 | AX11: 69.7 | AY11: 23 | AZ11: - | BA11: - | BB11: - | BC11: 1 | BD11: - | BE11: - | BF11: - | BG11: 1 | BH11: 2 | BI11: 3 | BJ11: 4 | BK11: 4 | BL11: 5 | BM11: - | BN11: 3 | BO11: 69.0 | BP11: 68.6 | BQ11: 69.4 | BR11: 17 | BS11: - | BT11: - | BU11: - | BV11: 1 | BW11: - | BX11: - | BY11: - | BZ11: 2 | CA11: - | CB11: 4 | CC11: 2 | CD11: 3 | CE11: 3 | CF11: - | CG11: 2 | CH11: 9 | CI11: - | CJ11: - | CK11: - | CL11: - | CM11: - | CN11: 1 | CO11: - | CP11: 2 | CQ11: 2 | CR11: 2 | CS11: - | CT11: - | CU11: 2 | DC11: 64 | DD11: 50 | DE11: 23 | DF11: 26 | DG11: 1 | DH11: 5 | DI11: 4 | DJ11: 5 | DK11: 13 | DL11: 5 | DM11: - | DN11: - | DO11: - | DP11: - | DQ11: 8 | DR11: - | DS11: - | DT11: - | DU11: - | DV11: - | DW11: - | DX11: - | DY11: - | DZ11: - | EA11: 17 | EB11: 1,046 | EC11: 777 | ED11: 190 | EE11: 79 | EF11: 29 | EG11: 25 | EH11: 13 | EI11: 12 | EJ11: - | EK11: - | EL11: 2 | EM11: 2 | EN11: 35 | EO11: 25 | EP11: 10 | EQ11: 14 | ER11: 1 | ES11: 5 | ET11: 2 | EU11: 3
A12: 静岡県 | B12: 葵区(静岡市) | C12: 静岡市２－１ | D12: 大岩下 | E12: 9 | F12: - | G12: - | H12: - | I12: - | J12: - | K12: - | L12: 9 | M12: - | N12: - | O12: - | P12: - | Q12: - | R12: - | S12: - | T12: - | U12: - | V12: - | W12: - | X12: - | Y12: - | Z12: - | AA12: - | AB12: - | AC12: … | AD12: … | AE12: … | AF12: - | AG12: - | AH12: - | AI12: - | AJ12: - | AK12: - | AL12: - | AM12: - | AN12: - | AO12: - | AP12: - | AQ12: - | AR12: - | AS12: - | AT12: - | AU12: - | AV12: … | AW12: … | AX12: … | AY12: - | AZ12: - | BA12: - | BB12: - | BC12: - | BD12: - | BE12: - | BF12: - | BG12: - | BH12: - | BI12: - | BJ12: - | BK12: - | BL12: - | BM12: - | BN12: - | BO12: … | BP12: … | BQ12: … | BR12: - | BS12: - | BT12: - | BU12: - | BV12: - | BW12: - | BX12: - | BY12: - | BZ12: - | CA12: - | CB12: - | CC12: - | CD12: - | CE12: - | CF12: - | CG12: - | CH12: - | CI12: - | CJ12: - | CK12: - | CL12: - | CM12: - | CN12: - | CO12: - | CP12: - | CQ12: - | CR12: - | CS12: - | CT12: - | CU12: - | DC12: - | DD12: - | DE12: - | DF12: - | DG12: - | DH12: - | DI12: - | DJ12: - | DK12: - | DL12: - | DM12: - | DN12: - | DO12: - | DP12: - | DQ12: - | DR12: - | DS12: - | DT12: - | DU12: - | DV12: - | DW12: - | DX12: - | DY12: - | DZ12: - | EA12: - | EB12: - | EC12: - | ED12: - | EE12: - | EF12: - | EG12: - | EH12: - | EI12: - | EJ12: - | EK12: - | EL12: - | EM12: - | EN12: - | EO12: - | EP12: - | EQ12: - | ER12: - | ES12: - | ET12: - | EU12: -
A13: 静岡県 | B13: 葵区(静岡市) | C13: 静岡市２－１ | D13: 本通・田町・安西・柳町 | E13: 1 | F13: 1 | G13: x | H13: x | I13: x | J13: x | K13: x | L13: - | M13: x | N13: x | O13: x | P13: x | Q13: x | R13: x | S13: x | T13: x | U13: x | V13: x | W13: x | X13: x | Y13: x | Z13: x | AA13: x | AB13: x | AC13: 58.5 | AD13: 59.0 | AE13: 58.0 | AF13: x | AG13: x | AH13: x | AI13: x | AJ13: x | AK13: x | AL13: x | AM13: x | AN13: x | AO13: x | AP13: x | AQ13: x | AR13: x | AS13: x | AT13: x | AU13: x | AV13: 58.5 | AW13: 59.0 | AX13: 58.0 | AY13: x | AZ13: x | BA13: x | BB13: x | BC13: x | BD13: x | BE13: x | BF13: x | BG13: x | BH13: x | BI13: x | BJ13: x | BK13: x | BL13: x | BM13: x | BN13: x | BO13: 58.5 | BP13: 59.0 | BQ13: 58.0 | BR13: 1 | BS13: - | BT13: - | BU13: - | BV13: - | BW13: - | BX13: - | BY13: - | BZ13: - | CA13: 1 | CB13: - | CC13: - | CD13: - | CE13: - | CF13: - | CG13: - | CH13: - | CI13: - | CJ13: - | CK13: - | CL13: - | CM13: - | CN13: - | CO13: - | CP13: - | CQ13: - | CR13: - | CS13: - | CT13: - | CU13: - | DC13: 2 | DD13: 2 | DE13: 2 | DF13: - | DG13: - | DH13: - | DI13: - | DJ13: - | DK13: 1 | DL13: 1 | DM13: - | DN13: - | DO13: - | DP13: - | DQ13: - | DR13: - | DS13: - | DT13: - | DU13: - | DV13: - | DW13: - | DX13: - | DY13: - | DZ13: - | EA13: 1 | EB13: 30 | EC13: 20 | ED13: 10 | EE13: - | EF13: 1 | EG13: 1 | EH13: 1 | EI13: - | EJ13: - | EK13: - | EL13: - | EM13: - | EN13: 1 | EO13: 1 | EP13: 1 | EQ13: - | ER13: - | ES13: - | ET13: - | EU13: -
A14: 静岡県 | B14: 葵区(静岡市) | C14: 静岡市２－１ | D14: 水道・井宮 | E14: 5 | F14: 2 | G14: x | H14: x | I14: x | J14: x | K14: x | L14: 3 | M14: x | N14: x | O14: x | P14: x | Q14: x | R14: x | S14: x | T14: x | U14: x | V14: x | W14: x | X14: x | Y14: x | Z14: x | AA14: x | AB14: x | AC14: 64.3 | AD14: 64.5 | AE14: 64.0 | AF14: x | AG14: x | AH14: x | AI14: x | AJ14: x | AK14: x | AL14: x | AM14: x | AN14: x | AO14: x | AP14: x | AQ14: x | AR14: x | AS14: x | AT14: x | AU14: x | AV14: 70.3 | AW14: 83.0 | AX14: 64.0 | AY14: x | AZ14: x | BA14: x | BB14: x | BC14: x | BD14: x | BE14: x | BF14: x | BG14: x | BH14: x | BI14: x | BJ14: x | BK14: x | BL14: x | BM14: x | BN14: x | BO14: 83.0 | BP14: 83.0 | BQ14: … | BR14: 2 | BS14: - | BT14: - | BU14: - | BV14: - | BW14: - | BX14: - | BY14: 1 | BZ14: - | CA14: - | CB14: - | CC14: - | CD14: - | CE14: - | CF14: 1 | CG14: - | CH14: 1 | CI14: - | CJ14: - | CK14: - | CL14: - | CM14: - | CN14: - | CO14: - | CP14: - | CQ14: - | CR14: - | CS14: - | CT14: 1 | CU14: - | DC14: 10 | DD14: 5 | DE14: 1 | DF14: 3 | DG14: 1 | DH14: 2 | DI14: 3 | DJ14: - | DK14: 2 | DL14: - | DM14: - | DN14: - | DO14: 1 | DP14: - | DQ14: - | DR14: 1 | DS14: - | DT14: - | DU14: - | DV14: - | DW14: - | DX14: - | DY14: - | DZ14: - | EA14: 2 | EB14: 64 | EC14: 20 | ED14: 11 | EE14: 33 | EF14: 6 | EG14: 4 | EH14: 1 | EI14: 2 | EJ14: 1 | EK14: - | EL14: 2 | EM14: - | EN14: 4 | EO14: 1 | EP14: - | EQ14: 1 | ER14: - | ES14: 2 | ET14: 1 | EU14: -
A15: 静岡県 | B15: 葵区(静岡市) | C15: 静岡市２－１ | D15: 安東の東 | E15: 3 | F15: 2 | G15: x | H15: x | I15: x | J15: x | K15: x | L15: 1 | M15: x | N15: x | O15: x | P15: x | Q15: x | R15: x | S15: x | T15: x | U15: x | V15: x | W15: x | X15: x | Y15: x | Z15: x | AA15: x | AB15: x | AC15: 66.6 | AD15: 65.5 | AE15: 68.0 | AF15: x | AG15: x | AH15: x | AI15: x | AJ15: x | AK15: x | AL15: x | AM15: x | AN15: x | AO15: x | AP15: x | AQ15: x | AR15: x | AS15: x | AT15: x | AU15: x | AV15: 72.4 | AW15: 69.3 | AX15: 77.0 | AY15: x | AZ15: x | BA15: x | BB15: x | BC15: x | BD15: x | BE15: x | BF15: x | BG15: x | BH15: x | BI15: x | BJ15: x | BK15: x | BL15: x | BM15: x | BN15: x | BO15: 71.5 | BP15: 69.3 | BQ15: 78.0 | BR15: 2 | BS15: - | BT15: - | BU15: - | BV15: - | BW15: - | BX15: - | BY15: 1 | BZ15: - | CA15: - | CB15: - | CC15: - | CD15: - | CE15: - | CF15: 1 | CG15: - | CH15: 1 | CI15: - | CJ15: - | CK15: - | CL15: - | CM15: - | CN15: - | CO15: - | CP15: - | CQ15: - | CR15: - | CS15: - | CT15: 1 | CU15: - | DC15: 9 | DD15: 6 | DE15: 4 | DF15: 2 | DG15: - | DH15: 2 | DI15: 1 | DJ15: - | DK15: 2 | DL15: - | DM15: - | DN15: - | DO15: - | DP15: 1 | DQ15: 1 | DR15: - | DS15: - | DT15: - | DU15: - | DV15: - | DW15: - | DX15: - | DY15: - | DZ15: - | EA15: 2 | EB15: 73 | EC15: 33 | ED15: 37 | EE15: 3 | EF15: 6 | EG15: 5 | EH15: 3 | EI15: 2 | EJ15: - | EK15: - | EL15: 1 | EM15: - | EN15: 3 | EO15: 1 | EP15: 1 | EQ15: - | ER15: - | ES15: 2 | ET15: - | EU15: -
A16: 静岡県 | B16: 葵区(静岡市) | C16: 静岡市２－１ | D16: 安東の西 | E16: 5 | F16: 2 | G16: x | H16: x | I16: x | J16: x | K16: x | L16: 3 | M16: x | N16: x | O16: x | P16: x | Q16: x | R16: x | S16: x | T16: x | U16: x | V16: x | W16: x | X16: x | Y16: x | Z16: x | AA16: x | AB16: x | AC16: 48.3 | AD16: 49.5 | AE16: 46.0 | AF16: x | AG16: x | AH16: x | AI16: x | AJ16: x | AK16: x | AL16: x | AM16: x | AN16: x | AO16: x | AP16: x | AQ16: x | AR16: x | AS16: x | AT16: x | AU16: x | AV16: 47.0 | AW16: 48.0 | AX16: 46.0 | AY16: x | AZ16: x | BA16: x | BB16: x | BC16: x | BD16: x | BE16: x | BF16: x | BG16: x | BH16: x | BI16: x | BJ16: x | BK16: x | BL16: x | BM16: x | BN16: x | BO16: 48.0 | BP16: 48.0 | BQ16: … | BR16: 2 | BS16: - | BT16: - | BU16: - | BV16: - | BW16: - | BX16: - | BY16: 1 | BZ16: 1 | CA16: - | CB16: - | CC16: - | CD16: - | CE16: - | CF16: - | CG16: - | CH16: - | CI16: - | CJ16: - | CK16: - | CL16: - | CM16: - | CN16: - | CO16: - | CP16: - | CQ16: - | CR16: - | CS16: - | CT16: - | CU16: - | DC16: 4 | DD16: 3 | DE16: 1 | DF16: 2 | DG16: - | DH16: 1 | DI16: - | DJ16: - | DK16: 2 | DL16: - | DM16: - | DN16: - | DO16: 1 | DP16: 1 | DQ16: - | DR16: - | DS16: - | DT16: - | DU16: - | DV16: - | DW16: - | DX16: - | DY16: - | DZ16: - | EA16: 2 | EB16: 138 | EC16: 30 | ED16: 5 | EE16: 103 | EF16: 2 | EG16: 2 | EH16: 1 | EI16: 1 | EJ16: - | EK16: - | EL16: - | EM16: - | EN16: 2 | EO16: 1 | EP16: - | EQ16: 1 | ER16: - | ES16: 1 | ET16: - | EU16: -
A17: 静岡県 | B17: 葵区(静岡市) | C17: 静岡市２－１ | D17: 大岩上 | E17: 10 | F17: 7 | G17: 3 | H17: 3 | I17: 2 | J17: - | K17: 2 | L17: 3 | M17: 24 | N17: 1 | O17: 1 | P17: 3 | Q17: - | R17: 1 | S17: - | T17: 3 | U17: 3 | V17: 2 | W17: 3 | X17: 1 | Y17: 1 | Z17: 2 | AA17: 3 | AB17: - | AC17: 53.8 | AD17: 45.8 | AE17: 61.9 | AF17: 15 | AG17: 1 | AH17: - | AI17: - | AJ17: - | AK17: - | AL17: - | AM17: 2 | AN17: 2 | AO17: 2 | AP17: 2 | AQ17: 1 | AR17: 1 | AS17: 1 | AT17: 3 | AU17: - | AV17: 60.9 | AW17: 54.2 | AX17: 65.3 | AY17: 10 | AZ17: - | BA17: - | BB17: - | BC17: - | BD17: - | BE17: - | BF17: 1 | BG17: 2 | BH17: 1 | BI17: 2 | BJ17: 1 | BK17: 1 | BL17: 1 | BM17: 1 | BN17: - | BO17: 62.2 | BP17: 61.2 | BQ17: 63.2 | BR17: 7 | BS17: - | BT17: - | BU17: - | BV17: - | BW17: - | BX17: - | BY17: - | BZ17: 3 | CA17: - | CB17: 2 | CC17: 1 | CD17: - | CE17: 1 | CF17: - | CG17: - | CH17: 6 | CI17: - | CJ17: - | CK17: - | CL17: - | CM17: - | CN17: 2 | CO17: - | CP17: 2 | CQ17: 1 | CR17: - | CS17: 1 | CT17: - | CU17: - | DC17: 31 | DD17: 19 | DE17: 10 | DF17: 9 | DG17: - | DH17: 4 | DI17: 4 | DJ17: 4 | DK17: 7 | DL17: 2 | DM17: - | DN17: - | DO17: - | DP17: - | DQ17: - | DR17: 5 | DS17: - | DT17: - | DU17: - | DV17: - | DW17: - | DX17: - | DY17: - | DZ17: - | EA17: 7 | EB17: 753 | EC17: 260 | ED17: 46 | EE17: 447 | EF17: 14 | EG17: 11 | EH17: 5 | EI17: 6 | EJ17: - | EK17: - | EL17: 2 | EM17: 1 | EN17: 17 | EO17: 8 | EP17: 5 | EQ17: 3 | ER17: - | ES17: 4 | ET17: 2 | EU17: 3
A18: 静岡県 | B18: 葵区(静岡市) | C18: 静岡市２－１ | D18: 長沼南 | E18: 4 | F18: 3 | G18: 1 | H18: 1 | I18: - | J18: - | K18: 2 | L18: 1 | M18: 6 | N18: - | O18: - | P18: - | Q18: - | R18: - | S18: - | T18: - | U18: - | V18: 1 | W18: - | X18: 1 | Y18: 1 | Z18: 3 | AA18: - | AB18: - | AC18: 70.7 | AD18: 68.7 | AE18: 72.7 | AF18: 6 | AG18: - | AH18: - | AI18: - | AJ18: - | AK18: - | AL18: - | AM18: - | AN18: - | AO18: 1 | AP18: - | AQ18: 1 | AR18: 1 | AS18: 3 | AT18: - | AU18: - | AV18: 70.7 | AW18: 68.7 | AX18: 72.7 | AY18: 4 | AZ18: - | BA18: - | BB18: - | BC18: - | BD18: - | BE18: - | BF18: - | BG18: - | BH18: 1 | BI18: - | BJ18: - | BK18: 1 | BL18: 2 | BM18: - | BN18: - | BO18: 70.3 | BP18: 64.5 | BQ18: 76.0 | BR18: 3 | BS18: - | BT18: - | BU18: - | BV18: - | BW18: - | BX18: - | BY18: - | BZ18: - | CA18: 1 | CB18: - | CC18: - | CD18: - | CE18: 1 | CF18: - | CG18: 1 | CH18: 1 | CI18: - | CJ18: - | CK18: - | CL18: - | CM18: - | CN18: - | CO18: - | CP18: - | CQ18: - | CR18: - | CS18: - | CT18: - | CU18: 1 | DC18: 8 | DD18: 4 | DE18: 4 | DF18: - | DG18: - | DH18: 2 | DI18: - | DJ18: 2 | DK18: 2 | DL18: - | DM18: - | DN18: - | DO18: - | DP18: 1 | DQ18: - | DR18: 1 | DS18: - | DT18: - | DU18: - | DV18: - | DW18: - | DX18: - | DY18: - | DZ18: - | EA18: 3 | EB18: 107 | EC18: 49 | ED18: 13 | EE18: 45 | EF18: 4 | EG18: 2 | EH18: 2 | EI18: - | EJ18: - | EK18: - | EL18: - | EM18: 2 | EN18: 4 | EO18: 2 | EP18: 2 | EQ18: - | ER18: - | ES18: 2 | ET18: - | EU18: -
A19: 静岡県 | B19: 葵区(静岡市) | C19: 静岡市２－１ | D19: 長沼北 | E19: 3 | F19: 1 | G19: x | H19: x | I19: x | J19: x | K19: x | L19: 2 | M19: x | N19: x | O19: x | P19: x | Q19: x | R19: x | S19: x | T19: x | U19: x | V19: x | W19: x | X19: x | Y19: x | Z19: x | AA19: x | AB19: x | AC19: 66.0 | AD19: 66.0 | AE19: … | AF19: x | AG19: x | AH19: x | AI19: x | AJ19: x | AK19: x | AL19: x | AM19: x | AN19: x | AO19: x | AP19: x | AQ19: x | AR19: x | AS19: x | AT19: x | AU19: x | AV19: 66.0 | AW19: 66.0 | AX19: … | AY19: x | AZ19: x | BA19: x | BB19: x | BC19: x | BD19: x | BE19: x | BF19: x | BG19: x | BH19: x | BI19: x | BJ19: x | BK19: x | BL19: x | BM19: x | BN19: x | BO19: … | BP19: … | BQ19: … | BR19: 1 | BS19: - | BT19: - | BU19: - | BV19: - | BW19: - | BX19: - | BY19: - | BZ19: - | CA19: - | CB19: - | CC19: 1 | CD19: - | CE19: - | CF19: - | CG19: - | CH19: - | CI19: - | CJ19: - | CK19: - | CL19: - | CM19: - | CN19: - | CO19: - | CP19: - | CQ19: - | CR19: - | CS19: - | CT19: - | CU19: - | DC19: 2 | DD19: 1 | DE19: - | DF19: 1 | DG19: - | DH19: - | DI19: - | DJ19: 1 | DK19: - | DL19: - | DM19: - | DN19: - | DO19: - | DP19: - | DQ19: - | DR19: - | DS19: - | DT19: - | DU19: - | DV19: - | DW19: - | DX19: - | DY19: - | DZ19: - | EA19: 1 | EB19: 30 | EC19: - | ED19: 8 | EE19: 22 | EF19: 1 | EG19: - | EH19: - | EI19: - | EJ19: - | EK19: - | EL19: - | EM19: 1 | EN19: 1 | EO19: 1 | EP19: - | EQ19: 1 | ER19: - | ES19: - | ET19: - | EU19: -
A20: 静岡県 | B20: 葵区(静岡市) | C20: 静岡市２－１ | D20: 古庄 | E20: 8 | F20: 3 | G20: - | H20: - | I20: - | J20: - | K20: 3 | L20: 5 | M20: 7 | N20: - | O20: - | P20: - | Q20: - | R20: - | S20: - | T20: - | U20: - | V20: - | W20: 1 | X20: 1 | Y20: 3 | Z20: - | AA20: 1 | AB20: 1 | AC20: 74.6 | AD20: 74.8 | AE20: 74.3 | AF20: 7 | AG20: - | AH20: - | AI20: - | AJ20: - | AK20: - | AL20: - | AM20: - | AN20: - | AO20: - | AP20: 1 | AQ20: 1 | AR20: 3 | AS20: - | AT20: 1 | AU20: 1 | AV20: 74.6 | AW20: 74.8 | AX20: 74.3 | AY20: 7 | AZ20: - | BA20: - | BB20: - | BC20: - | BD20: - | BE20: - | BF20: - | BG20: - | BH20: - | BI20: 1 | BJ20: 1 | BK20: 3 | BL20: - | BM20: 1 | BN20: 1 | BO20: 74.6 | BP20: 74.8 | BQ20: 74.3 | BR20: 3 | BS20: - | BT20: - | BU20: - | BV20: - | BW20: - | BX20: - | BY20: - | BZ20: - | CA20: - | CB20: - | CC20: - | CD20: 2 | CE20: - | CF20: - | CG20: 1 | CH20: 1 | CI20: - | CJ20: - | CK20: - | CL20: - | CM20: - | CN20: - | CO20: - | CP20: - | CQ20: - | CR20: - | CS20: - | CT20: - | CU20: 1 | DC20: 8 | DD20: 8 | DE20: 7 | DF20: 1 | DG20: - | DH20: - | DI20: - | DJ20: - | DK20: 3 | DL20: - | DM20: - | DN20: - | DO20: - | DP20: 1 | DQ20: - | DR20: 2 | DS20: - | DT20: - | DU20: - | DV20: - | DW20: - | DX20: - | DY20: - | DZ20: - | EA20: 3 | EB20: 146 | EC20: 35 | ED20: 48 | EE20: 63 | EF20: 4 | EG20: 4 | EH20: 4 | EI20: - | EJ20: - | EK20: - | EL20: - | EM20: - | EN20: 4 | EO20: 4 | EP20: 3 | EQ20: 1 | ER20: - | ES20: - | ET20: - | EU20: -
A21: 静岡県 | B21: 葵区(静岡市) | C21: 静岡市２－１ | D21: 柚木 | E21: 1 | F21: - | G21: - | H21: - | I21: - | J21: - | K21: - | L21: 1 | M21: - | N21: - | O21: - | P21: - | Q21: - | R21: - | S21: - | T21: - | U21: - | V21: - | W21: - | X21: - | Y21: - | Z21: - | AA21: - | AB21: - | AC21: … | AD21: … | AE21: … | AF21: - | AG21: - | AH21: - | AI21: - | AJ21: - | AK21: - | AL21: - | AM21: - | AN21: - | AO21: - | AP21: - | AQ21: - | AR21: - | AS21: - | AT21: - | AU21: - | AV21: … | AW21: … | AX21: … | AY21: - | AZ21: - | BA21: - | BB21: - | BC21: - | BD21: - | BE21: - | BF21: - | BG21: - | BH21: - | BI21: - | BJ21: - | BK21: - | BL21: - | BM21: - | BN21: - | BO21: … | BP21: … | BQ21: … | BR21: - | BS21: - | BT21: - | BU21: - | BV21: - | BW21: - | BX21: - | BY21: - | BZ21: - | CA21: - | CB21: - | CC21: - | CD21: - | CE21: - | CF21: - | CG21: - | CH21: - | CI21: - | CJ21: - | CK21: - | CL21: - | CM21: - | CN21: - | CO21: - | CP21: - | CQ21: - | CR21: - | CS21: - | CT21: - | CU21: - | DC21: - | DD21: - | DE21: - | DF21: - | DG21: - | DH21: - | DI21: - | DJ21: - | DK21: - | DL21: - | DM21: - | DN21: - | DO21: - | DP21: - | DQ21: - | DR21: - | DS21: - | DT21: - | DU21: - | DV21: - | DW21: - | DX21: - | DY21: - | DZ21: - | EA21: - | EB21: - | EC21: - | ED21: - | EE21: - | EF21: - | EG21: - | EH21: - | EI21: - | EJ21: - | EK21: - | EL21: - | EM21: - | EN21: - | EO21: - | EP21: - | EQ21: - | ER21: - | ES21: - | ET21: - | EU21: -
A22: 静岡県 | B22: 葵区(静岡市) | C22: 静岡市２－１ | D22: 瓦場 | E22: 6 | F22: - | G22: - | H22: - | I22: - | J22: - | K22: - | L22: 6 | M22: - | N22: - | O22: - | P22: - | Q22: - | R22: - | S22: - | T22: - | U22: - | V22: - | W22: - | X22: - | Y22: - | Z22: - | AA22: - | AB22: - | AC22: … | AD22: … | AE22: … | AF22: - | AG22: - | AH22: - | AI22: - | AJ22: - | AK22: - | AL22: - | AM22: - | AN22: - | AO22: - | AP22: - | AQ22: - | AR22: - | AS22: - | AT22: - | AU22: - | AV22: … | AW22: … | AX22: … | AY22: - | AZ22: - | BA22: - | BB22: - | BC22: - | BD22: - | BE22: - | BF22: - | BG22: - | BH22: - | BI22: - | BJ22: - | BK22: - | BL22: - | BM22: - | BN22: - | BO22: … | BP22: … | BQ22: … | BR22: - | BS22: - | BT22: - | BU22: - | BV22: - | BW22: - | BX22: - | BY22: - | BZ22: - | CA22: - | CB22: - | CC22: - | CD22: - | CE22: - | CF22: - | CG22: - | CH22: - | CI22: - | CJ22: - | CK22: - | CL22: - | CM22: - | CN22: - | CO22: - | CP22: - | CQ22: - | CR22: - | CS22: - | CT22: - | CU22: - | DC22: - | DD22: - | DE22: - | DF22: - | DG22: - | DH22: - | DI22: - | DJ22: - | DK22: - | DL22: - | DM22: - | DN22: - | DO22: - | DP22: - | DQ22: - | DR22: - | DS22: - | DT22: - | DU22: - | DV22: - | DW22: - | DX22: - | DY22: - | DZ22: - | EA22: - | EB22: - | EC22: - | ED22: - | EE22: - | EF22: - | EG22: - | EH22: - | EI22: - | EJ22: - | EK22: - | EL22: - | EM22: - | EN22: - | EO22: - | EP22: - | EQ22: - | ER22: - | ES22: - | ET22: - | EU22: -
A23: 静岡県 | B23: 葵区(静岡市) | C23: 静岡市２－１ | D23: 川辺２－１ | E23: - | F23: - | G23: - | H23: - | I23: - | J23: - | K23: - | L23: - | M23: - | N23: - | O23: - | P23: - | Q23: - | R23: - | S23: - | T23: - | U23: - | V23: - | W23: - | X23: - | Y23: - | Z23: - | AA23: - | AB23: - | AC23: … | AD23: … | AE23: … | AF23: - | AG23: - | AH23: - | AI23: - | AJ23: - | AK23: - | AL23: - | AM23: - | AN23: - | AO23: - | AP23: - | AQ23: - | AR23: - | AS23: - | AT23: - | AU23: - | AV23: … | AW23: … | AX23: … | AY23: - | AZ23: - | BA23: - | BB23: - | BC23: - | BD23: - | BE23: - | BF23: - | BG23: - | BH23: - | BI23: - | BJ23: - | BK23: - | BL23: - | BM23: - | BN23: - | BO23: … | BP23: … | BQ23: … | BR23: - | BS23: - | BT23: - | BU23: - | BV23: - | BW23: - | BX23: - | BY23: - | BZ23: - | CA23: - | CB23: - | CC23: - | CD23: - | CE23: - | CF23: - | CG23: - | CH23: - | CI23: - | CJ23: - | CK23: - | CL23: - | CM23: - | CN23: - | CO23: - | CP23: - | CQ23: - | CR23: - | CS23: - | CT23: - | CU23: - | DC23: - | DD23: - | DE23: - | DF23: - | DG23: - | DH23: - | DI23: - | DJ23: - | DK23: - | DL23: - | DM23: - | DN23: - | DO23: - | DP23: - | DQ23: - | DR23: - | DS23: - | DT23: - | DU23: - | DV23: - | DW23: - | DX23: - | DY23: - | DZ23: - | EA23: - | EB23: - | EC23: - | ED23: - | EE23: - | EF23: - | EG23: - | EH23: - | EI23: - | EJ23: - | EK23: - | EL23: - | EM23: - | EN23: - | EO23: - | EP23: - | EQ23: - | ER23: - | ES23: - | ET23: - | EU23: -
A24: 静岡県 | B24: 葵区(静岡市) | C24: 静岡市２－１ | D24: 南安倍２－１ | E24: 4 | F24: - | G24: - | H24: - | I24: - | J24: - | K24: - | L24: 4 | M24: - | N24: - | O24: - | P24: - | Q24: - | R24: - | S24: - | T24: - | U24: - | V24: - | W24: - | X24: - | Y24: - | Z24: - | AA24: - | AB24: - | AC24: … | AD24: … | AE24: … | AF24: - | AG24: - | AH24: - | AI24: - | AJ24: - | AK24: - | AL24: - | AM24: - | AN24: - | AO24: - | AP24: - | AQ24: - | AR24: - | AS24: - | AT24: - | AU24: - | AV24: … | AW24: … | AX24: … | AY24: - | AZ24: - | BA24: - | BB24: - | BC24: - | BD24: - | BE24: - | BF24: - | BG24: - | BH24: - | BI24: - | BJ24: - | BK24: - | BL24: - | BM24: - | BN24: - | BO24: … | BP24: … | BQ24: … | BR24: - | BS24: - | BT24: - | BU24: - | BV24: - | BW24: - | BX24: - | BY24: - | BZ24: - | CA24: - | CB24: - | CC24: - | CD24: - | CE24: - | CF24: - | CG24: - | CH24: - | CI24: - | CJ24: - | CK24: - | CL24: - | CM24: - | CN24: - | CO24: - | CP24: - | CQ24: - | CR24: - | CS24: - | CT24: - | CU24: - | DC24: - | DD24: - | DE24: - | DF24: - | DG24: - | DH24: - | DI24: - | DJ24: - | DK24: - | DL24: - | DM24: - | DN24: - | DO24: - | DP24: - | DQ24: - | DR24: - | DS24: - | DT24: - | DU24: - | DV24: - | DW24: - | DX24: - | DY24: - | DZ24: - | EA24: - | EB24: - | EC24: - | ED24: - | EE24: - | EF24: - | EG24: - | EH24: - | EI24: - | EJ24: - | EK24: - | EL24: - | EM24: - | EN24: - | EO24: - | EP24: - | EQ24: - | ER24: - | ES24: - | ET24: - | EU24: -
A25: 静岡県 | B25: 葵区(静岡市) | C25: 静岡市２－１ | D25: 籠上 | E25: 14 | F25: 3 | G25: 1 | H25: 1 | I25: 1 | J25: 1 | K25: 1 | L25: 11 | M25: 11 | N25: - | O25: - | P25: - | Q25: 1 | R25: 1 | S25: 2 | T25: - | U25: 1 | V25: - | W25: - | X25: 2 | Y25: 1 | Z25: 2 | AA25: 1 | AB25: - | AC25: 58.4 | AD25: 57.1 | AE25: 60.5 | AF25: 9 | AG25: - | AH25: - | AI25: - | AJ25: 1 | AK25: - | AL25: 1 | AM25: - | AN25: 1 | AO25: - | AP25: - | AQ25: 2 | AR25: 1 | AS25: 2 | AT25: 1 | AU25: - | AV25: 62.8 | AW25: 64.6 | AX25: 60.5 | AY25: 8 | AZ25: - | BA25: - | BB25: - | BC25: 1 | BD25: - | BE25: 1 | BF25: - | BG25: 1 | BH25: - | BI25: - | BJ25: 2 | BK25: 1 | BL25: 1 | BM25: 1 | BN25: - | BO25: 61.3 | BP25: 64.6 | BQ25: 55.7 | BR25: 3 | BS25: - | BT25: - | BU25: - | BV25: - | BW25: - | BX25: - | BY25: - | BZ25: - | CA25: - | CB25: - | CC25: - | CD25: 1 | CE25: 1 | CF25: 1 | CG25: - | CH25: 2 | CI25: - | CJ25: - | CK25: - | CL25: - | CM25: - | CN25: - | CO25: - | CP25: - | CQ25: - | CR25: 1 | CS25: - | CT25: 1 | CU25: - | DC25: 11 | DD25: 10 | DE25: 8 | DF25: 2 | DG25: - | DH25: 1 | DI25: - | DJ25: - | DK25: 3 | DL25: - | DM25: - | DN25: - | DO25: 1 | DP25: 1 | DQ25: 1 | DR25: - | DS25: - | DT25: - | DU25: - | DV25: - | DW25: - | DX25: - | DY25: - | DZ25: - | EA25: 3 | EB25: 143 | EC25: 68 | ED25: 20 | EE25: 55 | EF25: 7 | EG25: 7 | EH25: 5 | EI25: 2 | EJ25: - | EK25: - | EL25: - | EM25: - | EN25: 4 | EO25: 3 | EP25: 3 | EQ25: - | ER25: - | ES25: 1 | ET25: - | EU25: -
A26: 静岡県 | B26: 葵区(静岡市) | C26: 静岡市２－１ | D26: 松富下 | E26: 28 | F26: 19 | G26: 6 | H26: 6 | I26: 3 | J26: 3 | K26: 10 | L26: 9 | M26: 45 | N26: - | O26: - | P26: - | Q26: 2 | R26: - | S26: - | T26: 1 | U26: - | V26: 8 | W26: 7 | X26: 5 | Y26: 11 | Z26: 6 | AA26: 1 | AB26: 4 | AC26: 67.2 | AD26: 68.9 | AE26: 65.0 | AF26: 40 | AG26: - | AH26: - | AI26: - | AJ26: - | AK26: - | AL26: - | AM26: 1 | AN26: - | AO26: 6 | AP26: 7 | AQ26: 5 | AR26: 10 | AS26: 6 | AT26: 1 | AU26: 4 | AV26: 69.3 | AW26: 71.5 | AX26: 66.4 | AY26: 37 | AZ26: - | BA26: - | BB26: - | BC26: - | BD26: - | BE26: - | BF26: 1 | BG26: - | BH26: 5 | BI26: 7 | BJ26: 4 | BK26: 10 | BL26: 6 | BM26: 1 | BN26: 3 | BO26: 69.1 | BP26: 70.8 | BQ26: 66.9 | BR26: 19 | BS26: - | BT26: - | BU26: - | BV26: - | BW26: - | BX26: - | BY26: - | BZ26: - | CA26: 2 | CB26: 3 | CC26: 2 | CD26: 6 | CE26: 4 | CF26: - | CG26: 2 | CH26: 5 | CI26: - | CJ26: - | CK26: - | CL26: - | CM26: - | CN26: - | CO26: - | CP26: 1 | CQ26: 1 | CR26: 1 | CS26: 1 | CT26: - | CU26: 1 | DC26: 78 | DD26: 60 | DE26: 37 | DF26: 20 | DG26: 3 | DH26: 11 | DI26: 2 | DJ26: 5 | DK26: 19 | DL26: - | DM26: - | DN26: - | DO26: - | DP26: - | DQ26: 18 | DR26: 1 | DS26: - | DT26: - | DU26: - | DV26: - | DW26: - | DX26: - | DY26: - | DZ26: - | EA26: 19 | EB26: 672 | EC26: 488 | ED26: 71 | EE26: 113 | EF26: 38 | EG26: 37 | EH26: 21 | EI26: 14 | EJ26: 2 | EK26: - | EL26: - | EM26: 1 | EN26: 40 | EO26: 23 | EP26: 16 | EQ26: 6 | ER26: 1 | ES26: 11 | ET26: 2 | EU26: 4
A27: 静岡県 | B27: 葵区(静岡市) | C27: 静岡市２－１ | D27: 松富上１区 | E27: 6 | F27: 2 | G27: x | H27: x | I27: x | J27: x | K27: x | L27: 4 | M27: x | N27: x | O27: x | P27: x | Q27: x | R27: x | S27: x | T27: x | U27: x | V27: x | W27: x | X27: x | Y27: x | Z27: x | AA27: x | AB27: x | AC27: 61.0 | AD27: 57.3 | AE27: 66.0 | AF27: x | AG27: x | AH27: x | AI27: x | AJ27: x | AK27: x | AL27: x | AM27: x | AN27: x | AO27: x | AP27: x | AQ27: x | AR27: x | AS27: x | AT27: x | AU27: x | AV27: 61.8 | AW27: 57.7 | AX27: 66.0 | AY27: x | AZ27: x | BA27: x | BB27: x | BC27: x | BD27: x | BE27: x | BF27: x | BG27: x | BH27: x | BI27: x | BJ27: x | BK27: x | BL27: x | BM27: x | BN27: x | BO27: 74.8 | BP27: 75.5 | BQ27: 74.0 | BR27: 2 | BS27: - | BT27: - | BU27: - | BV27: - | BW27: - | BX27: - | BY27: - | BZ27: - | CA27: - | CB27: - | CC27: - | CD27: 1 | CE27: 1 | CF27: - | CG27: - | CH27: 1 | CI27: - | CJ27: - | CK27: - | CL27: - | CM27: - | CN27: - | CO27: - | CP27: - | CQ27: - | CR27: - | CS27: 1 | CT27: - | CU27: - | DC27: 9 | DD27: 7 | DE27: 4 | DF27: 3 | DG27: - | DH27: 1 | DI27: - | DJ27: 1 | DK27: 2 | DL27: - | DM27: - | DN27: - | DO27: - | DP27: - | DQ27: 1 | DR27: 1 | DS27: - | DT27: - | DU27: - | DV27: - | DW27: - | DX27: - | DY27: - | DZ27: - | EA27: 2 | EB27: 74 | EC27: - | ED27: 20 | EE27: 54 | EF27: 5 | EG27: 4 | EH27: 2 | EI27: 2 | EJ27: - | EK27: - | EL27: - | EM27: 1 | EN27: 4 | EO27: 3 | EP27: 2 | EQ27: 1 | ER27: - | ES27: 1 | ET27: - | EU27: -
A28: 静岡県 | B28: 葵区(静岡市) | C28: 静岡市２－１ | D28: 松富上 | E28: 12 | F28: 1 | G28: x | H28: x | I28: x | J28: x | K28: x | L28: 11 | M28: x | N28: x | O28: x | P28: x | Q28: x | R28: x | S28: x | T28: x | U28: x | V28: x | W28: x | X28: x | Y28: x | Z28: x | AA28: x | AB28: x | AC28: 54.7 | AD28: 61.0 | AE28: 42.0 | AF28: x | AG28: x | AH28: x | AI28: x | AJ28: x | AK28: x | AL28: x | AM28: x | AN28: x | AO28: x | AP28: x | AQ28: x | AR28: x | AS28: x | AT28: x | AU28: x | AV28: 58.5 | AW28: 75.0 | AX28: 42.0 | AY28: x | AZ28: x | BA28: x | BB28: x | BC28: x | BD28: x | BE28: x | BF28: x | BG28: x | BH28: x | BI28: x | BJ28: x | BK28: x | BL28: x | BM28: x | BN28: x | BO28: 75.0 | BP28: 75.0 | BQ28: … | BR28: 1 | BS28: - | BT28: - | BU28: - | BV28: - | BW28: - | BX28: - | BY28: - | BZ28: - | CA28: - | CB28: - | CC28: - | CD28: - | CE28: 1 | CF28: - | CG28: - | CH28: 1 | CI28: - | CJ28: - | CK28: - | CL28: - | CM28: - | CN28: - | CO28: - | CP28: - | CQ28: - | CR28: - | CS28: 1 | CT28: - | CU28: - | DC28: 3 | DD28: 2 | DE28: 1 | DF28: 1 | DG28: - | DH28: 1 | DI28: - | DJ28: - | DK28: 1 | DL28: - | DM28: - | DN28: - | DO28: - | DP28: - | DQ28: - | DR28: 1 | DS28: - | DT28: - | DU28: - | DV28: - | DW28: - | DX28: - | DY28: - | DZ28: - | EA28: 1 | EB28: 30 | EC28: - | ED28: 12 | EE28: 18 | EF28: 2 | EG28: 2 | EH28: 1 | EI28: 1 | EJ28: - | EK28: - | EL28: - | EM28: - | EN28: 1 | EO28: - | EP28: - | EQ28: - | ER28: - | ES28: 1 | ET28: - | EU28: -
A29: 静岡県 | B29: 葵区(静岡市) | C29: 静岡市２－１ | D29: 下伝馬町新田 | E29: 15 | F29: 7 | G29: 2 | H29: 2 | I29: 3 | J29: 2 | K29: 2 | L29: 8 | M29: 22 | N29: 2 | O29: 1 | P29: - | Q29: - | R29: 2 | S29: - | T29: - | U29: 3 | V29: 3 | W29: 3 | X29: 1 | Y29: 1 | Z29: - | AA29: 5 | AB29: 1 | AC29: 58.1 | AD29: 53.9 | AE29: 67.0 | AF29: 17 | AG29: 2 | AH29: 1 | AI29: - | AJ29: - | AK29: - | AL29: - | AM29: - | AN29: 2 | AO29: 1 | AP29: 3 | AQ29: 1 | AR29: 1 | AS29: - | AT29: 5 | AU29: 1 | AV29: 61.2 | AW29: 57.2 | AX29: 68.5 | AY29: 13 | AZ29: - | BA29: - | BB29: - | BC29: - | BD29: - | BE29: - | BF29: - | BG29: 1 | BH29: 1 | BI29: 3 | BJ29: 1 | BK29: 1 | BL29: - | BM29: 5 | BN29: 1 | BO29: 71.8 | BP29: 71.9 | BQ29: 71.8 | BR29: 7 | BS29: - | BT29: - | BU29: - | BV29: - | BW29: - | BX29: - | BY29: - | BZ29: - | CA29: 1 | CB29: 1 | CC29: 1 | CD29: - | CE29: - | CF29: 3 | CG29: 1 | CH29: 4 | CI29: - | CJ29: - | CK29: - | CL29: - | CM29: - | CN29: - | CO29: - | CP29: - | CQ29: 1 | CR29: - | CS29: - | CT29: 2 | CU29: 1 | DC29: 24 | DD29: 19 | DE29: 13 | DF29: 5 | DG29: 1 | DH29: 1 | DI29: 2 | DJ29: 2 | DK29: 7 | DL29: 2 | DM29: - | DN29: - | DO29: 1 | DP29: 1 | DQ29: 3 | DR29: - | DS29: - | DT29: - | DU29: - | DV29: - | DW29: - | DX29: - | DY29: - | DZ29: - | EA29: 7 | EB29: 295 | EC29: 244 | ED29: 38 | EE29: 13 | EF29: 16 | EG29: 13 | EH29: 8 | EI29: 5 | EJ29: - | EK29: - | EL29: 2 | EM29: 1 | EN29: 8 | EO29: 6 | EP29: 5 | EQ29: - | ER29: 1 | ES29: 1 | ET29: - | EU29: 1
A30: 静岡県 | B30: 葵区(静岡市) | C30: 静岡市２－１ | D30: 上伝馬町新田 | E30: 12 | F30: 5 | G30: - | H30: - | I30: 2 | J30: 2 | K30: 3 | L30: 7 | M30: 12 | N30: - | O30: - | P30: - | Q30: - | R30: - | S30: 1 | T30: 1 | U30: - | V30: 3 | W30: - | X30: 1 | Y30: 3 | Z30: - | AA30: 2 | AB30: 1 | AC30: 66.3 | AD30: 61.7 | AE30: 72.8 | AF30: 10 | AG30: - | AH30: - | AI30: - | AJ30: - | AK30: - | AL30: - | AM30: - | AN30: - | AO30: 3 | AP30: - | AQ30: 1 | AR30: 3 | AS30: - | AT30: 2 | AU30: 1 | AV30: 70.6 | AW30: 68.4 | AX30: 72.8 | AY30: 9 | AZ30: - | BA30: - | BB30: - | BC30: - | BD30: - | BE30: - | BF30: - | BG30: - | BH30: 3 | BI30: - | BJ30: 1 | BK30: 3 | BL30: - | BM30: 1 | BN30: 1 | BO30: 69.1 | BP30: 68.4 | BQ30: 70.0 | BR30: 5 | BS30: - | BT30: - | BU30: - | BV30: - | BW30: - | BX30: - | BY30: 1 | BZ30: - | CA30: 2 | CB30: - | CC30: - | CD30: 2 | CE30: - | CF30: - | CG30: - | CH30: 4 | CI30: - | CJ30: - | CK30: - | CL30: - | CM30: 1 | CN30: - | CO30: 1 | CP30: - | CQ30: - | CR30: 2 | CS30: - | CT30: - | CU30: - | DC30: 17 | DD30: 14 | DE30: 9 | DF30: 5 | DG30: - | DH30: 1 | DI30: - | DJ30: 2 | DK30: 5 | DL30: 3 | DM30: - | DN30: - | DO30: - | DP30: - | DQ30: 1 | DR30: 1 | DS30: - | DT30: - | DU30: - | DV30: - | DW30: - | DX30: - | DY30: - | DZ30: - | EA30: 5 | EB30: 305 | EC30: 169 | ED30: 105 | EE30: 31 | EF30: 9 | EG30: 9 | EH30: 5 | EI30: 4 | EJ30: - | EK30: - | EL30: - | EM30: - | EN30: 8 | EO30: 5 | EP30: 4 | EQ30: 1 | ER30: - | ES30: 1 | ET30: - | EU30: 2
A31: 静岡県 | B31: 葵区(静岡市) | C31: 静岡市２－１ | D31: 与一右衛門新田 | E31: 21 | F31: 13 | G31: 3 | H31: 3 | I31: 5 | J31: 2 | K31: 5 | L31: 8 | M31: 38 | N31: - | O31: 1 | P31: 2 | Q31: 1 | R31: 2 | S31: 2 | T31: 3 | U31: 2 | V31: 5 | W31: 3 | X31: 2 | Y31: 3 | Z31: 5 | AA31: 3 | AB31: 4 | AC31: 60.9 | AD31: 61.4 | AE31: 60.3 | AF31: 27 | AG31: - | AH31: - | AI31: - | AJ31: 1 | AK31: 1 | AL31: 2 | AM31: - | AN31: - | AO31: 4 | AP31: 3 | AQ31: 2 | AR31: 3 | AS31: 4 | AT31: 3 | AU31: 4 | AV31: 67.6 | AW31: 68.9 | AX31: 66.2 | AY31: 26 | AZ31: - | BA31: - | BB31: - | BC31: - | BD31: 1 | BE31: 2 | BF31: - | BG31: - | BH31: 4 | BI31: 3 | BJ31: 2 | BK31: 3 | BL31: 4 | BM31: 3 | BN31: 4 | BO31: 69.0 | BP31: 68.9 | BQ31: 69.2 | BR31: 13 | BS31: - | BT31: - | BU31: - | BV31: - | BW31: 1 | BX31: 1 | BY31: - | BZ31: - | CA31: 1 | CB31: 2 | CC31: - | CD31: 2 | CE31: 2 | CF31: 1 | CG31: 3 | CH31: 10 | CI31: - | CJ31: - | CK31: 1 | CL31: - | CM31: - | CN31: - | CO31: 1 | CP31: 1 | CQ31: - | CR31: 1 | CS31: 2 | CT31: 1 | CU31: 3 | DC31: 59 | DD31: 47 | DE31: 26 | DF31: 20 | DG31: 1 | DH31: 4 | DI31: 6 | DJ31: 2 | DK31: 13 | DL31: 2 | DM31: - | DN31: - | DO31: - | DP31: - | DQ31: 10 | DR31: - | DS31: 1 | DT31: - | DU31: - | DV31: - | DW31: - | DX31: - | DY31: - | DZ31: - | EA31: 13 | EB31: 678 | EC31: 507 | ED31: 92 | EE31: 79 | EF31: 29 | EG31: 25 | EH31: 14 | EI31: 11 | EJ31: - | EK31: - | EL31: 4 | EM31: - | EN31: 30 | EO31: 22 | EP31: 12 | EQ31: 9 | ER31: 1 | ES31: 4 | ET31: 2 | EU31: 2
A32: 静岡県 | B32: 葵区(静岡市) | C32: 静岡市２－１ | D32: 福田ヶ谷 | E32: 28 | F32: 24 | G32: 8 | H32: 7 | I32: 10 | J32: 8 | K32: 6 | L32: 4 | M32: 66 | N32: - | O32: 1 | P32: 1 | Q32: 3 | R32: 3 | S32: 5 | T32: 5 | U32: 5 | V32: 6 | W32: 9 | X32: 9 | Y32: 9 | Z32: 5 | AA32: 3 | AB32: 2 | AC32: 59.2 | AD32: 59.4 | AE32: 58.9 | AF32: 48 | AG32: - | AH32: - | AI32: 1 | AJ32: 1 | AK32: - | AL32: - | AM32: 2 | AN32: 5 | AO32: 5 | AP32: 8 | AQ32: 8 | AR32: 9 | AS32: 4 | AT32: 3 | AU32: 2 | AV32: 64.6 | AW32: 65.2 | AX32: 64.1 | AY32: 48 | AZ32: - | BA32: - | BB32: 1 | BC32: 1 | BD32: - | BE32: - | BF32: 2 | BG32: 5 | BH32: 5 | BI32: 8 | BJ32: 8 | BK32: 9 | BL32: 4 | BM32: 3 | BN32: 2 | BO32: 64.6 | BP32: 65.2 | BQ32: 64.1 | BR32: 24 | BS32: - | BT32: - | BU32: - | BV32: - | BW32: - | BX32: 1 | BY32: 1 | BZ32: 2 | CA32: 3 | CB32: 5 | CC32: 4 | CD32: 5 | CE32: 2 | CF32: 1 | CG32: - | CH32: 11 | CI32: - | CJ32: - | CK32: - | CL32: - | CM32: - | CN32: 1 | CO32: 1 | CP32: 3 | CQ32: 2 | CR32: 3 | CS32: 1 | CT32: - | CU32: - | DC32: 88 | DD32: 71 | DE32: 48 | DF32: 22 | DG32: 1 | DH32: 1 | DI32: 9 | DJ32: 7 | DK32: 24 | DL32: - | DM32: - | DN32: - | DO32: 15 | DP32: 1 | DQ32: - | DR32: 5 | DS32: 3 | DT32: - | DU32: - | DV32: - | DW32: - | DX32: - | DY32: - | DZ32: - | EA32: 24 | EB32: 2,869 | EC32: 170 | ED32: 125 | EE32: 2,574 | EF32: 46 | EG32: 34 | EH32: 23 | EI32: 10 | EJ32: 1 | EK32: - | EL32: 8 | EM32: 4 | EN32: 42 | EO32: 37 | EP32: 25 | EQ32: 12 | ER32: - | ES32: 1 | ET32: 1 | EU32: 3
A33: 静岡県 | B33: 葵区(静岡市) | C33: 静岡市２－１ | D33: 下 | E33: 69 | F33: 44 | G33: 17 | H33: 15 | I33: 12 | J33: 6 | K33: 15 | L33: 25 | M33: 123 | N33: 1 | O33: 2 | P33: 4 | Q33: 3 | R33: 3 | S33: 3 | T33: 13 | U33: 17 | V33: 14 | W33: 11 | X33: 10 | Y33: 20 | Z33: 12 | AA33: 7 | AB33: 3 | AC33: 59.6 | AD33: 59.5 | AE33: 59.7 | AF33: 93 | AG33: 1 | AH33: 2 | AI33: 1 | AJ33: 2 | AK33: 2 | AL33: - | AM33: 5 | AN33: 11 | AO33: 9 | AP33: 8 | AQ33: 10 | AR33: 20 | AS33: 12 | AT33: 7 | AU33: 3 | AV33: 63.5 | AW33: 64.7 | AX33: 62.4 | AY33: 87 | AZ33: - | BA33: 1 | BB33: 1 | BC33: 2 | BD33: 1 | BE33: - | BF33: 5 | BG33: 10 | BH33: 8 | BI33: 8 | BJ33: 10 | BK33: 20 | BL33: 11 | BM33: 7 | BN33: 3 | BO33: 64.9 | BP33: 64.7 | BQ33: 65.2 | BR33: 44 | BS33: - | BT33: - | BU33: - | BV33: - | BW33: - | BX33: - | BY33: 3 | BZ33: 6 | CA33: 7 | CB33: 8 | CC33: 2 | CD33: 9 | CE33: 6 | CF33: 2 | CG33: 1 | CH33: 19 | CI33: - | CJ33: - | CK33: - | CL33: - | CM33: 1 | CN33: 1 | CO33: - | CP33: 4 | CQ33: 2 | CR33: 5 | CS33: 4 | CT33: 1 | CU33: 1 | DC33: 174 | DD33: 131 | DE33: 87 | DF33: 41 | DG33: 3 | DH33: 8 | DI33: 15 | DJ33: 20 | DK33: 44 | DL33: - | DM33: - | DN33: - | DO33: 10 | DP33: 4 | DQ33: 14 | DR33: 11 | DS33: 5 | DT33: - | DU33: - | DV33: - | DW33: - | DX33: - | DY33: - | DZ33: - | EA33: 44 | EB33: 3,298 | EC33: 312 | ED33: 592 | EE33: 2,394 | EF33: 88 | EG33: 74 | EH33: 44 | EI33: 27 | EJ33: 3 | EK33: - | EL33: 9 | EM33: 5 | EN33: 86 | EO33: 57 | EP33: 43 | EQ33: 14 | ER33: - | ES33: 8 | ET33: 6 | EU33: 15
A34: 静岡県 | B34: 葵区(静岡市) | C34: 静岡市２－１ | D34: 門屋 | E34: 20 | F34: 16 | G34: 5 | H34: 4 | I34: 3 | J34: 1 | K34: 8 | L34: 4 | M34: 43 | N34: - | O34: 2 | P34: 2 | Q34: - | R34: - | S34: 2 | T34: 3 | U34: 4 | V34: 3 | W34: 7 | X34: 2 | Y34: 7 | Z34: 6 | AA34: 5 | AB34: - | AC34: 61.7 | AD34: 62.8 | AE34: 60.6 | AF34: 31 | AG34: - | AH34: - | AI34: - | AJ34: - | AK34: - | AL34: 1 | AM34: - | AN34: 3 | AO34: 1 | AP34: 6 | AQ34: 2 | AR34: 7 | AS34: 6 | AT34: 5 | AU34: - | AV34: 69.2 | AW34: 71.5 | AX34: 67.3 | AY34: 29 | AZ34: - | BA34: - | BB34: - | BC34: - | BD34: - | BE34: 1 | BF34: - | BG34: 3 | BH34: - | BI34: 6 | BJ34: 2 | BK34: 7 | BL34: 6 | BM34: 4 | BN34: - | BO34: 69.1 | BP34: 71.5 | BQ34: 66.8 | BR34: 16 | BS34: - | BT34: - | BU34: - | BV34: - | BW34: - | BX34: - | BY34: 1 | BZ34: 2 | CA34: 2 | CB34: 3 | CC34: - | CD34: 3 | CE34: 4 | CF34: 1 | CG34: - | CH34: 3 | CI34: - | CJ34: - | CK34: - | CL34: - | CM34: - | CN34: - | CO34: - | CP34: 1 | CQ34: - | CR34: - | CS34: 2 | CT34: - | CU34: - | DC34: 59 | DD34: 48 | DE34: 29 | DF34: 19 | DG34: - | DH34: 1 | DI34: 6 | DJ34: 4 | DK34: 16 | DL34: 2 | DM34: - | DN34: - | DO34: 6 | DP34: 2 | DQ34: 1 | DR34: 3 | DS34: 2 | DT34: - | DU34: - | DV34: - | DW34: - | DX34: - | DY34: - | DZ34: - | EA34: 16 | EB34: 1,114 | EC34: 304 | ED34: 159 | EE34: 651 | EF34: 26 | EG34: 24 | EH34: 14 | EI34: 10 | EJ34: - | EK34: - | EL34: 2 | EM34: - | EN34: 33 | EO34: 24 | EP34: 15 | EQ34: 9 | ER34: - | ES34: 1 | ET34: 4 | EU34: 4
A35: 静岡県 | B35: 葵区(静岡市) | C35: 静岡市２－１ | D35: 牛妻 | E35: 59 | F35: 33 | G35: 10 | H35: 9 | I35: 6 | J35: 3 | K35: 17 | L35: 26 | M35: 85 | N35: - | O35: 1 | P35: - | Q35: - | R35: 3 | S35: 7 | T35: 4 | U35: 14 | V35: 5 | W35: 7 | X35: 12 | Y35: 11 | Z35: 11 | AA35: 7 | AB35: 3 | AC35: 63.0 | AD35: 61.1 | AE35: 65.3 | AF35: 61 | AG35: - | AH35: - | AI35: - | AJ35: - | AK35: 2 | AL35: 2 | AM35: 1 | AN35: 6 | AO35: 2 | AP35: 6 | AQ35: 11 | AR35: 10 | AS35: 11 | AT35: 7 | AU35: 3 | AV35: 68.1 | AW35: 68.7 | AX35: 67.5 | AY35: 56 | AZ35: - | BA35: - | BB35: - | BC35: - | BD35: 1 | BE35: 1 | BF35: - | BG35: 6 | BH35: 2 | BI35: 5 | BJ35: 11 | BK35: 10 | BL35: 10 | BM35: 7 | BN35: 3 | BO35: 69.4 | BP35: 68.7 | BQ35: 70.2 | BR35: 33 | BS35: - | BT35: - | BU35: - | BV35: - | BW35: - | BX35: - | BY35: 1 | BZ35: 6 | CA35: 4 | CB35: 3 | CC35: 4 | CD35: 7 | CE35: 5 | CF35: 2 | CG35: 1 | CH35: 19 | CI35: - | CJ35: - | CK35: - | CL35: - | CM35: - | CN35: 1 | CO35: 2 | CP35: 1 | CQ35: 2 | CR35: 5 | CS35: 5 | CT35: 2 | CU35: 1 | DC35: 132 | DD35: 100 | DE35: 56 | DF35: 42 | DG35: 2 | DH35: 10 | DI35: 18 | DJ35: 4 | DK35: 31 | DL35: 1 | DM35: - | DN35: - | DO35: 15 | DP35: 3 | DQ35: 6 | DR35: - | DS35: 2 | DT35: - | DU35: 2 | DV35: 1 | DW35: - | DX35: 1 | DY35: - | DZ35: - | EA35: 33 | EB35: 2,603 | EC35: 623 | ED35: 177 | EE35: 1,803 | EF35: 67 | EG35: 57 | EH35: 29 | EI35: 27 | EJ35: 1 | EK35: - | EL35: 9 | EM35: 1 | EN35: 65 | EO35: 43 | EP35: 27 | EQ35: 15 | ER35: 1 | ES35: 10 | ET35: 9 | EU35: 3
A36: 静岡県 | B36: 葵区(静岡市) | C36: 静岡市２－１ | D36: 郷島 | E36: 26 | F36: 13 | G36: 5 | H36: 4 | I36: 3 | J36: 2 | K36: 5 | L36: 13 | M36: 39 | N36: - | O36: - | P36: 3 | Q36: - | R36: 2 | S36: 2 | T36: 3 | U36: 6 | V36: 5 | W36: 6 | X36: 3 | Y36: 4 | Z36: 4 | AA36: 1 | AB36: - | AC36: 57.0 | AD36: 57.3 | AE36: 56.6 | AF36: 27 | AG36: - | AH36: - | AI36: - | AJ36: - | AK36: - | AL36: 1 | AM36: 2 | AN36: 3 | AO36: 3 | AP36: 6 | AQ36: 3 | AR36: 4 | AS36: 4 | AT36: 1 | AU36: - | AV36: 63.4 | AW36: 65.2 | AX36: 61.5 | AY36: 27 | AZ36: - | BA36: - | BB36: - | BC36: - | BD36: - | BE36: 1 | BF36: 2 | BG36: 3 | BH36: 3 | BI36: 6 | BJ36: 3 | BK36: 4 | BL36: 4 | BM36: 1 | BN36: - | BO36: 63.4 | BP36: 65.2 | BQ36: 61.5 | BR36: 13 | BS36: - | BT36: - | BU36: - | BV36: - | BW36: - | BX36: - | BY36: - | BZ36: 2 | CA36: 3 | CB36: 2 | CC36: 2 | CD36: 1 | CE36: 3 | CF36: - | CG36: - | CH36: 5 | CI36: - | CJ36: - | CK36: - | CL36: - | CM36: - | CN36: - | CO36: 1 | CP36: - | CQ36: 1 | CR36: - | CS36: 3 | CT36: - | CU36: - | DC36: 54 | DD36: 40 | DE36: 27 | DF36: 13 | DG36: - | DH36: 1 | DI36: 7 | DJ36: 6 | DK36: 12 | DL36: - | DM36: - | DN36: - | DO36: 5 | DP36: 3 | DQ36: - | DR36: 2 | DS36: 2 | DT36: - | DU36: - | DV36: - | DW36: - | DX36: - | DY36: - | DZ36: - | EA36: 13 | EB36: 845 | EC36: 166 | ED36: 71 | EE36: 608 | EF36: 28 | EG36: 22 | EH36: 14 | EI36: 8 | EJ36: - | EK36: - | EL36: 3 | EM36: 3 | EN36: 26 | EO36: 18 | EP36: 13 | EQ36: 5 | ER36: - | ES36: 1 | ET36: 4 | EU36: 3
A37: 静岡県 | B37: 葵区(静岡市) | C37: 静岡市２－１ | D37: 野田平 | E37: 16 | F37: 15 | G37: 4 | H37: 4 | I37: 8 | J37: 5 | K37: 3 | L37: 1 | M37: 42 | N37: 1 | O37: 3 | P37: 4 | Q37: - | R37: - | S37: 1 | T37: - | U37: 4 | V37: 13 | W37: 6 | X37: 3 | Y37: 1 | Z37: 1 | AA37: 4 | AB37: 1 | AC37: 55.1 | AD37: 57.7 | AE37: 52.5 | AF37: 23 | AG37: - | AH37: 1 | AI37: - | AJ37: - | AK37: - | AL37: 1 | AM37: - | AN37: 3 | AO37: 4 | AP37: 4 | AQ37: 3 | AR37: 1 | AS37: 1 | AT37: 4 | AU37: 1 | AV37: 63.3 | AW37: 67.6 | AX37: 60.1 | AY37: 22 | AZ37: - | BA37: - | BB37: - | BC37: - | BD37: - | BE37: 1 | BF37: - | BG37: 3 | BH37: 4 | BI37: 4 | BJ37: 3 | BK37: 1 | BL37: 1 | BM37: 4 | BN37: 1 | BO37: 65.3 | BP37: 67.6 | BQ37: 63.4 | BR37: 15 | BS37: - | BT37: - | BU37: - | BV37: - | BW37: - | BX37: - | BY37: - | BZ37: 1 | CA37: 5 | CB37: 4 | CC37: 2 | CD37: 1 | CE37: - | CF37: 1 | CG37: 1 | CH37: 4 | CI37: - | CJ37: - | CK37: - | CL37: - | CM37: - | CN37: - | CO37: 1 | CP37: 1 | CQ37: - | CR37: - | CS37: - | CT37: 1 | CU37: 1 | DC37: 65 | DD37: 49 | DE37: 22 | DF37: 26 | DG37: 1 | DH37: 2 | DI37: 4 | DJ37: 10 | DK37: 15 | DL37: - | DM37: - | DN37: - | DO37: 15 | DP37: - | DQ37: - | DR37: - | DS37: - | DT37: - | DU37: - | DV37: - | DW37: - | DX37: - | DY37: - | DZ37: - | EA37: 15 | EB37: 1,311 | EC37: 109 | ED37: 23 | EE37: 1,179 | EF37: 28 | EG37: 24 | EH37: 10 | EI37: 13 | EJ37: 1 | EK37: - | EL37: 1 | EM37: 3 | EN37: 37 | EO37: 25 | EP37: 12 | EQ37: 13 | ER37: - | ES37: 2 | ET37: 3 | EU37: 7
A38: 静岡県 | B38: 葵区(静岡市) | C38: 静岡市２－１ | D38: 俵沢 | E38: 17 | F38: 8 | G38: 1 | H38: 1 | I38: 3 | J38: 3 | K38: 4 | L38: 9 | M38: 21 | N38: 1 | O38: - | P38: - | Q38: - | R38: - | S38: - | T38: 2 | U38: 4 | V38: 1 | W38: 4 | X38: 2 | Y38: 3 | Z38: 2 | AA38: 2 | AB38: - | AC38: 61.0 | AD38: 63.5 | AE38: 58.6 | AF38: 12 | AG38: - | AH38: - | AI38: - | AJ38: - | AK38: - | AL38: - | AM38: - | AN38: 2 | AO38: 1 | AP38: 2 | AQ38: 1 | AR38: 2 | AS38: 2 | AT38: 2 | AU38: - | AV38: 67.0 | AW38: 68.2 | AX38: 66.1 | AY38: 11 | AZ38: - | BA38: - | BB38: - | BC38: - | BD38: - | BE38: - | BF38: - | BG38: 2 | BH38: 1 | BI38: 2 | BJ38: 1 | BK38: 1 | BL38: 2 | BM38: 2 | BN38: - | BO38: 66.6 | BP38: 68.2 | BQ38: 65.3 | BR38: 8 | BS38: - | BT38: - | BU38: - | BV38: - | BW38: - | BX38: - | BY38: - | BZ38: 1 | CA38: 1 | CB38: 2 | CC38: - | CD38: 2 | CE38: - | CF38: 2 | CG38: - | CH38: 1 | CI38: - | CJ38: - | CK38: - | CL38: - | CM38: - | CN38: - | CO38: - | CP38: - | CQ38: - | CR38: 1 | CS38: - | CT38: - | CU38: - | DC38: 28 | DD38: 22 | DE38: 11 | DF38: 9 | DG38: 2 | DH38: 1 | DI38: 2 | DJ38: 3 | DK38: 7 | DL38: - | DM38: - | DN38: - | DO38: 4 | DP38: 1 | DQ38: 1 | DR38: - | DS38: - | DT38: - | DU38: - | DV38: - | DW38: - | DX38: 1 | DY38: - | DZ38: - | EA38: 8 | EB38: 421 | EC38: 166 | ED38: 33 | EE38: 222 | EF38: 12 | EG38: 11 | EH38: 5 | EI38: 4 | EJ38: 2 | EK38: - | EL38: - | EM38: 1 | EN38: 16 | EO38: 11 | EP38: 6 | EQ38: 5 | ER38: - | ES38: 1 | ET38: 2 | EU38: 2
A39: 静岡県 | B39: 葵区(静岡市) | C39: 静岡市２－１ | D39: 俵峰 | E39: 30 | F39: 29 | G39: 14 | H39: 14 | I39: 7 | J39: 2 | K39: 8 | L39: 1 | M39: 87 | N39: - | O39: - | P39: 3 | Q39: 7 | R39: 3 | S39: 2 | T39: 4 | U39: 6 | V39: 15 | W39: 16 | X39: 6 | Y39: 4 | Z39: 5 | AA39: 7 | AB39: 9 | AC39: 60.5 | AD39: 60.2 | AE39: 60.8 | AF39: 69 | AG39: - | AH39: - | AI39: - | AJ39: 2 | AK39: 1 | AL39: 2 | AM39: 4 | AN39: 3 | AO39: 11 | AP39: 15 | AQ39: 6 | AR39: 4 | AS39: 5 | AT39: 7 | AU39: 9 | AV39: 65.3 | AW39: 66.4 | AX39: 64.5 | AY39: 66 | AZ39: - | BA39: - | BB39: - | BC39: 1 | BD39: 1 | BE39: 2 | BF39: 4 | BG39: 3 | BH39: 10 | BI39: 14 | BJ39: 6 | BK39: 4 | BL39: 5 | BM39: 7 | BN39: 9 | BO39: 66.0 | BP39: 66.4 | BQ39: 65.7 | BR39: 29 | BS39: - | BT39: - | BU39: - | BV39: - | BW39: 1 | BX39: 1 | BY39: 2 | BZ39: 3 | CA39: 8 | CB39: 8 | CC39: 4 | CD39: 1 | CE39: 1 | CF39: - | CG39: - | CH39: 7 | CI39: - | CJ39: - | CK39: - | CL39: - | CM39: - | CN39: 1 | CO39: - | CP39: 3 | CQ39: 2 | CR39: 1 | CS39: - | CT39: - | CU39: - | DC39: 112 | DD39: 101 | DE39: 66 | DF39: 29 | DG39: 6 | DH39: 4 | DI39: 1 | DJ39: 6 | DK39: 27 | DL39: - | DM39: - | DN39: - | DO39: 23 | DP39: 3 | DQ39: 1 | DR39: - | DS39: - | DT39: - | DU39: - | DV39: - | DW39: - | DX39: - | DY39: - | DZ39: - | EA39: 29 | EB39: 2,867 | EC39: 22 | ED39: 278 | EE39: 2,567 | EF39: 48 | EG39: 48 | EH39: 30 | EI39: 14 | EJ39: 4 | EK39: - | EL39: - | EM39: - | EN39: 64 | EO39: 53 | EP39: 36 | EQ39: 15 | ER39: 2 | ES39: 4 | ET39: 1 | EU39: 6
A40: 静岡県 | B40: 葵区(静岡市) | C40: 静岡市２－１ | D40: 油島 | E40: 4 | F40: 2 | G40: x | H40: x | I40: x | J40: x | K40: x | L40: 2 | M40: x | N40: x | O40: x | P40: x | Q40: x | R40: x | S40: x | T40: x | U40: x | V40: x | W40: x | X40: x | Y40: x | Z40: x | AA40: x | AB40: x | AC40: 75.5 | AD40: 77.0 | AE40: 74.0 | AF40: x | AG40: x | AH40: x | AI40: x | AJ40: x | AK40: x | AL40: x | AM40: x | AN40: x | AO40: x | AP40: x | AQ40: x | AR40: x | AS40: x | AT40: x | AU40: x | AV40: 75.5 | AW40: 77.0 | AX40: 74.0 | AY40: x | AZ40: x | BA40: x | BB40: x | BC40: x | BD40: x | BE40: x | BF40: x | BG40: x | BH40: x | BI40: x | BJ40: x | BK40: x | BL40: x | BM40: x | BN40: x | BO40: 78.0 | BP40: 77.0 | BQ40: 80.0 | BR40: 2 | BS40: - | BT40: - | BU40: - | BV40: - | BW40: - | BX40: - | BY40: - | BZ40: - | CA40: - | CB40: - | CC40: - | CD40: 1 | CE40: - | CF40: 1 | CG40: - | CH40: - | CI40: - | CJ40: - | CK40: - | CL40: - | CM40: - | CN40: - | CO40: - | CP40: - | CQ40: - | CR40: - | CS40: - | CT40: - | CU40: - | DC40: 4 | DD40: 3 | DE40: 3 | DF40: - | DG40: - | DH40: 1 | DI40: - | DJ40: - | DK40: 2 | DL40: - | DM40: - | DN40: - | DO40: 2 | DP40: - | DQ40: - | DR40: - | DS40: - | DT40: - | DU40: - | DV40: - | DW40: - | DX40: - | DY40: - | DZ40: - | EA40: 2 | EB40: 107 | EC40: 37 | ED40: - | EE40: 70 | EF40: 2 | EG40: 2 | EH40: 2 | EI40: - | EJ40: - | EK40: - | EL40: - | EM40: - | EN40: 2 | EO40: 1 | EP40: 1 | EQ40: - | ER40: - | ES40: 1 | ET40: - | EU40: -
A41: 静岡県 | B41: 葵区(静岡市) | C41: 静岡市２－１ | D41: 上足洗 | E41: 27 | F41: 17 | G41: 7 | H41: 7 | I41: 3 | J41: 2 | K41: 7 | L41: 10 | M41: 59 | N41: 2 | O41: 2 | P41: 1 | Q41: 2 | R41: 1 | S41: 6 | T41: 6 | U41: 6 | V41: 4 | W41: 3 | X41: 5 | Y41: 7 | Z41: 6 | AA41: 8 | AB41: - | AC41: 58.1 | AD41: 60.0 | AE41: 56.1 | AF41: 42 | AG41: - | AH41: - | AI41: - | AJ41: - | AK41: 1 | AL41: 3 | AM41: 5 | AN41: 4 | AO41: 2 | AP41: 3 | AQ41: 4 | AR41: 7 | AS41: 5 | AT41: 8 | AU41: - | AV41: 64.9 | AW41: 65.6 | AX41: 64.2 | AY41: 38 | AZ41: - | BA41: - | BB41: - | BC41: - | BD41: 1 | BE41: 1 | BF41: 3 | BG41: 4 | BH41: 2 | BI41: 3 | BJ41: 4 | BK41: 7 | BL41: 5 | BM41: 8 | BN41: - | BO41: 67.1 | BP41: 65.6 | BQ41: 68.9 | BR41: 17 | BS41: - | BT41: - | BU41: - | BV41: - | BW41: - | BX41: - | BY41: 1 | BZ41: - | CA41: 1 | CB41: 1 | CC41: 2 | CD41: 3 | CE41: 3 | CF41: 5 | CG41: 1 | CH41: 15 | CI41: - | CJ41: - | CK41: - | CL41: - | CM41: 1 | CN41: - | CO41: 1 | CP41: 1 | CQ41: 1 | CR41: 3 | CS41: 2 | CT41: 5 | CU41: 1 | DC41: 77 | DD41: 58 | DE41: 38 | DF41: 18 | DG41: 2 | DH41: 5 | DI41: 9 | DJ41: 5 | DK41: 16 | DL41: 8 | DM41: - | DN41: - | DO41: - | DP41: 1 | DQ41: 4 | DR41: - | DS41: 3 | DT41: - | DU41: - | DV41: - | DW41: - | DX41: - | DY41: - | DZ41: - | EA41: 17 | EB41: 930 | EC41: 771 | ED41: 155 | EE41: 4 | EF41: 38 | EG41: 31 | EH41: 21 | EI41: 9 | EJ41: 1 | EK41: - | EL41: 6 | EM41: 1 | EN41: 39 | EO41: 27 | EP41: 17 | EQ41: 9 | ER41: 1 | ES41: 5 | ET41: 3 | EU41: 4
A42: 静岡県 | B42: 葵区(静岡市) | C42: 静岡市２－１ | D42: 沓谷 | E42: 24 | F42: 10 | G42: 1 | H42: 1 | I42: 2 | J42: - | K42: 7 | L42: 14 | M42: 28 | N42: 1 | O42: - | P42: 2 | Q42: 1 | R42: - | S42: 1 | T42: - | U42: 7 | V42: 1 | W42: 4 | X42: 1 | Y42: 3 | Z42: 6 | AA42: - | AB42: 1 | AC42: 58.8 | AD42: 52.3 | AE42: 64.3 | AF42: 15 | AG42: - | AH42: - | AI42: - | AJ42: - | AK42: - | AL42: - | AM42: - | AN42: 1 | AO42: - | AP42: 3 | AQ42: 1 | AR42: 3 | AS42: 6 | AT42: - | AU42: 1 | AV42: 71.0 | AW42: 65.8 | AX42: 73.6 | AY42: 15 | AZ42: - | BA42: - | BB42: - | BC42: - | BD42: - | BE42: - | BF42: - | BG42: 1 | BH42: - | BI42: 3 | BJ42: 1 | BK42: 3 | BL42: 6 | BM42: - | BN42: 1 | BO42: 71.0 | BP42: 65.8 | BQ42: 73.6 | BR42: 10 | BS42: - | BT42: - | BU42: - | BV42: - | BW42: - | BX42: - | BY42: - | BZ42: 4 | CA42: - | CB42: 2 | CC42: 1 | CD42: 1 | CE42: 2 | CF42: - | CG42: - | CH42: 6 | CI42: - | CJ42: - | CK42: - | CL42: - | CM42: - | CN42: 2 | CO42: - | CP42: 1 | CQ42: 1 | CR42: - | CS42: 2 | CT42: - | CU42: - | DC42: 40 | DD42: 29 | DE42: 15 | DF42: 13 | DG42: 1 | DH42: 2 | DI42: 7 | DJ42: 2 | DK42: 7 | DL42: 5 | DM42: - | DN42: - | DO42: - | DP42: 1 | DQ42: 1 | DR42: - | DS42: - | DT42: - | DU42: - | DV42: - | DW42: - | DX42: - | DY42: - | DZ42: - | EA42: 10 | EB42: 869 | EC42: 755 | ED42: 91 | EE42: 23 | EF42: 16 | EG42: 13 | EH42: 5 | EI42: 7 | EJ42: 1 | EK42: - | EL42: 3 | EM42: - | EN42: 24 | EO42: 16 | EP42: 10 | EQ42: 6 | ER42: - | ES42: 2 | ET42: 4 | EU42: 2
A43: 静岡県 | B43: 葵区(静岡市) | C43: 静岡市２－１ | D43: 千代田 | E43: 39 | F43: 17 | G43: 4 | H43: 3 | I43: 6 | J43: 1 | K43: 7 | L43: 22 | M43: 55 | N43: - | O43: - | P43: 2 | Q43: - | R43: 6 | S43: 5 | T43: 5 | U43: 4 | V43: 3 | W43: 4 | X43: 6 | Y43: 6 | Z43: 9 | AA43: 4 | AB43: 1 | AC43: 59.7 | AD43: 57.9 | AE43: 61.5 | AF43: 32 | AG43: - | AH43: - | AI43: - | AJ43: - | AK43: - | AL43: - | AM43: 3 | AN43: 1 | AO43: 1 | AP43: 3 | AQ43: 6 | AR43: 5 | AS43: 8 | AT43: 4 | AU43: 1 | AV43: 69.3 | AW43: 70.6 | AX43: 68.1 | AY43: 31 | AZ43: - | BA43: - | BB43: - | BC43: - | BD43: - | BE43: - | BF43: 3 | BG43: 1 | BH43: - | BI43: 3 | BJ43: 6 | BK43: 5 | BL43: 8 | BM43: 4 | BN43: 1 | BO43: 69.7 | BP43: 70.6 | BQ43: 68.8 | BR43: 17 | BS43: - | BT43: - | BU43: - | BV43: - | BW43: - | BX43: 1 | BY43: 1 | BZ43: 1 | CA43: 2 | CB43: 2 | CC43: 2 | CD43: 4 | CE43: 1 | CF43: 3 | CG43: - | CH43: 10 | CI43: - | CJ43: - | CK43: - | CL43: - | CM43: 1 | CN43: - | CO43: 2 | CP43: 2 | CQ43: 1 | CR43: 2 | CS43: 1 | CT43: 1 | CU43: - | DC43: 76 | DD43: 62 | DE43: 31 | DF43: 30 | DG43: 1 | DH43: 4 | DI43: 6 | DJ43: 4 | DK43: 15 | DL43: 8 | DM43: - | DN43: 1 | DO43: - | DP43: - | DQ43: 6 | DR43: - | DS43: - | DT43: - | DU43: - | DV43: - | DW43: - | DX43: - | DY43: - | DZ43: - | EA43: 17 | EB43: 825 | EC43: 772 | ED43: 53 | EE43: - | EF43: 37 | EG43: 34 | EH43: 15 | EI43: 19 | EJ43: - | EK43: - | EL43: 2 | EM43: 1 | EN43: 39 | EO43: 28 | EP43: 16 | EQ43: 11 | ER43: 1 | ES43: 4 | ET43: 4 | EU43: 3
A44: 静岡県 | B44: 葵区(静岡市) | C44: 静岡市２－１ | D44: 上土 | E44: 64 | F44: 20 | G44: 1 | H44: 1 | I44: 7 | J44: 3 | K44: 12 | L44: 44 | M44: 61 | N44: - | O44: 1 | P44: 2 | Q44: 2 | R44: 6 | S44: 2 | T44: 4 | U44: 3 | V44: 6 | W44: 5 | X44: 11 | Y44: 9 | Z44: 6 | AA44: 3 | AB44: 1 | AC44: 59.5 | AD44: 60.0 | AE44: 58.9 | AF44: 34 | AG44: - | AH44: 1 | AI44: - | AJ44: - | AK44: - | AL44: - | AM44: 1 | AN44: - | AO44: 1 | AP44: 4 | AQ44: 10 | AR44: 7 | AS44: 6 | AT44: 3 | AU44: 1 | AV44: 69.0 | AW44: 68.9 | AX44: 69.2 | AY44: 28 | AZ44: - | BA44: - | BB44: - | BC44: - | BD44: - | BE44: - | BF44: - | BG44: - | BH44: 1 | BI44: 3 | BJ44: 8 | BK44: 7 | BL44: 6 | BM44: 3 | BN44: - | BO44: 70.9 | BP44: 70.1 | BQ44: 71.7 | BR44: 20 | BS44: - | BT44: - | BU44: - | BV44: - | BW44: - | BX44: - | BY44: 1 | BZ44: 1 | CA44: 1 | CB44: 2 | CC44: 4 | CD44: 6 | CE44: 2 | CF44: 2 | CG44: 1 | CH44: 9 | CI44: - | CJ44: - | CK44: - | CL44: - | CM44: - | CN44: - | CO44: - | CP44: - | CQ44: 2 | CR44: 3 | CS44: 1 | CT44: 2 | CU44: 1 | DC44: 82 | DD44: 55 | DE44: 28 | DF44: 26 | DG44: 1 | DH44: 10 | DI44: 6 | DJ44: 11 | DK44: 17 | DL44: 9 | DM44: - | DN44: - | DO44: - | DP44: 4 | DQ44: - | DR44: 3 | DS44: - | DT44: 1 | DU44: - | DV44: - | DW44: - | DX44: - | DY44: - | DZ44: - | EA44: 20 | EB44: 1,431 | EC44: 918 | ED44: 285 | EE44: 228 | EF44: 42 | EG44: 33 | EH44: 15 | EI44: 17 | EJ44: 1 | EK44: - | EL44: 4 | EM44: 5 | EN44: 40 | EO44: 22 | EP44: 13 | EQ44: 9 | ER44: - | ES44: 10 | ET44: 2 | EU44: 6
A45: 静岡県 | B45: 葵区(静岡市) | C45: 静岡市２－１ | D45: 川合本田 | E45: 9 | F45: 5 | G45: 2 | H45: 2 | I45: 1 | J45: - | K45: 2 | L45: 4 | M45: 18 | N45: - | O45: 1 | P45: 2 | Q45: 1 | R45: - | S45: - | T45: - | U45: 2 | V45: 3 | W45: 1 | X45: 1 | Y45: 2 | Z45: 2 | AA45: 2 | AB45: 1 | AC45: 59.0 | AD45: 50.7 | AE45: 69.4 | AF45: 13 | AG45: - | AH45: - | AI45: 1 | AJ45: 1 | AK45: - | AL45: - | AM45: - | AN45: 2 | AO45: 2 | AP45: - | AQ45: 1 | AR45: 1 | AS45: 2 | AT45: 2 | AU45: 1 | AV45: 63.7 | AW45: 54.8 | AX45: 71.3 | AY45: 11 | AZ45: - | BA45: - | BB45: 1 | BC45: 1 | BD45: - | BE45: - | BF45: - | BG45: 1 | BH45: 2 | BI45: - | BJ45: 1 | BK45: 1 | BL45: 2 | BM45: 2 | BN45: - | BO45: 62.2 | BP45: 54.8 | BQ45: 71.0 | BR45: 5 | BS45: - | BT45: - | BU45: - | BV45: - | BW45: - | BX45: - | BY45: - | BZ45: 1 | CA45: - | CB45: - | CC45: - | CD45: 1 | CE45: 1 | CF45: 2 | CG45: - | CH45: 3 | CI45: - | CJ45: - | CK45: - | CL45: - | CM45: - | CN45: 1 | CO45: - | CP45: - | CQ45: - | CR45: - | CS45: - | CT45: 2 | CU45: - | DC45: 23 | DD45: 19 | DE45: 11 | DF45: 8 | DG45: - | DH45: 3 | DI45: - | DJ45: 1 | DK45: 5 | DL45: - | DM45: - | DN45: - | DO45: - | DP45: 2 | DQ45: 3 | DR45: - | DS45: - | DT45: - | DU45: - | DV45: - | DW45: - | DX45: - | DY45: - | DZ45: - | EA45: 5 | EB45: 203 | EC45: 128 | ED45: 60 | EE45: 15 | EF45: 12 | EG45: 12 | EH45: 6 | EI45: 6 | EJ45: - | EK45: - | EL45: - | EM45: - | EN45: 11 | EO45: 7 | EP45: 5 | EQ45: 2 | ER45: - | ES45: 3 | ET45: - | EU45: 1
A46: 静岡県 | B46: 葵区(静岡市) | C46: 静岡市２－１ | D46: 川合本村 | E46: 16 | F46: 5 | G46: 3 | H46: 3 | I46: - | J46: - | K46: 2 | L46: 11 | M46: 14 | N46: - | O46: - | P46: 1 | Q46: - | R46: - | S46: 1 | T46: 1 | U46: - | V46: 2 | W46: 2 | X46: 2 | Y46: 1 | Z46: 1 | AA46: 2 | AB46: 1 | AC46: 63.4 | AD46: 65.8 | AE46: 62.0 | AF46: 12 | AG46: - | AH46: - | AI46: - | AJ46: - | AK46: - | AL46: 1 | AM46: 1 | AN46: - | AO46: 1 | AP46: 2 | AQ46: 2 | AR46: 1 | AS46: 1 | AT46: 2 | AU46: 1 | AV46: 66.9 | AW46: 65.8 | AX46: 67.7 | AY46: 12 | AZ46: - | BA46: - | BB46: - | BC46: - | BD46: - | BE46: 1 | BF46: 1 | BG46: - | BH46: 1 | BI46: 2 | BJ46: 2 | BK46: 1 | BL46: 1 | BM46: 2 | BN46: 1 | BO46: 66.9 | BP46: 65.8 | BQ46: 67.7 | BR46: 5 | BS46: - | BT46: - | BU46: - | BV46: - | BW46: - | BX46: - | BY46: 1 | BZ46: - | CA46: - | CB46: 1 | CC46: 1 | CD46: 1 | CE46: - | CF46: 1 | CG46: - | CH46: 2 | CI46: - | CJ46: - | CK46: - | CL46: - | CM46: - | CN46: - | CO46: - | CP46: 1 | CQ46: - | CR46: - | CS46: - | CT46: 1 | CU46: - | DC46: 22 | DD46: 17 | DE46: 12 | DF46: 5 | DG46: - | DH46: 1 | DI46: 2 | DJ46: 2 | DK46: 5 | DL46: 1 | DM46: - | DN46: - | DO46: - | DP46: 2 | DQ46: 2 | DR46: - | DS46: - | DT46: - | DU46: - | DV46: - | DW46: - | DX46: - | DY46: - | DZ46: - | EA46: 5 | EB46: 220 | EC46: 144 | ED46: 76 | EE46: - | EF46: 8 | EG46: 7 | EH46: 5 | EI46: 2 | EJ46: - | EK46: - | EL46: 1 | EM46: - | EN46: 14 | EO46: 10 | EP46: 7 | EQ46: 3 | ER46: - | ES46: 1 | ET46: 1 | EU46: 2
A47: 静岡県 | B47: 葵区(静岡市) | C47: 静岡市２－１ | D47: 南沼上 | E47: 28 | F47: 16 | G47: 2 | H47: 2 | I47: 6 | J47: 3 | K47: 8 | L47: 12 | M47: 45 | N47: 2 | O47: - | P47: - | Q47: 2 | R47: - | S47: 1 | T47: 3 | U47: 5 | V47: 7 | W47: 4 | X47: 3 | Y47: 7 | Z47: 4 | AA47: 6 | AB47: 1 | AC47: 61.5 | AD47: 59.8 | AE47: 63.9 | AF47: 25 | AG47: - | AH47: - | AI47: - | AJ47: - | AK47: - | AL47: - | AM47: - | AN47: 1 | AO47: 3 | AP47: 3 | AQ47: 1 | AR47: 7 | AS47: 4 | AT47: 5 | AU47: 1 | AV47: 70.9 | AW47: 71.0 | AX47: 70.7 | AY47: 23 | AZ47: - | BA47: - | BB47: - | BC47: - | BD47: - | BE47: - | BF47: - | BG47: 1 | BH47: 2 | BI47: 3 | BJ47: 1 | BK47: 7 | BL47: 3 | BM47: 5 | BN47: 1 | BO47: 71.2 | BP47: 71.0 | BQ47: 71.6 | BR47: 16 | BS47: - | BT47: - | BU47: - | BV47: - | BW47: - | BX47: - | BY47: 1 | BZ47: - | CA47: 3 | CB47: 2 | CC47: 1 | CD47: 3 | CE47: 2 | CF47: 3 | CG47: 1 | CH47: 6 | CI47: - | CJ47: - | CK47: - | CL47: - | CM47: - | CN47: - | CO47: 1 | CP47: - | CQ47: - | CR47: - | CS47: 1 | CT47: 3 | CU47: 1 | DC47: 70 | DD47: 51 | DE47: 23 | DF47: 26 | DG47: 2 | DH47: 6 | DI47: 10 | DJ47: 3 | DK47: 14 | DL47: 3 | DM47: - | DN47: - | DO47: 1 | DP47: - | DQ47: - | DR47: 8 | DS47: 2 | DT47: - | DU47: - | DV47: - | DW47: - | DX47: - | DY47: - | DZ47: - | EA47: 16 | EB47: 1,704 | EC47: 957 | ED47: 112 | EE47: 635 | EF47: 33 | EG47: 29 | EH47: 14 | EI47: 14 | EJ47: 1 | EK47: - | EL47: 3 | EM47: 1 | EN47: 37 | EO47: 22 | EP47: 9 | EQ47: 12 | ER47: 1 | ES47: 6 | ET47: 7 | EU47: 2
A48: 静岡県 | B48: 葵区(静岡市) | C48: 静岡市２－１ | D48: 北沼上 | E48: 39 | F48: 20 | G48: 6 | H48: 4 | I48: 3 | J48: - | K48: 11 | L48: 19 | M48: 52 | N48: - | O48: - | P48: - | Q48: 3 | R48: - | S48: 2 | T48: 4 | U48: 3 | V48: 3 | W48: 1 | X48: 14 | Y48: 8 | Z48: 8 | AA48: 6 | AB48: - | AC48: 65.0 | AD48: 63.4 | AE48: 66.9 | AF48: 44 | AG48: - | AH48: - | AI48: - | AJ48: 3 | AK48: - | AL48: 1 | AM48: - | AN48: 2 | AO48: 2 | AP48: 1 | AQ48: 13 | AR48: 8 | AS48: 8 | AT48: 6 | AU48: - | AV48: 67.7 | AW48: 66.4 | AX48: 69.3 | AY48: 40 | AZ48: - | BA48: - | BB48: - | BC48: 2 | BD48: - | BE48: 1 | BF48: - | BG48: 2 | BH48: 2 | BI48: - | BJ48: 12 | BK48: 8 | BL48: 7 | BM48: 6 | BN48: - | BO48: 68.6 | BP48: 65.9 | BQ48: 72.1 | BR48: 20 | BS48: - | BT48: - | BU48: - | BV48: - | BW48: - | BX48: - | BY48: - | BZ48: 1 | CA48: 1 | CB48: - | CC48: 7 | CD48: 4 | CE48: 3 | CF48: 4 | CG48: - | CH48: 8 | CI48: - | CJ48: - | CK48: - | CL48: - | CM48: - | CN48: - | CO48: - | CP48: - | CQ48: 2 | CR48: 1 | CS48: 2 | CT48: 3 | CU48: - | DC48: 64 | DD48: 48 | DE48: 40 | DF48: 8 | DG48: - | DH48: 8 | DI48: 3 | DJ48: 5 | DK48: 20 | DL48: 1 | DM48: - | DN48: - | DO48: 6 | DP48: 1 | DQ48: - | DR48: 6 | DS48: 6 | DT48: - | DU48: - | DV48: - | DW48: - | DX48: - | DY48: - | DZ48: - | EA48: 20 | EB48: 1,739 | EC48: 260 | ED48: 196 | EE48: 1,283 | EF48: 32 | EG48: 29 | EH48: 23 | EI48: 6 | EJ48: - | EK48: - | EL48: 1 | EM48: 2 | EN48: 32 | EO48: 19 | EP48: 17 | EQ48: 2 | ER48: - | ES48: 8 | ET48: 2 | EU48: 3
A49: 静岡県 | B49: 葵区(静岡市) | C49: 静岡市２－１ | D49: 則沢 | E49: 17 | F49: 13 | G49: 4 | H49: 4 | I49: 5 | J49: 2 | K49: 4 | L49: 4 | M49: 33 | N49: - | O49: - | P49: 2 | Q49: - | R49: 2 | S49: 1 | T49: - | U49: 7 | V49: 4 | W49: 5 | X49: 2 | Y49: 5 | Z49: 1 | AA49: 4 | AB49: - | AC49: 59.0 | AD49: 55.6 | AE49: 62.5 | AF49: 22 | AG49: - | AH49: - | AI49: - | AJ49: - | AK49: - | AL49: - | AM49: - | AN49: 3 | AO49: 2 | AP49: 5 | AQ49: 2 | AR49: 5 | AS49: 1 | AT49: 4 | AU49: - | AV49: 66.5 | AW49: 65.5 | AX49: 67.3 | AY49: 21 | AZ49: - | BA49: - | BB49: - | BC49: - | BD49: - | BE49: - | BF49: - | BG49: 3 | BH49: 2 | BI49: 5 | BJ49: 2 | BK49: 5 | BL49: 1 | BM49: 3 | BN49: - | BO49: 65.7 | BP49: 65.5 | BQ49: 65.9 | BR49: 13 | BS49: - | BT49: - | BU49: - | BV49: - | BW49: - | BX49: - | BY49: - | BZ49: 3 | CA49: 3 | CB49: 3 | CC49: - | CD49: 3 | CE49: 1 | CF49: - | CG49: - | CH49: 2 | CI49: - | CJ49: - | CK49: - | CL49: - | CM49: - | CN49: - | CO49: - | CP49: 2 | CQ49: - | CR49: - | CS49: - | CT49: - | CU49: - | DC49: 48 | DD49: 40 | DE49: 21 | DF49: 19 | DG49: - | DH49: 1 | DI49: - | DJ49: 7 | DK49: 13 | DL49: - | DM49: - | DN49: - | DO49: 10 | DP49: - | DQ49: - | DR49: 1 | DS49: 1 | DT49: 1 | DU49: - | DV49: - | DW49: - | DX49: - | DY49: - | DZ49: - | EA49: 13 | EB49: 1,182 | EC49: 32 | ED49: 86 | EE49: 1,064 | EF49: 25 | EG49: 22 | EH49: 10 | EI49: 12 | EJ49: - | EK49: - | EL49: - | EM49: 3 | EN49: 23 | EO49: 18 | EP49: 11 | EQ49: 7 | ER49: - | ES49: 1 | ET49: - | EU49: 4
A50: 静岡県 | B50: 葵区(静岡市) | C50: 静岡市２－１ | D50: 銭座 | E50: 1 | F50: - | G50: - | H50: - | I50: - | J50: - | K50: - | L50: 1 | M50: - | N50: - | O50: - | P50: - | Q50: - | R50: - | S50: - | T50: - | U50: - | V50: - | W50: - | X50: - | Y50: - | Z50: - | AA50: - | AB50: - | AC50: … | AD50: … | AE50: … | AF50: - | AG50: - | AH50: - | AI50: - | AJ50: - | AK50: - | AL50: - | AM50: - | AN50: - | AO50: - | AP50: - | AQ50: - | AR50: - | AS50: - | AT50: - | AU50: - | AV50: … | AW50: … | AX50: … | AY50: - | AZ50: - | BA50: - | BB50: - | BC50: - | BD50: - | BE50: - | BF50: - | BG50: - | BH50: - | BI50: - | BJ50: - | BK50: - | BL50: - | BM50: - | BN50: - | BO50: … | BP50: … | BQ50: … | BR50: - | BS50: - | BT50: - | BU50: - | BV50: - | BW50: - | BX50: - | BY50: - | BZ50: - | CA50: - | CB50: - | CC50: - | CD50: - | CE50: - | CF50: - | CG50: - | CH50: - | CI50: - | CJ50: - | CK50: - | CL50: - | CM50: - | CN50: - | CO50: - | CP50: - | CQ50: - | CR50: - | CS50: - | CT50: - | CU50: - | DC50: - | DD50: - | DE50: - | DF50: - | DG50: - | DH50: - | DI50: - | DJ50: - | DK50: - | DL50: - | DM50: - | DN50: - | DO50: - | DP50: - | DQ50: - | DR50: - | DS50: - | DT50: - | DU50: - | DV50: - | DW50: - | DX50: - | DY50: - | DZ50: - | EA50: - | EB50: - | EC50: - | ED50: - | EE50: - | EF50: - | EG50: - | EH50: - | EI50: - | EJ50: - | EK50: - | EL50: - | EM50: - | EN50: - | EO50: - | EP50: - | EQ50: - | ER50: - | ES50: - | ET50: - | EU50: -
A51: 静岡県 | B51: 葵区(静岡市) | C51: 静岡市２－１ | D51: 池ヶ谷 | E51: 25 | F51: 17 | G51: 4 | H51: 4 | I51: 6 | J51: 4 | K51: 7 | L51: 8 | M51: 47 | N51: 1 | O51: 3 | P51: 2 | Q51: - | R51: - | S51: 3 | T51: 3 | U51: 6 | V51: 8 | W51: 6 | X51: 3 | Y51: 2 | Z51: 8 | AA51: 2 | AB51: - | AC51: 56.7 | AD51: 58.0 | AE51: 55.7 | AF51: 27 | AG51: - | AH51: - | AI51: 2 | AJ51: - | AK51: - | AL51: - | AM51: 1 | AN51: 2 | AO51: 4 | AP51: 5 | AQ51: 3 | AR51: 2 | AS51: 7 | AT51: 1 | AU51: - | AV51: 63.5 | AW51: 61.3 | AX51: 65.2 | AY51: 24 | AZ51: - | BA51: - | BB51: 2 | BC51: - | BD51: - | BE51: - | BF51: - | BG51: 1 | BH51: 4 | BI51: 5 | BJ51: 3 | BK51: 2 | BL51: 6 | BM51: 1 | BN51: - | BO51: 64.3 | BP51: 60.0 | BQ51: 67.8 | BR51: 17 | BS51: - | BT51: - | BU51: - | BV51: - | BW51: - | BX51: - | BY51: - | BZ51: 1 | CA51: 2 | CB51: 5 | CC51: 2 | CD51: 2 | CE51: 4 | CF51: 1 | CG51: - | CH51: 10 | CI51: - | CJ51: - | CK51: - | CL51: - | CM51: - | CN51: - | CO51: 2 | CP51: - | CQ51: 2 | CR51: 1 | CS51: 4 | CT51: 1 | CU51: - | DC51: 61 | DD51: 40 | DE51: 24 | DF51: 15 | DG51: 1 | DH51: 6 | DI51: 8 | DJ51: 7 | DK51: 15 | DL51: 1 | DM51: - | DN51: - | DO51: - | DP51: 1 | DQ51: - | DR51: 13 | DS51: - | DT51: - | DU51: - | DV51: - | DW51: - | DX51: - | DY51: - | DZ51: - | EA51: 17 | EB51: 1,313 | EC51: 406 | ED51: 202 | EE51: 705 | EF51: 26 | EG51: 20 | EH51: 11 | EI51: 8 | EJ51: 1 | EK51: - | EL51: 2 | EM51: 4 | EN51: 35 | EO51: 20 | EP51: 13 | EQ51: 7 | ER51: - | ES51: 6 | ET51: 6 | EU51: 3
A52: 静岡県 | B52: 葵区(静岡市) | C52: 静岡市２－１ | D52: 南口 | E52: 23 | F52: 16 | G52: 4 | H52: 4 | I52: 3 | J52: - | K52: 9 | L52: 7 | M52: 45 | N52: - | O52: 3 | P52: - | Q52: 2 | R52: - | S52: - | T52: 7 | U52: 6 | V52: 3 | W52: 4 | X52: 2 | Y52: 8 | Z52: 6 | AA52: 4 | AB52: - | AC52: 59.6 | AD52: 58.1 | AE52: 61.1 | AF52: 30 | AG52: - | AH52: - | AI52: - | AJ52: 2 | AK52: - | AL52: - | AM52: 3 | AN52: 2 | AO52: 1 | AP52: 4 | AQ52: - | AR52: 8 | AS52: 6 | AT52: 4 | AU52: - | AV52: 66.1 | AW52: 67.5 | AX52: 65.0 | AY52: 27 | AZ52: - | BA52: - | BB52: - | BC52: 1 | BD52: - | BE52: - | BF52: 1 | BG52: 2 | BH52: 1 | BI52: 4 | BJ52: - | BK52: 8 | BL52: 6 | BM52: 4 | BN52: - | BO52: 68.7 | BP52: 67.5 | BQ52: 69.9 | BR52: 16 | BS52: - | BT52: - | BU52: - | BV52: - | BW52: - | BX52: - | BY52: 2 | BZ52: 2 | CA52: 1 | CB52: 3 | CC52: 1 | CD52: 2 | CE52: 3 | CF52: 2 | CG52: - | CH52: 7 | CI52: - | CJ52: - | CK52: - | CL52: - | CM52: 2 | CN52: 1 | CO52: - | CP52: 1 | CQ52: - | CR52: - | CS52: 1 | CT52: 2 | CU52: - | DC52: 62 | DD52: 49 | DE52: 27 | DF52: 19 | DG52: 3 | DH52: 4 | DI52: 6 | DJ52: 3 | DK52: 14 | DL52: 1 | DM52: - | DN52: - | DO52: 1 | DP52: 1 | DQ52: - | DR52: 11 | DS52: - | DT52: - | DU52: - | DV52: - | DW52: - | DX52: - | DY52: - | DZ52: - | EA52: 16 | EB52: 1,084 | EC52: 222 | ED52: 113 | EE52: 749 | EF52: 31 | EG52: 28 | EH52: 13 | EI52: 13 | EJ52: 2 | EK52: - | EL52: 3 | EM52: - | EN52: 31 | EO52: 21 | EP52: 14 | EQ52: 6 | ER52: 1 | ES52: 4 | ET52: 3 | EU52: 3
A53: 静岡県 | B53: 葵区(静岡市) | C53: 静岡市２－１ | D53: 南中 | E53: 28 | F53: 21 | G53: 4 | H53: 4 | I53: 8 | J53: 4 | K53: 9 | L53: 7 | M53: 59 | N53: - | O53: 2 | P53: 4 | Q53: 2 | R53: 1 | S53: 4 | T53: - | U53: 5 | V53: 9 | W53: 4 | X53: 10 | Y53: 7 | Z53: 5 | AA53: 3 | AB53: 3 | AC53: 59.5 | AD53: 57.0 | AE53: 62.4 | AF53: 37 | AG53: - | AH53: 1 | AI53: - | AJ53: - | AK53: - | AL53: 2 | AM53: - | AN53: 3 | AO53: 3 | AP53: 3 | AQ53: 9 | AR53: 6 | AS53: 4 | AT53: 3 | AU53: 3 | AV53: 66.9 | AW53: 64.4 | AX53: 70.2 | AY53: 35 | AZ53: - | BA53: 1 | BB53: - | BC53: - | BD53: - | BE53: 2 | BF53: - | BG53: 3 | BH53: 3 | BI53: 3 | BJ53: 9 | BK53: 6 | BL53: 4 | BM53: 3 | BN53: 1 | BO53: 65.7 | BP53: 63.3 | BQ53: 68.9 | BR53: 21 | BS53: - | BT53: - | BU53: - | BV53: - | BW53: - | BX53: 1 | BY53: - | BZ53: 3 | CA53: 3 | CB53: 4 | CC53: 5 | CD53: 4 | CE53: 1 | CF53: - | CG53: - | CH53: 7 | CI53: - | CJ53: - | CK53: - | CL53: - | CM53: - | CN53: 1 | CO53: - | CP53: - | CQ53: 3 | CR53: 2 | CS53: 1 | CT53: - | CU53: - | DC53: 84 | DD53: 63 | DE53: 35 | DF53: 28 | DG53: - | DH53: 6 | DI53: 4 | DJ53: 11 | DK53: 21 | DL53: 2 | DM53: - | DN53: - | DO53: - | DP53: 1 | DQ53: - | DR53: 18 | DS53: - | DT53: - | DU53: - | DV53: - | DW53: - | DX53: - | DY53: - | DZ53: - | EA53: 21 | EB53: 1,877 | EC53: 681 | ED53: 122 | EE53: 1,074 | EF53: 39 | EG53: 36 | EH53: 20 | EI53: 16 | EJ53: - | EK53: - | EL53: 1 | EM53: 2 | EN53: 45 | EO53: 27 | EP53: 15 | EQ53: 12 | ER53: - | ES53: 6 | ET53: 3 | EU53: 9
A54: 静岡県 | B54: 葵区(静岡市) | C54: 静岡市２－１ | D54: 南奥 | E54: 27 | F54: 11 | G54: 4 | H54: 4 | I54: 3 | J54: 2 | K54: 4 | L54: 16 | M54: 30 | N54: - | O54: - | P54: 1 | Q54: - | R54: 1 | S54: 2 | T54: 1 | U54: 3 | V54: 5 | W54: 1 | X54: 2 | Y54: 7 | Z54: 3 | AA54: 4 | AB54: - | AC54: 63.1 | AD54: 61.2 | AE54: 65.8 | AF54: 22 | AG54: - | AH54: - | AI54: - | AJ54: - | AK54: - | AL54: - | AM54: - | AN54: 3 | AO54: 3 | AP54: 1 | AQ54: 1 | AR54: 7 | AS54: 3 | AT54: 4 | AU54: - | AV54: 68.8 | AW54: 68.2 | AX54: 69.7 | AY54: 18 | AZ54: - | BA54: - | BB54: - | BC54: - | BD54: - | BE54: - | BF54: - | BG54: 3 | BH54: 3 | BI54: 1 | BJ54: 1 | BK54: 6 | BL54: 2 | BM54: 2 | BN54: - | BO54: 66.7 | BP54: 65.6 | BQ54: 68.3 | BR54: 11 | BS54: - | BT54: - | BU54: - | BV54: - | BW54: - | BX54: - | BY54: - | BZ54: 2 | CA54: 2 | CB54: 1 | CC54: 2 | CD54: 3 | CE54: - | CF54: 1 | CG54: - | CH54: 3 | CI54: - | CJ54: - | CK54: - | CL54: - | CM54: - | CN54: - | CO54: 1 | CP54: - | CQ54: - | CR54: 1 | CS54: - | CT54: 1 | CU54: - | DC54: 44 | DD54: 35 | DE54: 18 | DF54: 16 | DG54: 1 | DH54: 3 | DI54: 2 | DJ54: 4 | DK54: 11 | DL54: 2 | DM54: - | DN54: - | DO54: 1 | DP54: 1 | DQ54: 1 | DR54: 6 | DS54: - | DT54: - | DU54: - | DV54: - | DW54: - | DX54: - | DY54: - | DZ54: - | EA54: 11 | EB54: 927 | EC54: 152 | ED54: 120 | EE54: 655 | EF54: 24 | EG54: 19 | EH54: 11 | EI54: 8 | EJ54: - | EK54: - | EL54: 2 | EM54: 3 | EN54: 20 | EO54: 16 | EP54: 7 | EQ54: 8 | ER54: 1 | ES54: 3 | ET54: - | EU54: 1
A55: 静岡県 | B55: 葵区(静岡市) | C55: 静岡市２－１ | D55: 有永 | E55: 29 | F55: 20 | G55: 10 | H55: 9 | I55: 3 | J55: 2 | K55: 7 | L55: 9 | M55: 53 | N55: - | O55: 1 | P55: 1 | Q55: - | R55: 1 | S55: - | T55: 4 | U55: 6 | V55: 11 | W55: 3 | X55: 6 | Y55: 5 | Z55: 6 | AA55: 8 | AB55: 1 | AC55: 63.4 | AD55: 64.0 | AE55: 62.9 | AF55: 42 | AG55: - | AH55: 1 | AI55: 1 | AJ55: - | AK55: 1 | AL55: - | AM55: 1 | AN55: 3 | AO55: 8 | AP55: 3 | AQ55: 6 | AR55: 5 | AS55: 6 | AT55: 7 | AU55: - | AV55: 64.9 | AW55: 64.7 | AX55: 65.0 | AY55: 41 | AZ55: - | BA55: 1 | BB55: 1 | BC55: - | BD55: 1 | BE55: - | BF55: 1 | BG55: 3 | BH55: 7 | BI55: 3 | BJ55: 6 | BK55: 5 | BL55: 6 | BM55: 7 | BN55: - | BO55: 65.1 | BP55: 64.7 | BQ55: 65.4 | BR55: 20 | BS55: - | BT55: - | BU55: - | BV55: - | BW55: - | BX55: - | BY55: - | BZ55: 1 | CA55: 7 | CB55: - | CC55: 4 | CD55: 2 | CE55: 3 | CF55: 2 | CG55: 1 | CH55: 6 | CI55: - | CJ55: - | CK55: - | CL55: - | CM55: - | CN55: 1 | CO55: 2 | CP55: - | CQ55: - | CR55: - | CS55: 2 | CT55: - | CU55: 1 | DC55: 77 | DD55: 59 | DE55: 41 | DF55: 18 | DG55: - | DH55: 5 | DI55: 7 | DJ55: 6 | DK55: 20 | DL55: 2 | DM55: - | DN55: - | DO55: 1 | DP55: 2 | DQ55: 4 | DR55: 10 | DS55: 1 | DT55: - | DU55: - | DV55: - | DW55: - | DX55: - | DY55: - | DZ55: - | EA55: 20 | EB55: 1,630 | EC55: 561 | ED55: 252 | EE55: 817 | EF55: 33 | EG55: 28 | EH55: 19 | EI55: 9 | EJ55: - | EK55: - | EL55: 3 | EM55: 2 | EN55: 44 | EO55: 31 | EP55: 22 | EQ55: 9 | ER55: - | ES55: 5 | ET55: 4 | EU55: 4
A56: 静岡県 | B56: 葵区(静岡市) | C56: 静岡市２－１ | D56: 羽高 | E56: 19 | F56: 8 | G56: 3 | H56: 3 | I56: 4 | J56: 4 | K56: 1 | L56: 11 | M56: 20 | N56: - | O56: - | P56: 1 | Q56: 2 | R56: - | S56: - | T56: - | U56: 5 | V56: 4 | W56: 2 | X56: 1 | Y56: 1 | Z56: 3 | AA56: 1 | AB56: - | AC56: 57.9 | AD56: 55.0 | AE56: 63.3 | AF56: 15 | AG56: - | AH56: - | AI56: - | AJ56: - | AK56: - | AL56: - | AM56: - | AN56: 5 | AO56: 3 | AP56: 1 | AQ56: 1 | AR56: 1 | AS56: 3 | AT56: 1 | AU56: - | AV56: 63.4 | AW56: 62.8 | AX56: 64.3 | AY56: 14 | AZ56: - | BA56: - | BB56: - | BC56: - | BD56: - | BE56: - | BF56: - | BG56: 5 | BH56: 2 | BI56: 1 | BJ56: 1 | BK56: 1 | BL56: 3 | BM56: 1 | BN56: - | BO56: 63.9 | BP56: 62.8 | BQ56: 65.8 | BR56: 8 | BS56: - | BT56: - | BU56: - | BV56: - | BW56: - | BX56: - | BY56: - | BZ56: 3 | CA56: 2 | CB56: 2 | CC56: - | CD56: 1 | CE56: - | CF56: - | CG56: - | CH56: - | CI56: - | CJ56: - | CK56: - | CL56: - | CM56: - | CN56: - | CO56: - | CP56: - | CQ56: - | CR56: - | CS56: - | CT56: - | CU56: - | DC56: 30 | DD56: 22 | DE56: 14 | DF56: 5 | DG56: 3 | DH56: 3 | DI56: 1 | DJ56: 4 | DK56: 8 | DL56: 1 | DM56: - | DN56: - | DO56: - | DP56: - | DQ56: 3 | DR56: 4 | DS56: - | DT56: - | DU56: - | DV56: - | DW56: - | DX56: - | DY56: - | DZ56: - | EA56: 8 | EB56: 873 | EC56: 199 | ED56: 81 | EE56: 593 | EF56: 15 | EG56: 14 | EH56: 9 | EI56: 2 | EJ56: 3 | EK56: - | EL56: 1 | EM56: - | EN56: 15 | EO56: 8 | EP56: 5 | EQ56: 3 | ER56: - | ES56: 3 | ET56: - | EU56: 4
A57: 静岡県 | B57: 葵区(静岡市) | C57: 静岡市２－１ | D57: 北一 | E57: 26 | F57: 13 | G57: 8 | H57: 8 | I57: 1 | J57: 1 | K57: 4 | L57: 13 | M57: 35 | N57: - | O57: 2 | P57: 2 | Q57: 1 | R57: 1 | S57: 1 | T57: 1 | U57: 4 | V57: 5 | W57: 5 | X57: - | Y57: 3 | Z57: 3 | AA57: 5 | AB57: 2 | AC57: 59.7 | AD57: 59.3 | AE57: 60.3 | AF57: 27 | AG57: - | AH57: - | AI57: - | AJ57: 1 | AK57: 1 | AL57: - | AM57: 1 | AN57: 2 | AO57: 5 | AP57: 4 | AQ57: - | AR57: 3 | AS57: 3 | AT57: 5 | AU57: 2 | AV57: 65.9 | AW57: 64.1 | AX57: 68.5 | AY57: 26 | AZ57: - | BA57: - | BB57: - | BC57: 1 | BD57: 1 | BE57: - | BF57: 1 | BG57: 2 | BH57: 5 | BI57: 4 | BJ57: - | BK57: 3 | BL57: 3 | BM57: 5 | BN57: 1 | BO57: 65.2 | BP57: 62.7 | BQ57: 68.5 | BR57: 13 | BS57: - | BT57: - | BU57: - | BV57: - | BW57: - | BX57: - | BY57: 1 | BZ57: 1 | CA57: 3 | CB57: 3 | CC57: - | CD57: 1 | CE57: 1 | CF57: 2 | CG57: 1 | CH57: 5 | CI57: - | CJ57: - | CK57: - | CL57: - | CM57: - | CN57: - | CO57: 1 | CP57: - | CQ57: - | CR57: - | CS57: 1 | CT57: 2 | CU57: 1 | DC57: 55 | DD57: 41 | DE57: 26 | DF57: 15 | DG57: - | DH57: 3 | DI57: 2 | DJ57: 9 | DK57: 13 | DL57: 3 | DM57: - | DN57: - | DO57: 2 | DP57: 1 | DQ57: 1 | DR57: 6 | DS57: - | DT57: - | DU57: - | DV57: - | DW57: - | DX57: - | DY57: - | DZ57: - | EA57: 13 | EB57: 1,719 | EC57: 749 | ED57: 157 | EE57: 813 | EF57: 29 | EG57: 26 | EH57: 15 | EI57: 11 | EJ57: - | EK57: - | EL57: - | EM57: 3 | EN57: 26 | EO57: 15 | EP57: 11 | EQ57: 4 | ER57: - | ES57: 3 | ET57: 2 | EU57: 6
A58: 静岡県 | B58: 葵区(静岡市) | C58: 静岡市２－１ | D58: 北二 | E58: 27 | F58: 14 | G58: 3 | H58: 2 | I58: 5 | J58: 3 | K58: 6 | L58: 13 | M58: 33 | N58: - | O58: - | P58: - | Q58: - | R58: 1 | S58: 1 | T58: 1 | U58: 3 | V58: 6 | W58: 5 | X58: 2 | Y58: 6 | Z58: 7 | AA58: 1 | AB58: - | AC58: 64.2 | AD58: 65.2 | AE58: 63.1 | AF58: 26 | AG58: - | AH58: - | AI58: - | AJ58: - | AK58: - | AL58: - | AM58: - | AN58: 2 | AO58: 4 | AP58: 5 | AQ58: 2 | AR58: 5 | AS58: 7 | AT58: 1 | AU58: - | AV58: 67.6 | AW58: 69.1 | AX58: 65.5 | AY58: 24 | AZ58: - | BA58: - | BB58: - | BC58: - | BD58: - | BE58: - | BF58: - | BG58: 2 | BH58: 3 | BI58: 4 | BJ58: 2 | BK58: 5 | BL58: 7 | BM58: 1 | BN58: - | BO58: 68.4 | BP58: 69.1 | BQ58: 67.1 | BR58: 14 | BS58: - | BT58: - | BU58: - | BV58: - | BW58: - | BX58: - | BY58: - | BZ58: 1 | CA58: 1 | CB58: 3 | CC58: 1 | CD58: 2 | CE58: 5 | CF58: 1 | CG58: - | CH58: 3 | CI58: - | CJ58: - | CK58: - | CL58: - | CM58: - | CN58: - | CO58: - | CP58: 1 | CQ58: - | CR58: - | CS58: 1 | CT58: 1 | CU58: - | DC58: 49 | DD58: 40 | DE58: 24 | DF58: 16 | DG58: - | DH58: 5 | DI58: - | DJ58: 4 | DK58: 12 | DL58: 1 | DM58: - | DN58: - | DO58: 2 | DP58: - | DQ58: 1 | DR58: 7 | DS58: - | DT58: 1 | DU58: - | DV58: - | DW58: - | DX58: - | DY58: - | DZ58: - | EA58: 14 | EB58: 1,026 | EC58: 150 | ED58: 73 | EE58: 803 | EF58: 24 | EG58: 24 | EH58: 15 | EI58: 9 | EJ58: - | EK58: - | EL58: - | EM58: - | EN58: 25 | EO58: 16 | EP58: 9 | EQ58: 7 | ER58: - | ES58: 5 | ET58: - | EU58: 4
A59: 静岡県 | B59: 葵区(静岡市) | C59: 静岡市２－１ | D59: 東 | E59: 38 | F59: 17 | G59: 7 | H59: 6 | I59: 2 | J59: 1 | K59: 8 | L59: 21 | M59: 42 | N59: - | O59: - | P59: - | Q59: 2 | R59: 1 | S59: 3 | T59: 3 | U59: 6 | V59: 2 | W59: 2 | X59: 2 | Y59: 12 | Z59: 5 | AA59: 4 | AB59: - | AC59: 62.9 | AD59: 64.4 | AE59: 61.2 | AF59: 35 | AG59: - | AH59: - | AI59: - | AJ59: 1 | AK59: - | AL59: 2 | AM59: 2 | AN59: 4 | AO59: 2 | AP59: 2 | AQ59: 2 | AR59: 11 | AS59: 5 | AT59: 4 | AU59: - | AV59: 65.8 | AW59: 65.8 | AX59: 65.8 | AY59: 31 | AZ59: - | BA59: - | BB59: - | BC59: 1 | BD59: - | BE59: 1 | BF59: 2 | BG59: 4 | BH59: 2 | BI59: 2 | BJ59: 2 | BK59: 8 | BL59: 5 | BM59: 4 | BN59: - | BO59: 65.9 | BP59: 65.8 | BQ59: 66.0 | BR59: 17 | BS59: - | BT59: - | BU59: - | BV59: - | BW59: - | BX59: 1 | BY59: 2 | BZ59: - | CA59: - | CB59: 2 | CC59: - | CD59: 4 | CE59: 5 | CF59: 3 | CG59: - | CH59: 6 | CI59: - | CJ59: - | CK59: - | CL59: - | CM59: - | CN59: - | CO59: - | CP59: - | CQ59: - | CR59: 1 | CS59: 3 | CT59: 2 | CU59: - | DC59: 56 | DD59: 40 | DE59: 31 | DF59: 9 | DG59: - | DH59: 6 | DI59: 7 | DJ59: 3 | DK59: 17 | DL59: 2 | DM59: - | DN59: - | DO59: 2 | DP59: - | DQ59: 4 | DR59: 6 | DS59: 3 | DT59: - | DU59: - | DV59: - | DW59: - | DX59: - | DY59: - | DZ59: - | EA59: 17 | EB59: 1,745 | EC59: 468 | ED59: 282 | EE59: 995 | EF59: 27 | EG59: 25 | EH59: 19 | EI59: 6 | EJ59: - | EK59: - | EL59: 2 | EM59: - | EN59: 29 | EO59: 15 | EP59: 12 | EQ59: 3 | ER59: - | ES59: 6 | ET59: 5 | EU59: 3
A60: 静岡県 | B60: 葵区(静岡市) | C60: 静岡市２－１ | D60: 瀬名川 | E60: 32 | F60: 9 | G60: 7 | H60: 6 | I60: 1 | J60: 1 | K60: 1 | L60: 23 | M60: 30 | N60: 1 | O60: 1 | P60: 1 | Q60: - | R60: - | S60: 2 | T60: 3 | U60: 4 | V60: 3 | W60: 3 | X60: 3 | Y60: 2 | Z60: 2 | AA60: 4 | AB60: 1 | AC60: 59.3 | AD60: 61.0 | AE60: 57.5 | AF60: 23 | AG60: - | AH60: - | AI60: - | AJ60: - | AK60: - | AL60: 1 | AM60: 3 | AN60: 4 | AO60: 3 | AP60: 2 | AQ60: 1 | AR60: 2 | AS60: 2 | AT60: 4 | AU60: 1 | AV60: 63.9 | AW60: 63.3 | AX60: 64.5 | AY60: 22 | AZ60: - | BA60: - | BB60: - | BC60: - | BD60: - | BE60: 1 | BF60: 2 | BG60: 4 | BH60: 3 | BI60: 2 | BJ60: 1 | BK60: 2 | BL60: 2 | BM60: 4 | BN60: 1 | BO60: 64.6 | BP60: 63.3 | BQ60: 66.1 | BR60: 9 | BS60: - | BT60: - | BU60: - | BV60: - | BW60: - | BX60: 1 | BY60: - | BZ60: 1 | CA60: 1 | CB60: 2 | CC60: 1 | CD60: 1 | CE60: 1 | CF60: - | CG60: 1 | CH60: 4 | CI60: - | CJ60: - | CK60: - | CL60: - | CM60: - | CN60: - | CO60: - | CP60: 1 | CQ60: - | CR60: 1 | CS60: 1 | CT60: - | CU60: 1 | DC60: 36 | DD60: 28 | DE60: 22 | DF60: 6 | DG60: - | DH60: 2 | DI60: 3 | DJ60: 3 | DK60: 9 | DL60: - | DM60: - | DN60: - | DO60: - | DP60: - | DQ60: 1 | DR60: 7 | DS60: - | DT60: 1 | DU60: - | DV60: - | DW60: - | DX60: - | DY60: - | DZ60: - | EA60: 9 | EB60: 708 | EC60: 201 | ED60: 71 | EE60: 436 | EF60: 18 | EG60: 17 | EH60: 12 | EI60: 5 | EJ60: - | EK60: - | EL60: 1 | EM60: - | EN60: 18 | EO60: 11 | EP60: 10 | EQ60: 1 | ER60: - | ES60: 2 | ET60: 2 | EU60: 3
A61: 静岡県 | B61: 葵区(静岡市) | C61: 静岡市２－１ | D61: 瀬名 | E61: 90 | F61: 47 | G61: 10 | H61: 9 | I61: 19 | J61: 9 | K61: 18 | L61: 43 | M61: 125 | N61: 1 | O61: 2 | P61: 1 | Q61: 2 | R61: 6 | S61: 4 | T61: 15 | U61: 12 | V61: 13 | W61: 13 | X61: 18 | Y61: 12 | Z61: 13 | AA61: 8 | AB61: 5 | AC61: 60.7 | AD61: 61.5 | AE61: 59.7 | AF61: 85 | AG61: - | AH61: 2 | AI61: - | AJ61: - | AK61: 1 | AL61: - | AM61: 6 | AN61: 8 | AO61: 9 | AP61: 6 | AQ61: 18 | AR61: 11 | AS61: 12 | AT61: 8 | AU61: 4 | AV61: 65.9 | AW61: 66.9 | AX61: 64.7 | AY61: 75 | AZ61: - | BA61: - | BB61: - | BC61: - | BD61: 1 | BE61: - | BF61: 5 | BG61: 8 | BH61: 9 | BI61: 6 | BJ61: 18 | BK61: 11 | BL61: 9 | BM61: 8 | BN61: - | BO61: 65.6 | BP61: 65.8 | BQ61: 65.4 | BR61: 47 | BS61: - | BT61: - | BU61: - | BV61: - | BW61: - | BX61: 1 | BY61: 3 | BZ61: 5 | CA61: 5 | CB61: 7 | CC61: 10 | CD61: 7 | CE61: 3 | CF61: 4 | CG61: 2 | CH61: 19 | CI61: - | CJ61: - | CK61: - | CL61: 1 | CM61: - | CN61: 2 | CO61: - | CP61: 1 | CQ61: 3 | CR61: 5 | CS61: 2 | CT61: 3 | CU61: 2 | DC61: 203 | DD61: 142 | DE61: 75 | DF61: 61 | DG61: 6 | DH61: 16 | DI61: 23 | DJ61: 22 | DK61: 46 | DL61: 3 | DM61: - | DN61: - | DO61: 4 | DP61: 6 | DQ61: 7 | DR61: 23 | DS61: 3 | DT61: - | DU61: - | DV61: - | DW61: - | DX61: - | DY61: - | DZ61: - | EA61: 47 | EB61: 4,128 | EC61: 1,307 | ED61: 609 | EE61: 2,212 | EF61: 93 | EG61: 78 | EH61: 43 | EI61: 32 | EJ61: 3 | EK61: - | EL61: 8 | EM61: 7 | EN61: 110 | EO61: 64 | EP61: 32 | EQ61: 29 | ER61: 3 | ES61: 16 | ET61: 15 | EU61: 15
A62: 静岡県 | B62: 葵区(静岡市) | C62: 静岡市２－１ | D62: 長尾 | E62: 15 | F62: 7 | G62: 1 | H62: 1 | I62: 4 | J62: 4 | K62: 2 | L62: 8 | M62: 19 | N62: 1 | O62: 1 | P62: 3 | Q62: - | R62: - | S62: - | T62: 3 | U62: 3 | V62: 2 | W62: 3 | X62: 1 | Y62: - | Z62: 1 | AA62: 1 | AB62: - | AC62: 49.6 | AD62: 54.0 | AE62: 44.8 | AF62: 6 | AG62: - | AH62: - | AI62: - | AJ62: - | AK62: - | AL62: - | AM62: 1 | AN62: 1 | AO62: - | AP62: 1 | AQ62: 1 | AR62: - | AS62: 1 | AT62: 1 | AU62: - | AV62: 64.3 | AW62: 65.0 | AX62: 63.0 | AY62: 6 | AZ62: - | BA62: - | BB62: - | BC62: - | BD62: - | BE62: - | BF62: 1 | BG62: 1 | BH62: - | BI62: 1 | BJ62: 1 | BK62: - | BL62: 1 | BM62: 1 | BN62: - | BO62: 64.3 | BP62: 65.0 | BQ62: 63.0 | BR62: 7 | BS62: - | BT62: - | BU62: - | BV62: - | BW62: - | BX62: - | BY62: 1 | BZ62: 1 | CA62: 1 | CB62: 3 | CC62: 1 | CD62: - | CE62: - | CF62: - | CG62: - | CH62: 3 | CI62: - | CJ62: - | CK62: - | CL62: - | CM62: - | CN62: 1 | CO62: 1 | CP62: 1 | CQ62: - | CR62: - | CS62: - | CT62: - | CU62: - | DC62: 30 | DD62: 20 | DE62: 6 | DF62: 14 | DG62: - | DH62: 1 | DI62: 4 | DJ62: 5 | DK62: 7 | DL62: - | DM62: - | DN62: - | DO62: 1 | DP62: - | DQ62: - | DR62: 5 | DS62: 1 | DT62: - | DU62: - | DV62: - | DW62: - | DX62: - | DY62: - | DZ62: - | EA62: 7 | EB62: 502 | EC62: 20 | ED62: 50 | EE62: 432 | EF62: 15 | EG62: 12 | EH62: 4 | EI62: 8 | EJ62: - | EK62: - | EL62: 2 | EM62: 1 | EN62: 15 | EO62: 8 | EP62: 2 | EQ62: 6 | ER62: - | ES62: 1 | ET62: 2 | EU62: 4
A63: 静岡県 | B63: 葵区(静岡市) | C63: 静岡市２－１ | D63: 平山 | E63: 53 | F63: 40 | G63: 18 | H63: 18 | I63: 3 | J63: 1 | K63: 19 | L63: 13 | M63: 99 | N63: 1 | O63: - | P63: - | Q63: 4 | R63: 4 | S63: 3 | T63: 6 | U63: 9 | V63: 18 | W63: 10 | X63: 12 | Y63: 11 | Z63: 8 | AA63: 11 | AB63: 2 | AC63: 61.6 | AD63: 60.1 | AE63: 63.3 | AF63: 73 | AG63: - | AH63: - | AI63: - | AJ63: - | AK63: 2 | AL63: 2 | AM63: 1 | AN63: 5 | AO63: 14 | AP63: 8 | AQ63: 12 | AR63: 10 | AS63: 8 | AT63: 9 | AU63: 2 | AV63: 65.9 | AW63: 65.9 | AX63: 65.9 | AY63: 67 | AZ63: - | BA63: - | BB63: - | BC63: - | BD63: 2 | BE63: 2 | BF63: - | BG63: 4 | BH63: 14 | BI63: 8 | BJ63: 12 | BK63: 10 | BL63: 6 | BM63: 8 | BN63: 1 | BO63: 65.4 | BP63: 64.9 | BQ63: 66.1 | BR63: 40 | BS63: - | BT63: - | BU63: - | BV63: - | BW63: - | BX63: 3 | BY63: 1 | BZ63: 3 | CA63: 11 | CB63: 4 | CC63: 7 | CD63: 4 | CE63: 5 | CF63: 2 | CG63: - | CH63: 13 | CI63: - | CJ63: - | CK63: - | CL63: - | CM63: - | CN63: - | CO63: 3 | CP63: 3 | CQ63: 2 | CR63: 2 | CS63: 2 | CT63: 1 | CU63: - | DC63: 133 | DD63: 99 | DE63: 67 | DF63: 30 | DG63: 2 | DH63: 12 | DI63: 6 | DJ63: 16 | DK63: 40 | DL63: - | DM63: - | DN63: - | DO63: 36 | DP63: 1 | DQ63: 1 | DR63: 1 | DS63: - | DT63: 1 | DU63: - | DV63: - | DW63: - | DX63: - | DY63: - | DZ63: - | EA63: 40 | EB63: 4,223 | EC63: 99 | ED63: 56 | EE63: 4,068 | EF63: 63 | EG63: 54 | EH63: 36 | EI63: 17 | EJ63: 1 | EK63: - | EL63: 4 | EM63: 5 | EN63: 70 | EO63: 45 | EP63: 31 | EQ63: 13 | ER63: 1 | ES63: 12 | ET63: 2 | EU63: 11
A64: 静岡県 | B64: 葵区(静岡市) | C64: 静岡市２－１ | D64: 安倍川河川敷２－１ | E64: @ | F64: @ | G64: @ | H64: @ | I64: @ | J64: @ | K64: @ | L64: @ | M64: @ | N64: @ | O64: @ | P64: @ | Q64: @ | R64: @ | S64: @ | T64: @ | U64: @ | V64: @ | W64: @ | X64: @ | Y64: @ | Z64: @ | AA64: @ | AB64: @ | AC64: … | AD64: … | AE64: … | AF64: @ | AG64: @ | AH64: @ | AI64: @ | AJ64: @ | AK64: @ | AL64: @ | AM64: @ | AN64: @ | AO64: @ | AP64: @ | AQ64: @ | AR64: @ | AS64: @ | AT64: @ | AU64: @ | AV64: … | AW64: … | AX64: … | AY64: @ | AZ64: @ | BA64: @ | BB64: @ | BC64: @ | BD64: @ | BE64: @ | BF64: @ | BG64: @ | BH64: @ | BI64: @ | BJ64: @ | BK64: @ | BL64: @ | BM64: @ | BN64: @ | BO64: … | BP64: … | BQ64: … | BR64: - | BS64: - | BT64: - | BU64: - | BV64: - | BW64: - | BX64: - | BY64: - | BZ64: - | CA64: - | CB64: - | CC64: - | CD64: - | CE64: - | CF64: - | CG64: - | CH64: - | CI64: - | CJ64: - | CK64: - | CL64: - | CM64: - | CN64: - | CO64: - | CP64: - | CQ64: - | CR64: - | CS64: - | CT64: - | CU64: - | DC64: - | DD64: - | DE64: - | DF64: - | DG64: - | DH64: - | DI64: - | DJ64: - | DK64: - | DL64: - | DM64: - | DN64: - | DO64: - | DP64: - | DQ64: - | DR64: - | DS64: - | DT64: - | DU64: - | DV64: - | DW64: - | DX64: - | DY64: - | DZ64: - | EA64: - | EB64: - | EC64: - | ED64: - | EE64: - | EF64: - | EG64: - | EH64: - | EI64: - | EJ64: - | EK64: - | EL64: - | EM64: - | EN64: - | EO64: - | EP64: - | EQ64: - | ER64: - | ES64: - | ET64: - | EU64: -
A65: 静岡県 | B65: 葵区(静岡市) | C65: 美和村 | E65: 477 | F65: 325 | G65: 113 | H65: 101 | I65: 67 | J65: 30 | K65: 145 | L65: 152 | M65: 903 | N65: 7 | O65: 22 | P65: 25 | Q65: 21 | R65: 28 | S65: 37 | T65: 69 | U65: 77 | V65: 115 | W65: 107 | X65: 97 | Y65: 109 | Z65: 96 | AA65: 63 | AB65: 30 | AC65: 60.2 | AD65: 59.1 | AE65: 61.5 | AF65: 608 | AG65: - | AH65: - | AI65: 2 | AJ65: 6 | AK65: 10 | AL65: 12 | AM65: 24 | AN65: 36 | AO65: 73 | AP65: 78 | AQ65: 82 | AR65: 102 | AS65: 94 | AT65: 61 | AU65: 28 | AV65: 66.8 | AW65: 66.9 | AX65: 66.7 | AY65: 560 | AZ65: - | BA65: - | BB65: 1 | BC65: 5 | BD65: 7 | BE65: 10 | BF65: 20 | BG65: 31 | BH65: 71 | BI65: 72 | BJ65: 80 | BK65: 97 | BL65: 85 | BM65: 58 | BN65: 23 | BO65: 67.1 | BP65: 66.9 | BQ65: 67.3 | BR65: 325 | BS65: - | BT65: - | BU65: - | BV65: - | BW65: 2 | BX65: 6 | BY65: 15 | BZ65: 24 | CA65: 46 | CB65: 54 | CC65: 52 | CD65: 56 | CE65: 41 | CF65: 23 | CG65: 6 | CH65: 99 | CI65: - | CJ65: - | CK65: - | CL65: - | CM65: 3 | CN65: 4 | CO65: 11 | CP65: 11 | CQ65: 20 | CR65: 20 | CS65: 14 | CT65: 11 | CU65: 5 | DC65: 1,173 | DD65: 921 | DE65: 560 | DF65: 336 | DG65: 25 | DH65: 80 | DI65: 72 | DJ65: 100 | DK65: 311 | DL65: 15 | DM65: - | DN65: 1 | DO65: 226 | DP65: 14 | DQ65: 50 | DR65: - | DS65: 4 | DT65: - | DU65: - | DV65: 1 | DW65: - | DX65: - | DY65: - | DZ65: - | EA65: 325 | EB65: 30,283 | EC65: 4,524 | ED65: 1,937 | EE65: 23,822 | EF65: 560 | EG65: 495 | EH65: 284 | EI65: 195 | EJ65: 16 | EK65: 3 | EL65: 34 | EM65: 28 | EN65: 613 | EO65: 426 | EP65: 276 | EQ65: 141 | ER65: 9 | ES65: 77 | ET65: 38 | EU65: 72
A66: 静岡県 | B66: 葵区(静岡市) | C66: 美和村 | D66: 西ヶ谷 | E66: 24 | F66: 17 | G66: 6 | H66: 6 | I66: 2 | J66: 1 | K66: 9 | L66: 7 | M66: 42 | N66: - | O66: 2 | P66: - | Q66: 2 | R66: 1 | S66: 1 | T66: 3 | U66: 3 | V66: 7 | W66: 3 | X66: 4 | Y66: 8 | Z66: 6 | AA66: 2 | AB66: - | AC66: 60.5 | AD66: 60.7 | AE66: 60.2 | AF66: 33 | AG66: - | AH66: - | AI66: - | AJ66: 2 | AK66: 1 | AL66: - | AM66: 1 | AN66: 1 | AO66: 6 | AP66: 3 | AQ66: 4 | AR66: 7 | AS66: 6 | AT66: 2 | AU66: - | AV66: 64.4 | AW66: 64.1 | AX66: 64.7 | AY66: 30 | AZ66: - | BA66: - | BB66: - | BC66: 2 | BD66: - | BE66: - | BF66: - | BG66: 1 | BH66: 6 | BI66: 3 | BJ66: 3 | BK66: 7 | BL66: 6 | BM66: 2 | BN66: - | BO66: 65.7 | BP66: 64.1 | BQ66: 67.6 | BR66: 17 | BS66: - | BT66: - | BU66: - | BV66: - | BW66: - | BX66: - | BY66: - | BZ66: 2 | CA66: 4 | CB66: 2 | CC66: 1 | CD66: 5 | CE66: 1 | CF66: 2 | CG66: - | CH66: 3 | CI66: - | CJ66: - | CK66: - | CL66: - | CM66: - | CN66: 1 | CO66: 1 | CP66: - | CQ66: 1 | CR66: - | CS66: - | CT66: - | CU66: - | DC66: 58 | DD66: 43 | DE66: 30 | DF66: 11 | DG66: 2 | DH66: 5 | DI66: 5 | DJ66: 5 | DK66: 17 | DL66: 1 | DM66: - | DN66: - | DO66: 12 | DP66: 1 | DQ66: 3 | DR66: - | DS66: - | DT66: - | DU66: - | DV66: - | DW66: - | DX66: - | DY66: - | DZ66: - | EA66: 17 | EB66: 1,553 | EC66: 193 | ED66: 180 | EE66: 1,180 | EF66: 26 | EG66: 24 | EH66: 16 | EI66: 7 | EJ66: 1 | EK66: - | EL66: 2 | EM66: - | EN66: 32 | EO66: 19 | EP66: 14 | EQ66: 4 | ER66: 1 | ES66: 5 | ET66: 3 | EU66: 5
A67: 静岡県 | B67: 葵区(静岡市) | C67: 美和村 | D67: 内牧下 | E67: 15 | F67: 10 | G67: 4 | H67: 4 | I67: 2 | J67: 2 | K67: 4 | L67: 5 | M67: 24 | N67: 1 | O67: - | P67: - | Q67: - | R67: - | S67: 1 | T67: 1 | U67: 1 | V67: 2 | W67: 5 | X67: 3 | Y67: 5 | Z67: 1 | AA67: 4 | AB67: - | AC67: 64.5 | AD67: 64.5 | AE67: 64.5 | AF67: 20 | AG67: - | AH67: - | AI67: - | AJ67: - | AK67: - | AL67: - | AM67: - | AN67: 1 | AO67: 1 | AP67: 5 | AQ67: 3 | AR67: 5 | AS67: 1 | AT67: 4 | AU67: - | AV67: 69.2 | AW67: 71.5 | AX67: 66.8 | AY67: 20 | AZ67: - | BA67: - | BB67: - | BC67: - | BD67: - | BE67: - | BF67: - | BG67: 1 | BH67: 1 | BI67: 5 | BJ67: 3 | BK67: 5 | BL67: 1 | BM67: 4 | BN67: - | BO67: 69.2 | BP67: 71.5 | BQ67: 66.8 | BR67: 10 | BS67: - | BT67: - | BU67: - | BV67: - | BW67: - | BX67: - | BY67: - | BZ67: 1 | CA67: - | CB67: 2 | CC67: 1 | CD67: 4 | CE67: 1 | CF67: 1 | CG67: - | CH67: 3 | CI67: - | CJ67: - | CK67: - | CL67: - | CM67: - | CN67: - | CO67: - | CP67: - | CQ67: 1 | CR67: 1 | CS67: - | CT67: 1 | CU67: - | DC67: 33 | DD67: 28 | DE67: 20 | DF67: 8 | DG67: - | DH67: 1 | DI67: 3 | DJ67: 1 | DK67: 10 | DL67: - | DM67: - | DN67: - | DO67: 7 | DP67: - | DQ67: 1 | DR67: - | DS67: 2 | DT67: - | DU67: - | DV67: - | DW67: - | DX67: - | DY67: - | DZ67: - | EA67: 10 | EB67: 1,196 | EC67: 77 | ED67: 118 | EE67: 1,001 | EF67: 16 | EG67: 14 | EH67: 10 | EI67: 4 | EJ67: - | EK67: - | EL67: 1 | EM67: 1 | EN67: 17 | EO67: 14 | EP67: 10 | EQ67: 4 | ER67: - | ES67: 1 | ET67: 2 | EU67: -
A68: 静岡県 | B68: 葵区(静岡市) | C68: 美和村 | D68: 内牧東 | E68: 10 | F68: 4 | G68: x | H68: x | I68: x | J68: x | K68: x | L68: 6 | M68: x | N68: x | O68: x | P68: x | Q68: x | R68: x | S68: x | T68: x | U68: x | V68: x | W68: x | X68: x | Y68: x | Z68: x | AA68: x | AB68: x | AC68: 57.4 | AD68: 52.7 | AE68: 61.4 | AF68: x | AG68: x | AH68: x | AI68: x | AJ68: x | AK68: x | AL68: x | AM68: x | AN68: x | AO68: x | AP68: x | AQ68: x | AR68: x | AS68: x | AT68: x | AU68: x | AV68: 64.2 | AW68: 58.0 | AX68: 70.3 | AY68: x | AZ68: x | BA68: x | BB68: x | BC68: x | BD68: x | BE68: x | BF68: x | BG68: x | BH68: x | BI68: x | BJ68: x | BK68: x | BL68: x | BM68: x | BN68: x | BO68: 64.2 | BP68: 58.0 | BQ68: 70.3 | BR68: 4 | BS68: - | BT68: - | BU68: - | BV68: - | BW68: - | BX68: - | BY68: - | BZ68: - | CA68: 1 | CB68: 1 | CC68: - | CD68: 1 | CE68: - | CF68: 1 | CG68: - | CH68: 2 | CI68: - | CJ68: - | CK68: - | CL68: - | CM68: - | CN68: - | CO68: 1 | CP68: - | CQ68: - | CR68: 1 | CS68: - | CT68: - | CU68: - | DC68: 15 | DD68: 14 | DE68: 6 | DF68: 7 | DG68: 1 | DH68: - | DI68: - | DJ68: 1 | DK68: 4 | DL68: - | DM68: - | DN68: - | DO68: 4 | DP68: - | DQ68: - | DR68: - | DS68: - | DT68: - | DU68: - | DV68: - | DW68: - | DX68: - | DY68: - | DZ68: - | EA68: 4 | EB68: 403 | EC68: 40 | ED68: 18 | EE68: 345 | EF68: 7 | EG68: 7 | EH68: 3 | EI68: 4 | EJ68: - | EK68: - | EL68: - | EM68: - | EN68: 8 | EO68: 7 | EP68: 3 | EQ68: 3 | ER68: 1 | ES68: - | ET68: - | EU68: 1
A69: 静岡県 | B69: 葵区(静岡市) | C69: 美和村 | D69: 内牧清地 | E69: 22 | F69: 21 | G69: 10 | H69: 10 | I69: 1 | J69: 1 | K69: 10 | L69: 1 | M69: 60 | N69: - | O69: 1 | P69: 3 | Q69: 3 | R69: 4 | S69: 2 | T69: 7 | U69: 6 | V69: 4 | W69: 5 | X69: 7 | Y69: 13 | Z69: 4 | AA69: 1 | AB69: - | AC69: 56.8 | AD69: 55.8 | AE69: 57.8 | AF69: 40 | AG69: - | AH69: - | AI69: - | AJ69: - | AK69: - | AL69: 1 | AM69: 4 | AN69: 4 | AO69: 3 | AP69: 5 | AQ69: 7 | AR69: 11 | AS69: 4 | AT69: 1 | AU69: - | AV69: 64.4 | AW69: 63.6 | AX69: 65.2 | AY69: 38 | AZ69: - | BA69: - | BB69: - | BC69: - | BD69: - | BE69: 1 | BF69: 4 | BG69: 4 | BH69: 3 | BI69: 4 | BJ69: 7 | BK69: 10 | BL69: 4 | BM69: 1 | BN69: - | BO69: 64.3 | BP69: 63.6 | BQ69: 65.0 | BR69: 21 | BS69: - | BT69: - | BU69: - | BV69: - | BW69: 1 | BX69: - | BY69: 2 | BZ69: 3 | CA69: 3 | CB69: 1 | CC69: 2 | CD69: 8 | CE69: 1 | CF69: - | CG69: - | CH69: 5 | CI69: - | CJ69: - | CK69: - | CL69: - | CM69: - | CN69: - | CO69: 1 | CP69: - | CQ69: 1 | CR69: 3 | CS69: - | CT69: - | CU69: - | DC69: 79 | DD69: 57 | DE69: 38 | DF69: 18 | DG69: 1 | DH69: 10 | DI69: 7 | DJ69: 5 | DK69: 21 | DL69: - | DM69: - | DN69: - | DO69: 18 | DP69: - | DQ69: 2 | DR69: - | DS69: - | DT69: - | DU69: - | DV69: 1 | DW69: - | DX69: - | DY69: - | DZ69: - | EA69: 21 | EB69: 2,822 | EC69: 392 | ED69: 70 | EE69: 2,360 | EF69: 35 | EG69: 29 | EH69: 20 | EI69: 9 | EJ69: - | EK69: 1 | EL69: 4 | EM69: 1 | EN69: 44 | EO69: 28 | EP69: 18 | EQ69: 9 | ER69: 1 | ES69: 9 | ET69: 3 | EU69: 4
A70: 静岡県 | B70: 葵区(静岡市) | C70: 美和村 | D70: 内牧中 | E70: 23 | F70: 18 | G70: 11 | H70: 8 | I70: 1 | J70: - | K70: 6 | L70: 5 | M70: 57 | N70: 1 | O70: 4 | P70: 1 | Q70: - | R70: 1 | S70: 3 | T70: 7 | U70: 5 | V70: 7 | W70: 2 | X70: 5 | Y70: 3 | Z70: 13 | AA70: 4 | AB70: 1 | AC70: 59.3 | AD70: 55.8 | AE70: 63.1 | AF70: 43 | AG70: - | AH70: - | AI70: - | AJ70: - | AK70: 1 | AL70: 2 | AM70: 4 | AN70: 3 | AO70: 6 | AP70: 2 | AQ70: 5 | AR70: 3 | AS70: 12 | AT70: 4 | AU70: 1 | AV70: 65.8 | AW70: 67.2 | AX70: 64.7 | AY70: 41 | AZ70: - | BA70: - | BB70: - | BC70: - | BD70: - | BE70: 1 | BF70: 4 | BG70: 3 | BH70: 6 | BI70: 2 | BJ70: 5 | BK70: 3 | BL70: 12 | BM70: 4 | BN70: 1 | BO70: 67.0 | BP70: 67.2 | BQ70: 67.0 | BR70: 18 | BS70: - | BT70: - | BU70: - | BV70: - | BW70: - | BX70: - | BY70: 2 | BZ70: 2 | CA70: 4 | CB70: 1 | CC70: 3 | CD70: - | CE70: 4 | CF70: 2 | CG70: - | CH70: 5 | CI70: - | CJ70: - | CK70: - | CL70: - | CM70: 1 | CN70: - | CO70: - | CP70: - | CQ70: 2 | CR70: - | CS70: - | CT70: 2 | CU70: - | DC70: 71 | DD70: 56 | DE70: 41 | DF70: 15 | DG70: - | DH70: 4 | DI70: 7 | DJ70: 4 | DK70: 18 | DL70: 1 | DM70: - | DN70: - | DO70: 14 | DP70: 1 | DQ70: 2 | DR70: - | DS70: - | DT70: - | DU70: - | DV70: - | DW70: - | DX70: - | DY70: - | DZ70: - | EA70: 18 | EB70: 2,260 | EC70: 478 | ED70: 36 | EE70: 1,746 | EF70: 36 | EG70: 33 | EH70: 20 | EI70: 13 | EJ70: - | EK70: - | EL70: 2 | EM70: 1 | EN70: 35 | EO70: 23 | EP70: 21 | EQ70: 2 | ER70: - | ES70: 4 | ET70: 5 | EU70: 3
A71: 静岡県 | B71: 葵区(静岡市) | C71: 美和村 | D71: 内牧上 | E71: 27 | F71: 22 | G71: 5 | H71: 5 | I71: 4 | J71: 2 | K71: 13 | L71: 5 | M71: 58 | N71: 2 | O71: 2 | P71: - | Q71: - | R71: 2 | S71: 3 | T71: 6 | U71: 3 | V71: 7 | W71: 5 | X71: 11 | Y71: 7 | Z71: 7 | AA71: 1 | AB71: 2 | AC71: 59.7 | AD71: 59.5 | AE71: 59.9 | AF71: 36 | AG71: - | AH71: - | AI71: - | AJ71: - | AK71: - | AL71: 1 | AM71: 1 | AN71: 1 | AO71: 4 | AP71: 2 | AQ71: 11 | AR71: 6 | AS71: 7 | AT71: 1 | AU71: 2 | AV71: 68.7 | AW71: 66.2 | AX71: 70.9 | AY71: 36 | AZ71: - | BA71: - | BB71: - | BC71: - | BD71: - | BE71: 1 | BF71: 1 | BG71: 1 | BH71: 4 | BI71: 2 | BJ71: 11 | BK71: 6 | BL71: 7 | BM71: 1 | BN71: 2 | BO71: 68.7 | BP71: 66.2 | BQ71: 70.9 | BR71: 22 | BS71: - | BT71: - | BU71: - | BV71: - | BW71: - | BX71: - | BY71: - | BZ71: 2 | CA71: 4 | CB71: 3 | CC71: 6 | CD71: 5 | CE71: 2 | CF71: - | CG71: - | CH71: 5 | CI71: - | CJ71: - | CK71: - | CL71: - | CM71: - | CN71: - | CO71: - | CP71: - | CQ71: 1 | CR71: 3 | CS71: 1 | CT71: - | CU71: - | DC71: 79 | DD71: 66 | DE71: 36 | DF71: 29 | DG71: 1 | DH71: 2 | DI71: 8 | DJ71: 3 | DK71: 21 | DL71: - | DM71: - | DN71: - | DO71: 15 | DP71: 1 | DQ71: 4 | DR71: - | DS71: 1 | DT71: - | DU71: - | DV71: - | DW71: - | DX71: - | DY71: - | DZ71: - | EA71: 22 | EB71: 1,736 | EC71: 257 | ED71: 148 | EE71: 1,331 | EF71: 34 | EG71: 31 | EH71: 17 | EI71: 14 | EJ71: - | EK71: - | EL71: 2 | EM71: 1 | EN71: 45 | EO71: 35 | EP71: 19 | EQ71: 15 | ER71: 1 | ES71: 2 | ET71: 6 | EU71: 2
A72: 静岡県 | B72: 葵区(静岡市) | C72: 美和村 | D72: 下与左衛門新田 | E72: @ | F72: @ | G72: @ | H72: @ | I72: @ | J72: @ | K72: @ | L72: @ | M72: @ | N72: @ | O72: @ | P72: @ | Q72: @ | R72: @ | S72: @ | T72: @ | U72: @ | V72: @ | W72: @ | X72: @ | Y72: @ | Z72: @ | AA72: @ | AB72: @ | AC72: 62.3 | AD72: 64.0 | AE72: 59.0 | AF72: @ | AG72: @ | AH72: @ | AI72: @ | AJ72: @ | AK72: @ | AL72: @ | AM72: @ | AN72: @ | AO72: @ | AP72: @ | AQ72: @ | AR72: @ | AS72: @ | AT72: @ | AU72: @ | AV72: 59.5 | AW72: 60.0 | AX72: 59.0 | AY72: @ | AZ72: @ | BA72: @ | BB72: @ | BC72: @ | BD72: @ | BE72: @ | BF72: @ | BG72: @ | BH72: @ | BI72: @ | BJ72: @ | BK72: @ | BL72: @ | BM72: @ | BN72: @ | BO72: 59.5 | BP72: 60.0 | BQ72: 59.0 | BR72: 2 | BS72: - | BT72: - | BU72: - | BV72: - | BW72: - | BX72: - | BY72: - | BZ72: - | CA72: 1 | CB72: - | CC72: 1 | CD72: - | CE72: - | CF72: - | CG72: - | CH72: 1 | CI72: - | CJ72: - | CK72: - | CL72: - | CM72: - | CN72: - | CO72: - | CP72: - | CQ72: 1 | CR72: - | CS72: - | CT72: - | CU72: - | DC72: 7 | DD72: 5 | DE72: 2 | DF72: - | DG72: 3 | DH72: 1 | DI72: - | DJ72: 1 | DK72: 2 | DL72: - | DM72: - | DN72: - | DO72: - | DP72: - | DQ72: 1 | DR72: - | DS72: 1 | DT72: - | DU72: - | DV72: - | DW72: - | DX72: - | DY72: - | DZ72: - | EA72: 2 | EB72: 203 | EC72: 15 | ED72: 28 | EE72: 160 | EF72: 3 | EG72: 3 | EH72: 1 | EI72: - | EJ72: 2 | EK72: - | EL72: - | EM72: - | EN72: 4 | EO72: 2 | EP72: 1 | EQ72: - | ER72: 1 | ES72: 1 | ET72: - | EU72: 1
A73: 静岡県 | B73: 葵区(静岡市) | C73: 美和村 | D73: 安倍口新田 | E73: @ | F73: @ | G73: @ | H73: @ | I73: @ | J73: @ | K73: @ | L73: @ | M73: @ | N73: @ | O73: @ | P73: @ | Q73: @ | R73: @ | S73: @ | T73: @ | U73: @ | V73: @ | W73: @ | X73: @ | Y73: @ | Z73: @ | AA73: @ | AB73: @ | AC73: 60.6 | AD73: 60.9 | AE73: 60.3 | AF73: @ | AG73: @ | AH73: @ | AI73: @ | AJ73: @ | AK73: @ | AL73: @ | AM73: @ | AN73: @ | AO73: @ | AP73: @ | AQ73: @ | AR73: @ | AS73: @ | AT73: @ | AU73: @ | AV73: 63.3 | AW73: 62.3 | AX73: 64.2 | AY73: @ | AZ73: @ | BA73: @ | BB73: @ | BC73: @ | BD73: @ | BE73: @ | BF73: @ | BG73: @ | BH73: @ | BI73: @ | BJ73: @ | BK73: @ | BL73: @ | BM73: @ | BN73: @ | BO73: 66.2 | BP73: 63.8 | BQ73: 68.3 | BR73: 12 | BS73: - | BT73: - | BU73: - | BV73: - | BW73: - | BX73: - | BY73: - | BZ73: 2 | CA73: 1 | CB73: 3 | CC73: 4 | CD73: 1 | CE73: - | CF73: - | CG73: 1 | CH73: 5 | CI73: - | CJ73: - | CK73: - | CL73: - | CM73: - | CN73: 1 | CO73: 1 | CP73: 1 | CQ73: 1 | CR73: - | CS73: - | CT73: - | CU73: 1 | DC73: 38 | DD73: 26 | DE73: 17 | DF73: 5 | DG73: 4 | DH73: 1 | DI73: 2 | DJ73: 9 | DK73: 8 | DL73: 1 | DM73: - | DN73: - | DO73: 3 | DP73: - | DQ73: 4 | DR73: - | DS73: - | DT73: - | DU73: - | DV73: - | DW73: - | DX73: - | DY73: - | DZ73: - | EA73: 12 | EB73: 620 | EC73: 277 | ED73: 95 | EE73: 248 | EF73: 16 | EG73: 14 | EH73: 8 | EI73: 3 | EJ73: 3 | EK73: - | EL73: - | EM73: 2 | EN73: 22 | EO73: 12 | EP73: 9 | EQ73: 2 | ER73: 1 | ES73: 1 | ET73: 2 | EU73: 7
A74: 静岡県 | B74: 葵区(静岡市) | C74: 美和村 | D74: 中ノ郷 | E74: 22 | F74: 14 | G74: 8 | H74: 5 | I74: 1 | J74: - | K74: 5 | L74: 8 | M74: 43 | N74: - | O74: 1 | P74: - | Q74: 1 | R74: 1 | S74: 2 | T74: 2 | U74: 1 | V74: 9 | W74: 6 | X74: 7 | Y74: 3 | Z74: 1 | AA74: 6 | AB74: 3 | AC74: 62.8 | AD74: 61.9 | AE74: 63.8 | AF74: 35 | AG74: - | AH74: - | AI74: - | AJ74: 1 | AK74: - | AL74: - | AM74: 1 | AN74: 1 | AO74: 7 | AP74: 5 | AQ74: 7 | AR74: 3 | AS74: 1 | AT74: 6 | AU74: 3 | AV74: 66.8 | AW74: 69.1 | AX74: 64.9 | AY74: 30 | AZ74: - | BA74: - | BB74: - | BC74: - | BD74: - | BE74: - | BF74: - | BG74: 1 | BH74: 6 | BI74: 4 | BJ74: 7 | BK74: 3 | BL74: 1 | BM74: 6 | BN74: 2 | BO74: 68.5 | BP74: 69.1 | BQ74: 67.9 | BR74: 14 | BS74: - | BT74: - | BU74: - | BV74: - | BW74: - | BX74: - | BY74: - | BZ74: - | CA74: 1 | CB74: 2 | CC74: 5 | CD74: 1 | CE74: 1 | CF74: 2 | CG74: 2 | CH74: 5 | CI74: - | CJ74: - | CK74: - | CL74: - | CM74: - | CN74: - | CO74: - | CP74: - | CQ74: - | CR74: 1 | CS74: 1 | CT74: 1 | CU74: 2 | DC74: 50 | DD74: 41 | DE74: 30 | DF74: 11 | DG74: - | DH74: 3 | DI74: 3 | DJ74: 3 | DK74: 13 | DL74: 3 | DM74: - | DN74: - | DO74: 3 | DP74: - | DQ74: 7 | DR74: - | DS74: - | DT74: - | DU74: - | DV74: - | DW74: - | DX74: - | DY74: - | DZ74: - | EA74: 14 | EB74: 1,014 | EC74: 538 | ED74: 186 | EE74: 290 | EF74: 27 | EG74: 25 | EH74: 16 | EI74: 9 | EJ74: - | EK74: - | EL74: 2 | EM74: - | EN74: 23 | EO74: 16 | EP74: 14 | EQ74: 2 | ER74: - | ES74: 3 | ET74: 1 | EU74: 3
A75: 静岡県 | B75: 葵区(静岡市) | C75: 美和村 | D75: 上与左衛門新田 | E75: @ | F75: @ | G75: @ | H75: @ | I75: @ | J75: @ | K75: @ | L75: @ | M75: @ | N75: @ | O75: @ | P75: @ | Q75: @ | R75: @ | S75: @ | T75: @ | U75: @ | V75: @ | W75: @ | X75: @ | Y75: @ | Z75: @ | AA75: @ | AB75: @ | AC75: 62.1 | AD75: 59.3 | AE75: 64.9 | AF75: @ | AG75: @ | AH75: @ | AI75: @ | AJ75: @ | AK75: @ | AL75: @ | AM75: @ | AN75: @ | AO75: @ | AP75: @ | AQ75: @ | AR75: @ | AS75: @ | AT75: @ | AU75: @ | AV75: 68.9 | AW75: 66.0 | AX75: 71.3 | AY75: @ | AZ75: @ | BA75: @ | BB75: @ | BC75: @ | BD75: @ | BE75: @ | BF75: @ | BG75: @ | BH75: @ | BI75: @ | BJ75: @ | BK75: @ | BL75: @ | BM75: @ | BN75: @ | BO75: 68.9 | BP75: 66.0 | BQ75: 71.3 | BR75: 5 | BS75: - | BT75: - | BU75: - | BV75: - | BW75: - | BX75: - | BY75: - | BZ75: 1 | CA75: - | CB75: - | CC75: - | CD75: - | CE75: 4 | CF75: - | CG75: - | CH75: 2 | CI75: - | CJ75: - | CK75: - | CL75: - | CM75: - | CN75: - | CO75: - | CP75: - | CQ75: - | CR75: - | CS75: 2 | CT75: - | CU75: - | DC75: 16 | DD75: 14 | DE75: 11 | DF75: 3 | DG75: - | DH75: 1 | DI75: 1 | DJ75: - | DK75: 4 | DL75: 1 | DM75: - | DN75: - | DO75: - | DP75: - | DQ75: 3 | DR75: - | DS75: - | DT75: - | DU75: - | DV75: - | DW75: - | DX75: - | DY75: - | DZ75: - | EA75: 5 | EB75: 267 | EC75: 204 | ED75: 58 | EE75: 5 | EF75: 7 | EG75: 7 | EH75: 5 | EI75: 2 | EJ75: - | EK75: - | EL75: - | EM75: - | EN75: 9 | EO75: 7 | EP75: 6 | EQ75: 1 | ER75: - | ES75: 1 | ET75: 1 | EU75: -
A76: 静岡県 | B76: 葵区(静岡市) | C76: 美和村 | D76: 小塚ヶ谷 | E76: 16 | F76: 13 | G76: 4 | H76: 3 | I76: 2 | J76: 1 | K76: 7 | L76: 3 | M76: 35 | N76: 2 | O76: - | P76: - | Q76: 1 | R76: 2 | S76: - | T76: 1 | U76: 4 | V76: 5 | W76: 5 | X76: 3 | Y76: 4 | Z76: 5 | AA76: 1 | AB76: 2 | AC76: 60.2 | AD76: 59.2 | AE76: 61.4 | AF76: 25 | AG76: - | AH76: - | AI76: - | AJ76: - | AK76: 1 | AL76: - | AM76: - | AN76: 2 | AO76: 3 | AP76: 4 | AQ76: 3 | AR76: 4 | AS76: 5 | AT76: 1 | AU76: 2 | AV76: 67.5 | AW76: 67.5 | AX76: 67.5 | AY76: 23 | AZ76: - | BA76: - | BB76: - | BC76: - | BD76: 1 | BE76: - | BF76: - | BG76: 1 | BH76: 3 | BI76: 4 | BJ76: 3 | BK76: 4 | BL76: 5 | BM76: - | BN76: 2 | BO76: 67.4 | BP76: 67.5 | BQ76: 67.4 | BR76: 13 | BS76: - | BT76: - | BU76: - | BV76: - | BW76: - | BX76: - | BY76: - | BZ76: 2 | CA76: 1 | CB76: 3 | CC76: 2 | CD76: 2 | CE76: 3 | CF76: - | CG76: - | CH76: 4 | CI76: - | CJ76: - | CK76: - | CL76: - | CM76: - | CN76: 1 | CO76: - | CP76: 1 | CQ76: 1 | CR76: - | CS76: 1 | CT76: - | CU76: - | DC76: 49 | DD76: 37 | DE76: 23 | DF76: 13 | DG76: 1 | DH76: 3 | DI76: 4 | DJ76: 5 | DK76: 11 | DL76: - | DM76: - | DN76: - | DO76: 6 | DP76: 1 | DQ76: 4 | DR76: - | DS76: - | DT76: - | DU76: - | DV76: - | DW76: - | DX76: - | DY76: - | DZ76: - | EA76: 13 | EB76: 1,003 | EC76: 282 | ED76: 93 | EE76: 628 | EF76: 26 | EG76: 20 | EH76: 13 | EI76: 6 | EJ76: 1 | EK76: 1 | EL76: 3 | EM76: 2 | EN76: 23 | EO76: 17 | EP76: 10 | EQ76: 7 | ER76: - | ES76: 2 | ET76: 1 | EU76: 3
A77: 静岡県 | B77: 葵区(静岡市) | C77: 美和村 | D77: 遠藤新田 | E77: @ | F77: @ | G77: @ | H77: @ | I77: @ | J77: @ | K77: @ | L77: @ | M77: @ | N77: @ | O77: @ | P77: @ | Q77: @ | R77: @ | S77: @ | T77: @ | U77: @ | V77: @ | W77: @ | X77: @ | Y77: @ | Z77: @ | AA77: @ | AB77: @ | AC77: 63.2 | AD77: 59.2 | AE77: 67.5 | AF77: @ | AG77: @ | AH77: @ | AI77: @ | AJ77: @ | AK77: @ | AL77: @ | AM77: @ | AN77: @ | AO77: @ | AP77: @ | AQ77: @ | AR77: @ | AS77: @ | AT77: @ | AU77: @ | AV77: 69.6 | AW77: 68.2 | AX77: 70.8 | AY77: @ | AZ77: @ | BA77: @ | BB77: @ | BC77: @ | BD77: @ | BE77: @ | BF77: @ | BG77: @ | BH77: @ | BI77: @ | BJ77: @ | BK77: @ | BL77: @ | BM77: @ | BN77: @ | BO77: 70.0 | BP77: 68.2 | BQ77: 71.9 | BR77: 15 | BS77: - | BT77: - | BU77: - | BV77: - | BW77: - | BX77: 1 | BY77: - | BZ77: - | CA77: 2 | CB77: 4 | CC77: 1 | CD77: 2 | CE77: 3 | CF77: - | CG77: 2 | CH77: 8 | CI77: - | CJ77: - | CK77: - | CL77: - | CM77: - | CN77: - | CO77: 1 | CP77: 2 | CQ77: 1 | CR77: 1 | CS77: 1 | CT77: - | CU77: 2 | DC77: 55 | DD77: 44 | DE77: 27 | DF77: 16 | DG77: 1 | DH77: 3 | DI77: 4 | DJ77: 4 | DK77: 14 | DL77: 6 | DM77: - | DN77: 1 | DO77: - | DP77: 1 | DQ77: 6 | DR77: - | DS77: - | DT77: - | DU77: - | DV77: - | DW77: - | DX77: - | DY77: - | DZ77: - | EA77: 15 | EB77: 837 | EC77: 599 | ED77: 203 | EE77: 35 | EF77: 28 | EG77: 23 | EH77: 14 | EI77: 9 | EJ77: - | EK77: - | EL77: 4 | EM77: 1 | EN77: 27 | EO77: 21 | EP77: 13 | EQ77: 7 | ER77: 1 | ES77: 3 | ET77: - | EU77: 3
A78: 静岡県 | B78: 葵区(静岡市) | C78: 美和村 | D78: 原田・諸川 | E78: 22 | F78: 17 | G78: 8 | H78: 6 | I78: 4 | J78: 1 | K78: 5 | L78: 5 | M78: 48 | N78: - | O78: 1 | P78: 4 | Q78: 2 | R78: - | S78: 3 | T78: 3 | U78: 5 | V78: 4 | W78: 9 | X78: 8 | Y78: 2 | Z78: 5 | AA78: 2 | AB78: - | AC78: 57.1 | AD78: 57.0 | AE78: 57.3 | AF78: 29 | AG78: - | AH78: - | AI78: - | AJ78: - | AK78: - | AL78: 2 | AM78: 1 | AN78: 2 | AO78: 3 | AP78: 4 | AQ78: 8 | AR78: 2 | AS78: 5 | AT78: 2 | AU78: - | AV78: 65.0 | AW78: 67.1 | AX78: 62.8 | AY78: 28 | AZ78: - | BA78: - | BB78: - | BC78: - | BD78: - | BE78: 2 | BF78: 1 | BG78: 2 | BH78: 3 | BI78: 4 | BJ78: 8 | BK78: 2 | BL78: 4 | BM78: 2 | BN78: - | BO78: 64.7 | BP78: 67.1 | BQ78: 61.8 | BR78: 17 | BS78: - | BT78: - | BU78: - | BV78: - | BW78: - | BX78: - | BY78: 1 | BZ78: - | CA78: 2 | CB78: 4 | CC78: 5 | CD78: 1 | CE78: 2 | CF78: 2 | CG78: - | CH78: 7 | CI78: - | CJ78: - | CK78: - | CL78: - | CM78: - | CN78: - | CO78: - | CP78: 2 | CQ78: 2 | CR78: 1 | CS78: 1 | CT78: 1 | CU78: - | DC78: 62 | DD78: 52 | DE78: 28 | DF78: 23 | DG78: 1 | DH78: 2 | DI78: 2 | DJ78: 6 | DK78: 17 | DL78: - | DM78: - | DN78: - | DO78: 15 | DP78: 2 | DQ78: - | DR78: - | DS78: - | DT78: - | DU78: - | DV78: - | DW78: - | DX78: - | DY78: - | DZ78: - | EA78: 17 | EB78: 1,753 | EC78: 158 | ED78: 74 | EE78: 1,521 | EF78: 30 | EG78: 28 | EH78: 15 | EI78: 13 | EJ78: - | EK78: - | EL78: 1 | EM78: 1 | EN78: 32 | EO78: 24 | EP78: 13 | EQ78: 10 | ER78: 1 | ES78: 2 | ET78: 1 | EU78: 5
A79: 静岡県 | B79: 葵区(静岡市) | C79: 美和村 | D79: 八十岡 | E79: 16 | F79: 10 | G79: 4 | H79: 4 | I79: 1 | J79: - | K79: 5 | L79: 6 | M79: 29 | N79: - | O79: 4 | P79: 1 | Q79: - | R79: - | S79: - | T79: 7 | U79: - | V79: 2 | W79: 2 | X79: 2 | Y79: 9 | Z79: 1 | AA79: 1 | AB79: - | AC79: 56.0 | AD79: 51.4 | AE79: 62.5 | AF79: 18 | AG79: - | AH79: - | AI79: - | AJ79: - | AK79: - | AL79: - | AM79: 1 | AN79: - | AO79: 2 | AP79: 2 | AQ79: 2 | AR79: 9 | AS79: 1 | AT79: 1 | AU79: - | AV79: 68.1 | AW79: 68.7 | AX79: 67.4 | AY79: 16 | AZ79: - | BA79: - | BB79: - | BC79: - | BD79: - | BE79: - | BF79: 1 | BG79: - | BH79: 2 | BI79: 2 | BJ79: 2 | BK79: 7 | BL79: 1 | BM79: 1 | BN79: - | BO79: 67.6 | BP79: 68.7 | BQ79: 66.1 | BR79: 10 | BS79: - | BT79: - | BU79: - | BV79: - | BW79: - | BX79: - | BY79: 3 | BZ79: - | CA79: - | CB79: 1 | CC79: 2 | CD79: 3 | CE79: - | CF79: 1 | CG79: - | CH79: 3 | CI79: - | CJ79: - | CK79: - | CL79: - | CM79: 2 | CN79: - | CO79: - | CP79: - | CQ79: - | CR79: 1 | CS79: - | CT79: - | CU79: - | DC79: 38 | DD79: 28 | DE79: 16 | DF79: 12 | DG79: - | DH79: 2 | DI79: 6 | DJ79: 2 | DK79: 10 | DL79: - | DM79: - | DN79: - | DO79: 9 | DP79: 1 | DQ79: - | DR79: - | DS79: - | DT79: - | DU79: - | DV79: - | DW79: - | DX79: - | DY79: - | DZ79: - | EA79: 10 | EB79: 1,132 | EC79: 59 | ED79: 39 | EE79: 1,034 | EF79: 18 | EG79: 15 | EH79: 9 | EI79: 6 | EJ79: - | EK79: - | EL79: 3 | EM79: - | EN79: 20 | EO79: 13 | EP79: 7 | EQ79: 6 | ER79: - | ES79: 2 | ET79: 3 | EU79: 2
A80: 静岡県 | B80: 葵区(静岡市) | C80: 美和村 | D80: 神明原 | E80: 17 | F80: 9 | G80: 4 | H80: 4 | I80: 2 | J80: 2 | K80: 3 | L80: 8 | M80: 28 | N80: 1 | O80: - | P80: - | Q80: 1 | R80: 1 | S80: 3 | T80: 1 | U80: 2 | V80: 3 | W80: 6 | X80: 3 | Y80: 1 | Z80: 2 | AA80: 2 | AB80: 2 | AC80: 59.8 | AD80: 56.4 | AE80: 63.2 | AF80: 20 | AG80: - | AH80: - | AI80: - | AJ80: 1 | AK80: - | AL80: - | AM80: - | AN80: 1 | AO80: 3 | AP80: 6 | AQ80: 2 | AR80: 1 | AS80: 2 | AT80: 2 | AU80: 2 | AV80: 66.2 | AW80: 62.9 | AX80: 68.9 | AY80: 19 | AZ80: - | BA80: - | BB80: - | BC80: 1 | BD80: - | BE80: - | BF80: - | BG80: 1 | BH80: 3 | BI80: 5 | BJ80: 2 | BK80: 1 | BL80: 2 | BM80: 2 | BN80: 2 | BO80: 66.5 | BP80: 62.9 | BQ80: 69.7 | BR80: 9 | BS80: - | BT80: - | BU80: - | BV80: - | BW80: - | BX80: - | BY80: - | BZ80: 1 | CA80: 1 | CB80: 3 | CC80: 2 | CD80: 1 | CE80: - | CF80: 1 | CG80: - | CH80: 3 | CI80: - | CJ80: - | CK80: - | CL80: - | CM80: - | CN80: - | CO80: 1 | CP80: - | CQ80: 2 | CR80: - | CS80: - | CT80: - | CU80: - | DC80: 37 | DD80: 30 | DE80: 19 | DF80: 11 | DG80: - | DH80: 2 | DI80: 2 | DJ80: 3 | DK80: 9 | DL80: - | DM80: - | DN80: - | DO80: 8 | DP80: - | DQ80: 1 | DR80: - | DS80: - | DT80: - | DU80: - | DV80: - | DW80: - | DX80: - | DY80: - | DZ80: - | EA80: 9 | EB80: 1,363 | EC80: 18 | ED80: 81 | EE80: 1,264 | EF80: 16 | EG80: 14 | EH80: 9 | EI80: 5 | EJ80: - | EK80: - | EL80: 1 | EM80: 1 | EN80: 21 | EO80: 16 | EP80: 10 | EQ80: 6 | ER80: - | ES80: 2 | ET80: 1 | EU80: 2
A81: 静岡県 | B81: 葵区(静岡市) | C81: 美和村 | D81: 舟沢 | E81: 9 | F81: 7 | G81: 1 | H81: 1 | I81: 3 | J81: 1 | K81: 3 | L81: 2 | M81: 19 | N81: - | O81: - | P81: 1 | Q81: 1 | R81: - | S81: - | T81: - | U81: 3 | V81: 1 | W81: 2 | X81: 1 | Y81: 4 | Z81: 3 | AA81: 2 | AB81: 1 | AC81: 64.6 | AD81: 66.8 | AE81: 62.1 | AF81: 14 | AG81: - | AH81: - | AI81: - | AJ81: 1 | AK81: - | AL81: - | AM81: - | AN81: 1 | AO81: - | AP81: 1 | AQ81: 1 | AR81: 4 | AS81: 3 | AT81: 2 | AU81: 1 | AV81: 69.8 | AW81: 71.1 | AX81: 68.4 | AY81: 12 | AZ81: - | BA81: - | BB81: - | BC81: 1 | BD81: - | BE81: - | BF81: - | BG81: 1 | BH81: - | BI81: - | BJ81: 1 | BK81: 3 | BL81: 3 | BM81: 2 | BN81: 1 | BO81: 70.4 | BP81: 71.1 | BQ81: 69.4 | BR81: 7 | BS81: - | BT81: - | BU81: - | BV81: - | BW81: - | BX81: - | BY81: - | BZ81: - | CA81: 1 | CB81: 1 | CC81: - | CD81: 2 | CE81: 3 | CF81: - | CG81: - | CH81: 3 | CI81: - | CJ81: - | CK81: - | CL81: - | CM81: - | CN81: - | CO81: - | CP81: 1 | CQ81: - | CR81: 1 | CS81: 1 | CT81: - | CU81: - | DC81: 24 | DD81: 19 | DE81: 12 | DF81: 7 | DG81: - | DH81: 2 | DI81: 1 | DJ81: 2 | DK81: 7 | DL81: - | DM81: - | DN81: - | DO81: 7 | DP81: - | DQ81: - | DR81: - | DS81: - | DT81: - | DU81: - | DV81: - | DW81: - | DX81: - | DY81: - | DZ81: - | EA81: 7 | EB81: 825 | EC81: 76 | ED81: 77 | EE81: 672 | EF81: 12 | EG81: 12 | EH81: 7 | EI81: 5 | EJ81: - | EK81: - | EL81: - | EM81: - | EN81: 12 | EO81: 7 | EP81: 5 | EQ81: 2 | ER81: - | ES81: 2 | ET81: 1 | EU81: 2
A82: 静岡県 | B82: 葵区(静岡市) | C82: 美和村 | D82: 敷地 | E82: 14 | F82: 7 | G82: 1 | H82: 1 | I82: 1 | J82: - | K82: 5 | L82: 7 | M82: 21 | N82: - | O82: 2 | P82: - | Q82: - | R82: - | S82: - | T82: 3 | U82: 2 | V82: 2 | W82: - | X82: 3 | Y82: 3 | Z82: 3 | AA82: 2 | AB82: 1 | AC82: 61.6 | AD82: 58.4 | AE82: 65.9 | AF82: 7 | AG82: - | AH82: - | AI82: - | AJ82: - | AK82: - | AL82: - | AM82: 2 | AN82: - | AO82: - | AP82: - | AQ82: - | AR82: 3 | AS82: 2 | AT82: - | AU82: - | AV82: 65.6 | AW82: 66.8 | AX82: 64.0 | AY82: 6 | AZ82: - | BA82: - | BB82: - | BC82: - | BD82: - | BE82: - | BF82: 2 | BG82: - | BH82: - | BI82: - | BJ82: - | BK82: 2 | BL82: 2 | BM82: - | BN82: - | BO82: 64.8 | BP82: 66.8 | BQ82: 61.0 | BR82: 7 | BS82: - | BT82: - | BU82: - | BV82: - | BW82: - | BX82: - | BY82: 1 | BZ82: - | CA82: 1 | CB82: - | CC82: 1 | CD82: 2 | CE82: 1 | CF82: 1 | CG82: - | CH82: 2 | CI82: - | CJ82: - | CK82: - | CL82: - | CM82: - | CN82: - | CO82: - | CP82: - | CQ82: - | CR82: - | CS82: 1 | CT82: 1 | CU82: - | DC82: 22 | DD82: 15 | DE82: 6 | DF82: 9 | DG82: - | DH82: 2 | DI82: - | DJ82: 5 | DK82: 6 | DL82: - | DM82: - | DN82: - | DO82: 6 | DP82: - | DQ82: - | DR82: - | DS82: - | DT82: - | DU82: - | DV82: - | DW82: - | DX82: - | DY82: - | DZ82: - | EA82: 7 | EB82: 527 | EC82: 33 | ED82: 4 | EE82: 490 | EF82: 13 | EG82: 10 | EH82: 4 | EI82: 6 | EJ82: - | EK82: - | EL82: - | EM82: 3 | EN82: 9 | EO82: 5 | EP82: 2 | EQ82: 3 | ER82: - | ES82: 2 | ET82: - | EU82: 2
A83: 静岡県 | B83: 葵区(静岡市) | C83: 美和村 | D83: 栗島 | E83: 9 | F83: 5 | G83: 2 | H83: 2 | I83: 1 | J83: - | K83: 2 | L83: 4 | M83: 15 | N83: - | O83: 1 | P83: 2 | Q83: 1 | R83: 1 | S83: - | T83: 1 | U83: 1 | V83: 2 | W83: 1 | X83: 2 | Y83: 1 | Z83: 1 | AA83: 1 | AB83: - | AC83: 51.9 | AD83: 50.8 | AE83: 54.0 | AF83: 6 | AG83: - | AH83: - | AI83: - | AJ83: - | AK83: - | AL83: - | AM83: 1 | AN83: 1 | AO83: - | AP83: 1 | AQ83: - | AR83: 1 | AS83: 1 | AT83: 1 | AU83: - | AV83: 65.3 | AW83: 68.0 | AX83: 62.7 | AY83: 6 | AZ83: - | BA83: - | BB83: - | BC83: - | BD83: - | BE83: - | BF83: 1 | BG83: 1 | BH83: - | BI83: 1 | BJ83: - | BK83: 1 | BL83: 1 | BM83: 1 | BN83: - | BO83: 65.3 | BP83: 68.0 | BQ83: 62.7 | BR83: 5 | BS83: - | BT83: - | BU83: - | BV83: - | BW83: - | BX83: - | BY83: - | BZ83: 1 | CA83: 1 | CB83: - | CC83: 2 | CD83: 1 | CE83: - | CF83: - | CG83: - | CH83: 2 | CI83: - | CJ83: - | CK83: - | CL83: - | CM83: - | CN83: - | CO83: - | CP83: - | CQ83: 1 | CR83: 1 | CS83: - | CT83: - | CU83: - | DC83: 21 | DD83: 17 | DE83: 6 | DF83: 9 | DG83: 2 | DH83: 2 | DI83: - | DJ83: 2 | DK83: 5 | DL83: - | DM83: - | DN83: - | DO83: 5 | DP83: - | DQ83: - | DR83: - | DS83: - | DT83: - | DU83: - | DV83: - | DW83: - | DX83: - | DY83: - | DZ83: - | EA83: 5 | EB83: 673 | EC83: 47 | ED83: 33 | EE83: 593 | EF83: 11 | EG83: 10 | EH83: 3 | EI83: 5 | EJ83: 2 | EK83: - | EL83: - | EM83: 1 | EN83: 10 | EO83: 7 | EP83: 3 | EQ83: 4 | ER83: - | ES83: 2 | ET83: - | EU83: 1
A84: 静岡県 | B84: 葵区(静岡市) | C84: 美和村 | D84: 相沢 | E84: 8 | F84: 8 | G84: 3 | H84: 3 | I84: 4 | J84: 3 | K84: 1 | L84: - | M84: 24 | N84: - | O84: - | P84: - | Q84: 2 | R84: 2 | S84: 1 | T84: - | U84: - | V84: 9 | W84: 2 | X84: 2 | Y84: - | Z84: - | AA84: 4 | AB84: 2 | AC84: 59.9 | AD84: 53.2 | AE84: 66.6 | AF84: 16 | AG84: - | AH84: - | AI84: - | AJ84: - | AK84: 1 | AL84: - | AM84: - | AN84: - | AO84: 5 | AP84: 2 | AQ84: 2 | AR84: - | AS84: - | AT84: 4 | AU84: 2 | AV84: 66.9 | AW84: 64.0 | AX84: 68.7 | AY84: 15 | AZ84: - | BA84: - | BB84: - | BC84: - | BD84: 1 | BE84: - | BF84: - | BG84: - | BH84: 5 | BI84: 2 | BJ84: 2 | BK84: - | BL84: - | BM84: 3 | BN84: 2 | BO84: 66.1 | BP84: 64.0 | BQ84: 67.4 | BR84: 8 | BS84: - | BT84: - | BU84: - | BV84: - | BW84: 1 | BX84: - | BY84: - | BZ84: - | CA84: 4 | CB84: - | CC84: 2 | CD84: - | CE84: - | CF84: 1 | CG84: - | CH84: 2 | CI84: - | CJ84: - | CK84: - | CL84: - | CM84: - | CN84: - | CO84: 1 | CP84: - | CQ84: 1 | CR84: - | CS84: - | CT84: - | CU84: - | DC84: 33 | DD84: 29 | DE84: 15 | DF84: 11 | DG84: 3 | DH84: - | DI84: 1 | DJ84: 3 | DK84: 8 | DL84: - | DM84: - | DN84: - | DO84: 8 | DP84: - | DQ84: - | DR84: - | DS84: - | DT84: - | DU84: - | DV84: - | DW84: - | DX84: - | DY84: - | DZ84: - | EA84: 8 | EB84: 1,127 | EC84: 25 | ED84: 10 | EE84: 1,092 | EF84: 15 | EG84: 14 | EH84: 6 | EI84: 6 | EJ84: 2 | EK84: - | EL84: 1 | EM84: - | EN84: 18 | EO84: 15 | EP84: 9 | EQ84: 5 | ER84: 1 | ES84: - | ET84: - | EU84: 3
A85: 静岡県 | B85: 葵区(静岡市) | C85: 美和村 | D85: 谷沢 | E85: 16 | F85: 13 | G85: 4 | H85: 4 | I85: 2 | J85: 1 | K85: 7 | L85: 3 | M85: 35 | N85: - | O85: - | P85: - | Q85: 1 | R85: 1 | S85: 2 | T85: 6 | U85: 2 | V85: 4 | W85: 3 | X85: 3 | Y85: 3 | Z85: 7 | AA85: 2 | AB85: 1 | AC85: 61.5 | AD85: 60.5 | AE85: 62.6 | AF85: 25 | AG85: - | AH85: - | AI85: - | AJ85: - | AK85: 1 | AL85: 1 | AM85: 3 | AN85: - | AO85: 4 | AP85: 3 | AQ85: 1 | AR85: 2 | AS85: 7 | AT85: 2 | AU85: 1 | AV85: 65.3 | AW85: 64.0 | AX85: 66.7 | AY85: 19 | AZ85: - | BA85: - | BB85: - | BC85: - | BD85: 1 | BE85: 1 | BF85: 2 | BG85: - | BH85: 3 | BI85: 3 | BJ85: 1 | BK85: 2 | BL85: 5 | BM85: 1 | BN85: - | BO85: 63.3 | BP85: 60.7 | BQ85: 66.8 | BR85: 13 | BS85: - | BT85: - | BU85: - | BV85: - | BW85: - | BX85: 1 | BY85: 2 | BZ85: - | CA85: 2 | CB85: 2 | CC85: 1 | CD85: 1 | CE85: 2 | CF85: 1 | CG85: 1 | CH85: 4 | CI85: - | CJ85: - | CK85: - | CL85: - | CM85: - | CN85: - | CO85: 1 | CP85: 1 | CQ85: 1 | CR85: - | CS85: 1 | CT85: - | CU85: - | DC85: 46 | DD85: 29 | DE85: 19 | DF85: 10 | DG85: - | DH85: 6 | DI85: 3 | DJ85: 8 | DK85: 13 | DL85: - | DM85: - | DN85: - | DO85: 13 | DP85: - | DQ85: - | DR85: - | DS85: - | DT85: - | DU85: - | DV85: - | DW85: - | DX85: - | DY85: - | DZ85: - | EA85: 13 | EB85: 1,433 | EC85: - | ED85: 33 | EE85: 1,400 | EF85: 22 | EG85: 16 | EH85: 11 | EI85: 5 | EJ85: - | EK85: - | EL85: 1 | EM85: 5 | EN85: 24 | EO85: 13 | EP85: 8 | EQ85: 5 | ER85: - | ES85: 6 | ET85: 2 | EU85: 3
A86: 静岡県 | B86: 葵区(静岡市) | C86: 美和村 | D86: 口長島 | E86: 19 | F86: 15 | G86: 8 | H86: 8 | I86: 6 | J86: 2 | K86: 1 | L86: 4 | M86: 39 | N86: - | O86: 1 | P86: - | Q86: - | R86: 2 | S86: 4 | T86: 2 | U86: 7 | V86: 2 | W86: 9 | X86: 5 | Y86: 3 | Z86: 2 | AA86: 1 | AB86: 1 | AC86: 57.9 | AD86: 58.2 | AE86: 57.5 | AF86: 25 | AG86: - | AH86: - | AI86: - | AJ86: - | AK86: 1 | AL86: 2 | AM86: 1 | AN86: 4 | AO86: 1 | AP86: 5 | AQ86: 4 | AR86: 3 | AS86: 2 | AT86: 1 | AU86: 1 | AV86: 61.8 | AW86: 63.4 | AX86: 60.5 | AY86: 23 | AZ86: - | BA86: - | BB86: - | BC86: - | BD86: 1 | BE86: 2 | BF86: 1 | BG86: 4 | BH86: 1 | BI86: 4 | BJ86: 4 | BK86: 3 | BL86: 2 | BM86: 1 | BN86: - | BO86: 60.7 | BP86: 63.4 | BQ86: 58.3 | BR86: 15 | BS86: - | BT86: - | BU86: - | BV86: - | BW86: - | BX86: 2 | BY86: 1 | BZ86: 2 | CA86: 2 | CB86: 3 | CC86: 4 | CD86: - | CE86: 1 | CF86: - | CG86: - | CH86: 2 | CI86: - | CJ86: - | CK86: - | CL86: - | CM86: - | CN86: - | CO86: - | CP86: - | CQ86: 1 | CR86: - | CS86: 1 | CT86: - | CU86: - | DC86: 45 | DD86: 38 | DE86: 23 | DF86: 15 | DG86: - | DH86: 4 | DI86: 1 | DJ86: 2 | DK86: 15 | DL86: - | DM86: - | DN86: - | DO86: 15 | DP86: - | DQ86: - | DR86: - | DS86: - | DT86: - | DU86: - | DV86: - | DW86: - | DX86: - | DY86: - | DZ86: - | EA86: 15 | EB86: 1,768 | EC86: - | ED86: 1 | EE86: 1,767 | EF86: 22 | EG86: 22 | EH86: 11 | EI86: 11 | EJ86: - | EK86: - | EL86: - | EM86: - | EN86: 23 | EO86: 16 | EP86: 12 | EQ86: 4 | ER86: - | ES86: 4 | ET86: 1 | EU86: 2
A87: 静岡県 | B87: 葵区(静岡市) | C87: 美和村 | D87: 奥長島 | E87: 13 | F87: 10 | G87: 3 | H87: 2 | I87: 4 | J87: 1 | K87: 3 | L87: 3 | M87: 24 | N87: - | O87: - | P87: - | Q87: - | R87: 1 | S87: 1 | T87: 2 | U87: 2 | V87: 3 | W87: 4 | X87: 1 | Y87: 3 | Z87: 4 | AA87: 2 | AB87: 1 | AC87: 64.1 | AD87: 65.1 | AE87: 63.2 | AF87: 16 | AG87: - | AH87: - | AI87: - | AJ87: - | AK87: 1 | AL87: - | AM87: - | AN87: - | AO87: 1 | AP87: 3 | AQ87: 1 | AR87: 3 | AS87: 4 | AT87: 2 | AU87: 1 | AV87: 70.2 | AW87: 73.6 | AX87: 67.6 | AY87: 15 | AZ87: - | BA87: - | BB87: - | BC87: - | BD87: 1 | BE87: - | BF87: - | BG87: - | BH87: 1 | BI87: 3 | BJ87: 1 | BK87: 3 | BL87: 3 | BM87: 2 | BN87: 1 | BO87: 69.7 | BP87: 73.0 | BQ87: 67.6 | BR87: 10 | BS87: - | BT87: - | BU87: - | BV87: - | BW87: - | BX87: - | BY87: - | BZ87: - | CA87: 2 | CB87: 2 | CC87: 1 | CD87: 1 | CE87: 3 | CF87: 1 | CG87: - | CH87: 5 | CI87: - | CJ87: - | CK87: - | CL87: - | CM87: - | CN87: - | CO87: - | CP87: 1 | CQ87: - | CR87: - | CS87: 3 | CT87: 1 | CU87: - | DC87: 33 | DD87: 27 | DE87: 15 | DF87: 12 | DG87: - | DH87: 1 | DI87: 1 | DJ87: 4 | DK87: 10 | DL87: - | DM87: - | DN87: - | DO87: 10 | DP87: - | DQ87: - | DR87: - | DS87: - | DT87: - | DU87: - | DV87: - | DW87: - | DX87: - | DY87: - | DZ87: - | EA87: 10 | EB87: 629 | EC87: - | ED87: - | EE87: 629 | EF87: 17 | EG87: 13 | EH87: 6 | EI87: 7 | EJ87: - | EK87: 1 | EL87: 1 | EM87: 2 | EN87: 16 | EO87: 14 | EP87: 9 | EQ87: 5 | ER87: - | ES87: - | ET87: - | EU87: 2
A88: 静岡県 | B88: 葵区(静岡市) | C88: 美和村 | D88: 油山下 | E88: 26 | F88: 14 | G88: 5 | H88: 5 | I88: 1 | J88: - | K88: 8 | L88: 12 | M88: 38 | N88: - | O88: - | P88: - | Q88: - | R88: 3 | S88: 1 | T88: 3 | U88: 8 | V88: 2 | W88: 4 | X88: 3 | Y88: 8 | Z88: 1 | AA88: 5 | AB88: - | AC88: 61.5 | AD88: 58.1 | AE88: 65.8 | AF88: 29 | AG88: - | AH88: - | AI88: - | AJ88: - | AK88: 2 | AL88: - | AM88: 1 | AN88: 5 | AO88: - | AP88: 4 | AQ88: 3 | AR88: 8 | AS88: 1 | AT88: 5 | AU88: - | AV88: 65.6 | AW88: 63.5 | AX88: 67.5 | AY88: 27 | AZ88: - | BA88: - | BB88: - | BC88: - | BD88: 1 | BE88: - | BF88: 1 | BG88: 4 | BH88: - | BI88: 4 | BJ88: 3 | BK88: 8 | BL88: 1 | BM88: 5 | BN88: - | BO88: 67.1 | BP88: 65.5 | BQ88: 68.7 | BR88: 14 | BS88: - | BT88: - | BU88: - | BV88: - | BW88: - | BX88: 1 | BY88: 3 | BZ88: 3 | CA88: 1 | CB88: 2 | CC88: - | CD88: 3 | CE88: - | CF88: 1 | CG88: - | CH88: 4 | CI88: - | CJ88: - | CK88: - | CL88: - | CM88: - | CN88: - | CO88: - | CP88: 1 | CQ88: - | CR88: 2 | CS88: - | CT88: 1 | CU88: - | DC88: 55 | DD88: 41 | DE88: 27 | DF88: 12 | DG88: 2 | DH88: 3 | DI88: 6 | DJ88: 5 | DK88: 13 | DL88: - | DM88: - | DN88: - | DO88: 2 | DP88: 3 | DQ88: 8 | DR88: - | DS88: - | DT88: - | DU88: - | DV88: - | DW88: - | DX88: - | DY88: - | DZ88: - | EA88: 14 | EB88: 830 | EC88: 373 | ED88: 161 | EE88: 296 | EF88: 27 | EG88: 21 | EH88: 13 | EI88: 6 | EJ88: 2 | EK88: - | EL88: 3 | EM88: 3 | EN88: 28 | EO88: 20 | EP88: 14 | EQ88: 6 | ER88: - | ES88: 3 | ET88: 3 | EU88: 2
A89: 静岡県 | B89: 葵区(静岡市) | C89: 美和村 | D89: 油山橋本 | E89: @ | F89: @ | G89: @ | H89: @ | I89: @ | J89: @ | K89: @ | L89: @ | M89: @ | N89: @ | O89: @ | P89: @ | Q89: @ | R89: @ | S89: @ | T89: @ | U89: @ | V89: @ | W89: @ | X89: @ | Y89: @ | Z89: @ | AA89: @ | AB89: @ | AC89: … | AD89: … | AE89: … | AF89: @ | AG89: @ | AH89: @ | AI89: @ | AJ89: @ | AK89: @ | AL89: @ | AM89: @ | AN89: @ | AO89: @ | AP89: @ | AQ89: @ | AR89: @ | AS89: @ | AT89: @ | AU89: @ | AV89: … | AW89: … | AX89: … | AY89: @ | AZ89: @ | BA89: @ | BB89: @ | BC89: @ | BD89: @ | BE89: @ | BF89: @ | BG89: @ | BH89: @ | BI89: @ | BJ89: @ | BK89: @ | BL89: @ | BM89: @ | BN89: @ | BO89: … | BP89: … | BQ89: … | BR89: - | BS89: - | BT89: - | BU89: - | BV89: - | BW89: - | BX89: - | BY89: - | BZ89: - | CA89: - | CB89: - | CC89: - | CD89: - | CE89: - | CF89: - | CG89: - | CH89: - | CI89: - | CJ89: - | CK89: - | CL89: - | CM89: - | CN89: - | CO89: - | CP89: - | CQ89: - | CR89: - | CS89: - | CT89: - | CU89: - | DC89: - | DD89: - | DE89: - | DF89: - | DG89: - | DH89: - | DI89: - | DJ89: - | DK89: - | DL89: - | DM89: - | DN89: - | DO89: - | DP89: - | DQ89: - | DR89: - | DS89: - | DT89: - | DU89: - | DV89: - | DW89: - | DX89: - | DY89: - | DZ89: - | EA89: - | EB89: - | EC89: - | ED89: - | EE89: - | EF89: - | EG89: - | EH89: - | EI89: - | EJ89: - | EK89: - | EL89: - | EM89: - | EN89: - | EO89: - | EP89: - | EQ89: - | ER89: - | ES89: - | ET89: - | EU89: -
A90: 静岡県 | B90: 葵区(静岡市) | C90: 美和村 | D90: 油山上 | E90: 21 | F90: 14 | G90: 2 | H90: 2 | I90: 5 | J90: 3 | K90: 7 | L90: 7 | M90: 45 | N90: - | O90: 1 | P90: 5 | Q90: 1 | R90: - | S90: 1 | T90: 1 | U90: 3 | V90: 10 | W90: 4 | X90: 2 | Y90: 5 | Z90: 6 | AA90: 4 | AB90: 2 | AC90: 60.4 | AD90: 62.3 | AE90: 58.2 | AF90: 28 | AG90: - | AH90: - | AI90: - | AJ90: - | AK90: - | AL90: - | AM90: - | AN90: - | AO90: 7 | AP90: 2 | AQ90: 2 | AR90: 5 | AS90: 6 | AT90: 4 | AU90: 2 | AV90: 71.3 | AW90: 73.9 | AX90: 68.7 | AY90: 27 | AZ90: - | BA90: - | BB90: - | BC90: - | BD90: - | BE90: - | BF90: - | BG90: - | BH90: 7 | BI90: 2 | BJ90: 2 | BK90: 5 | BL90: 5 | BM90: 4 | BN90: 2 | BO90: 71.1 | BP90: 73.9 | BQ90: 68.1 | BR90: 14 | BS90: - | BT90: - | BU90: - | BV90: - | BW90: - | BX90: - | BY90: - | BZ90: - | CA90: 2 | CB90: 4 | CC90: - | CD90: 3 | CE90: 3 | CF90: 2 | CG90: - | CH90: 3 | CI90: - | CJ90: - | CK90: - | CL90: - | CM90: - | CN90: - | CO90: 1 | CP90: - | CQ90: - | CR90: 1 | CS90: - | CT90: 1 | CU90: - | DC90: 51 | DD90: 42 | DE90: 27 | DF90: 14 | DG90: 1 | DH90: 4 | DI90: 2 | DJ90: 3 | DK90: 12 | DL90: 2 | DM90: - | DN90: - | DO90: 5 | DP90: 1 | DQ90: 4 | DR90: - | DS90: - | DT90: - | DU90: - | DV90: - | DW90: - | DX90: - | DY90: - | DZ90: - | EA90: 14 | EB90: 873 | EC90: 322 | ED90: 61 | EE90: 490 | EF90: 25 | EG90: 24 | EH90: 14 | EI90: 9 | EJ90: 1 | EK90: - | EL90: 1 | EM90: - | EN90: 26 | EO90: 18 | EP90: 13 | EQ90: 5 | ER90: - | ES90: 4 | ET90: 1 | EU90: 3
A91: 静岡県 | B91: 葵区(静岡市) | C91: 美和村 | D91: 松野第一 | E91: 16 | F91: 12 | G91: 2 | H91: 2 | I91: 4 | J91: 1 | K91: 6 | L91: 4 | M91: 34 | N91: - | O91: - | P91: - | Q91: 1 | R91: 1 | S91: 1 | T91: 3 | U91: 1 | V91: 8 | W91: 3 | X91: 3 | Y91: 6 | Z91: 2 | AA91: 3 | AB91: 2 | AC91: 62.8 | AD91: 60.7 | AE91: 64.7 | AF91: 23 | AG91: - | AH91: - | AI91: - | AJ91: 1 | AK91: - | AL91: - | AM91: 1 | AN91: 1 | AO91: 5 | AP91: 1 | AQ91: 2 | AR91: 5 | AS91: 2 | AT91: 3 | AU91: 2 | AV91: 67.0 | AW91: 67.7 | AX91: 66.6 | AY91: 20 | AZ91: - | BA91: - | BB91: - | BC91: 1 | BD91: - | BE91: - | BF91: - | BG91: 1 | BH91: 5 | BI91: 1 | BJ91: 1 | BK91: 5 | BL91: 2 | BM91: 3 | BN91: 1 | BO91: 67.1 | BP91: 67.7 | BQ91: 66.6 | BR91: 12 | BS91: - | BT91: - | BU91: - | BV91: - | BW91: - | BX91: - | BY91: - | BZ91: - | CA91: 3 | CB91: 3 | CC91: 1 | CD91: 4 | CE91: 1 | CF91: - | CG91: - | CH91: 2 | CI91: - | CJ91: - | CK91: - | CL91: - | CM91: - | CN91: - | CO91: 1 | CP91: - | CQ91: - | CR91: 1 | CS91: - | CT91: - | CU91: - | DC91: 40 | DD91: 35 | DE91: 20 | DF91: 15 | DG91: - | DH91: 3 | DI91: - | DJ91: 2 | DK91: 12 | DL91: - | DM91: - | DN91: - | DO91: 11 | DP91: 1 | DQ91: - | DR91: - | DS91: - | DT91: - | DU91: - | DV91: - | DW91: - | DX91: - | DY91: - | DZ91: - | EA91: 12 | EB91: 966 | EC91: 27 | ED91: 69 | EE91: 870 | EF91: 17 | EG91: 17 | EH91: 9 | EI91: 8 | EJ91: - | EK91: - | EL91: - | EM91: - | EN91: 23 | EO91: 18 | EP91: 11 | EQ91: 7 | ER91: - | ES91: 3 | ET91: - | EU91: 2
A92: 静岡県 | B92: 葵区(静岡市) | C92: 美和村 | D92: 松野第二 | E92: 24 | F92: 21 | G92: 5 | H92: 5 | I92: 3 | J92: 1 | K92: 13 | L92: 3 | M92: 60 | N92: - | O92: 2 | P92: 3 | Q92: 1 | R92: 1 | S92: 5 | T92: 3 | U92: 5 | V92: 2 | W92: 9 | X92: 7 | Y92: 9 | Z92: 7 | AA92: 5 | AB92: 1 | AC92: 60.3 | AD92: 62.4 | AE92: 58.6 | AF92: 37 | AG92: - | AH92: - | AI92: - | AJ92: - | AK92: - | AL92: 2 | AM92: 1 | AN92: 3 | AO92: 1 | AP92: 3 | AQ92: 5 | AR92: 9 | AS92: 7 | AT92: 5 | AU92: 1 | AV92: 68.9 | AW92: 69.8 | AX92: 68.1 | AY92: 32 | AZ92: - | BA92: - | BB92: - | BC92: - | BD92: - | BE92: 1 | BF92: 1 | BG92: 3 | BH92: 1 | BI92: 3 | BJ92: 5 | BK92: 9 | BL92: 4 | BM92: 5 | BN92: - | BO92: 68.3 | BP92: 69.2 | BQ92: 67.3 | BR92: 21 | BS92: - | BT92: - | BU92: - | BV92: - | BW92: - | BX92: 1 | BY92: - | BZ92: 1 | CA92: 1 | CB92: 5 | CC92: 3 | CD92: 4 | CE92: 4 | CF92: 2 | CG92: - | CH92: 6 | CI92: - | CJ92: - | CK92: - | CL92: - | CM92: - | CN92: - | CO92: - | CP92: 1 | CQ92: 1 | CR92: 2 | CS92: - | CT92: 2 | CU92: - | DC92: 81 | DD92: 60 | DE92: 32 | DF92: 27 | DG92: 1 | DH92: 9 | DI92: 1 | DJ92: 11 | DK92: 21 | DL92: - | DM92: - | DN92: - | DO92: 21 | DP92: - | DQ92: - | DR92: - | DS92: - | DT92: - | DU92: - | DV92: - | DW92: - | DX92: - | DY92: - | DZ92: - | EA92: 21 | EB92: 1,784 | EC92: 17 | ED92: 50 | EE92: 1,717 | EF92: 37 | EG92: 34 | EH92: 16 | EI92: 17 | EJ92: 1 | EK92: - | EL92: 1 | EM92: 2 | EN92: 44 | EO92: 26 | EP92: 16 | EQ92: 10 | ER92: - | ES92: 9 | ET92: - | EU92: 9
A93: 静岡県 | B93: 葵区(静岡市) | C93: 美和村 | D93: 松野第三 | E93: 9 | F93: 6 | G93: 1 | H93: 1 | I93: 1 | J93: - | K93: 4 | L93: 3 | M93: 15 | N93: - | O93: - | P93: - | Q93: - | R93: 1 | S93: - | T93: 4 | U93: - | V93: 1 | W93: 2 | X93: 1 | Y93: 1 | Z93: 2 | AA93: 2 | AB93: 1 | AC93: 62.7 | AD93: 62.7 | AE93: 62.8 | AF93: 8 | AG93: - | AH93: - | AI93: - | AJ93: - | AK93: - | AL93: - | AM93: - | AN93: - | AO93: 1 | AP93: 1 | AQ93: 1 | AR93: - | AS93: 2 | AT93: 2 | AU93: 1 | AV93: 73.8 | AW93: 76.0 | AX93: 71.5 | AY93: 7 | AZ93: - | BA93: - | BB93: - | BC93: - | BD93: - | BE93: - | BF93: - | BG93: - | BH93: 1 | BI93: - | BJ93: 1 | BK93: - | BL93: 2 | BM93: 2 | BN93: 1 | BO93: 75.3 | BP93: 76.0 | BQ93: 74.3 | BR93: 6 | BS93: - | BT93: - | BU93: - | BV93: - | BW93: - | BX93: - | BY93: - | BZ93: - | CA93: - | CB93: 1 | CC93: 1 | CD93: 1 | CE93: 1 | CF93: 2 | CG93: - | CH93: - | CI93: - | CJ93: - | CK93: - | CL93: - | CM93: - | CN93: - | CO93: - | CP93: - | CQ93: - | CR93: - | CS93: - | CT93: - | CU93: - | DC93: 20 | DD93: 15 | DE93: 7 | DF93: 8 | DG93: - | DH93: 3 | DI93: 2 | DJ93: - | DK93: 6 | DL93: - | DM93: - | DN93: - | DO93: 5 | DP93: 1 | DQ93: - | DR93: - | DS93: - | DT93: - | DU93: - | DV93: - | DW93: - | DX93: - | DY93: - | DZ93: - | EA93: 6 | EB93: 354 | EC93: 17 | ED93: 10 | EE93: 327 | EF93: 10 | EG93: 9 | EH93: 4 | EI93: 5 | EJ93: - | EK93: - | EL93: 1 | EM93: - | EN93: 10 | EO93: 6 | EP93: 3 | EQ93: 3 | ER93: - | ES93: 3 | ET93: 1 | EU93: -
A94: 静岡県 | B94: 葵区(静岡市) | C94: 美和村 | D94: 津渡野 | E94: 6 | F94: 4 | G94: 1 | H94: 1 | I94: 2 | J94: 1 | K94: 1 | L94: 2 | M94: 11 | N94: - | O94: - | P94: - | Q94: 1 | R94: - | S94: - | T94: - | U94: 2 | V94: 3 | W94: 1 | X94: 2 | Y94: - | Z94: - | AA94: 2 | AB94: - | AC94: 61.2 | AD94: 63.5 | AE94: 58.4 | AF94: 8 | AG94: - | AH94: - | AI94: - | AJ94: - | AK94: - | AL94: - | AM94: - | AN94: 1 | AO94: 3 | AP94: 1 | AQ94: 1 | AR94: - | AS94: - | AT94: 2 | AU94: - | AV94: 65.0 | AW94: 65.3 | AX94: 64.8 | AY94: 7 | AZ94: - | BA94: - | BB94: - | BC94: - | BD94: - | BE94: - | BF94: - | BG94: - | BH94: 3 | BI94: 1 | BJ94: 1 | BK94: - | BL94: - | BM94: 2 | BN94: - | BO94: 66.6 | BP94: 65.3 | BQ94: 68.3 | BR94: 4 | BS94: - | BT94: - | BU94: - | BV94: - | BW94: - | BX94: - | BY94: - | BZ94: 1 | CA94: 1 | CB94: 1 | CC94: 1 | CD94: - | CE94: - | CF94: - | CG94: - | CH94: 3 | CI94: - | CJ94: - | CK94: - | CL94: - | CM94: - | CN94: 1 | CO94: 1 | CP94: - | CQ94: 1 | CR94: - | CS94: - | CT94: - | CU94: - | DC94: 15 | DD94: 13 | DE94: 7 | DF94: 5 | DG94: 1 | DH94: 1 | DI94: - | DJ94: 1 | DK94: 4 | DL94: - | DM94: - | DN94: - | DO94: 4 | DP94: - | DQ94: - | DR94: - | DS94: - | DT94: - | DU94: - | DV94: - | DW94: - | DX94: - | DY94: - | DZ94: - | EA94: 4 | EB94: 332 | EC94: - | ED94: 1 | EE94: 331 | EF94: 7 | EG94: 6 | EH94: 4 | EI94: 1 | EJ94: 1 | EK94: - | EL94: - | EM94: 1 | EN94: 8 | EO94: 7 | EP94: 3 | EQ94: 4 | ER94: - | ES94: 1 | ET94: - | EU94: -
A95: 静岡県 | B95: 葵区(静岡市) | C95: 服織村 | E95: 247 | F95: 127 | G95: 53 | H95: 47 | I95: 40 | J95: 22 | K95: 34 | L95: 120 | M95: 353 | N95: 1 | O95: 5 | P95: 10 | Q95: 7 | R95: 19 | S95: 13 | T95: 33 | U95: 25 | V95: 53 | W95: 44 | X95: 33 | Y95: 43 | Z95: 33 | AA95: 17 | AB95: 17 | AC95: 60.1 | AD95: 59.1 | AE95: 61.3 | AF95: 268 | AG95: - | AH95: 1 | AI95: 3 | AJ95: 2 | AK95: 10 | AL95: 4 | AM95: 14 | AN95: 17 | AO95: 43 | AP95: 38 | AQ95: 31 | AR95: 39 | AS95: 33 | AT95: 16 | AU95: 17 | AV95: 64.5 | AW95: 63.9 | AX95: 65.2 | AY95: 248 | AZ95: - | BA95: 1 | BB95: 3 | BC95: 1 | BD95: 9 | BE95: 2 | BF95: 13 | BG95: 16 | BH95: 41 | BI95: 37 | BJ95: 31 | BK95: 35 | BL95: 31 | BM95: 12 | BN95: 16 | BO95: 64.5 | BP95: 63.5 | BQ95: 65.9 | BR95: 127 | BS95: - | BT95: - | BU95: - | BV95: - | BW95: 1 | BX95: 2 | BY95: 11 | BZ95: 9 | CA95: 20 | CB95: 22 | CC95: 17 | CD95: 22 | CE95: 9 | CF95: 6 | CG95: 8 | CH95: 56 | CI95: - | CJ95: - | CK95: - | CL95: - | CM95: 4 | CN95: 3 | CO95: 9 | CP95: 6 | CQ95: 5 | CR95: 11 | CS95: 5 | CT95: 6 | CU95: 7 | DC95: 490 | DD95: 389 | DE95: 248 | DF95: 130 | DG95: 11 | DH95: 28 | DI95: 29 | DJ95: 44 | DK95: 123 | DL95: 7 | DM95: - | DN95: - | DO95: 80 | DP95: 4 | DQ95: 13 | DR95: 10 | DS95: 2 | DT95: - | DU95: 2 | DV95: 2 | DW95: - | DX95: 3 | DY95: - | DZ95: - | EA95: 126 | EB95: 16,639 | EC95: 6,603 | ED95: 1,002 | EE95: 9,034 | EF95: 244 | EG95: 220 | EH95: 140 | EI95: 76 | EJ95: 4 | EK95: - | EL95: 11 | EM95: 13 | EN95: 246 | EO95: 169 | EP95: 108 | EQ95: 54 | ER95: 7 | ES95: 28 | ET95: 18 | EU95: 31
A96: 静岡県 | B96: 葵区(静岡市) | C96: 服織村 | D96: 山崎新田 | E96: 6 | F96: 2 | G96: x | H96: x | I96: x | J96: x | K96: x | L96: 4 | M96: x | N96: x | O96: x | P96: x | Q96: x | R96: x | S96: x | T96: x | U96: x | V96: x | W96: x | X96: x | Y96: x | Z96: x | AA96: x | AB96: x | AC96: 64.8 | AD96: 61.3 | AE96: 70.0 | AF96: x | AG96: x | AH96: x | AI96: x | AJ96: x | AK96: x | AL96: x | AM96: x | AN96: x | AO96: x | AP96: x | AQ96: x | AR96: x | AS96: x | AT96: x | AU96: x | AV96: 64.8 | AW96: 61.3 | AX96: 70.0 | AY96: x | AZ96: x | BA96: x | BB96: x | BC96: x | BD96: x | BE96: x | BF96: x | BG96: x | BH96: x | BI96: x | BJ96: x | BK96: x | BL96: x | BM96: x | BN96: x | BO96: 64.8 | BP96: 61.3 | BQ96: 70.0 | BR96: 2 | BS96: - | BT96: - | BU96: - | BV96: - | BW96: - | BX96: - | BY96: - | BZ96: - | CA96: - | CB96: - | CC96: 1 | CD96: - | CE96: - | CF96: 1 | CG96: - | CH96: 2 | CI96: - | CJ96: - | CK96: - | CL96: - | CM96: - | CN96: - | CO96: - | CP96: - | CQ96: 1 | CR96: - | CS96: - | CT96: 1 | CU96: - | DC96: 5 | DD96: 5 | DE96: 5 | DF96: - | DG96: - | DH96: - | DI96: - | DJ96: - | DK96: 2 | DL96: 1 | DM96: - | DN96: - | DO96: - | DP96: - | DQ96: 1 | DR96: - | DS96: - | DT96: - | DU96: - | DV96: - | DW96: - | DX96: - | DY96: - | DZ96: - | EA96: 2 | EB96: 3,963 | EC96: 3,933 | ED96: 30 | EE96: - | EF96: 3 | EG96: 3 | EH96: 3 | EI96: - | EJ96: - | EK96: - | EL96: - | EM96: - | EN96: 2 | EO96: 2 | EP96: 2 | EQ96: - | ER96: - | ES96: - | ET96: - | EU96: -
A97: 静岡県 | B97: 葵区(静岡市) | C97: 服織村 | D97: 千代 | E97: 10 | F97: 5 | G97: 1 | H97: 1 | I97: 2 | J97: - | K97: 2 | L97: 5 | M97: 17 | N97: - | O97: - | P97: - | Q97: - | R97: - | S97: 1 | T97: 5 | U97: - | V97: 2 | W97: - | X97: - | Y97: 2 | Z97: 5 | AA97: 2 | AB97: - | AC97: 63.8 | AD97: 62.3 | AE97: 65.4 | AF97: 12 | AG97: - | AH97: - | AI97: - | AJ97: - | AK97: - | AL97: 1 | AM97: 1 | AN97: - | AO97: 1 | AP97: - | AQ97: - | AR97: 2 | AS97: 5 | AT97: 2 | AU97: - | AV97: 69.6 | AW97: 71.8 | AX97: 68.0 | AY97: 10 | AZ97: - | BA97: - | BB97: - | BC97: - | BD97: - | BE97: - | BF97: 1 | BG97: - | BH97: - | BI97: - | BJ97: - | BK97: 2 | BL97: 5 | BM97: 2 | BN97: - | BO97: 73.6 | BP97: 71.8 | BQ97: 75.4 | BR97: 5 | BS97: - | BT97: - | BU97: - | BV97: - | BW97: - | BX97: - | BY97: 1 | BZ97: - | CA97: 1 | CB97: - | CC97: - | CD97: - | CE97: 3 | CF97: - | CG97: - | CH97: 3 | CI97: - | CJ97: - | CK97: - | CL97: - | CM97: - | CN97: - | CO97: - | CP97: - | CQ97: - | CR97: - | CS97: 3 | CT97: - | CU97: - | DC97: 26 | DD97: 17 | DE97: 10 | DF97: 7 | DG97: - | DH97: 3 | DI97: 5 | DJ97: 1 | DK97: 5 | DL97: - | DM97: - | DN97: - | DO97: 3 | DP97: - | DQ97: - | DR97: 2 | DS97: - | DT97: - | DU97: - | DV97: - | DW97: - | DX97: - | DY97: - | DZ97: - | EA97: 5 | EB97: 302 | EC97: 32 | ED97: 29 | EE97: 241 | EF97: 10 | EG97: 10 | EH97: 5 | EI97: 5 | EJ97: - | EK97: - | EL97: - | EM97: - | EN97: 16 | EO97: 7 | EP97: 5 | EQ97: 2 | ER97: - | ES97: 3 | ET97: 5 | EU97: 1
A98: 静岡県 | B98: 葵区(静岡市) | C98: 服織村 | D98: 慈悲尾 | E98: 11 | F98: 4 | G98: 2 | H98: 2 | I98: 2 | J98: 2 | K98: - | L98: 7 | M98: 15 | N98: - | O98: - | P98: - | Q98: - | R98: - | S98: - | T98: 4 | U98: 3 | V98: 1 | W98: - | X98: - | Y98: 3 | Z98: 1 | AA98: 2 | AB98: 1 | AC98: 63.1 | AD98: 63.6 | AE98: 62.8 | AF98: 13 | AG98: - | AH98: - | AI98: - | AJ98: - | AK98: - | AL98: - | AM98: 3 | AN98: 2 | AO98: 1 | AP98: - | AQ98: - | AR98: 3 | AS98: 1 | AT98: 2 | AU98: 1 | AV98: 65.0 | AW98: 63.6 | AX98: 66.7 | AY98: 12 | AZ98: - | BA98: - | BB98: - | BC98: - | BD98: - | BE98: - | BF98: 3 | BG98: 2 | BH98: 1 | BI98: - | BJ98: - | BK98: 3 | BL98: 1 | BM98: 1 | BN98: 1 | BO98: 63.4 | BP98: 63.6 | BQ98: 63.2 | BR98: 4 | BS98: - | BT98: - | BU98: - | BV98: - | BW98: - | BX98: - | BY98: - | BZ98: 2 | CA98: - | CB98: - | CC98: - | CD98: 1 | CE98: - | CF98: - | CG98: 1 | CH98: 2 | CI98: - | CJ98: - | CK98: - | CL98: - | CM98: - | CN98: - | CO98: - | CP98: - | CQ98: - | CR98: 1 | CS98: - | CT98: - | CU98: 1 | DC98: 17 | DD98: 15 | DE98: 12 | DF98: 3 | DG98: - | DH98: 1 | DI98: 1 | DJ98: - | DK98: 4 | DL98: - | DM98: - | DN98: - | DO98: 1 | DP98: 1 | DQ98: - | DR98: 1 | DS98: - | DT98: - | DU98: - | DV98: 1 | DW98: - | DX98: - | DY98: - | DZ98: - | EA98: 4 | EB98: 427 | EC98: 113 | ED98: 14 | EE98: 300 | EF98: 7 | EG98: 7 | EH98: 7 | EI98: - | EJ98: - | EK98: - | EL98: - | EM98: - | EN98: 10 | EO98: 8 | EP98: 5 | EQ98: 3 | ER98: - | ES98: 1 | ET98: 1 | EU98: -
A99: 静岡県 | B99: 葵区(静岡市) | C99: 服織村 | D99: 建穂 | E99: 22 | F99: 8 | G99: 2 | H99: 1 | I99: 4 | J99: 1 | K99: 2 | L99: 14 | M99: 21 | N99: - | O99: 1 | P99: 1 | Q99: - | R99: - | S99: 2 | T99: - | U99: 2 | V99: 5 | W99: 2 | X99: 3 | Y99: - | Z99: 2 | AA99: - | AB99: 3 | AC99: 60.5 | AD99: 62.5 | AE99: 58.4 | AF99: 13 | AG99: - | AH99: - | AI99: - | AJ99: - | AK99: - | AL99: - | AM99: - | AN99: 1 | AO99: 2 | AP99: 2 | AQ99: 3 | AR99: - | AS99: 2 | AT99: - | AU99: 3 | AV99: 70.4 | AW99: 72.0 | AX99: 68.5 | AY99: 11 | AZ99: - | BA99: - | BB99: - | BC99: - | BD99: - | BE99: - | BF99: - | BG99: 1 | BH99: 1 | BI99: 2 | BJ99: 3 | BK99: - | BL99: 2 | BM99: - | BN99: 2 | BO99: 69.6 | BP99: 68.8 | BQ99: 70.6 | BR99: 8 | BS99: - | BT99: - | BU99: - | BV99: - | BW99: - | BX99: 1 | BY99: - | BZ99: - | CA99: 2 | CB99: 2 | CC99: 2 | CD99: - | CE99: - | CF99: - | CG99: 1 | CH99: 2 | CI99: - | CJ99: - | CK99: - | CL99: - | CM99: - | CN99: - | CO99: - | CP99: 1 | CQ99: - | CR99: - | CS99: - | CT99: - | CU99: 1 | DC99: 31 | DD99: 21 | DE99: 11 | DF99: 10 | DG99: - | DH99: 4 | DI99: 2 | DJ99: 4 | DK99: 8 | DL99: - | DM99: - | DN99: - | DO99: 5 | DP99: 1 | DQ99: 1 | DR99: 1 | DS99: - | DT99: - | DU99: - | DV99: - | DW99: - | DX99: - | DY99: - | DZ99: - | EA99: 8 | EB99: 535 | EC99: 10 | ED99: 28 | EE99: 497 | EF99: 14 | EG99: 12 | EH99: 6 | EI99: 6 | EJ99: - | EK99: - | EL99: 1 | EM99: 1 | EN99: 17 | EO99: 9 | EP99: 5 | EQ99: 4 | ER99: - | ES99: 4 | ET99: 1 | EU99: 3
A100: 静岡県 | B100: 葵区(静岡市) | C100: 服織村 | D100: 羽鳥第一 | E100: 5 | F100: 2 | G100: x | H100: x | I100: x | J100: x | K100: x | L100: 3 | M100: x | N100: x | O100: x | P100: x | Q100: x | R100: x | S100: x | T100: x | U100: x | V100: x | W100: x | X100: x | Y100: x | Z100: x | AA100: x | AB100: x | AC100: 45.5 | AD100: 42.0 | AE100: 56.0 | AF100: x | AG100: x | AH100: x | AI100: x | AJ100: x | AK100: x | AL100: x | AM100: x | AN100: x | AO100: x | AP100: x | AQ100: x | AR100: x | AS100: x | AT100: x | AU100: x | AV100: 46.7 | AW100: 42.0 | AX100: 56.0 | AY100: x | AZ100: x | BA100: x | BB100: x | BC100: x | BD100: x | BE100: x | BF100: x | BG100: x | BH100: x | BI100: x | BJ100: x | BK100: x | BL100: x | BM100: x | BN100: x | BO100: 46.7 | BP100: 42.0 | BQ100: 56.0 | BR100: 2 | BS100: - | BT100: - | BU100: - | BV100: - | BW100: - | BX100: 1 | BY100: - | BZ100: - | CA100: 1 | CB100: - | CC100: - | CD100: - | CE100: - | CF100: - | CG100: - | CH100: 1 | CI100: - | CJ100: - | CK100: - | CL100: - | CM100: - | CN100: - | CO100: 1 | CP100: - | CQ100: - | CR100: - | CS100: - | CT100: - | CU100: - | DC100: 6 | DD100: 6 | DE100: 3 | DF100: 3 | DG100: - | DH100: - | DI100: - | DJ100: - | DK100: 2 | DL100: - | DM100: - | DN100: - | DO100: 1 | DP100: - | DQ100: 1 | DR100: - | DS100: - | DT100: - | DU100: - | DV100: - | DW100: - | DX100: - | DY100: - | DZ100: - | EA100: 2 | EB100: 263 | EC100: 170 | ED100: 10 | EE100: 83 | EF100: 3 | EG100: 3 | EH100: 2 | EI100: 1 | EJ100: - | EK100: - | EL100: - | EM100: - | EN100: 3 | EO100: 3 | EP100: 1 | EQ100: 2 | ER100: - | ES100: - | ET100: - | EU100: -
A101: 静岡県 | B101: 葵区(静岡市) | C101: 服織村 | D101: 羽鳥第二 | E101: 13 | F101: 1 | G101: x | H101: x | I101: x | J101: x | K101: x | L101: 12 | M101: x | N101: x | O101: x | P101: x | Q101: x | R101: x | S101: x | T101: x | U101: x | V101: x | W101: x | X101: x | Y101: x | Z101: x | AA101: x | AB101: x | AC101: 43.0 | AD101: 48.0 | AE101: 38.0 | AF101: x | AG101: x | AH101: x | AI101: x | AJ101: x | AK101: x | AL101: x | AM101: x | AN101: x | AO101: x | AP101: x | AQ101: x | AR101: x | AS101: x | AT101: x | AU101: x | AV101: … | AW101: … | AX101: … | AY101: x | AZ101: x | BA101: x | BB101: x | BC101: x | BD101: x | BE101: x | BF101: x | BG101: x | BH101: x | BI101: x | BJ101: x | BK101: x | BL101: x | BM101: x | BN101: x | BO101: … | BP101: … | BQ101: … | BR101: 1 | BS101: - | BT101: - | BU101: - | BV101: - | BW101: - | BX101: - | BY101: 1 | BZ101: - | CA101: - | CB101: - | CC101: - | CD101: - | CE101: - | CF101: - | CG101: - | CH101: - | CI101: - | CJ101: - | CK101: - | CL101: - | CM101: - | CN101: - | CO101: - | CP101: - | CQ101: - | CR101: - | CS101: - | CT101: - | CU101: - | DC101: 2 | DD101: 2 | DE101: - | DF101: 2 | DG101: - | DH101: - | DI101: - | DJ101: - | DK101: 1 | DL101: - | DM101: - | DN101: - | DO101: - | DP101: - | DQ101: - | DR101: 1 | DS101: - | DT101: - | DU101: - | DV101: - | DW101: - | DX101: - | DY101: - | DZ101: - | EA101: 1 | EB101: 80 | EC101: 20 | ED101: - | EE101: 60 | EF101: 1 | EG101: 1 | EH101: - | EI101: 1 | EJ101: - | EK101: - | EL101: - | EM101: - | EN101: 1 | EO101: 1 | EP101: - | EQ101: 1 | ER101: - | ES101: - | ET101: - | EU101: -
A102: 静岡県 | B102: 葵区(静岡市) | C102: 服織村 | D102: 羽鳥第三 | E102: 15 | F102: 6 | G102: 3 | H102: 2 | I102: 3 | J102: 2 | K102: - | L102: 9 | M102: 17 | N102: - | O102: - | P102: - | Q102: 1 | R102: - | S102: 2 | T102: 3 | U102: 2 | V102: 3 | W102: 2 | X102: - | Y102: 3 | Z102: 1 | AA102: - | AB102: - | AC102: 55.3 | AD102: 54.4 | AE102: 56.3 | AF102: 12 | AG102: - | AH102: - | AI102: - | AJ102: - | AK102: - | AL102: 1 | AM102: 2 | AN102: 1 | AO102: 3 | AP102: 1 | AQ102: - | AR102: 3 | AS102: 1 | AT102: - | AU102: - | AV102: 58.9 | AW102: 57.3 | AX102: 62.3 | AY102: 11 | AZ102: - | BA102: - | BB102: - | BC102: - | BD102: - | BE102: 1 | BF102: 1 | BG102: 1 | BH102: 3 | BI102: 1 | BJ102: - | BK102: 3 | BL102: 1 | BM102: - | BN102: - | BO102: 60.2 | BP102: 57.3 | BQ102: 68.0 | BR102: 6 | BS102: - | BT102: - | BU102: - | BV102: - | BW102: - | BX102: - | BY102: 1 | BZ102: - | CA102: 2 | CB102: 1 | CC102: - | CD102: 1 | CE102: - | CF102: - | CG102: 1 | CH102: 4 | CI102: - | CJ102: - | CK102: - | CL102: - | CM102: - | CN102: - | CO102: 1 | CP102: 1 | CQ102: - | CR102: 1 | CS102: - | CT102: - | CU102: 1 | DC102: 27 | DD102: 16 | DE102: 11 | DF102: 1 | DG102: 4 | DH102: 1 | DI102: 5 | DJ102: 5 | DK102: 6 | DL102: 2 | DM102: - | DN102: - | DO102: 1 | DP102: - | DQ102: 3 | DR102: - | DS102: - | DT102: - | DU102: - | DV102: - | DW102: - | DX102: - | DY102: - | DZ102: - | EA102: 6 | EB102: 411 | EC102: 161 | ED102: 134 | EE102: 116 | EF102: 12 | EG102: 9 | EH102: 8 | EI102: 1 | EJ102: - | EK102: - | EL102: 2 | EM102: 1 | EN102: 15 | EO102: 7 | EP102: 3 | EQ102: - | ER102: 4 | ES102: 1 | ET102: 3 | EU102: 4
A103: 静岡県 | B103: 葵区(静岡市) | C103: 服織村 | D103: 羽鳥第四下 | E103: 8 | F103: 4 | G103: - | H103: - | I103: 3 | J103: - | K103: 1 | L103: 4 | M103: 8 | N103: - | O103: - | P103: - | Q103: - | R103: - | S103: - | T103: - | U103: 2 | V103: 1 | W103: 3 | X103: 1 | Y103: - | Z103: 1 | AA103: - | AB103: - | AC103: 61.3 | AD103: 59.8 | AE103: 62.8 | AF103: 4 | AG103: - | AH103: - | AI103: - | AJ103: - | AK103: - | AL103: - | AM103: - | AN103: - | AO103: 1 | AP103: 2 | AQ103: - | AR103: - | AS103: 1 | AT103: - | AU103: - | AV103: 64.0 | AW103: 59.0 | AX103: 69.0 | AY103: 3 | AZ103: - | BA103: - | BB103: - | BC103: - | BD103: - | BE103: - | BF103: - | BG103: - | BH103: 1 | BI103: 1 | BJ103: - | BK103: - | BL103: 1 | BM103: - | BN103: - | BO103: 65.0 | BP103: 59.0 | BQ103: 77.0 | BR103: 4 | BS103: - | BT103: - | BU103: - | BV103: - | BW103: - | BX103: - | BY103: - | BZ103: 1 | CA103: 1 | CB103: 1 | CC103: 1 | CD103: - | CE103: - | CF103: - | CG103: - | CH103: - | CI103: - | CJ103: - | CK103: - | CL103: - | CM103: - | CN103: - | CO103: - | CP103: - | CQ103: - | CR103: - | CS103: - | CT103: - | CU103: - | DC103: 12 | DD103: 9 | DE103: 3 | DF103: 3 | DG103: 3 | DH103: 2 | DI103: - | DJ103: 1 | DK103: 3 | DL103: - | DM103: - | DN103: - | DO103: 3 | DP103: - | DQ103: - | DR103: - | DS103: - | DT103: - | DU103: - | DV103: - | DW103: - | DX103: - | DY103: - | DZ103: - | EA103: 4 | EB103: 203 | EC103: 80 | ED103: 5 | EE103: 118 | EF103: 5 | EG103: 5 | EH103: 2 | EI103: 1 | EJ103: 2 | EK103: - | EL103: - | EM103: - | EN103: 7 | EO103: 4 | EP103: 1 | EQ103: 2 | ER103: 1 | ES103: 2 | ET103: - | EU103: 1
A104: 静岡県 | B104: 葵区(静岡市) | C104: 服織村 | D104: 羽鳥第四上 | E104: 14 | F104: 5 | G104: 4 | H104: 3 | I104: 1 | J104: - | K104: - | L104: 9 | M104: 15 | N104: - | O104: 1 | P104: 1 | Q104: 1 | R104: 1 | S104: - | T104: - | U104: 1 | V104: 2 | W104: 5 | X104: - | Y104: - | Z104: - | AA104: 2 | AB104: 1 | AC104: 56.2 | AD104: 49.4 | AE104: 66.3 | AF104: 10 | AG104: - | AH104: - | AI104: - | AJ104: - | AK104: 1 | AL104: - | AM104: - | AN104: 1 | AO104: 1 | AP104: 4 | AQ104: - | AR104: - | AS104: - | AT104: 2 | AU104: 1 | AV104: 64.6 | AW104: 62.0 | AX104: 66.3 | AY104: 9 | AZ104: - | BA104: - | BB104: - | BC104: - | BD104: 1 | BE104: - | BF104: - | BG104: 1 | BH104: 1 | BI104: 4 | BJ104: - | BK104: - | BL104: - | BM104: 1 | BN104: 1 | BO104: 62.7 | BP104: 62.0 | BQ104: 63.2 | BR104: 5 | BS104: - | BT104: - | BU104: - | BV104: - | BW104: 1 | BX104: - | BY104: - | BZ104: - | CA104: 1 | CB104: 2 | CC104: - | CD104: - | CE104: - | CF104: - | CG104: 1 | CH104: 4 | CI104: - | CJ104: - | CK104: - | CL104: - | CM104: - | CN104: - | CO104: 1 | CP104: 2 | CQ104: - | CR104: - | CS104: - | CT104: - | CU104: 1 | DC104: 17 | DD104: 14 | DE104: 9 | DF104: 5 | DG104: - | DH104: - | DI104: - | DJ104: 3 | DK104: 5 | DL104: - | DM104: - | DN104: - | DO104: 4 | DP104: - | DQ104: 1 | DR104: - | DS104: - | DT104: - | DU104: - | DV104: - | DW104: - | DX104: - | DY104: - | DZ104: - | EA104: 5 | EB104: 441 | EC104: 53 | ED104: 22 | EE104: 366 | EF104: 9 | EG104: 9 | EH104: 4 | EI104: 5 | EJ104: - | EK104: - | EL104: - | EM104: - | EN104: 8 | EO104: 5 | EP104: 5 | EQ104: - | ER104: - | ES104: - | ET104: - | EU104: 3
A105: 静岡県 | B105: 葵区(静岡市) | C105: 服織村 | D105: 羽鳥第五下 | E105: 4 | F105: - | G105: - | H105: - | I105: - | J105: - | K105: - | L105: 4 | M105: - | N105: - | O105: - | P105: - | Q105: - | R105: - | S105: - | T105: - | U105: - | V105: - | W105: - | X105: - | Y105: - | Z105: - | AA105: - | AB105: - | AC105: … | AD105: … | AE105: … | AF105: - | AG105: - | AH105: - | AI105: - | AJ105: - | AK105: - | AL105: - | AM105: - | AN105: - | AO105: - | AP105: - | AQ105: - | AR105: - | AS105: - | AT105: - | AU105: - | AV105: … | AW105: … | AX105: … | AY105: - | AZ105: - | BA105: - | BB105: - | BC105: - | BD105: - | BE105: - | BF105: - | BG105: - | BH105: - | BI105: - | BJ105: - | BK105: - | BL105: - | BM105: - | BN105: - | BO105: … | BP105: … | BQ105: … | BR105: - | BS105: - | BT105: - | BU105: - | BV105: - | BW105: - | BX105: - | BY105: - | BZ105: - | CA105: - | CB105: - | CC105: - | CD105: - | CE105: - | CF105: - | CG105: - | CH105: - | CI105: - | CJ105: - | CK105: - | CL105: - | CM105: - | CN105: - | CO105: - | CP105: - | CQ105: - | CR105: - | CS105: - | CT105: - | CU105: - | DC105: - | DD105: - | DE105: - | DF105: - | DG105: - | DH105: - | DI105: - | DJ105: - | DK105: - | DL105: - | DM105: - | DN105: - | DO105: - | DP105: - | DQ105: - | DR105: - | DS105: - | DT105: - | DU105: - | DV105: - | DW105: - | DX105: - | DY105: - | DZ105: - | EA105: - | EB105: - | EC105: - | ED105: - | EE105: - | EF105: - | EG105: - | EH105: - | EI105: - | EJ105: - | EK105: - | EL105: - | EM105: - | EN105: - | EO105: - | EP105: - | EQ105: - | ER105: - | ES105: - | ET105: - | EU105: -
A106: 静岡県 | B106: 葵区(静岡市) | C106: 服織村 | D106: 羽鳥第五上 | E106: 8 | F106: 3 | G106: - | H106: - | I106: 2 | J106: 1 | K106: 1 | L106: 5 | M106: 9 | N106: - | O106: - | P106: - | Q106: - | R106: 1 | S106: - | T106: 1 | U106: - | V106: 2 | W106: - | X106: - | Y106: 3 | Z106: 2 | AA106: - | AB106: - | AC106: 63.3 | AD106: 63.3 | AE106: 63.4 | AF106: 6 | AG106: - | AH106: - | AI106: - | AJ106: - | AK106: - | AL106: - | AM106: - | AN106: - | AO106: 1 | AP106: - | AQ106: - | AR106: 3 | AS106: 2 | AT106: - | AU106: - | AV106: 71.2 | AW106: 74.5 | AX106: 69.5 | AY106: 6 | AZ106: - | BA106: - | BB106: - | BC106: - | BD106: - | BE106: - | BF106: - | BG106: - | BH106: 1 | BI106: - | BJ106: - | BK106: 3 | BL106: 2 | BM106: - | BN106: - | BO106: 71.2 | BP106: 74.5 | BQ106: 69.5 | BR106: 3 | BS106: - | BT106: - | BU106: - | BV106: - | BW106: - | BX106: - | BY106: - | BZ106: - | CA106: - | CB106: - | CC106: - | CD106: 1 | CE106: 1 | CF106: 1 | CG106: - | CH106: 2 | CI106: - | CJ106: - | CK106: - | CL106: - | CM106: - | CN106: - | CO106: - | CP106: - | CQ106: - | CR106: - | CS106: 1 | CT106: 1 | CU106: - | DC106: 14 | DD106: 10 | DE106: 6 | DF106: 4 | DG106: - | DH106: 1 | DI106: 2 | DJ106: 1 | DK106: 3 | DL106: - | DM106: - | DN106: - | DO106: 3 | DP106: - | DQ106: - | DR106: - | DS106: - | DT106: - | DU106: - | DV106: - | DW106: - | DX106: - | DY106: - | DZ106: - | EA106: 3 | EB106: 159 | EC106: 68 | ED106: - | EE106: 91 | EF106: 9 | EG106: 6 | EH106: 2 | EI106: 4 | EJ106: - | EK106: - | EL106: 2 | EM106: 1 | EN106: 5 | EO106: 4 | EP106: 4 | EQ106: - | ER106: - | ES106: 1 | ET106: - | EU106: -
A107: 静岡県 | B107: 葵区(静岡市) | C107: 服織村 | D107: 羽鳥第六 | E107: 11 | F107: 6 | G107: 4 | H107: 4 | I107: 2 | J107: 1 | K107: - | L107: 5 | M107: 20 | N107: - | O107: - | P107: - | Q107: - | R107: 1 | S107: - | T107: - | U107: 2 | V107: 5 | W107: 4 | X107: - | Y107: - | Z107: - | AA107: 4 | AB107: 4 | AC107: 67.2 | AD107: 66.2 | AE107: 68.3 | AF107: 18 | AG107: - | AH107: - | AI107: - | AJ107: - | AK107: - | AL107: - | AM107: - | AN107: 2 | AO107: 5 | AP107: 4 | AQ107: - | AR107: - | AS107: - | AT107: 3 | AU107: 4 | AV107: 68.1 | AW107: 69.2 | AX107: 66.8 | AY107: 17 | AZ107: - | BA107: - | BB107: - | BC107: - | BD107: - | BE107: - | BF107: - | BG107: 1 | BH107: 5 | BI107: 4 | BJ107: - | BK107: - | BL107: - | BM107: 3 | BN107: 4 | BO107: 69.1 | BP107: 69.2 | BQ107: 69.0 | BR107: 6 | BS107: - | BT107: - | BU107: - | BV107: - | BW107: - | BX107: - | BY107: - | BZ107: - | CA107: - | CB107: 2 | CC107: - | CD107: - | CE107: - | CF107: 2 | CG107: 2 | CH107: 4 | CI107: - | CJ107: - | CK107: - | CL107: - | CM107: - | CN107: - | CO107: - | CP107: - | CQ107: - | CR107: - | CS107: - | CT107: 2 | CU107: 2 | DC107: 24 | DD107: 19 | DE107: 17 | DF107: 2 | DG107: - | DH107: 1 | DI107: - | DJ107: 4 | DK107: 6 | DL107: 1 | DM107: - | DN107: - | DO107: 1 | DP107: - | DQ107: 1 | DR107: 2 | DS107: - | DT107: - | DU107: 1 | DV107: - | DW107: - | DX107: - | DY107: - | DZ107: - | EA107: 6 | EB107: 551 | EC107: 128 | ED107: 24 | EE107: 399 | EF107: 12 | EG107: 12 | EH107: 10 | EI107: 2 | EJ107: - | EK107: - | EL107: - | EM107: - | EN107: 12 | EO107: 7 | EP107: 7 | EQ107: - | ER107: - | ES107: 1 | ET107: - | EU107: 4
A108: 静岡県 | B108: 葵区(静岡市) | C108: 服織村 | D108: 羽鳥第七 | E108: 9 | F108: 5 | G108: - | H108: - | I108: 1 | J108: - | K108: 4 | L108: 4 | M108: 11 | N108: - | O108: - | P108: - | Q108: 1 | R108: - | S108: 1 | T108: 1 | U108: - | V108: 1 | W108: 1 | X108: 2 | Y108: 2 | Z108: 2 | AA108: - | AB108: - | AC108: 61.5 | AD108: 63.9 | AE108: 57.5 | AF108: 8 | AG108: - | AH108: - | AI108: - | AJ108: - | AK108: - | AL108: - | AM108: - | AN108: - | AO108: 1 | AP108: 1 | AQ108: 2 | AR108: 2 | AS108: 2 | AT108: - | AU108: - | AV108: 69.0 | AW108: 71.0 | AX108: 65.7 | AY108: 7 | AZ108: - | BA108: - | BB108: - | BC108: - | BD108: - | BE108: - | BF108: - | BG108: - | BH108: 1 | BI108: 1 | BJ108: 2 | BK108: 1 | BL108: 2 | BM108: - | BN108: - | BO108: 68.6 | BP108: 71.0 | BQ108: 62.5 | BR108: 5 | BS108: - | BT108: - | BU108: - | BV108: - | BW108: - | BX108: - | BY108: - | BZ108: - | CA108: - | CB108: 1 | CC108: 1 | CD108: 1 | CE108: 2 | CF108: - | CG108: - | CH108: - | CI108: - | CJ108: - | CK108: - | CL108: - | CM108: - | CN108: - | CO108: - | CP108: - | CQ108: - | CR108: - | CS108: - | CT108: - | CU108: - | DC108: 24 | DD108: 18 | DE108: 7 | DF108: 11 | DG108: - | DH108: 1 | DI108: 3 | DJ108: 2 | DK108: 5 | DL108: 2 | DM108: - | DN108: - | DO108: 2 | DP108: - | DQ108: - | DR108: - | DS108: - | DT108: - | DU108: 1 | DV108: - | DW108: - | DX108: - | DY108: - | DZ108: - | EA108: 5 | EB108: 303 | EC108: 244 | ED108: 3 | EE108: 56 | EF108: 11 | EG108: 10 | EH108: 5 | EI108: 5 | EJ108: - | EK108: - | EL108: 1 | EM108: - | EN108: 13 | EO108: 8 | EP108: 2 | EQ108: 6 | ER108: - | ES108: 1 | ET108: 2 | EU108: 2
A109: 静岡県 | B109: 葵区(静岡市) | C109: 服織村 | D109: 新間１ | E109: 17 | F109: 7 | G109: 2 | H109: 2 | I109: 2 | J109: 2 | K109: 3 | L109: 10 | M109: 22 | N109: - | O109: - | P109: 1 | Q109: - | R109: 2 | S109: 1 | T109: 1 | U109: 3 | V109: 2 | W109: 1 | X109: 2 | Y109: 5 | Z109: 2 | AA109: 1 | AB109: 1 | AC109: 61.1 | AD109: 57.9 | AE109: 63.8 | AF109: 18 | AG109: - | AH109: - | AI109: 1 | AJ109: - | AK109: 1 | AL109: - | AM109: - | AN109: 3 | AO109: 2 | AP109: 1 | AQ109: 2 | AR109: 4 | AS109: 2 | AT109: 1 | AU109: 1 | AV109: 63.9 | AW109: 59.2 | AX109: 68.6 | AY109: 18 | AZ109: - | BA109: - | BB109: 1 | BC109: - | BD109: 1 | BE109: - | BF109: - | BG109: 3 | BH109: 2 | BI109: 1 | BJ109: 2 | BK109: 4 | BL109: 2 | BM109: 1 | BN109: 1 | BO109: 63.9 | BP109: 59.2 | BQ109: 68.6 | BR109: 7 | BS109: - | BT109: - | BU109: - | BV109: - | BW109: - | BX109: - | BY109: - | BZ109: 1 | CA109: 1 | CB109: 1 | CC109: - | CD109: 3 | CE109: 1 | CF109: - | CG109: - | CH109: 4 | CI109: - | CJ109: - | CK109: - | CL109: - | CM109: - | CN109: 1 | CO109: 1 | CP109: - | CQ109: - | CR109: 1 | CS109: 1 | CT109: - | CU109: - | DC109: 28 | DD109: 28 | DE109: 18 | DF109: 8 | DG109: 2 | DH109: - | DI109: - | DJ109: - | DK109: 7 | DL109: - | DM109: - | DN109: - | DO109: 5 | DP109: 1 | DQ109: 1 | DR109: - | DS109: - | DT109: - | DU109: - | DV109: - | DW109: - | DX109: - | DY109: - | DZ109: - | EA109: 7 | EB109: 814 | EC109: 144 | ED109: 80 | EE109: 590 | EF109: 13 | EG109: 13 | EH109: 9 | EI109: 4 | EJ109: - | EK109: - | EL109: - | EM109: - | EN109: 15 | EO109: 15 | EP109: 9 | EQ109: 4 | ER109: 2 | ES109: - | ET109: - | EU109: -
A110: 静岡県 | B110: 葵区(静岡市) | C110: 服織村 | D110: 新間２ | E110: 18 | F110: 9 | G110: 3 | H110: 3 | I110: 3 | J110: 2 | K110: 3 | L110: 9 | M110: 29 | N110: 1 | O110: 1 | P110: 2 | Q110: - | R110: 2 | S110: - | T110: 3 | U110: 3 | V110: 4 | W110: - | X110: 3 | Y110: 4 | Z110: 4 | AA110: 2 | AB110: - | AC110: 57.3 | AD110: 56.6 | AE110: 58.2 | AF110: 21 | AG110: - | AH110: - | AI110: - | AJ110: - | AK110: 2 | AL110: - | AM110: 1 | AN110: 2 | AO110: 3 | AP110: - | AQ110: 3 | AR110: 4 | AS110: 4 | AT110: 2 | AU110: - | AV110: 65.1 | AW110: 66.2 | AX110: 63.9 | AY110: 17 | AZ110: - | BA110: - | BB110: - | BC110: - | BD110: 1 | BE110: - | BF110: 1 | BG110: 2 | BH110: 3 | BI110: - | BJ110: 3 | BK110: 3 | BL110: 4 | BM110: - | BN110: - | BO110: 64.2 | BP110: 64.5 | BQ110: 63.7 | BR110: 9 | BS110: - | BT110: - | BU110: - | BV110: - | BW110: - | BX110: - | BY110: 1 | BZ110: 1 | CA110: 3 | CB110: - | CC110: 1 | CD110: 2 | CE110: 1 | CF110: - | CG110: - | CH110: 3 | CI110: - | CJ110: - | CK110: - | CL110: - | CM110: 1 | CN110: - | CO110: 1 | CP110: - | CQ110: - | CR110: 1 | CS110: - | CT110: - | CU110: - | DC110: 36 | DD110: 29 | DE110: 17 | DF110: 12 | DG110: - | DH110: 1 | DI110: 1 | DJ110: 5 | DK110: 9 | DL110: - | DM110: - | DN110: - | DO110: 5 | DP110: 1 | DQ110: 2 | DR110: - | DS110: 1 | DT110: - | DU110: - | DV110: - | DW110: - | DX110: - | DY110: - | DZ110: - | EA110: 9 | EB110: 835 | EC110: 197 | ED110: 148 | EE110: 490 | EF110: 19 | EG110: 16 | EH110: 10 | EI110: 6 | EJ110: - | EK110: - | EL110: 1 | EM110: 2 | EN110: 17 | EO110: 13 | EP110: 7 | EQ110: 6 | ER110: - | ES110: 1 | ET110: - | EU110: 3
A111: 静岡県 | B111: 葵区(静岡市) | C111: 服織村 | D111: 新間３ | E111: 38 | F111: 28 | G111: 17 | H111: 16 | I111: 1 | J111: 1 | K111: 10 | L111: 10 | M111: 73 | N111: - | O111: 2 | P111: 2 | Q111: 2 | R111: 4 | S111: 4 | T111: 3 | U111: 3 | V111: 9 | W111: 12 | X111: 10 | Y111: 15 | Z111: 3 | AA111: 1 | AB111: 3 | AC111: 59.7 | AD111: 58.5 | AE111: 61.3 | AF111: 61 | AG111: - | AH111: 1 | AI111: 1 | AJ111: 2 | AK111: 2 | AL111: 2 | AM111: 2 | AN111: 2 | AO111: 9 | AP111: 11 | AQ111: 9 | AR111: 13 | AS111: 3 | AT111: 1 | AU111: 3 | AV111: 62.0 | AW111: 61.0 | AX111: 63.3 | AY111: 56 | AZ111: - | BA111: 1 | BB111: 1 | BC111: 1 | BD111: 2 | BE111: 1 | BF111: 2 | BG111: 2 | BH111: 9 | BI111: 11 | BJ111: 9 | BK111: 11 | BL111: 2 | BM111: 1 | BN111: 3 | BO111: 62.3 | BP111: 60.6 | BQ111: 65.0 | BR111: 28 | BS111: - | BT111: - | BU111: - | BV111: - | BW111: - | BX111: - | BY111: 2 | BZ111: 3 | CA111: 4 | CB111: 4 | CC111: 5 | CD111: 9 | CE111: - | CF111: - | CG111: 1 | CH111: 12 | CI111: - | CJ111: - | CK111: - | CL111: - | CM111: 1 | CN111: 2 | CO111: 3 | CP111: 1 | CQ111: - | CR111: 5 | CS111: - | CT111: - | CU111: - | DC111: 94 | DD111: 74 | DE111: 56 | DF111: 17 | DG111: 1 | DH111: 8 | DI111: 3 | DJ111: 9 | DK111: 26 | DL111: 1 | DM111: - | DN111: - | DO111: 18 | DP111: - | DQ111: 2 | DR111: 2 | DS111: 1 | DT111: - | DU111: - | DV111: - | DW111: - | DX111: 2 | DY111: - | DZ111: - | EA111: 28 | EB111: 3,663 | EC111: 1,026 | ED111: 345 | EE111: 2,292 | EF111: 51 | EG111: 43 | EH111: 34 | EI111: 8 | EJ111: 1 | EK111: - | EL111: 2 | EM111: 6 | EN111: 43 | EO111: 31 | EP111: 22 | EQ111: 9 | ER111: - | ES111: 8 | ET111: 1 | EU111: 3
A112: 静岡県 | B112: 葵区(静岡市) | C112: 服織村 | D112: 新間４ | E112: 25 | F112: 25 | G112: 11 | H112: 10 | I112: 7 | J112: 6 | K112: 7 | L112: - | M112: 66 | N112: - | O112: - | P112: 2 | Q112: 1 | R112: 5 | S112: 1 | T112: 10 | U112: 4 | V112: 7 | W112: 10 | X112: 10 | Y112: 6 | Z112: 8 | AA112: 1 | AB112: 1 | AC112: 58.9 | AD112: 58.5 | AE112: 59.3 | AF112: 51 | AG112: - | AH112: - | AI112: - | AJ112: - | AK112: 3 | AL112: - | AM112: 4 | AN112: 3 | AO112: 6 | AP112: 10 | AQ112: 10 | AR112: 5 | AS112: 8 | AT112: 1 | AU112: 1 | AV112: 63.2 | AW112: 62.9 | AX112: 63.4 | AY112: 50 | AZ112: - | BA112: - | BB112: - | BC112: - | BD112: 3 | BE112: - | BF112: 4 | BG112: 3 | BH112: 6 | BI112: 10 | BJ112: 10 | BK112: 5 | BL112: 7 | BM112: 1 | BN112: 1 | BO112: 62.9 | BP112: 62.9 | BQ112: 62.9 | BR112: 25 | BS112: - | BT112: - | BU112: - | BV112: - | BW112: - | BX112: - | BY112: 5 | BZ112: 1 | CA112: 2 | CB112: 6 | CC112: 5 | CD112: 4 | CE112: 1 | CF112: 1 | CG112: - | CH112: 9 | CI112: - | CJ112: - | CK112: - | CL112: - | CM112: 2 | CN112: - | CO112: - | CP112: 1 | CQ112: 3 | CR112: 2 | CS112: - | CT112: 1 | CU112: - | DC112: 103 | DD112: 83 | DE112: 50 | DF112: 32 | DG112: 1 | DH112: 4 | DI112: 7 | DJ112: 9 | DK112: 24 | DL112: - | DM112: - | DN112: - | DO112: 21 | DP112: - | DQ112: - | DR112: 1 | DS112: - | DT112: - | DU112: - | DV112: 1 | DW112: - | DX112: 1 | DY112: - | DZ112: - | EA112: 24 | EB112: 2,767 | EC112: 65 | ED112: 103 | EE112: 2,599 | EF112: 51 | EG112: 47 | EH112: 26 | EI112: 20 | EJ112: 1 | EK112: - | EL112: 2 | EM112: 2 | EN112: 52 | EO112: 36 | EP112: 24 | EQ112: 12 | ER112: - | ES112: 4 | ET112: 5 | EU112: 7
A113: 静岡県 | B113: 葵区(静岡市) | C113: 服織村 | D113: 谷津 | E113: 13 | F113: 7 | G113: 2 | H113: 1 | I113: 5 | J113: 4 | K113: - | L113: 6 | M113: 19 | N113: - | O113: - | P113: - | Q113: 1 | R113: 1 | S113: - | T113: 1 | U113: - | V113: 7 | W113: 3 | X113: 1 | Y113: - | Z113: 1 | AA113: 1 | AB113: 3 | AC113: 62.8 | AD113: 63.4 | AE113: 62.1 | AF113: 13 | AG113: - | AH113: - | AI113: - | AJ113: - | AK113: - | AL113: - | AM113: 1 | AN113: - | AO113: 5 | AP113: 1 | AQ113: 1 | AR113: - | AS113: 1 | AT113: 1 | AU113: 3 | AV113: 68.5 | AW113: 72.1 | AX113: 64.3 | AY113: 13 | AZ113: - | BA113: - | BB113: - | BC113: - | BD113: - | BE113: - | BF113: 1 | BG113: - | BH113: 5 | BI113: 1 | BJ113: 1 | BK113: - | BL113: 1 | BM113: 1 | BN113: 3 | BO113: 68.5 | BP113: 72.1 | BQ113: 64.3 | BR113: 7 | BS113: - | BT113: - | BU113: - | BV113: - | BW113: - | BX113: - | BY113: - | BZ113: - | CA113: 2 | CB113: 2 | CC113: 1 | CD113: - | CE113: - | CF113: 1 | CG113: 1 | CH113: 4 | CI113: - | CJ113: - | CK113: - | CL113: - | CM113: - | CN113: - | CO113: 1 | CP113: - | CQ113: 1 | CR113: - | CS113: - | CT113: 1 | CU113: 1 | DC113: 24 | DD113: 23 | DE113: 13 | DF113: 10 | DG113: - | DH113: 1 | DI113: - | DJ113: - | DK113: 7 | DL113: - | DM113: - | DN113: - | DO113: 7 | DP113: - | DQ113: - | DR113: - | DS113: - | DT113: - | DU113: - | DV113: - | DW113: - | DX113: - | DY113: - | DZ113: - | EA113: 7 | EB113: 922 | EC113: 159 | ED113: 27 | EE113: 736 | EF113: 14 | EG113: 14 | EH113: 7 | EI113: 7 | EJ113: - | EK113: - | EL113: - | EM113: - | EN113: 10 | EO113: 9 | EP113: 6 | EQ113: 3 | ER113: - | ES113: 1 | ET113: - | EU113: -
A114: 静岡県 | B114: 葵区(静岡市) | C114: 中藁科村 | E114: 262 | F114: 176 | G114: 61 | H114: 48 | I114: 53 | J114: 22 | K114: 62 | L114: 86 | M114: 487 | N114: 4 | O114: 13 | P114: 11 | Q114: 14 | R114: 11 | S114: 17 | T114: 32 | U114: 62 | V114: 70 | W114: 58 | X114: 50 | Y114: 46 | Z114: 45 | AA114: 41 | AB114: 13 | AC114: 59.8 | AD114: 60.0 | AE114: 59.6 | AF114: 300 | AG114: - | AH114: 2 | AI114: 1 | AJ114: - | AK114: 2 | AL114: 3 | AM114: 10 | AN114: 24 | AO114: 36 | AP114: 40 | AQ114: 45 | AR114: 44 | AS114: 42 | AT114: 38 | AU114: 13 | AV114: 67.2 | AW114: 67.2 | AX114: 67.3 | AY114: 260 | AZ114: - | BA114: 2 | BB114: 1 | BC114: - | BD114: 2 | BE114: - | BF114: 7 | BG114: 21 | BH114: 35 | BI114: 36 | BJ114: 41 | BK114: 41 | BL114: 37 | BM114: 29 | BN114: 8 | BO114: 66.9 | BP114: 66.5 | BQ114: 67.3 | BR114: 176 | BS114: - | BT114: - | BU114: - | BV114: - | BW114: - | BX114: 1 | BY114: 6 | BZ114: 18 | CA114: 42 | CB114: 22 | CC114: 33 | CD114: 22 | CE114: 16 | CF114: 11 | CG114: 5 | CH114: 59 | CI114: - | CJ114: - | CK114: - | CL114: - | CM114: 1 | CN114: 2 | CO114: 11 | CP114: 7 | CQ114: 9 | CR114: 9 | CS114: 9 | CT114: 7 | CU114: 4 | DC114: 661 | DD114: 490 | DE114: 260 | DF114: 207 | DG114: 23 | DH114: 44 | DI114: 43 | DJ114: 84 | DK114: 171 | DL114: 1 | DM114: - | DN114: - | DO114: 150 | DP114: 1 | DQ114: 4 | DR114: 6 | DS114: 5 | DT114: 1 | DU114: 1 | DV114: 2 | DW114: - | DX114: - | DY114: - | DZ114: - | EA114: 176 | EB114: 17,301 | EC114: 2,551 | ED114: 968 | EE114: 13,782 | EF114: 310 | EG114: 262 | EH114: 144 | EI114: 99 | EJ114: 19 | EK114: - | EL114: 20 | EM114: 28 | EN114: 351 | EO114: 228 | EP114: 116 | EQ114: 108 | ER114: 4 | ES114: 44 | ET114: 23 | EU114: 56
A115: 静岡県 | B115: 葵区(静岡市) | C115: 中藁科村 | D115: 大原 | E115: 71 | F115: 40 | G115: 15 | H115: 14 | I115: 11 | J115: 4 | K115: 14 | L115: 31 | M115: 110 | N115: - | O115: 1 | P115: 4 | Q115: 5 | R115: 1 | S115: 5 | T115: 4 | U115: 17 | V115: 18 | W115: 11 | X115: 10 | Y115: 10 | Z115: 8 | AA115: 10 | AB115: 6 | AC115: 60.6 | AD115: 60.7 | AE115: 60.5 | AF115: 71 | AG115: - | AH115: - | AI115: - | AJ115: - | AK115: - | AL115: 1 | AM115: - | AN115: 8 | AO115: 13 | AP115: 7 | AQ115: 9 | AR115: 10 | AS115: 7 | AT115: 10 | AU115: 6 | AV115: 68.1 | AW115: 68.4 | AX115: 67.8 | AY115: 60 | AZ115: - | BA115: - | BB115: - | BC115: - | BD115: - | BE115: - | BF115: - | BG115: 8 | BH115: 13 | BI115: 7 | BJ115: 8 | BK115: 9 | BL115: 6 | BM115: 7 | BN115: 2 | BO115: 66.1 | BP115: 66.5 | BQ115: 65.5 | BR115: 40 | BS115: - | BT115: - | BU115: - | BV115: - | BW115: - | BX115: 1 | BY115: - | BZ115: 7 | CA115: 11 | CB115: 4 | CC115: 5 | CD115: 7 | CE115: 2 | CF115: 3 | CG115: - | CH115: 9 | CI115: - | CJ115: - | CK115: - | CL115: - | CM115: - | CN115: 1 | CO115: 1 | CP115: 3 | CQ115: - | CR115: 2 | CS115: - | CT115: 2 | CU115: - | DC115: 155 | DD115: 118 | DE115: 60 | DF115: 53 | DG115: 5 | DH115: 9 | DI115: 7 | DJ115: 21 | DK115: 39 | DL115: 1 | DM115: - | DN115: - | DO115: 29 | DP115: 1 | DQ115: 1 | DR115: 1 | DS115: 4 | DT115: 1 | DU115: - | DV115: 1 | DW115: - | DX115: - | DY115: - | DZ115: - | EA115: 40 | EB115: 5,368 | EC115: 1,218 | ED115: 742 | EE115: 3,408 | EF115: 70 | EG115: 63 | EH115: 34 | EI115: 24 | EJ115: 5 | EK115: - | EL115: 2 | EM115: 5 | EN115: 85 | EO115: 55 | EP115: 26 | EQ115: 29 | ER115: - | ES115: 9 | ET115: 5 | EU115: 16
A116: 静岡県 | B116: 葵区(静岡市) | C116: 中藁科村 | D116: 水見色 | E116: 82 | F116: 64 | G116: 28 | H116: 21 | I116: 22 | J116: 11 | K116: 14 | L116: 18 | M116: 182 | N116: 3 | O116: 6 | P116: 4 | Q116: 3 | R116: 7 | S116: 7 | T116: 15 | U116: 24 | V116: 27 | W116: 20 | X116: 18 | Y116: 13 | Z116: 18 | AA116: 13 | AB116: 4 | AC116: 58.3 | AD116: 58.3 | AE116: 58.3 | AF116: 116 | AG116: - | AH116: 1 | AI116: - | AJ116: - | AK116: 2 | AL116: 2 | AM116: 8 | AN116: 10 | AO116: 17 | AP116: 16 | AQ116: 15 | AR116: 11 | AS116: 18 | AT116: 12 | AU116: 4 | AV116: 65.1 | AW116: 64.7 | AX116: 65.6 | AY116: 101 | AZ116: - | BA116: 1 | BB116: - | BC116: - | BD116: 2 | BE116: - | BF116: 6 | BG116: 8 | BH116: 17 | BI116: 14 | BJ116: 14 | BK116: 10 | BL116: 17 | BM116: 9 | BN116: 3 | BO116: 65.4 | BP116: 64.4 | BQ116: 66.7 | BR116: 64 | BS116: - | BT116: - | BU116: - | BV116: - | BW116: - | BX116: - | BY116: 4 | BZ116: 6 | CA116: 19 | CB116: 8 | CC116: 13 | CD116: 5 | CE116: 6 | CF116: 2 | CG116: 1 | CH116: 20 | CI116: - | CJ116: - | CK116: - | CL116: - | CM116: 1 | CN116: 1 | CO116: 7 | CP116: - | CQ116: 4 | CR116: 1 | CS116: 4 | CT116: 1 | CU116: 1 | DC116: 251 | DD116: 180 | DE116: 101 | DF116: 73 | DG116: 6 | DH116: 17 | DI116: 22 | DJ116: 32 | DK116: 63 | DL116: - | DM116: - | DN116: - | DO116: 61 | DP116: - | DQ116: - | DR116: - | DS116: 1 | DT116: - | DU116: - | DV116: 1 | DW116: - | DX116: - | DY116: - | DZ116: - | EA116: 64 | EB116: 6,415 | EC116: 705 | ED116: 69 | EE116: 5,641 | EF116: 118 | EG116: 95 | EH116: 56 | EI116: 34 | EJ116: 5 | EK116: - | EL116: 11 | EM116: 12 | EN116: 133 | EO116: 85 | EP116: 45 | EQ116: 39 | ER116: 1 | ES116: 17 | ET116: 11 | EU116: 20
A117: 静岡県 | B117: 葵区(静岡市) | C117: 中藁科村 | D117: 富厚里 | E117: 35 | F117: 25 | G117: 11 | H117: 9 | I117: 6 | J117: 1 | K117: 8 | L117: 10 | M117: 70 | N117: - | O117: 1 | P117: 1 | Q117: 4 | R117: 2 | S117: 1 | T117: 4 | U117: 10 | V117: 6 | W117: 12 | X117: 11 | Y117: 8 | Z117: 4 | AA117: 5 | AB117: 1 | AC117: 59.8 | AD117: 59.4 | AE117: 60.1 | AF117: 43 | AG117: - | AH117: - | AI117: - | AJ117: - | AK117: - | AL117: - | AM117: 1 | AN117: 5 | AO117: 1 | AP117: 8 | AQ117: 11 | AR117: 8 | AS117: 4 | AT117: 4 | AU117: 1 | AV117: 67.3 | AW117: 68.1 | AX117: 66.5 | AY117: 39 | AZ117: - | BA117: - | BB117: - | BC117: - | BD117: - | BE117: - | BF117: 1 | BG117: 4 | BH117: 1 | BI117: 7 | BJ117: 10 | BK117: 8 | BL117: 4 | BM117: 3 | BN117: 1 | BO117: 67.4 | BP117: 68.1 | BQ117: 66.6 | BR117: 25 | BS117: - | BT117: - | BU117: - | BV117: - | BW117: - | BX117: - | BY117: 1 | BZ117: 3 | CA117: 5 | CB117: 2 | CC117: 8 | CD117: 2 | CE117: 3 | CF117: - | CG117: 1 | CH117: 4 | CI117: - | CJ117: - | CK117: - | CL117: - | CM117: - | CN117: - | CO117: 1 | CP117: - | CQ117: 1 | CR117: 1 | CS117: 1 | CT117: - | CU117: - | DC117: 83 | DD117: 65 | DE117: 39 | DF117: 24 | DG117: 2 | DH117: 7 | DI117: 2 | DJ117: 9 | DK117: 25 | DL117: - | DM117: - | DN117: - | DO117: 21 | DP117: - | DQ117: 3 | DR117: 1 | DS117: - | DT117: - | DU117: - | DV117: - | DW117: - | DX117: - | DY117: - | DZ117: - | EA117: 25 | EB117: 2,388 | EC117: 448 | ED117: 80 | EE117: 1,860 | EF117: 38 | EG117: 36 | EH117: 21 | EI117: 13 | EJ117: 2 | EK117: - | EL117: - | EM117: 2 | EN117: 45 | EO117: 29 | EP117: 18 | EQ117: 11 | ER117: - | ES117: 7 | ET117: 2 | EU117: 7
A118: 静岡県 | B118: 葵区(静岡市) | C118: 中藁科村 | D118: 奈良間 | E118: 12 | F118: 6 | G118: - | H118: - | I118: 1 | J118: 1 | K118: 5 | L118: 6 | M118: 16 | N118: - | O118: - | P118: 1 | Q118: - | R118: 1 | S118: 1 | T118: 1 | U118: 2 | V118: 3 | W118: 3 | X118: - | Y118: 2 | Z118: 1 | AA118: 1 | AB118: - | AC118: 56.9 | AD118: 60.0 | AE118: 54.4 | AF118: 5 | AG118: - | AH118: - | AI118: - | AJ118: - | AK118: - | AL118: - | AM118: - | AN118: - | AO118: - | AP118: 1 | AQ118: - | AR118: 2 | AS118: 1 | AT118: 1 | AU118: - | AV118: 72.4 | AW118: 74.0 | AX118: 71.3 | AY118: 5 | AZ118: - | BA118: - | BB118: - | BC118: - | BD118: - | BE118: - | BF118: - | BG118: - | BH118: - | BI118: 1 | BJ118: - | BK118: 2 | BL118: 1 | BM118: 1 | BN118: - | BO118: 72.4 | BP118: 74.0 | BQ118: 71.3 | BR118: 6 | BS118: - | BT118: - | BU118: - | BV118: - | BW118: - | BX118: - | BY118: - | BZ118: 1 | CA118: 2 | CB118: 1 | CC118: - | CD118: 1 | CE118: - | CF118: - | CG118: 1 | CH118: 2 | CI118: - | CJ118: - | CK118: - | CL118: - | CM118: - | CN118: - | CO118: - | CP118: 1 | CQ118: - | CR118: - | CS118: - | CT118: - | CU118: 1 | DC118: 19 | DD118: 15 | DE118: 5 | DF118: 9 | DG118: 1 | DH118: 1 | DI118: - | DJ118: 3 | DK118: 4 | DL118: - | DM118: - | DN118: - | DO118: 4 | DP118: - | DQ118: - | DR118: - | DS118: - | DT118: - | DU118: - | DV118: - | DW118: - | DX118: - | DY118: - | DZ118: - | EA118: 6 | EB118: 284 | EC118: 56 | ED118: 8 | EE118: 220 | EF118: 8 | EG118: 7 | EH118: 2 | EI118: 4 | EJ118: 1 | EK118: - | EL118: - | EM118: 1 | EN118: 11 | EO118: 8 | EP118: 3 | EQ118: 5 | ER118: - | ES118: 1 | ET118: - | EU118: 2
A119: 静岡県 | B119: 葵区(静岡市) | C119: 中藁科村 | D119: 富沢 | E119: 33 | F119: 22 | G119: 4 | H119: 2 | I119: 3 | J119: 2 | K119: 15 | L119: 11 | M119: 56 | N119: - | O119: - | P119: - | Q119: 1 | R119: - | S119: 3 | T119: 3 | U119: 5 | V119: 9 | W119: 7 | X119: 6 | Y119: 10 | Z119: 6 | AA119: 5 | AB119: 1 | AC119: 64.1 | AD119: 63.9 | AE119: 64.3 | AF119: 34 | AG119: - | AH119: - | AI119: - | AJ119: - | AK119: - | AL119: - | AM119: - | AN119: - | AO119: 3 | AP119: 5 | AQ119: 5 | AR119: 10 | AS119: 5 | AT119: 5 | AU119: 1 | AV119: 71.1 | AW119: 72.6 | AX119: 69.6 | AY119: 32 | AZ119: - | BA119: - | BB119: - | BC119: - | BD119: - | BE119: - | BF119: - | BG119: - | BH119: 2 | BI119: 4 | BJ119: 5 | BK119: 10 | BL119: 5 | BM119: 5 | BN119: 1 | BO119: 71.8 | BP119: 72.6 | BQ119: 70.9 | BR119: 22 | BS119: - | BT119: - | BU119: - | BV119: - | BW119: - | BX119: - | BY119: - | BZ119: - | CA119: 2 | CB119: 3 | CC119: 4 | CD119: 5 | CE119: 3 | CF119: 3 | CG119: 2 | CH119: 16 | CI119: - | CJ119: - | CK119: - | CL119: - | CM119: - | CN119: - | CO119: 1 | CP119: 2 | CQ119: 3 | CR119: 4 | CS119: 2 | CT119: 2 | CU119: 2 | DC119: 92 | DD119: 70 | DE119: 32 | DF119: 30 | DG119: 8 | DH119: 6 | DI119: 8 | DJ119: 8 | DK119: 21 | DL119: - | DM119: - | DN119: - | DO119: 16 | DP119: - | DQ119: - | DR119: 4 | DS119: - | DT119: - | DU119: 1 | DV119: - | DW119: - | DX119: - | DY119: - | DZ119: - | EA119: 22 | EB119: 1,518 | EC119: 111 | ED119: 16 | EE119: 1,391 | EF119: 46 | EG119: 38 | EH119: 17 | EI119: 16 | EJ119: 5 | EK119: - | EL119: 5 | EM119: 3 | EN119: 46 | EO119: 32 | EP119: 15 | EQ119: 14 | ER119: 3 | ES119: 6 | ET119: 3 | EU119: 5
A120: 静岡県 | B120: 葵区(静岡市) | C120: 中藁科村 | D120: 小布杉 | E120: 29 | F120: 19 | G120: 3 | H120: 2 | I120: 10 | J120: 3 | K120: 6 | L120: 10 | M120: 53 | N120: 1 | O120: 5 | P120: 1 | Q120: 1 | R120: - | S120: - | T120: 5 | U120: 4 | V120: 7 | W120: 5 | X120: 5 | Y120: 3 | Z120: 8 | AA120: 7 | AB120: 1 | AC120: 59.6 | AD120: 60.2 | AE120: 58.8 | AF120: 31 | AG120: - | AH120: 1 | AI120: 1 | AJ120: - | AK120: - | AL120: - | AM120: 1 | AN120: 1 | AO120: 2 | AP120: 3 | AQ120: 5 | AR120: 3 | AS120: 7 | AT120: 6 | AU120: 1 | AV120: 67.9 | AW120: 65.7 | AX120: 70.9 | AY120: 23 | AZ120: - | BA120: 1 | BB120: 1 | BC120: - | BD120: - | BE120: - | BF120: - | BG120: 1 | BH120: 2 | BI120: 3 | BJ120: 4 | BK120: 2 | BL120: 4 | BM120: 4 | BN120: 1 | BO120: 66.3 | BP120: 63.8 | BQ120: 70.3 | BR120: 19 | BS120: - | BT120: - | BU120: - | BV120: - | BW120: - | BX120: - | BY120: 1 | BZ120: 1 | CA120: 3 | CB120: 4 | CC120: 3 | CD120: 2 | CE120: 2 | CF120: 3 | CG120: - | CH120: 8 | CI120: - | CJ120: - | CK120: - | CL120: - | CM120: - | CN120: - | CO120: 1 | CP120: 1 | CQ120: 1 | CR120: 1 | CS120: 2 | CT120: 2 | CU120: - | DC120: 61 | DD120: 42 | DE120: 23 | DF120: 18 | DG120: 1 | DH120: 4 | DI120: 4 | DJ120: 11 | DK120: 19 | DL120: - | DM120: - | DN120: - | DO120: 19 | DP120: - | DQ120: - | DR120: - | DS120: - | DT120: - | DU120: - | DV120: - | DW120: - | DX120: - | DY120: - | DZ120: - | EA120: 19 | EB120: 1,328 | EC120: 13 | ED120: 53 | EE120: 1,262 | EF120: 30 | EG120: 23 | EH120: 14 | EI120: 8 | EJ120: 1 | EK120: - | EL120: 2 | EM120: 5 | EN120: 31 | EO120: 19 | EP120: 9 | EQ120: 10 | ER120: - | ES120: 4 | ET120: 2 | EU120: 6
A121: 静岡県 | B121: 葵区(静岡市) | C121: 南藁科村 | E121: 178 | F121: 105 | G121: 35 | H121: 32 | I121: 18 | J121: 10 | K121: 52 | L121: 73 | M121: 294 | N121: 1 | O121: 4 | P121: 9 | Q121: 6 | R121: 13 | S121: 17 | T121: 26 | U121: 28 | V121: 42 | W121: 31 | X121: 26 | Y121: 34 | Z121: 37 | AA121: 13 | AB121: 7 | AC121: 59.3 | AD121: 58.7 | AE121: 60.0 | AF121: 195 | AG121: 1 | AH121: 1 | AI121: 1 | AJ121: - | AK121: 1 | AL121: 5 | AM121: 5 | AN121: 15 | AO121: 29 | AP121: 26 | AQ121: 23 | AR121: 33 | AS121: 35 | AT121: 13 | AU121: 7 | AV121: 66.0 | AW121: 66.0 | AX121: 65.9 | AY121: 174 | AZ121: - | BA121: - | BB121: 1 | BC121: - | BD121: - | BE121: 4 | BF121: 3 | BG121: 11 | BH121: 25 | BI121: 26 | BJ121: 23 | BK121: 33 | BL121: 31 | BM121: 13 | BN121: 4 | BO121: 66.9 | BP121: 66.9 | BQ121: 66.9 | BR121: 105 | BS121: - | BT121: - | BU121: - | BV121: - | BW121: - | BX121: 2 | BY121: 7 | BZ121: 9 | CA121: 18 | CB121: 18 | CC121: 10 | CD121: 17 | CE121: 16 | CF121: 7 | CG121: 1 | CH121: 37 | CI121: - | CJ121: - | CK121: - | CL121: - | CM121: 1 | CN121: 3 | CO121: 2 | CP121: 6 | CQ121: 6 | CR121: 7 | CS121: 7 | CT121: 5 | CU121: - | DC121: 406 | DD121: 307 | DE121: 174 | DF121: 118 | DG121: 15 | DH121: 27 | DI121: 30 | DJ121: 42 | DK121: 98 | DL121: 6 | DM121: - | DN121: - | DO121: 70 | DP121: 1 | DQ121: 11 | DR121: 8 | DS121: 1 | DT121: - | DU121: 1 | DV121: - | DW121: - | DX121: - | DY121: - | DZ121: - | EA121: 103 | EB121: 9,723 | EC121: 2,156 | ED121: 473 | EE121: 7,094 | EF121: 196 | EG121: 172 | EH121: 98 | EI121: 65 | EJ121: 9 | EK121: - | EL121: 15 | EM121: 9 | EN121: 210 | EO121: 135 | EP121: 76 | EQ121: 53 | ER121: 6 | ES121: 27 | ET121: 15 | EU121: 33
A122: 静岡県 | B122: 葵区(静岡市) | C122: 南藁科村 | D122: 牧ヶ谷 | E122: 51 | F122: 24 | G122: 6 | H122: 5 | I122: 7 | J122: 3 | K122: 11 | L122: 27 | M122: 67 | N122: 1 | O122: 1 | P122: 2 | Q122: - | R122: 2 | S122: 5 | T122: 8 | U122: 4 | V122: 11 | W122: 7 | X122: 7 | Y122: 10 | Z122: 6 | AA122: 2 | AB122: 1 | AC122: 58.5 | AD122: 55.8 | AE122: 61.9 | AF122: 45 | AG122: 1 | AH122: - | AI122: - | AJ122: - | AK122: - | AL122: 1 | AM122: 2 | AN122: 2 | AO122: 7 | AP122: 6 | AQ122: 7 | AR122: 10 | AS122: 6 | AT122: 2 | AU122: 1 | AV122: 65.1 | AW122: 65.2 | AX122: 65.1 | AY122: 42 | AZ122: - | BA122: - | BB122: - | BC122: - | BD122: - | BE122: - | BF122: 1 | BG122: 2 | BH122: 7 | BI122: 6 | BJ122: 7 | BK122: 10 | BL122: 6 | BM122: 2 | BN122: 1 | BO122: 67.3 | BP122: 67.6 | BQ122: 67.0 | BR122: 24 | BS122: - | BT122: - | BU122: - | BV122: - | BW122: - | BX122: 2 | BY122: 2 | BZ122: 1 | CA122: 3 | CB122: 4 | CC122: 2 | CD122: 6 | CE122: 2 | CF122: 1 | CG122: 1 | CH122: 8 | CI122: - | CJ122: - | CK122: - | CL122: - | CM122: 1 | CN122: - | CO122: 1 | CP122: 1 | CQ122: 1 | CR122: 2 | CS122: 1 | CT122: 1 | CU122: - | DC122: 94 | DD122: 76 | DE122: 42 | DF122: 31 | DG122: 3 | DH122: 5 | DI122: 7 | DJ122: 6 | DK122: 23 | DL122: 2 | DM122: - | DN122: - | DO122: 14 | DP122: - | DQ122: 2 | DR122: 5 | DS122: - | DT122: - | DU122: - | DV122: - | DW122: - | DX122: - | DY122: - | DZ122: - | EA122: 23 | EB122: 1,761 | EC122: 255 | ED122: 123 | EE122: 1,383 | EF122: 47 | EG122: 41 | EH122: 20 | EI122: 18 | EJ122: 3 | EK122: - | EL122: 4 | EM122: 2 | EN122: 47 | EO122: 35 | EP122: 22 | EQ122: 13 | ER122: - | ES122: 5 | ET122: 3 | EU122: 4
A123: 静岡県 | B123: 葵区(静岡市) | C123: 南藁科村 | D123: 産女 | E123: 13 | F123: 11 | G123: 3 | H123: 3 | I123: - | J123: - | K123: 8 | L123: 2 | M123: 30 | N123: - | O123: - | P123: - | Q123: - | R123: 1 | S123: 5 | T123: 2 | U123: 3 | V123: 1 | W123: 2 | X123: 6 | Y123: 2 | Z123: 7 | AA123: 1 | AB123: - | AC123: 61.0 | AD123: 62.8 | AE123: 59.0 | AF123: 19 | AG123: - | AH123: - | AI123: - | AJ123: - | AK123: - | AL123: 1 | AM123: - | AN123: 1 | AO123: 1 | AP123: 2 | AQ123: 5 | AR123: 2 | AS123: 6 | AT123: 1 | AU123: - | AV123: 67.8 | AW123: 68.0 | AX123: 67.4 | AY123: 18 | AZ123: - | BA123: - | BB123: - | BC123: - | BD123: - | BE123: 1 | BF123: - | BG123: - | BH123: 1 | BI123: 2 | BJ123: 5 | BK123: 2 | BL123: 6 | BM123: 1 | BN123: - | BO123: 68.7 | BP123: 68.0 | BQ123: 70.0 | BR123: 11 | BS123: - | BT123: - | BU123: - | BV123: - | BW123: - | BX123: - | BY123: - | BZ123: 1 | CA123: 1 | CB123: 1 | CC123: 3 | CD123: 1 | CE123: 3 | CF123: 1 | CG123: - | CH123: 6 | CI123: - | CJ123: - | CK123: - | CL123: - | CM123: - | CN123: - | CO123: - | CP123: - | CQ123: 2 | CR123: 1 | CS123: 2 | CT123: 1 | CU123: - | DC123: 38 | DD123: 30 | DE123: 18 | DF123: 9 | DG123: 3 | DH123: 4 | DI123: 2 | DJ123: 2 | DK123: 11 | DL123: - | DM123: - | DN123: - | DO123: 10 | DP123: - | DQ123: 1 | DR123: - | DS123: - | DT123: - | DU123: - | DV123: - | DW123: - | DX123: - | DY123: - | DZ123: - | EA123: 10 | EB123: 1,273 | EC123: 174 | ED123: 23 | EE123: 1,076 | EF123: 20 | EG123: 19 | EH123: 12 | EI123: 6 | EJ123: 1 | EK123: - | EL123: 1 | EM123: - | EN123: 18 | EO123: 11 | EP123: 6 | EQ123: 3 | ER123: 2 | ES123: 4 | ET123: 1 | EU123: 2
A124: 静岡県 | B124: 葵区(静岡市) | C124: 南藁科村 | D124: 吉津 | E124: 28 | F124: 15 | G124: 5 | H124: 5 | I124: 1 | J124: 1 | K124: 9 | L124: 13 | M124: 35 | N124: - | O124: 2 | P124: - | Q124: - | R124: - | S124: 2 | T124: 3 | U124: 5 | V124: 6 | W124: 7 | X124: 2 | Y124: 3 | Z124: 4 | AA124: 1 | AB124: - | AC124: 58.2 | AD124: 56.1 | AE124: 61.1 | AF124: 22 | AG124: - | AH124: 1 | AI124: - | AJ124: - | AK124: - | AL124: 2 | AM124: 1 | AN124: 1 | AO124: 4 | AP124: 5 | AQ124: 2 | AR124: 2 | AS124: 3 | AT124: 1 | AU124: - | AV124: 60.7 | AW124: 58.8 | AX124: 62.9 | AY124: 15 | AZ124: - | BA124: - | BB124: - | BC124: - | BD124: - | BE124: 2 | BF124: - | BG124: 1 | BH124: 1 | BI124: 5 | BJ124: 2 | BK124: 2 | BL124: 1 | BM124: 1 | BN124: - | BO124: 62.7 | BP124: 61.0 | BQ124: 65.2 | BR124: 15 | BS124: - | BT124: - | BU124: - | BV124: - | BW124: - | BX124: - | BY124: - | BZ124: 3 | CA124: 3 | CB124: 4 | CC124: 1 | CD124: 2 | CE124: 2 | CF124: - | CG124: - | CH124: 3 | CI124: - | CJ124: - | CK124: - | CL124: - | CM124: - | CN124: 2 | CO124: - | CP124: - | CQ124: 1 | CR124: - | CS124: - | CT124: - | CU124: - | DC124: 58 | DD124: 36 | DE124: 15 | DF124: 18 | DG124: 3 | DH124: 3 | DI124: 8 | DJ124: 11 | DK124: 10 | DL124: 2 | DM124: - | DN124: - | DO124: 6 | DP124: - | DQ124: 2 | DR124: - | DS124: - | DT124: - | DU124: - | DV124: - | DW124: - | DX124: - | DY124: - | DZ124: - | EA124: 15 | EB124: 1,077 | EC124: 596 | ED124: 52 | EE124: 429 | EF124: 26 | EG124: 20 | EH124: 9 | EI124: 9 | EJ124: 2 | EK124: - | EL124: 3 | EM124: 3 | EN124: 32 | EO124: 16 | EP124: 6 | EQ124: 9 | ER124: 1 | ES124: 3 | ET124: 5 | EU124: 8
A125: 静岡県 | B125: 葵区(静岡市) | C125: 南藁科村 | D125: 飯間 | E125: 50 | F125: 30 | G125: 11 | H125: 11 | I125: 4 | J125: 3 | K125: 15 | L125: 20 | M125: 84 | N125: - | O125: - | P125: 3 | Q125: - | R125: 8 | S125: 3 | T125: 5 | U125: 7 | V125: 13 | W125: 8 | X125: 9 | Y125: 15 | Z125: 8 | AA125: 2 | AB125: 3 | AC125: 60.3 | AD125: 59.4 | AE125: 61.3 | AF125: 61 | AG125: - | AH125: - | AI125: - | AJ125: - | AK125: - | AL125: 1 | AM125: - | AN125: 5 | AO125: 11 | AP125: 7 | AQ125: 9 | AR125: 15 | AS125: 8 | AT125: 2 | AU125: 3 | AV125: 66.8 | AW125: 67.1 | AX125: 66.5 | AY125: 57 | AZ125: - | BA125: - | BB125: - | BC125: - | BD125: - | BE125: 1 | BF125: - | BG125: 3 | BH125: 11 | BI125: 7 | BJ125: 9 | BK125: 15 | BL125: 8 | BM125: 2 | BN125: 1 | BO125: 66.7 | BP125: 67.1 | BQ125: 66.2 | BR125: 30 | BS125: - | BT125: - | BU125: - | BV125: - | BW125: - | BX125: - | BY125: 2 | BZ125: 1 | CA125: 6 | CB125: 4 | CC125: 4 | CD125: 8 | CE125: 4 | CF125: 1 | CG125: - | CH125: 10 | CI125: - | CJ125: - | CK125: - | CL125: - | CM125: - | CN125: - | CO125: - | CP125: 1 | CQ125: 2 | CR125: 4 | CS125: 2 | CT125: 1 | CU125: - | DC125: 112 | DD125: 92 | DE125: 57 | DF125: 33 | DG125: 2 | DH125: 5 | DI125: 3 | DJ125: 12 | DK125: 29 | DL125: 1 | DM125: - | DN125: - | DO125: 17 | DP125: 1 | DQ125: 6 | DR125: 2 | DS125: 1 | DT125: - | DU125: 1 | DV125: - | DW125: - | DX125: - | DY125: - | DZ125: - | EA125: 30 | EB125: 3,074 | EC125: 672 | ED125: 171 | EE125: 2,231 | EF125: 55 | EG125: 50 | EH125: 31 | EI125: 18 | EJ125: 1 | EK125: - | EL125: 2 | EM125: 3 | EN125: 57 | EO125: 42 | EP125: 26 | EQ125: 15 | ER125: 1 | ES125: 5 | ET125: 1 | EU125: 9
A126: 静岡県 | B126: 葵区(静岡市) | C126: 南藁科村 | D126: 小瀬戸 | E126: 29 | F126: 20 | G126: 8 | H126: 7 | I126: 3 | J126: 2 | K126: 9 | L126: 9 | M126: 64 | N126: - | O126: 1 | P126: 3 | Q126: 5 | R126: 2 | S126: 2 | T126: 8 | U126: 7 | V126: 7 | W126: 5 | X126: 2 | Y126: 4 | Z126: 10 | AA126: 5 | AB126: 3 | AC126: 58.5 | AD126: 59.2 | AE126: 57.6 | AF126: 39 | AG126: - | AH126: - | AI126: 1 | AJ126: - | AK126: 1 | AL126: - | AM126: 2 | AN126: 4 | AO126: 4 | AP126: 5 | AQ126: - | AR126: 4 | AS126: 10 | AT126: 5 | AU126: 3 | AV126: 67.5 | AW126: 66.9 | AX126: 68.3 | AY126: 36 | AZ126: - | BA126: - | BB126: 1 | BC126: - | BD126: - | BE126: - | BF126: 2 | BG126: 4 | BH126: 4 | BI126: 5 | BJ126: - | BK126: 4 | BL126: 9 | BM126: 5 | BN126: 2 | BO126: 67.4 | BP126: 66.9 | BQ126: 68.3 | BR126: 20 | BS126: - | BT126: - | BU126: - | BV126: - | BW126: - | BX126: - | BY126: 3 | BZ126: 3 | CA126: 2 | CB126: 4 | CC126: - | CD126: - | CE126: 4 | CF126: 4 | CG126: - | CH126: 8 | CI126: - | CJ126: - | CK126: - | CL126: - | CM126: - | CN126: 1 | CO126: - | CP126: 3 | CQ126: - | CR126: - | CS126: 2 | CT126: 2 | CU126: - | DC126: 88 | DD126: 61 | DE126: 36 | DF126: 21 | DG126: 4 | DH126: 8 | DI126: 10 | DJ126: 9 | DK126: 20 | DL126: 1 | DM126: - | DN126: - | DO126: 18 | DP126: - | DQ126: - | DR126: 1 | DS126: - | DT126: - | DU126: - | DV126: - | DW126: - | DX126: - | DY126: - | DZ126: - | EA126: 20 | EB126: 2,017 | EC126: 444 | ED126: 71 | EE126: 1,502 | EF126: 42 | EG126: 36 | EH126: 23 | EI126: 11 | EJ126: 2 | EK126: - | EL126: 5 | EM126: 1 | EN126: 46 | EO126: 25 | EP126: 13 | EQ126: 10 | ER126: 2 | ES126: 8 | ET126: 5 | EU126: 8
A127: 静岡県 | B127: 葵区(静岡市) | C127: 南藁科村 | D127: 西又 | E127: 7 | F127: 5 | G127: 2 | H127: 1 | I127: 3 | J127: 1 | K127: - | L127: 2 | M127: 14 | N127: - | O127: - | P127: 1 | Q127: 1 | R127: - | S127: - | T127: - | U127: 2 | V127: 4 | W127: 2 | X127: - | Y127: - | Z127: 2 | AA127: 2 | AB127: - | AC127: 59.5 | AD127: 66.2 | AE127: 54.5 | AF127: 9 | AG127: - | AH127: - | AI127: - | AJ127: - | AK127: - | AL127: - | AM127: - | AN127: 2 | AO127: 2 | AP127: 1 | AQ127: - | AR127: - | AS127: 2 | AT127: 2 | AU127: - | AV127: 66.6 | AW127: 73.0 | AX127: 63.3 | AY127: 6 | AZ127: - | BA127: - | BB127: - | BC127: - | BD127: - | BE127: - | BF127: - | BG127: 1 | BH127: 1 | BI127: 1 | BJ127: - | BK127: - | BL127: 1 | BM127: 2 | BN127: - | BO127: 68.5 | BP127: 73.0 | BQ127: 64.0 | BR127: 5 | BS127: - | BT127: - | BU127: - | BV127: - | BW127: - | BX127: - | BY127: - | BZ127: - | CA127: 3 | CB127: 1 | CC127: - | CD127: - | CE127: 1 | CF127: - | CG127: - | CH127: 2 | CI127: - | CJ127: - | CK127: - | CL127: - | CM127: - | CN127: - | CO127: 1 | CP127: 1 | CQ127: - | CR127: - | CS127: - | CT127: - | CU127: - | DC127: 16 | DD127: 12 | DE127: 6 | DF127: 6 | DG127: - | DH127: 2 | DI127: - | DJ127: 2 | DK127: 5 | DL127: - | DM127: - | DN127: - | DO127: 5 | DP127: - | DQ127: - | DR127: - | DS127: - | DT127: - | DU127: - | DV127: - | DW127: - | DX127: - | DY127: - | DZ127: - | EA127: 5 | EB127: 521 | EC127: 15 | ED127: 33 | EE127: 473 | EF127: 6 | EG127: 6 | EH127: 3 | EI127: 3 | EJ127: - | EK127: - | EL127: - | EM127: - | EN127: 10 | EO127: 6 | EP127: 3 | EQ127: 3 | ER127: - | ES127: 2 | ET127: - | EU127: 2
A128: 静岡県 | B128: 葵区(静岡市) | C128: 大河内村 | E128: 185 | F128: 119 | G128: 32 | H128: 24 | I128: 34 | J128: 13 | K128: 53 | L128: 66 | M128: 310 | N128: 4 | O128: 9 | P128: 8 | Q128: 5 | R128: 8 | S128: 8 | T128: 17 | U128: 33 | V128: 37 | W128: 33 | X128: 25 | Y128: 50 | Z128: 29 | AA128: 25 | AB128: 19 | AC128: 61.7 | AD128: 60.8 | AE128: 62.7 | AF128: 195 | AG128: 1 | AH128: - | AI128: 3 | AJ128: - | AK128: 1 | AL128: 3 | AM128: 5 | AN128: 12 | AO128: 21 | AP128: 22 | AQ128: 19 | AR128: 40 | AS128: 26 | AT128: 24 | AU128: 18 | AV128: 68.6 | AW128: 67.8 | AX128: 69.5 | AY128: 174 | AZ128: - | BA128: - | BB128: 3 | BC128: - | BD128: 1 | BE128: 1 | BF128: 5 | BG128: 12 | BH128: 19 | BI128: 20 | BJ128: 17 | BK128: 36 | BL128: 25 | BM128: 23 | BN128: 12 | BO128: 68.5 | BP128: 67.6 | BQ128: 69.8 | BR128: 119 | BS128: - | BT128: - | BU128: - | BV128: - | BW128: - | BX128: - | BY128: 5 | BZ128: 12 | CA128: 17 | CB128: 23 | CC128: 11 | CD128: 22 | CE128: 13 | CF128: 11 | CG128: 5 | CH128: 49 | CI128: - | CJ128: - | CK128: - | CL128: - | CM128: 3 | CN128: 5 | CO128: 3 | CP128: 12 | CQ128: 4 | CR128: 7 | CS128: 7 | CT128: 6 | CU128: 2 | DC128: 387 | DD128: 292 | DE128: 174 | DF128: 107 | DG128: 11 | DH128: 25 | DI128: 23 | DJ128: 47 | DK128: 118 | DL128: - | DM128: - | DN128: - | DO128: 85 | DP128: 22 | DQ128: 1 | DR128: 1 | DS128: 1 | DT128: 8 | DU128: - | DV128: - | DW128: - | DX128: - | DY128: - | DZ128: - | EA128: 119 | EB128: 6,091 | EC128: 710 | ED128: 263 | EE128: 5,118 | EF128: 188 | EG128: 159 | EH128: 98 | EI128: 55 | EJ128: 6 | EK128: - | EL128: 12 | EM128: 17 | EN128: 199 | EO128: 133 | EP128: 76 | EQ128: 52 | ER128: 5 | ES128: 25 | ET128: 11 | EU128: 30
A129: 静岡県 | B129: 葵区(静岡市) | C129: 大河内村 | D129: 有東木 | E129: 60 | F129: 44 | G129: 18 | H129: 15 | I129: 11 | J129: 4 | K129: 15 | L129: 16 | M129: 118 | N129: 2 | O129: 4 | P129: 3 | Q129: 1 | R129: - | S129: 3 | T129: 9 | U129: 18 | V129: 14 | W129: 10 | X129: 7 | Y129: 16 | Z129: 14 | AA129: 10 | AB129: 7 | AC129: 61.6 | AD129: 60.6 | AE129: 62.6 | AF129: 80 | AG129: - | AH129: - | AI129: 2 | AJ129: - | AK129: - | AL129: 3 | AM129: 4 | AN129: 9 | AO129: 9 | AP129: 7 | AQ129: 5 | AR129: 12 | AS129: 12 | AT129: 10 | AU129: 7 | AV129: 66.7 | AW129: 65.0 | AX129: 68.6 | AY129: 65 | AZ129: - | BA129: - | BB129: 2 | BC129: - | BD129: - | BE129: 1 | BF129: 4 | BG129: 9 | BH129: 7 | BI129: 5 | BJ129: 3 | BK129: 8 | BL129: 11 | BM129: 10 | BN129: 5 | BO129: 66.7 | BP129: 65.0 | BQ129: 69.8 | BR129: 44 | BS129: - | BT129: - | BU129: - | BV129: - | BW129: - | BX129: - | BY129: 3 | BZ129: 8 | CA129: 6 | CB129: 7 | CC129: 2 | CD129: 7 | CE129: 6 | CF129: 5 | CG129: - | CH129: 18 | CI129: - | CJ129: - | CK129: - | CL129: - | CM129: 2 | CN129: 3 | CO129: 1 | CP129: 4 | CQ129: - | CR129: 2 | CS129: 3 | CT129: 3 | CU129: - | DC129: 144 | DD129: 99 | DE129: 65 | DF129: 31 | DG129: 3 | DH129: 16 | DI129: 9 | DJ129: 20 | DK129: 44 | DL129: - | DM129: - | DN129: - | DO129: 23 | DP129: 19 | DQ129: 1 | DR129: - | DS129: 1 | DT129: - | DU129: - | DV129: - | DW129: - | DX129: - | DY129: - | DZ129: - | EA129: 44 | EB129: 2,106 | EC129: 523 | ED129: 38 | EE129: 1,545 | EF129: 69 | EG129: 61 | EH129: 42 | EI129: 17 | EJ129: 2 | EK129: - | EL129: 1 | EM129: 7 | EN129: 75 | EO129: 38 | EP129: 23 | EQ129: 14 | ER129: 1 | ES129: 16 | ET129: 8 | EU129: 13
A130: 静岡県 | B130: 葵区(静岡市) | C130: 大河内村 | D130: 渡 | E130: 39 | F130: 22 | G130: 5 | H130: 2 | I130: 5 | J130: 2 | K130: 12 | L130: 17 | M130: 47 | N130: - | O130: - | P130: 1 | Q130: - | R130: 1 | S130: 1 | T130: 2 | U130: 1 | V130: 4 | W130: 9 | X130: 4 | Y130: 11 | Z130: 4 | AA130: 6 | AB130: 3 | AC130: 67.0 | AD130: 68.1 | AE130: 65.9 | AF130: 33 | AG130: - | AH130: - | AI130: - | AJ130: - | AK130: 1 | AL130: - | AM130: - | AN130: - | AO130: 3 | AP130: 6 | AQ130: 4 | AR130: 7 | AS130: 3 | AT130: 6 | AU130: 3 | AV130: 70.8 | AW130: 73.7 | AX130: 68.0 | AY130: 32 | AZ130: - | BA130: - | BB130: - | BC130: - | BD130: 1 | BE130: - | BF130: - | BG130: - | BH130: 3 | BI130: 6 | BJ130: 4 | BK130: 7 | BL130: 3 | BM130: 5 | BN130: 3 | BO130: 70.4 | BP130: 73.1 | BQ130: 68.0 | BR130: 22 | BS130: - | BT130: - | BU130: - | BV130: - | BW130: - | BX130: - | BY130: - | BZ130: 1 | CA130: 1 | CB130: 6 | CC130: 2 | CD130: 4 | CE130: 1 | CF130: 4 | CG130: 3 | CH130: 9 | CI130: - | CJ130: - | CK130: - | CL130: - | CM130: - | CN130: 1 | CO130: - | CP130: 3 | CQ130: 1 | CR130: - | CS130: 1 | CT130: 3 | CU130: - | DC130: 56 | DD130: 47 | DE130: 32 | DF130: 10 | DG130: 5 | DH130: 1 | DI130: 4 | DJ130: 4 | DK130: 21 | DL130: - | DM130: - | DN130: - | DO130: 17 | DP130: 1 | DQ130: - | DR130: - | DS130: - | DT130: 3 | DU130: - | DV130: - | DW130: - | DX130: - | DY130: - | DZ130: - | EA130: 22 | EB130: 831 | EC130: 60 | ED130: 24 | EE130: 747 | EF130: 28 | EG130: 23 | EH130: 15 | EI130: 6 | EJ130: 2 | EK130: - | EL130: 3 | EM130: 2 | EN130: 28 | EO130: 24 | EP130: 17 | EQ130: 4 | ER130: 3 | ES130: 1 | ET130: 1 | EU130: 2
A131: 静岡県 | B131: 葵区(静岡市) | C131: 大河内村 | D131: 中平 | E131: 20 | F131: 11 | G131: 2 | H131: 2 | I131: 2 | J131: - | K131: 7 | L131: 9 | M131: 21 | N131: - | O131: - | P131: - | Q131: - | R131: - | S131: - | T131: - | U131: 1 | V131: 3 | W131: 3 | X131: 3 | Y131: 5 | Z131: 5 | AA131: - | AB131: 1 | AC131: 69.2 | AD131: 68.1 | AE131: 70.2 | AF131: 19 | AG131: - | AH131: - | AI131: - | AJ131: - | AK131: - | AL131: - | AM131: - | AN131: - | AO131: 2 | AP131: 3 | AQ131: 3 | AR131: 5 | AS131: 5 | AT131: - | AU131: 1 | AV131: 70.6 | AW131: 69.8 | AX131: 71.3 | AY131: 18 | AZ131: - | BA131: - | BB131: - | BC131: - | BD131: - | BE131: - | BF131: - | BG131: - | BH131: 2 | BI131: 3 | BJ131: 3 | BK131: 5 | BL131: 5 | BM131: - | BN131: - | BO131: 69.4 | BP131: 69.8 | BQ131: 69.0 | BR131: 11 | BS131: - | BT131: - | BU131: - | BV131: - | BW131: - | BX131: - | BY131: - | BZ131: 1 | CA131: - | CB131: 3 | CC131: 1 | CD131: 3 | CE131: 3 | CF131: - | CG131: - | CH131: 2 | CI131: - | CJ131: - | CK131: - | CL131: - | CM131: - | CN131: - | CO131: - | CP131: 1 | CQ131: - | CR131: 1 | CS131: - | CT131: - | CU131: - | DC131: 27 | DD131: 22 | DE131: 18 | DF131: 4 | DG131: - | DH131: - | DI131: 1 | DJ131: 4 | DK131: 11 | DL131: - | DM131: - | DN131: - | DO131: 9 | DP131: - | DQ131: - | DR131: - | DS131: - | DT131: 2 | DU131: - | DV131: - | DW131: - | DX131: - | DY131: - | DZ131: - | EA131: 11 | EB131: 533 | EC131: 2 | ED131: 38 | EE131: 493 | EF131: 13 | EG131: 12 | EH131: 9 | EI131: 3 | EJ131: - | EK131: - | EL131: 1 | EM131: - | EN131: 14 | EO131: 10 | EP131: 9 | EQ131: 1 | ER131: - | ES131: - | ET131: - | EU131: 4
A132: 静岡県 | B132: 葵区(静岡市) | C132: 大河内村 | D132: 平野 | E132: 36 | F132: 21 | G132: 3 | H132: 2 | I132: 11 | J132: 4 | K132: 7 | L132: 15 | M132: 61 | N132: 2 | O132: 3 | P132: 3 | Q132: 2 | R132: 4 | S132: - | T132: 1 | U132: 9 | V132: 7 | W132: 7 | X132: 6 | Y132: 8 | Z132: 1 | AA132: 3 | AB132: 5 | AC132: 56.8 | AD132: 55.6 | AE132: 57.8 | AF132: 26 | AG132: 1 | AH132: - | AI132: - | AJ132: - | AK132: - | AL132: - | AM132: - | AN132: 2 | AO132: 3 | AP132: 3 | AQ132: 4 | AR132: 6 | AS132: 1 | AT132: 2 | AU132: 4 | AV132: 67.7 | AW132: 64.5 | AX132: 70.8 | AY132: 22 | AZ132: - | BA132: - | BB132: - | BC132: - | BD132: - | BE132: - | BF132: - | BG132: 2 | BH132: 3 | BI132: 3 | BJ132: 4 | BK132: 6 | BL132: 1 | BM132: 2 | BN132: 1 | BO132: 67.5 | BP132: 64.5 | BQ132: 71.9 | BR132: 21 | BS132: - | BT132: - | BU132: - | BV132: - | BW132: - | BX132: - | BY132: - | BZ132: 2 | CA132: 4 | CB132: 5 | CC132: 4 | CD132: 4 | CE132: - | CF132: 1 | CG132: 1 | CH132: 8 | CI132: - | CJ132: - | CK132: - | CL132: - | CM132: - | CN132: 1 | CO132: - | CP132: 2 | CQ132: 2 | CR132: 2 | CS132: - | CT132: - | CU132: 1 | DC132: 77 | DD132: 56 | DE132: 22 | DF132: 33 | DG132: 1 | DH132: 5 | DI132: 5 | DJ132: 11 | DK132: 21 | DL132: - | DM132: - | DN132: - | DO132: 18 | DP132: 2 | DQ132: - | DR132: 1 | DS132: - | DT132: - | DU132: - | DV132: - | DW132: - | DX132: - | DY132: - | DZ132: - | EA132: 21 | EB132: 1,326 | EC132: 40 | ED132: 98 | EE132: 1,188 | EF132: 36 | EG132: 28 | EH132: 13 | EI132: 14 | EJ132: 1 | EK132: - | EL132: 3 | EM132: 5 | EN132: 41 | EO132: 28 | EP132: 9 | EQ132: 19 | ER132: - | ES132: 5 | ET132: 2 | EU132: 6
A133: 静岡県 | B133: 葵区(静岡市) | C133: 大河内村 | D133: 横山 | E133: 17 | F133: 10 | G133: 2 | H133: 2 | I133: 2 | J133: 2 | K133: 6 | L133: 7 | M133: 34 | N133: - | O133: 2 | P133: 1 | Q133: - | R133: 2 | S133: 1 | T133: 4 | U133: 3 | V133: 4 | W133: 1 | X133: 3 | Y133: 5 | Z133: 2 | AA133: 3 | AB133: 3 | AC133: 60.1 | AD133: 56.4 | AE133: 65.6 | AF133: 20 | AG133: - | AH133: - | AI133: 1 | AJ133: - | AK133: - | AL133: - | AM133: 1 | AN133: 1 | AO133: 2 | AP133: 1 | AQ133: 1 | AR133: 5 | AS133: 2 | AT133: 3 | AU133: 3 | AV133: 69.8 | AW133: 69.2 | AX133: 70.3 | AY133: 20 | AZ133: - | BA133: - | BB133: 1 | BC133: - | BD133: - | BE133: - | BF133: 1 | BG133: 1 | BH133: 2 | BI133: 1 | BJ133: 1 | BK133: 5 | BL133: 2 | BM133: 3 | BN133: 3 | BO133: 69.8 | BP133: 69.2 | BQ133: 70.3 | BR133: 10 | BS133: - | BT133: - | BU133: - | BV133: - | BW133: - | BX133: - | BY133: 1 | BZ133: - | CA133: 3 | CB133: 1 | CC133: 1 | CD133: 1 | CE133: 2 | CF133: - | CG133: 1 | CH133: 8 | CI133: - | CJ133: - | CK133: - | CL133: - | CM133: 1 | CN133: - | CO133: 2 | CP133: 1 | CQ133: 1 | CR133: - | CS133: 2 | CT133: - | CU133: 1 | DC133: 49 | DD133: 37 | DE133: 20 | DF133: 15 | DG133: 2 | DH133: 2 | DI133: 2 | DJ133: 8 | DK133: 10 | DL133: - | DM133: - | DN133: - | DO133: 7 | DP133: - | DQ133: - | DR133: - | DS133: - | DT133: 3 | DU133: - | DV133: - | DW133: - | DX133: - | DY133: - | DZ133: - | EA133: 10 | EB133: 475 | EC133: 85 | ED133: - | EE133: 390 | EF133: 24 | EG133: 19 | EH133: 10 | EI133: 8 | EJ133: 1 | EK133: - | EL133: 2 | EM133: 3 | EN133: 25 | EO133: 18 | EP133: 10 | EQ133: 7 | ER133: 1 | ES133: 2 | ET133: - | EU133: 5
A134: 静岡県 | B134: 葵区(静岡市) | C134: 大河内村 | D134: 蕨野 | E134: 5 | F134: 5 | G134: 2 | H134: 1 | I134: - | J134: - | K134: 3 | L134: - | M134: 12 | N134: - | O134: - | P134: - | Q134: - | R134: - | S134: 2 | T134: 1 | U134: 1 | V134: 1 | W134: - | X134: - | Y134: 4 | Z134: 2 | AA134: 1 | AB134: - | AC134: 63.4 | AD134: 63.7 | AE134: 63.0 | AF134: 8 | AG134: - | AH134: - | AI134: - | AJ134: - | AK134: - | AL134: - | AM134: - | AN134: - | AO134: 1 | AP134: - | AQ134: - | AR134: 4 | AS134: 2 | AT134: 1 | AU134: - | AV134: 72.6 | AW134: 71.6 | AX134: 74.3 | AY134: 8 | AZ134: - | BA134: - | BB134: - | BC134: - | BD134: - | BE134: - | BF134: - | BG134: - | BH134: 1 | BI134: - | BJ134: - | BK134: 4 | BL134: 2 | BM134: 1 | BN134: - | BO134: 72.6 | BP134: 71.6 | BQ134: 74.3 | BR134: 5 | BS134: - | BT134: - | BU134: - | BV134: - | BW134: - | BX134: - | BY134: 1 | BZ134: - | CA134: 1 | CB134: - | CC134: - | CD134: 2 | CE134: - | CF134: 1 | CG134: - | CH134: 2 | CI134: - | CJ134: - | CK134: - | CL134: - | CM134: - | CN134: - | CO134: - | CP134: - | CQ134: - | CR134: 2 | CS134: - | CT134: - | CU134: - | DC134: 16 | DD134: 14 | DE134: 8 | DF134: 6 | DG134: - | DH134: - | DI134: 2 | DJ134: - | DK134: 5 | DL134: - | DM134: - | DN134: - | DO134: 5 | DP134: - | DQ134: - | DR134: - | DS134: - | DT134: - | DU134: - | DV134: - | DW134: - | DX134: - | DY134: - | DZ134: - | EA134: 5 | EB134: 512 | EC134: - | ED134: 52 | EE134: 460 | EF134: 9 | EG134: 7 | EH134: 5 | EI134: 2 | EJ134: - | EK134: - | EL134: 2 | EM134: - | EN134: 7 | EO134: 7 | EP134: 3 | EQ134: 4 | ER134: - | ES134: - | ET134: - | EU134: -
A135: 静岡県 | B135: 葵区(静岡市) | C135: 大河内村 | D135: 相渕 | E135: 8 | F135: 6 | G135: - | H135: - | I135: 3 | J135: 1 | K135: 3 | L135: 2 | M135: 17 | N135: - | O135: - | P135: - | Q135: 2 | R135: 1 | S135: 1 | T135: - | U135: - | V135: 4 | W135: 3 | X135: 2 | Y135: 1 | Z135: 1 | AA135: 2 | AB135: - | AC135: 58.9 | AD135: 59.1 | AE135: 58.8 | AF135: 9 | AG135: - | AH135: - | AI135: - | AJ135: - | AK135: - | AL135: - | AM135: - | AN135: - | AO135: 1 | AP135: 2 | AQ135: 2 | AR135: 1 | AS135: 1 | AT135: 2 | AU135: - | AV135: 69.8 | AW135: 70.8 | AX135: 69.0 | AY135: 9 | AZ135: - | BA135: - | BB135: - | BC135: - | BD135: - | BE135: - | BF135: - | BG135: - | BH135: 1 | BI135: 2 | BJ135: 2 | BK135: 1 | BL135: 1 | BM135: 2 | BN135: - | BO135: 69.8 | BP135: 70.8 | BQ135: 69.0 | BR135: 6 | BS135: - | BT135: - | BU135: - | BV135: - | BW135: - | BX135: - | BY135: - | BZ135: - | CA135: 2 | CB135: 1 | CC135: 1 | CD135: 1 | CE135: 1 | CF135: - | CG135: - | CH135: 2 | CI135: - | CJ135: - | CK135: - | CL135: - | CM135: - | CN135: - | CO135: - | CP135: 1 | CQ135: - | CR135: - | CS135: 1 | CT135: - | CU135: - | DC135: 18 | DD135: 17 | DE135: 9 | DF135: 8 | DG135: - | DH135: 1 | DI135: - | DJ135: - | DK135: 6 | DL135: - | DM135: - | DN135: - | DO135: 6 | DP135: - | DQ135: - | DR135: - | DS135: - | DT135: - | DU135: - | DV135: - | DW135: - | DX135: - | DY135: - | DZ135: - | EA135: 6 | EB135: 308 | EC135: - | ED135: 13 | EE135: 295 | EF135: 9 | EG135: 9 | EH135: 4 | EI135: 5 | EJ135: - | EK135: - | EL135: - | EM135: - | EN135: 9 | EO135: 8 | EP135: 5 | EQ135: 3 | ER135: - | ES135: 1 | ET135: - | EU135: -
A136: 静岡県 | B136: 葵区(静岡市) | C136: 梅ヶ島村 | E136: 89 | F136: 55 | G136: 16 | H136: 15 | I136: 17 | J136: 3 | K136: 22 | L136: 34 | M136: 156 | N136: 3 | O136: 4 | P136: 3 | Q136: 6 | R136: 4 | S136: 10 | T136: 15 | U136: 13 | V136: 21 | W136: 9 | X136: 9 | Y136: 21 | Z136: 14 | AA136: 19 | AB136: 5 | AC136: 59.7 | AD136: 58.7 | AE136: 60.6 | AF136: 93 | AG136: 2 | AH136: 1 | AI136: 1 | AJ136: 4 | AK136: 2 | AL136: 3 | AM136: 5 | AN136: 3 | AO136: 13 | AP136: 7 | AQ136: 8 | AR136: 17 | AS136: 10 | AT136: 13 | AU136: 4 | AV136: 63.9 | AW136: 62.1 | AX136: 65.2 | AY136: 78 | AZ136: - | BA136: 1 | BB136: 1 | BC136: 2 | BD136: - | BE136: 2 | BF136: 4 | BG136: 3 | BH136: 13 | BI136: 7 | BJ136: 7 | BK136: 15 | BL136: 10 | BM136: 12 | BN136: 1 | BO136: 65.7 | BP136: 62.6 | BQ136: 68.4 | BR136: 55 | BS136: - | BT136: - | BU136: - | BV136: 1 | BW136: - | BX136: 2 | BY136: 7 | BZ136: 7 | CA136: 11 | CB136: 5 | CC136: 4 | CD136: 5 | CE136: 7 | CF136: 5 | CG136: 1 | CH136: 29 | CI136: - | CJ136: - | CK136: - | CL136: 1 | CM136: 3 | CN136: 3 | CO136: 7 | CP136: 2 | CQ136: 3 | CR136: 3 | CS136: 3 | CT136: 3 | CU136: 1 | DC136: 191 | DD136: 130 | DE136: 78 | DF136: 48 | DG136: 4 | DH136: 20 | DI136: 16 | DJ136: 25 | DK136: 54 | DL136: - | DM136: - | DN136: - | DO136: 50 | DP136: 2 | DQ136: - | DR136: - | DS136: - | DT136: 2 | DU136: - | DV136: - | DW136: - | DX136: - | DY136: - | DZ136: - | EA136: 55 | EB136: 3,464 | EC136: 155 | ED136: 81 | EE136: 3,228 | EF136: 90 | EG136: 73 | EH136: 37 | EI136: 32 | EJ136: 4 | EK136: - | EL136: 6 | EM136: 11 | EN136: 101 | EO136: 57 | EP136: 41 | EQ136: 16 | ER136: - | ES136: 20 | ET136: 10 | EU136: 14
A137: 静岡県 | B137: 葵区(静岡市) | C137: 梅ヶ島村 | D137: 藤代 | E137: 4 | F137: 2 | G137: x | H137: x | I137: x | J137: x | K137: x | L137: 2 | M137: x | N137: x | O137: x | P137: x | Q137: x | R137: x | S137: x | T137: x | U137: x | V137: x | W137: x | X137: x | Y137: x | Z137: x | AA137: x | AB137: x | AC137: 52.1 | AD137: 53.5 | AE137: 50.8 | AF137: x | AG137: x | AH137: x | AI137: x | AJ137: x | AK137: x | AL137: x | AM137: x | AN137: x | AO137: x | AP137: x | AQ137: x | AR137: x | AS137: x | AT137: x | AU137: x | AV137: 52.1 | AW137: 53.5 | AX137: 50.8 | AY137: x | AZ137: x | BA137: x | BB137: x | BC137: x | BD137: x | BE137: x | BF137: x | BG137: x | BH137: x | BI137: x | BJ137: x | BK137: x | BL137: x | BM137: x | BN137: x | BO137: 67.8 | BP137: 66.3 | BQ137: 72.0 | BR137: 2 | BS137: - | BT137: - | BU137: - | BV137: - | BW137: - | BX137: - | BY137: 1 | BZ137: - | CA137: - | CB137: - | CC137: - | CD137: 1 | CE137: - | CF137: - | CG137: - | CH137: 1 | CI137: - | CJ137: - | CK137: - | CL137: - | CM137: 1 | CN137: - | CO137: - | CP137: - | CQ137: - | CR137: - | CS137: - | CT137: - | CU137: - | DC137: 8 | DD137: 4 | DE137: 4 | DF137: - | DG137: - | DH137: 2 | DI137: 2 | DJ137: - | DK137: 2 | DL137: - | DM137: - | DN137: - | DO137: 1 | DP137: 1 | DQ137: - | DR137: - | DS137: - | DT137: - | DU137: - | DV137: - | DW137: - | DX137: - | DY137: - | DZ137: - | EA137: 2 | EB137: 116 | EC137: 25 | ED137: 8 | EE137: 83 | EF137: 4 | EG137: 3 | EH137: 3 | EI137: - | EJ137: - | EK137: - | EL137: 1 | EM137: - | EN137: 4 | EO137: 1 | EP137: 1 | EQ137: - | ER137: - | ES137: 2 | ET137: 1 | EU137: -
A138: 静岡県 | B138: 葵区(静岡市) | C138: 梅ヶ島村 | D138: 入島 | E138: 22 | F138: 12 | G138: 3 | H138: 3 | I138: 6 | J138: - | K138: 3 | L138: 10 | M138: 35 | N138: - | O138: 1 | P138: - | Q138: 2 | R138: 1 | S138: 3 | T138: 4 | U138: 4 | V138: 2 | W138: 1 | X138: 2 | Y138: 5 | Z138: 4 | AA138: 6 | AB138: - | AC138: 60.5 | AD138: 56.6 | AE138: 64.6 | AF138: 17 | AG138: - | AH138: - | AI138: - | AJ138: 1 | AK138: 1 | AL138: - | AM138: 2 | AN138: - | AO138: 1 | AP138: 1 | AQ138: 2 | AR138: 3 | AS138: 3 | AT138: 3 | AU138: - | AV138: 65.6 | AW138: 64.2 | AX138: 66.4 | AY138: 13 | AZ138: - | BA138: - | BB138: - | BC138: 1 | BD138: - | BE138: - | BF138: 1 | BG138: - | BH138: 1 | BI138: 1 | BJ138: 2 | BK138: 2 | BL138: 3 | BM138: 2 | BN138: - | BO138: 67.5 | BP138: 64.2 | BQ138: 70.4 | BR138: 12 | BS138: - | BT138: - | BU138: - | BV138: 1 | BW138: - | BX138: 1 | BY138: 2 | BZ138: 2 | CA138: 1 | CB138: - | CC138: 1 | CD138: 1 | CE138: 2 | CF138: 1 | CG138: - | CH138: 5 | CI138: - | CJ138: - | CK138: - | CL138: - | CM138: - | CN138: 1 | CO138: 1 | CP138: - | CQ138: 1 | CR138: 1 | CS138: 1 | CT138: - | CU138: - | DC138: 39 | DD138: 25 | DE138: 13 | DF138: 11 | DG138: 1 | DH138: 6 | DI138: 2 | DJ138: 6 | DK138: 12 | DL138: - | DM138: - | DN138: - | DO138: 12 | DP138: - | DQ138: - | DR138: - | DS138: - | DT138: - | DU138: - | DV138: - | DW138: - | DX138: - | DY138: - | DZ138: - | EA138: 12 | EB138: 616 | EC138: 50 | ED138: 21 | EE138: 545 | EF138: 20 | EG138: 18 | EH138: 6 | EI138: 11 | EJ138: 1 | EK138: - | EL138: - | EM138: 2 | EN138: 19 | EO138: 7 | EP138: 7 | EQ138: - | ER138: - | ES138: 6 | ET138: 2 | EU138: 4
A139: 静岡県 | B139: 葵区(静岡市) | C139: 梅ヶ島村 | D139: 関の沢 | E139: 7 | F139: 7 | G139: 2 | H139: 1 | I139: 1 | J139: - | K139: 4 | L139: - | M139: 15 | N139: - | O139: - | P139: - | Q139: - | R139: 1 | S139: 1 | T139: - | U139: - | V139: - | W139: 2 | X139: 4 | Y139: 2 | Z139: 1 | AA139: 1 | AB139: 3 | AC139: 69.7 | AD139: 68.2 | AE139: 70.5 | AF139: 12 | AG139: - | AH139: - | AI139: - | AJ139: - | AK139: 1 | AL139: 1 | AM139: - | AN139: - | AO139: - | AP139: 1 | AQ139: 3 | AR139: 2 | AS139: - | AT139: 1 | AU139: 3 | AV139: 69.8 | AW139: 64.7 | AX139: 71.6 | AY139: 8 | AZ139: - | BA139: - | BB139: - | BC139: - | BD139: - | BE139: 1 | BF139: - | BG139: - | BH139: - | BI139: 1 | BJ139: 2 | BK139: 2 | BL139: - | BM139: 1 | BN139: 1 | BO139: 69.3 | BP139: 64.7 | BQ139: 72.0 | BR139: 7 | BS139: - | BT139: - | BU139: - | BV139: - | BW139: - | BX139: - | BY139: - | BZ139: - | CA139: - | CB139: 2 | CC139: 2 | CD139: 1 | CE139: 1 | CF139: 1 | CG139: - | CH139: 6 | CI139: - | CJ139: - | CK139: - | CL139: - | CM139: - | CN139: - | CO139: - | CP139: 1 | CQ139: 2 | CR139: 1 | CS139: 1 | CT139: 1 | CU139: - | DC139: 17 | DD139: 11 | DE139: 8 | DF139: 3 | DG139: - | DH139: 4 | DI139: - | DJ139: 2 | DK139: 7 | DL139: - | DM139: - | DN139: - | DO139: 7 | DP139: - | DQ139: - | DR139: - | DS139: - | DT139: - | DU139: - | DV139: - | DW139: - | DX139: - | DY139: - | DZ139: - | EA139: 7 | EB139: 403 | EC139: 33 | ED139: - | EE139: 370 | EF139: 6 | EG139: 5 | EH139: 3 | EI139: 2 | EJ139: - | EK139: - | EL139: - | EM139: 1 | EN139: 11 | EO139: 6 | EP139: 5 | EQ139: 1 | ER139: - | ES139: 4 | ET139: - | EU139: 1
A140: 静岡県 | B140: 葵区(静岡市) | C140: 梅ヶ島村 | D140: 本村 | E140: 4 | F140: 3 | G140: x | H140: x | I140: x | J140: x | K140: x | L140: 1 | M140: x | N140: x | O140: x | P140: x | Q140: x | R140: x | S140: x | T140: x | U140: x | V140: x | W140: x | X140: x | Y140: x | Z140: x | AA140: x | AB140: x | AC140: 68.2 | AD140: 65.7 | AE140: 70.7 | AF140: x | AG140: x | AH140: x | AI140: x | AJ140: x | AK140: x | AL140: x | AM140: x | AN140: x | AO140: x | AP140: x | AQ140: x | AR140: x | AS140: x | AT140: x | AU140: x | AV140: 72.0 | AW140: 61.0 | AX140: 77.5 | AY140: x | AZ140: x | BA140: x | BB140: x | BC140: x | BD140: x | BE140: x | BF140: x | BG140: x | BH140: x | BI140: x | BJ140: x | BK140: x | BL140: x | BM140: x | BN140: x | BO140: 72.0 | BP140: 61.0 | BQ140: 77.5 | BR140: 3 | BS140: - | BT140: - | BU140: - | BV140: - | BW140: - | BX140: - | BY140: - | BZ140: - | CA140: 1 | CB140: 1 | CC140: - | CD140: - | CE140: 1 | CF140: - | CG140: - | CH140: - | CI140: - | CJ140: - | CK140: - | CL140: - | CM140: - | CN140: - | CO140: - | CP140: - | CQ140: - | CR140: - | CS140: - | CT140: - | CU140: - | DC140: 11 | DD140: 6 | DE140: 3 | DF140: 2 | DG140: 1 | DH140: - | DI140: 2 | DJ140: 3 | DK140: 3 | DL140: - | DM140: - | DN140: - | DO140: 3 | DP140: - | DQ140: - | DR140: - | DS140: - | DT140: - | DU140: - | DV140: - | DW140: - | DX140: - | DY140: - | DZ140: - | EA140: 3 | EB140: 170 | EC140: - | ED140: - | EE140: 170 | EF140: 5 | EG140: 4 | EH140: 1 | EI140: 2 | EJ140: 1 | EK140: - | EL140: 1 | EM140: - | EN140: 6 | EO140: 2 | EP140: 2 | EQ140: - | ER140: - | ES140: - | ET140: 1 | EU140: 3
A141: 静岡県 | B141: 葵区(静岡市) | C141: 梅ヶ島村 | D141: 戸持 | E141: 17 | F141: 6 | G141: 3 | H141: 3 | I141: 2 | J141: 2 | K141: 1 | L141: 11 | M141: 15 | N141: - | O141: - | P141: - | Q141: 2 | R141: - | S141: - | T141: 1 | U141: 1 | V141: 4 | W141: 4 | X141: - | Y141: 2 | Z141: - | AA141: - | AB141: 1 | AC141: 57.7 | AD141: 60.9 | AE141: 54.1 | AF141: 14 | AG141: - | AH141: - | AI141: - | AJ141: 2 | AK141: - | AL141: - | AM141: 1 | AN141: 1 | AO141: 4 | AP141: 3 | AQ141: - | AR141: 2 | AS141: - | AT141: - | AU141: 1 | AV141: 57.4 | AW141: 60.6 | AX141: 54.1 | AY141: 12 | AZ141: - | BA141: - | BB141: - | BC141: 1 | BD141: - | BE141: - | BF141: 1 | BG141: 1 | BH141: 4 | BI141: 3 | BJ141: - | BK141: 2 | BL141: - | BM141: - | BN141: - | BO141: 56.8 | BP141: 55.7 | BQ141: 58.0 | BR141: 6 | BS141: - | BT141: - | BU141: - | BV141: - | BW141: - | BX141: - | BY141: - | BZ141: 1 | CA141: 1 | CB141: 2 | CC141: - | CD141: 1 | CE141: - | CF141: - | CG141: 1 | CH141: 3 | CI141: - | CJ141: - | CK141: - | CL141: - | CM141: - | CN141: - | CO141: 1 | CP141: 1 | CQ141: - | CR141: - | CS141: - | CT141: - | CU141: 1 | DC141: 22 | DD141: 15 | DE141: 12 | DF141: 3 | DG141: - | DH141: 1 | DI141: - | DJ141: 6 | DK141: 6 | DL141: - | DM141: - | DN141: - | DO141: 5 | DP141: - | DQ141: - | DR141: - | DS141: - | DT141: 1 | DU141: - | DV141: - | DW141: - | DX141: - | DY141: - | DZ141: - | EA141: 6 | EB141: 492 | EC141: - | ED141: 28 | EE141: 464 | EF141: 10 | EG141: 8 | EH141: 6 | EI141: 2 | EJ141: - | EK141: - | EL141: - | EM141: 2 | EN141: 12 | EO141: 7 | EP141: 6 | EQ141: 1 | ER141: - | ES141: 1 | ET141: - | EU141: 4
A142: 静岡県 | B142: 葵区(静岡市) | C142: 梅ヶ島村 | D142: 大代 | E142: 13 | F142: 10 | G142: 4 | H142: 4 | I142: 3 | J142: 1 | K142: 3 | L142: 3 | M142: 38 | N142: 1 | O142: 2 | P142: 3 | Q142: 2 | R142: 2 | S142: 2 | T142: 2 | U142: 3 | V142: 8 | W142: - | X142: 2 | Y142: 3 | Z142: 4 | AA142: 4 | AB142: - | AC142: 54.4 | AD142: 57.4 | AE142: 52.1 | AF142: 22 | AG142: - | AH142: - | AI142: 1 | AJ142: 1 | AK142: - | AL142: - | AM142: - | AN142: 2 | AO142: 6 | AP142: - | AQ142: 2 | AR142: 3 | AS142: 3 | AT142: 4 | AU142: - | AV142: 64.8 | AW142: 63.1 | AX142: 66.0 | AY142: 21 | AZ142: - | BA142: - | BB142: 1 | BC142: - | BD142: - | BE142: - | BF142: - | BG142: 2 | BH142: 6 | BI142: - | BJ142: 2 | BK142: 3 | BL142: 3 | BM142: 4 | BN142: - | BO142: 66.3 | BP142: 63.1 | BQ142: 68.7 | BR142: 10 | BS142: - | BT142: - | BU142: - | BV142: - | BW142: - | BX142: - | BY142: 2 | BZ142: 1 | CA142: 5 | CB142: - | CC142: 1 | CD142: - | CE142: 1 | CF142: - | CG142: - | CH142: 4 | CI142: - | CJ142: - | CK142: - | CL142: - | CM142: - | CN142: 1 | CO142: 3 | CP142: - | CQ142: - | CR142: - | CS142: - | CT142: - | CU142: - | DC142: 43 | DD142: 33 | DE142: 21 | DF142: 11 | DG142: 1 | DH142: 3 | DI142: 4 | DJ142: 3 | DK142: 10 | DL142: - | DM142: - | DN142: - | DO142: 9 | DP142: - | DQ142: - | DR142: - | DS142: - | DT142: 1 | DU142: - | DV142: - | DW142: - | DX142: - | DY142: - | DZ142: - | EA142: 10 | EB142: 995 | EC142: 15 | ED142: 24 | EE142: 956 | EF142: 18 | EG142: 15 | EH142: 9 | EI142: 5 | EJ142: 1 | EK142: - | EL142: 1 | EM142: 2 | EN142: 25 | EO142: 18 | EP142: 12 | EQ142: 6 | ER142: - | ES142: 3 | ET142: 3 | EU142: 1
A143: 静岡県 | B143: 葵区(静岡市) | C143: 梅ヶ島村 | D143: 赤水・温泉・新田 | E143: 22 | F143: 15 | G143: 2 | H143: 2 | I143: 4 | J143: - | K143: 9 | L143: 7 | M143: 39 | N143: - | O143: 1 | P143: - | Q143: - | R143: - | S143: 3 | T143: 7 | U143: 5 | V143: 5 | W143: 1 | X143: 1 | Y143: 5 | Z143: 4 | AA143: 6 | AB143: 1 | AC143: 61.3 | AD143: 58.3 | AE143: 64.6 | AF143: 17 | AG143: - | AH143: 1 | AI143: - | AJ143: - | AK143: - | AL143: 1 | AM143: 1 | AN143: - | AO143: 2 | AP143: 1 | AQ143: 1 | AR143: 3 | AS143: 4 | AT143: 3 | AU143: - | AV143: 66.4 | AW143: 64.0 | AX143: 69.1 | AY143: 17 | AZ143: - | BA143: 1 | BB143: - | BC143: - | BD143: - | BE143: 1 | BF143: 1 | BG143: - | BH143: 2 | BI143: 1 | BJ143: 1 | BK143: 3 | BL143: 4 | BM143: 3 | BN143: - | BO143: 66.4 | BP143: 64.0 | BQ143: 69.1 | BR143: 15 | BS143: - | BT143: - | BU143: - | BV143: - | BW143: - | BX143: 1 | BY143: 2 | BZ143: 3 | CA143: 3 | CB143: - | CC143: - | CD143: 1 | CE143: 2 | CF143: 3 | CG143: - | CH143: 10 | CI143: - | CJ143: - | CK143: - | CL143: 1 | CM143: 2 | CN143: 1 | CO143: 2 | CP143: - | CQ143: - | CR143: 1 | CS143: 1 | CT143: 2 | CU143: - | DC143: 51 | DD143: 36 | DE143: 17 | DF143: 18 | DG143: 1 | DH143: 4 | DI143: 6 | DJ143: 5 | DK143: 14 | DL143: - | DM143: - | DN143: - | DO143: 13 | DP143: 1 | DQ143: - | DR143: - | DS143: - | DT143: - | DU143: - | DV143: - | DW143: - | DX143: - | DY143: - | DZ143: - | EA143: 15 | EB143: 672 | EC143: 32 | ED143: - | EE143: 640 | EF143: 27 | EG143: 20 | EH143: 9 | EI143: 10 | EJ143: 1 | EK143: - | EL143: 3 | EM143: 4 | EN143: 24 | EO143: 16 | EP143: 8 | EQ143: 8 | ER143: - | ES143: 4 | ET143: 3 | EU143: 1
A144: 静岡県 | B144: 葵区(静岡市) | C144: 玉川村 | E144: 219 | F144: 97 | G144: 20 | H144: 17 | I144: 36 | J144: 12 | K144: 41 | L144: 122 | M144: 256 | N144: 5 | O144: 8 | P144: 3 | Q144: 4 | R144: 8 | S144: 15 | T144: 20 | U144: 25 | V144: 42 | W144: 16 | X144: 26 | Y144: 28 | Z144: 26 | AA144: 19 | AB144: 11 | AC144: 59.7 | AD144: 61.0 | AE144: 58.3 | AF144: 147 | AG144: 1 | AH144: - | AI144: - | AJ144: 1 | AK144: 1 | AL144: 2 | AM144: 5 | AN144: 9 | AO144: 18 | AP144: 11 | AQ144: 20 | AR144: 26 | AS144: 25 | AT144: 19 | AU144: 9 | AV144: 68.2 | AW144: 68.8 | AX144: 67.7 | AY144: 130 | AZ144: - | BA144: - | BB144: - | BC144: 1 | BD144: - | BE144: 1 | BF144: 5 | BG144: 8 | BH144: 17 | BI144: 10 | BJ144: 16 | BK144: 25 | BL144: 22 | BM144: 18 | BN144: 7 | BO144: 68.8 | BP144: 69.7 | BQ144: 67.9 | BR144: 97 | BS144: - | BT144: - | BU144: - | BV144: - | BW144: - | BX144: - | BY144: 6 | BZ144: 9 | CA144: 23 | CB144: 8 | CC144: 12 | CD144: 15 | CE144: 14 | CF144: 8 | CG144: 2 | CH144: 46 | CI144: - | CJ144: - | CK144: - | CL144: - | CM144: 1 | CN144: 2 | CO144: 8 | CP144: 3 | CQ144: 7 | CR144: 9 | CS144: 9 | CT144: 5 | CU144: 2 | DC144: 330 | DD144: 252 | DE144: 130 | DF144: 115 | DG144: 7 | DH144: 24 | DI144: 28 | DJ144: 26 | DK144: 94 | DL144: - | DM144: - | DN144: - | DO144: 92 | DP144: 1 | DQ144: - | DR144: - | DS144: - | DT144: - | DU144: 1 | DV144: - | DW144: - | DX144: - | DY144: - | DZ144: - | EA144: 97 | EB144: 6,386 | EC144: 414 | ED144: 280 | EE144: 5,692 | EF144: 160 | EG144: 139 | EH144: 68 | EI144: 66 | EJ144: 5 | EK144: - | EL144: 12 | EM144: 9 | EN144: 170 | EO144: 113 | EP144: 62 | EQ144: 49 | ER144: 2 | ES144: 24 | ET144: 16 | EU144: 17
A145: 静岡県 | B145: 葵区(静岡市) | C145: 玉川村 | D145: 中沢 | E145: 18 | F145: 12 | G145: 4 | H145: 3 | I145: 5 | J145: 2 | K145: 3 | L145: 6 | M145: 31 | N145: - | O145: - | P145: - | Q145: 1 | R145: - | S145: 4 | T145: 2 | U145: 6 | V145: 5 | W145: - | X145: 2 | Y145: 3 | Z145: 3 | AA145: 4 | AB145: 1 | AC145: 60.7 | AD145: 59.6 | AE145: 62.0 | AF145: 19 | AG145: - | AH145: - | AI145: - | AJ145: - | AK145: - | AL145: 1 | AM145: 1 | AN145: 3 | AO145: 2 | AP145: - | AQ145: 1 | AR145: 3 | AS145: 3 | AT145: 4 | AU145: 1 | AV145: 67.6 | AW145: 67.7 | AX145: 67.6 | AY145: 16 | AZ145: - | BA145: - | BB145: - | BC145: - | BD145: - | BE145: - | BF145: 1 | BG145: 3 | BH145: 2 | BI145: - | BJ145: 1 | BK145: 3 | BL145: 2 | BM145: 4 | BN145: - | BO145: 67.5 | BP145: 67.7 | BQ145: 67.3 | BR145: 12 | BS145: - | BT145: - | BU145: - | BV145: - | BW145: - | BX145: - | BY145: 1 | BZ145: 3 | CA145: 2 | CB145: - | CC145: 2 | CD145: 1 | CE145: 1 | CF145: 2 | CG145: - | CH145: 4 | CI145: - | CJ145: - | CK145: - | CL145: - | CM145: - | CN145: 1 | CO145: - | CP145: - | CQ145: 2 | CR145: 1 | CS145: - | CT145: - | CU145: - | DC145: 40 | DD145: 31 | DE145: 16 | DF145: 15 | DG145: - | DH145: 3 | DI145: 3 | DJ145: 3 | DK145: 12 | DL145: - | DM145: - | DN145: - | DO145: 12 | DP145: - | DQ145: - | DR145: - | DS145: - | DT145: - | DU145: - | DV145: - | DW145: - | DX145: - | DY145: - | DZ145: - | EA145: 12 | EB145: 840 | EC145: - | ED145: 19 | EE145: 821 | EF145: 21 | EG145: 18 | EH145: 9 | EI145: 9 | EJ145: - | EK145: - | EL145: 2 | EM145: 1 | EN145: 19 | EO145: 13 | EP145: 7 | EQ145: 6 | ER145: - | ES145: 3 | ET145: 1 | EU145: 2
